Workbook

Sheet Riskk

Sheet InMonthly (hidden)
A1: CASH | P1: CORE | AE1: DIVIDEND | AT1: DSRA | BI1: FUND | BX1: INDEX | CM1: OPR | DB1: REITS | DQ1: TRA | EF1: VALUE
A2: Month | B2: EqtTradingGain | C2: Dividend Recieved | D2: Dividend Receivable | E2: Profit Received | F2: Profit Recievable | G2: Bank Charges | H2: Mno | I2: Year | J2: Coupon Received | K2: Coupon Receivable | L2: OtherReceived | M2: OtherReceivable | N2: FI Trading Gain | O2: TradingGain | P2: Month | Q2: EqtTradingGain | R2: Dividend Recieved | S2: Dividend Receivable | T2: Profit Received | U2: Profit Recievable | V2: Bank Charges | W2: Mno | X2: Year | Y2: Coupon Received | Z2: Coupon Receivable | AA2: OtherReceived | AB2: OtherReceivable | AC2: FI Trading Gain | AD2: TradingGain | AE2: Month | AF2: EqtTradingGain | AG2: Dividend Recieved | AH2: Dividend Receivable | AI2: Profit Received | AJ2: Profit Recievable | AK2: Bank Charges | AL2: Mno | AM2: Year | AN2: Coupon Received | AO2: Coupon Receivable | AP2: OtherReceived | AQ2: OtherReceivable | AR2: FI Trading Gain | AS2: TradingGain | AT2: Month | AU2: EqtTradingGain | AV2: Dividend Recieved | AW2: Dividend Receivable | AX2: Profit Received | AY2: Profit Recievable | AZ2: Bank Charges | BA2: Mno | BB2: Year | BC2: Coupon Received | BD2: Coupon Receivable | BE2: OtherReceived | BF2: OtherReceivable | BG2: FI Trading Gain | BH2: TradingGain | BI2: Month | BJ2: EqtTradingGain | BK2: Dividend Recieved | BL2: Dividend Receivable | BM2: Profit Received | BN2: Profit Recievable | BO2: Bank Charges | BP2: Mno | BQ2: Year | BR2: Coupon Received | BS2: Coupon Receivable | BT2: OtherReceived | BU2: OtherReceivable | BV2: FI Trading Gain | BW2: TradingGain | BX2: Month | BY2: EqtTradingGain | BZ2: Dividend Recieved | CA2: Dividend Receivable | CB2: Profit Received | CC2: Profit Recievable | CD2: Bank Charges | CE2: Mno | CF2: Year | CG2: Coupon Received | CH2: Coupon Receivable | CI2: OtherReceived | CJ2: OtherReceivable | CK2: FI Trading Gain | CL2: TradingGain | CM2: Month | CN2: EqtTradingGain | CO2: Dividend Recieved | CP2: Dividend Receivable | CQ2: Profit Received | CR2: Profit Recievable | CS2: Bank Charges | CT2: Mno | CU2: Year | CV2: Coupon Received | CW2: Coupon Receivable | CX2: OtherReceived | CY2: OtherReceivable | CZ2: FI Trading Gain | DA2: TradingGain | DB2: Month | DC2: EqtTradingGain | DD2: Dividend Recieved | DE2: Dividend Receivable | DF2: Profit Received | DG2: Profit Recievable | DH2: Bank Charges | DI2: Mno | DJ2: Year | DK2: Coupon Received | DL2: Coupon Receivable | DM2: OtherReceived | DN2: OtherReceivable | DO2: FI Trading Gain | DP2: TradingGain | DQ2: Month | DR2: EqtTradingGain | DS2: Dividend Recieved | DT2: Dividend Receivable | DU2: Profit Received | DV2: Profit Recievable | DW2: Bank Charges | DX2: Mno | DY2: Year | DZ2: Coupon Received | EA2: Coupon Receivable | EB2: OtherReceived | EC2: OtherReceivable | ED2: FI Trading Gain | EE2: TradingGain | EF2: Month | EG2: EqtTradingGain | EH2: Dividend Recieved | EI2: Dividend Receivable | EJ2: Profit Received | EK2: Profit Recievable | EL2: Bank Charges | EM2: Mno | EN2: Year | EO2: Coupon Received | EP2: Coupon Receivable | EQ2: OtherReceived | ER2: OtherReceivable | ES2: FI Trading Gain | ET2: TradingGain | EU2: Amort | EV2: 0 | EW2: 0 | EX2: 0 | EY2: 0 | EZ2: 0 | FA2: 0 | FB2: 0 | FC2: 0 | FD2: 0 | FE2: 0 | FF2: 0 | FG2: 0 | FH2: 0 | FI2: 0 | FJ2: 0 | FK2: 0 | FL2: 0 | FM2: 0 | FN2: 0 | FO2: 0 | FP2: 0 | FQ2: 0 | FR2: 0 | FS2: 0 | FT2: 0 | FU2: 0 | FV2: 0 | FW2: 0 | FX2: 0 | FY2: 0 | FZ2: 0 | GA2: 0 | GB2: 0 | GC2: 0 | GD2: 0 | GE2: 0 | GF2: 0 | GG2: 0 | GH2: 0 | GI2: 0 | GJ2: 0 | GK2: 0 | GL2: 0 | GM2: 0 | GN2: 0 | GO2: 0 | GP2: 0 | GQ2: 0 | GR2: 0 | GS2: 0 | GT2: 0 | GU2: 0 | GV2: 0 | GW2: 0 | GX2: 0 | GY2: 0 | GZ2: 0 | HA2: 0 | HB2: 0 | HC2: 0 | HD2: 0 | HE2: 0 | HF2: 0 | HG2: 0 | HH2: 0 | HI2: 0 | HJ2: 0 | HK2: 0 | HL2: 0 | HM2: 0 | HN2: 0 | HO2: 0 | HP2: 0 | HQ2: 0 | HR2: 0 | HS2: 0 | HT2: 0 | HU2: 0 | HV2: 0 | HW2: 0 | HX2: 0 | HY2: 0 | HZ2: 0 | IA2: 0 | IB2: 0 | IC2: 0 | ID2: 0 | IE2: 0 | IF2: 0 | IG2: 0 | IH2: 0 | II2: 0 | IJ2: 0 | IK2: 0 | IL2: 0 | IM2: 0 | IN2: 0 | IO2: 0 | IP2: 0 | IQ2: 0 | IR2: 0 | IS2: 0 | IT2: 0 | IU2: 0 | IV2: 0 | IW2: 0 | IX2: 0 | IY2: 0 | IZ2: 0 | JA2: 0 | JB2: 0 | JC2: 0 | JD2: 0 | JE2: 0 | JF2: 0 | JG2: 0 | JH2: 0 | JI2: 0 | JJ2: 0 | JK2: 0 | JL2: 0 | JM2: 0 | JN2: 0 | JO2: 0 | JP2: 0 | JQ2: 0 | JR2: 0 | JS2: 0 | JT2: 0 | JU2: 0 | JV2: 0 | JW2: 0 | JX2: 0 | JY2: 0 | JZ2: 0 | KA2: 0 | KB2: 0 | KC2: 0 | KD2: 0 | KE2: 0 | KF2: 0 | KG2: 0 | KH2: 0 | KI2: 0 | KJ2: 0 | KK2: 0 | KL2: 0 | KM2: 0 | KN2: 0 | KO2: 0 | KP2: 0 | KQ2: 0 | KR2: 0 | KS2: 0 | KT2: 0 | KU2: 0 | KV2: 0 | KW2: 0 | KX2: 0 | KY2: 0 | KZ2: 0 | LA2: 0 | LB2: 0 | LC2: 0 | LD2: 0 | LE2: 0 | LF2: 0 | LG2: 0 | LH2: 0 | LI2: 0 | LJ2: 0 | LK2: 0 | LL2: 0 | LM2: 0 | LN2: 0 | LO2: 0 | LP2: 0 | LQ2: 0 | LR2: 0 | LS2: 0 | LT2: 0 | LU2: 0 | LV2: 0 | LW2: 0 | LX2: 0 | LY2: 0 | LZ2: 0 | MA2: 0 | MB2: 0 | MC2: 0 | MD2: 0 | ME2: 0 | MF2: 0 | MG2: 0 | MH2: 0 | MI2: 0 | MJ2: 0 | MK2: 0 | ML2: 0 | MM2: 0 | MN2: 0 | MO2: 0 | MP2: 0 | MQ2: 0 | MR2: 0 | MS2: 0 | MT2: 0 | MU2: 0 | MV2: 0 | MW2: 0 | MX2: 0 | MY2: 0 | MZ2: 0 | NA2: 0 | NB2: 0 | NC2: 0 | ND2: 0 | NE2: 0 | NF2: 0 | NG2: 0 | NH2: 0 | NI2: 0 | NJ2: 0 | NK2: 0 | NL2: 0 | NM2: 0 | NN2: 0 | NO2: 0 | NP2: 0 | NQ2: 0 | NR2: 0 | NS2: 0 | NT2: 0 | NU2: 0 | NV2: 0 | NW2: 0 | NX2: 0 | NY2: 0 | NZ2: 0 | OA2: 0 | OB2: 0 | OC2: 0 | OD2: 0 | OE2: 0 | OF2: 0 | OG2: 0 | OH2: 0 | OI2: 0 | OJ2: 0 | OK2: 0 | OL2: 0 | OM2: 0 | ON2: 0 | OO2: 0 | OP2: 0 | OQ2: 0 | OR2: 0 | OS2: 0 | OT2: 0 | OU2: 0 | OV2: 0 | OW2: 0 | OX2: 0 | OY2: 0 | OZ2: 0 | PA2: 0 | PB2: 0 | PC2: 0 | PD2: 0 | PE2: 0 | PF2: 0 | PG2: 0 | PH2: 0 | PI2: 0 | PJ2: 0 | PK2: 0 | PL2: 0 | PM2: 0 | PN2: 0 | PO2: 0 | PP2: 0 | PQ2: 0 | PR2: 0 | PS2: 0 | PT2: 0 | PU2: 0 | PV2: 0 | PW2: 0 | PX2: 0 | PY2: 0 | PZ2: 0 | QA2: 0 | QB2: 0 | QC2: 0 | QD2: 0 | QE2: 0 | QF2: 0 | QG2: 0 | QH2: 0 | QI2: 0 | QJ2: 0 | QK2: 0 | QL2: 0 | QM2: 0 | QN2: 0 | QO2: 0 | QP2: 0 | QQ2: 0 | QR2: 0 | QS2: 0 | QT2: 0 | QU2: 0 | QV2: 0 | QW2: 0 | QX2: 0 | QY2: 0 | QZ2: 0 | RA2: 0 | RB2: 0 | RC2: 0 | RD2: 0 | RE2: 0 | RF2: 0 | RG2: 0 | RH2: 0 | RI2: 0 | RJ2: 0 | RK2: 0 | RL2: 0 | RM2: 0 | RN2: 0 | RO2: 0 | RP2: 0 | RQ2: 0 | RR2: 0 | RS2: 0 | RT2: 0 | RU2: 0 | RV2: 0 | RW2: 0 | RX2: 0 | RY2: 0 | RZ2: 0 | SA2: 0 | SB2: 0 | SC2: 0 | SD2: 0 | SE2: 0 | SF2: 0 | SG2: 0 | SH2: 0 | SI2: 0 | SJ2: 0 | SK2: 0 | SL2: 0 | SM2: 0 | SN2: 0 | SO2: 0 | SP2: 0 | SQ2: 0 | SR2: 0 | SS2: 0 | ST2: 0 | SU2: 0 | SV2: 0 | SW2: 0 | SX2: 0 | SY2: 0 | SZ2: 0 | TA2: 0 | TB2: 0 | TC2: 0 | TD2: 0 | TE2: 0 | TF2: 0 | TG2: 0 | TH2: 0 | TI2: 0 | TJ2: 0 | TK2: 0 | TL2: 0 | TM2: 0 | TN2: 0 | TO2: 0 | TP2: 0 | TQ2: 0 | TR2: 0 | TS2: 0 | TT2: 0 | TU2: 0 | TV2: 0 | TW2: 0 | TX2: 0 | TY2: 0 | TZ2: 0 | UA2: 0 | UB2: 0 | UC2: 0 | UD2: 0 | UE2: 0 | UF2: 0 | UG2: 0 | UH2: 0 | UI2: 0 | UJ2: 0 | UK2: 0 | UL2: 0 | UM2: 0 | UN2: 0 | UO2: 0 | UP2: 0 | UQ2: 0 | UR2: 0 | US2: 0 | UT2: 0 | UU2: 0 | UV2: 0 | UW2: 0 | UX2: 0 | UY2: 0 | UZ2: 0 | VA2: 0 | VB2: 0 | VC2: 0 | VD2: 0 | VE2: 0 | VF2: 0 | VG2: 0 | VH2: 0 | VI2: 0 | VJ2: 0 | VK2: 0 | VL2: 0 | VM2: 0 | VN2: 0 | VO2: 0 | VP2: 0 | VQ2: 0 | VR2: 0 | VS2: 0 | VT2: 0 | VU2: 0 | VV2: 0 | VW2: 0 | VX2: 0 | VY2: 0 | VZ2: 0 | WA2: 0 | WB2: 0 | WC2: 0 | WD2: 0 | WE2: 0 | WF2: 0 | WG2: 0 | WH2: 0 | WI2: 0 | WJ2: 0 | WK2: 0 | WL2: 0 | WM2: 0 | WN2: 0 | WO2: 0 | WP2: 0 | WQ2: 0 | WR2: 0 | WS2: 0 | WT2: 0 | WU2: 0 | WV2: 0 | WW2: 0 | WX2: 0 | WY2: 0 | WZ2: 0 | XA2: 0 | XB2: 0 | XC2: 0 | XD2: 0 | XE2: 0 | XF2: 0 | XG2: 0 | XH2: 0 | XI2: 0 | XJ2: 0 | XK2: 0 | XL2: 0 | XM2: 0 | XN2: 0 | XO2: 0 | XP2: 0 | XQ2: 0 | XR2: 0 | XS2: 0 | XT2: 0 | XU2: 0 | XV2: 0 | XW2: 0 | XX2: 0 | XY2: 0 | XZ2: 0 | YA2: 0 | YB2: 0 | YC2: 0 | YD2: 0 | YE2: 0 | YF2: 0 | YG2: 0 | YH2: 0 | YI2: 0 | YJ2: 0 | YK2: 0 | YL2: 0 | YM2: 0 | YN2: 0 | YO2: 0 | YP2: 0 | YQ2: 0 | YR2: 0 | YS2: 0 | YT2: 0 | YU2: 0 | YV2: 0 | YW2: 0 | YX2: 0 | YY2: 0 | YZ2: 0 | ZA2: 0 | ZB2: 0 | ZC2: 0 | ZD2: 0 | ZE2: 0 | ZF2: 0 | ZG2: 0 | ZH2: 0 | ZI2: 0 | ZJ2: 0 | ZK2: 0 | ZL2: 0 | ZM2: 0 | ZN2: 0 | ZO2: 0 | ZP2: 0 | ZQ2: 0 | ZR2: 0 | ZS2: 0 | ZT2: 0 | ZU2: 0 | ZV2: 0 | ZW2: 0 | ZX2: 0 | ZY2: 0 | ZZ2: 0
A3: November | B3: 0 | C3: 0 | D3: 0 | E3: 0 | F3: 0 | G3: 0 | H3: 11 | I3: 2015 | J3: 0 | K3: 0 | L3: 0 | M3: 0 | N3: 0 | O3: 0 | P3: November | Q3: 0 | R3: 0 | S3: 0 | T3: 0 | U3: 0 | V3: 0 | W3: 11 | X3: 2015 | Y3: 0 | Z3: 0 | AA3: 0 | AB3: 0 | AC3: 0 | AD3: 0 | AE3: November | AF3: 0 | AG3: 0 | AH3: 0 | AI3: 0 | AJ3: 0 | AK3: 0 | AL3: 11 | AM3: 2015 | AN3: 0 | AO3: 0 | AP3: 0 | AQ3: 0 | AR3: 0 | AS3: 0 | AT3: November | AU3: 0 | AV3: 0 | AW3: 0 | AX3: 0 | AY3: 0 | AZ3: 0 | BA3: 11 | BB3: 2015 | BC3: 0 | BD3: 0 | BE3: 0 | BF3: 0 | BG3: 0 | BH3: 0 | BI3: November | BJ3: 0 | BK3: 0 | BL3: 0 | BM3: 0 | BN3: 0 | BO3: 0 | BP3: 11 | BQ3: 2015 | BR3: 0 | BS3: 0 | BT3: 0 | BU3: 0 | BV3: 0 | BW3: 0 | BX3: November | BY3: 0 | BZ3: 0 | CA3: 0 | CB3: 0 | CC3: 0 | CD3: 0 | CE3: 11 | CF3: 2015 | CG3: 0 | CH3: 0 | CI3: 0 | CJ3: 0 | CK3: 0 | CL3: 0 | CM3: November | CN3: 0 | CO3: 0 | CP3: 0 | CQ3: 0 | CR3: 0 | CS3: 0 | CT3: 11 | CU3: 2015 | CV3: 0 | CW3: 0 | CX3: 0 | CY3: 0 | CZ3: 0 | DA3: 0 | DB3: November | DC3: 0 | DD3: 0 | DE3: 0 | DF3: 0 | DG3: 0 | DH3: 0 | DI3: 11 | DJ3: 2015 | DK3: 0 | DL3: 0 | DM3: 0 | DN3: 0 | DO3: 0 | DP3: 0 | DQ3: November | DR3: 0 | DS3: 0 | DT3: 0 | DU3: 0 | DV3: 0 | DW3: 0 | DX3: 11 | DY3: 2015 | DZ3: 0 | EA3: 0 | EB3: 0 | EC3: 0 | ED3: 0 | EE3: 0 | EF3: November | EG3: 0 | EH3: 0 | EI3: 0 | EJ3: 0 | EK3: 0 | EL3: 0 | EM3: 11 | EN3: 2015 | EO3: 0 | EP3: 0 | EQ3: 0 | ER3: 0 | ES3: 0 | ET3: 0 | EU3: 0 | EV3: 0 | EW3: 0 | EX3: 0 | EY3: 0 | EZ3: 0 | FA3: 0 | FB3: 0 | FC3: 0 | FD3: 0 | FE3: 0 | FF3: 0 | FG3: 0 | FH3: 0 | FI3: 0 | FJ3: 0 | FK3: 0 | FL3: 0 | FM3: 0 | FN3: 0 | FO3: 0 | FP3: 0 | FQ3: 0 | FR3: 0 | FS3: 0 | FT3: 0 | FU3: 0 | FV3: 0 | FW3: 0 | FX3: 0 | FY3: 0 | FZ3: 0 | GA3: 0 | GB3: 0 | GC3: 0 | GD3: 0 | GE3: 0 | GF3: 0 | GG3: 0 | GH3: 0 | GI3: 0 | GJ3: 0 | GK3: 0 | GL3: 0 | GM3: 0 | GN3: 0 | GO3: 0 | GP3: 0 | GQ3: 0 | GR3: 0 | GS3: 0 | GT3: 0 | GU3: 0 | GV3: 0 | GW3: 0 | GX3: 0 | GY3: 0 | GZ3: 0 | HA3: 0 | HB3: 0 | HC3: 0 | HD3: 0 | HE3: 0 | HF3: 0 | HG3: 0 | HH3: 0 | HI3: 0 | HJ3: 0 | HK3: 0 | HL3: 0 | HM3: 0 | HN3: 0 | HO3: 0 | HP3: 0 | HQ3: 0 | HR3: 0 | HS3: 0 | HT3: 0 | HU3: 0 | HV3: 0 | HW3: 0 | HX3: 0 | HY3: 0 | HZ3: 0 | IA3: 0 | IB3: 0 | IC3: 0 | ID3: 0 | IE3: 0 | IF3: 0 | IG3: 0 | IH3: 0 | II3: 0 | IJ3: 0 | IK3: 0 | IL3: 0 | IM3: 0 | IN3: 0 | IO3: 0 | IP3: 0 | IQ3: 0 | IR3: 0 | IS3: 0 | IT3: 0 | IU3: 0 | IV3: 0 | IW3: 0 | IX3: 0 | IY3: 0 | IZ3: 0 | JA3: 0 | JB3: 0 | JC3: 0 | JD3: 0 | JE3: 0 | JF3: 0 | JG3: 0 | JH3: 0 | JI3: 0 | JJ3: 0 | JK3: 0 | JL3: 0 | JM3: 0 | JN3: 0 | JO3: 0 | JP3: 0 | JQ3: 0 | JR3: 0 | JS3: 0 | JT3: 0 | JU3: 0 | JV3: 0 | JW3: 0 | JX3: 0 | JY3: 0 | JZ3: 0 | KA3: 0 | KB3: 0 | KC3: 0 | KD3: 0 | KE3: 0 | KF3: 0 | KG3: 0 | KH3: 0 | KI3: 0 | KJ3: 0 | KK3: 0 | KL3: 0 | KM3: 0 | KN3: 0 | KO3: 0 | KP3: 0 | KQ3: 0 | KR3: 0 | KS3: 0 | KT3: 0 | KU3: 0 | KV3: 0 | KW3: 0 | KX3: 0 | KY3: 0 | KZ3: 0 | LA3: 0 | LB3: 0 | LC3: 0 | LD3: 0 | LE3: 0 | LF3: 0 | LG3: 0 | LH3: 0 | LI3: 0 | LJ3: 0 | LK3: 0 | LL3: 0 | LM3: 0 | LN3: 0 | LO3: 0 | LP3: 0 | LQ3: 0 | LR3: 0 | LS3: 0 | LT3: 0 | LU3: 0 | LV3: 0 | LW3: 0 | LX3: 0 | LY3: 0 | LZ3: 0 | MA3: 0 | MB3: 0 | MC3: 0 | MD3: 0 | ME3: 0 | MF3: 0 | MG3: 0 | MH3: 0 | MI3: 0 | MJ3: 0 | MK3: 0 | ML3: 0 | MM3: 0 | MN3: 0 | MO3: 0 | MP3: 0 | MQ3: 0 | MR3: 0 | MS3: 0 | MT3: 0 | MU3: 0 | MV3: 0 | MW3: 0 | MX3: 0 | MY3: 0 | MZ3: 0 | NA3: 0 | NB3: 0 | NC3: 0 | ND3: 0 | NE3: 0 | NF3: 0 | NG3: 0 | NH3: 0 | NI3: 0 | NJ3: 0 | NK3: 0 | NL3: 0 | NM3: 0 | NN3: 0 | NO3: 0 | NP3: 0 | NQ3: 0 | NR3: 0 | NS3: 0 | NT3: 0 | NU3: 0 | NV3: 0 | NW3: 0 | NX3: 0 | NY3: 0 | NZ3: 0 | OA3: 0 | OB3: 0 | OC3: 0 | OD3: 0 | OE3: 0 | OF3: 0 | OG3: 0 | OH3: 0 | OI3: 0 | OJ3: 0 | OK3: 0 | OL3: 0 | OM3: 0 | ON3: 0 | OO3: 0 | OP3: 0 | OQ3: 0 | OR3: 0 | OS3: 0 | OT3: 0 | OU3: 0 | OV3: 0 | OW3: 0 | OX3: 0 | OY3: 0 | OZ3: 0 | PA3: 0 | PB3: 0 | PC3: 0 | PD3: 0 | PE3: 0 | PF3: 0 | PG3: 0 | PH3: 0 | PI3: 0 | PJ3: 0 | PK3: 0 | PL3: 0 | PM3: 0 | PN3: 0 | PO3: 0 | PP3: 0 | PQ3: 0 | PR3: 0 | PS3: 0 | PT3: 0 | PU3: 0 | PV3: 0 | PW3: 0 | PX3: 0 | PY3: 0 | PZ3: 0 | QA3: 0 | QB3: 0 | QC3: 0 | QD3: 0 | QE3: 0 | QF3: 0 | QG3: 0 | QH3: 0 | QI3: 0 | QJ3: 0 | QK3: 0 | QL3: 0 | QM3: 0 | QN3: 0 | QO3: 0 | QP3: 0 | QQ3: 0 | QR3: 0 | QS3: 0 | QT3: 0 | QU3: 0 | QV3: 0 | QW3: 0 | QX3: 0 | QY3: 0 | QZ3: 0 | RA3: 0 | RB3: 0 | RC3: 0 | RD3: 0 | RE3: 0 | RF3: 0 | RG3: 0 | RH3: 0 | RI3: 0 | RJ3: 0 | RK3: 0 | RL3: 0 | RM3: 0 | RN3: 0 | RO3: 0 | RP3: 0 | RQ3: 0 | RR3: 0 | RS3: 0 | RT3: 0 | RU3: 0 | RV3: 0 | RW3: 0 | RX3: 0 | RY3: 0 | RZ3: 0 | SA3: 0 | SB3: 0 | SC3: 0 | SD3: 0 | SE3: 0 | SF3: 0 | SG3: 0 | SH3: 0 | SI3: 0 | SJ3: 0 | SK3: 0 | SL3: 0 | SM3: 0 | SN3: 0 | SO3: 0 | SP3: 0 | SQ3: 0 | SR3: 0 | SS3: 0 | ST3: 0 | SU3: 0 | SV3: 0 | SW3: 0 | SX3: 0 | SY3: 0 | SZ3: 0 | TA3: 0 | TB3: 0 | TC3: 0 | TD3: 0 | TE3: 0 | TF3: 0 | TG3: 0 | TH3: 0 | TI3: 0 | TJ3: 0 | TK3: 0 | TL3: 0 | TM3: 0 | TN3: 0 | TO3: 0 | TP3: 0 | TQ3: 0 | TR3: 0 | TS3: 0 | TT3: 0 | TU3: 0 | TV3: 0 | TW3: 0 | TX3: 0 | TY3: 0 | TZ3: 0 | UA3: 0 | UB3: 0 | UC3: 0 | UD3: 0 | UE3: 0 | UF3: 0 | UG3: 0 | UH3: 0 | UI3: 0 | UJ3: 0 | UK3: 0 | UL3: 0 | UM3: 0 | UN3: 0 | UO3: 0 | UP3: 0 | UQ3: 0 | UR3: 0 | US3: 0 | UT3: 0 | UU3: 0 | UV3: 0 | UW3: 0 | UX3: 0 | UY3: 0 | UZ3: 0 | VA3: 0 | VB3: 0 | VC3: 0 | VD3: 0 | VE3: 0 | VF3: 0 | VG3: 0 | VH3: 0 | VI3: 0 | VJ3: 0 | VK3: 0 | VL3: 0 | VM3: 0 | VN3: 0 | VO3: 0 | VP3: 0 | VQ3: 0 | VR3: 0 | VS3: 0 | VT3: 0 | VU3: 0 | VV3: 0 | VW3: 0 | VX3: 0 | VY3: 0 | VZ3: 0 | WA3: 0 | WB3: 0 | WC3: 0 | WD3: 0 | WE3: 0 | WF3: 0 | WG3: 0 | WH3: 0 | WI3: 0 | WJ3: 0 | WK3: 0 | WL3: 0 | WM3: 0 | WN3: 0 | WO3: 0 | WP3: 0 | WQ3: 0 | WR3: 0 | WS3: 0 | WT3: 0 | WU3: 0 | WV3: 0 | WW3: 0 | WX3: 0 | WY3: 0 | WZ3: 0 | XA3: 0 | XB3: 0 | XC3: 0 | XD3: 0 | XE3: 0 | XF3: 0 | XG3: 0 | XH3: 0 | XI3: 0 | XJ3: 0 | XK3: 0 | XL3: 0 | XM3: 0 | XN3: 0 | XO3: 0 | XP3: 0 | XQ3: 0 | XR3: 0 | XS3: 0 | XT3: 0 | XU3: 0 | XV3: 0 | XW3: 0 | XX3: 0 | XY3: 0 | XZ3: 0 | YA3: 0 | YB3: 0 | YC3: 0 | YD3: 0 | YE3: 0 | YF3: 0 | YG3: 0 | YH3: 0 | YI3: 0 | YJ3: 0 | YK3: 0 | YL3: 0 | YM3: 0 | YN3: 0 | YO3: 0 | YP3: 0 | YQ3: 0 | YR3: 0 | YS3: 0 | YT3: 0 | YU3: 0 | YV3: 0 | YW3: 0 | YX3: 0 | YY3: 0 | YZ3: 0 | ZA3: 0 | ZB3: 0 | ZC3: 0 | ZD3: 0 | ZE3: 0 | ZF3: 0 | ZG3: 0 | ZH3: 0 | ZI3: 0 | ZJ3: 0 | ZK3: 0 | ZL3: 0 | ZM3: 0 | ZN3: 0 | ZO3: 0 | ZP3: 0 | ZQ3: 0 | ZR3: 0 | ZS3: 0 | ZT3: 0 | ZU3: 0 | ZV3: 0 | ZW3: 0 | ZX3: 0 | ZY3: 0 | ZZ3: 0
A4: December | B4: 0 | C4: 347196.01 | D4: 0 | E4: 3961904.97 | F4: 1359574.13 | G4: 0 | H4: 12 | I4: 2015 | J4: 0 | K4: 0 | L4: 0 | M4: 0 | N4: 0 | O4: 0 | P4: December | Q4: 0 | R4: 0 | S4: 0 | T4: 0 | U4: 0 | V4: 0 | W4: 12 | X4: 2015 | Y4: 0 | Z4: 0 | AA4: 0 | AB4: 0 | AC4: 0 | AD4: 0 | AE4: December | AF4: 0 | AG4: 0 | AH4: 0 | AI4: 0 | AJ4: 0 | AK4: 0 | AL4: 12 | AM4: 2015 | AN4: 0 | AO4: 0 | AP4: 0 | AQ4: 0 | AR4: 0 | AS4: 0 | AT4: December | AU4: 0 | AV4: 0 | AW4: 0 | AX4: 0 | AY4: 32797.15 | AZ4: 0 | BA4: 12 | BB4: 2015 | BC4: 0 | BD4: 0 | BE4: 0 | BF4: 0 | BG4: 0 | BH4: 0 | BI4: December | BJ4: 0 | BK4: 0 | BL4: 0 | BM4: 0 | BN4: 0 | BO4: 0 | BP4: 12 | BQ4: 2015 | BR4: 0 | BS4: 0 | BT4: 0 | BU4: 0 | BV4: 0 | BW4: 0 | BX4: December | BY4: 0 | BZ4: 0 | CA4: 0 | CB4: 0 | CC4: 0 | CD4: 0 | CE4: 12 | CF4: 2015 | CG4: 0 | CH4: 0 | CI4: 0 | CJ4: 0 | CK4: 0 | CL4: 0 | CM4: December | CN4: 0 | CO4: 0 | CP4: 0 | CQ4: 0 | CR4: 0 | CS4: 0 | CT4: 12 | CU4: 2015 | CV4: 0 | CW4: 0 | CX4: 0 | CY4: 0 | CZ4: 0 | DA4: 0 | DB4: December | DC4: 0 | DD4: 0 | DE4: 0 | DF4: 0 | DG4: 0 | DH4: 0 | DI4: 12 | DJ4: 2015 | DK4: 0 | DL4: 0 | DM4: 0 | DN4: 0 | DO4: 0 | DP4: 0 | DQ4: December | DR4: 0 | DS4: 0 | DT4: 0 | DU4: 0 | DV4: 0 | DW4: 0 | DX4: 12 | DY4: 2015 | DZ4: 0 | EA4: 0 | EB4: 0 | EC4: 0 | ED4: 0 | EE4: 0 | EF4: December | EG4: 0 | EH4: 0 | EI4: 0 | EJ4: 0 | EK4: 0 | EL4: 0 | EM4: 12 | EN4: 2015 | EO4: 0 | EP4: 0 | EQ4: 0 | ER4: 0 | ES4: 0 | ET4: 0 | EU4: 0 | EV4: 0 | EW4: 0 | EX4: 0 | EY4: 0 | EZ4: 0 | FA4: 0 | FB4: 0 | FC4: 0 | FD4: 0 | FE4: 0 | FF4: 0 | FG4: 0 | FH4: 0 | FI4: 0 | FJ4: 0 | FK4: 0 | FL4: 0 | FM4: 0 | FN4: 0 | FO4: 0 | FP4: 0 | FQ4: 0 | FR4: 0 | FS4: 0 | FT4: 0 | FU4: 0 | FV4: 0 | FW4: 0 | FX4: 0 | FY4: 0 | FZ4: 0 | GA4: 0 | GB4: 0 | GC4: 0 | GD4: 0 | GE4: 0 | GF4: 0 | GG4: 0 | GH4: 0 | GI4: 0 | GJ4: 0 | GK4: 0 | GL4: 0 | GM4: 0 | GN4: 0 | GO4: 0 | GP4: 0 | GQ4: 0 | GR4: 0 | GS4: 0 | GT4: 0 | GU4: 0 | GV4: 0 | GW4: 0 | GX4: 0 | GY4: 0 | GZ4: 0 | HA4: 0 | HB4: 0 | HC4: 0 | HD4: 0 | HE4: 0 | HF4: 0 | HG4: 0 | HH4: 0 | HI4: 0 | HJ4: 0 | HK4: 0 | HL4: 0 | HM4: 0 | HN4: 0 | HO4: 0 | HP4: 0 | HQ4: 0 | HR4: 0 | HS4: 0 | HT4: 0 | HU4: 0 | HV4: 0 | HW4: 0 | HX4: 0 | HY4: 0 | HZ4: 0 | IA4: 0 | IB4: 0 | IC4: 0 | ID4: 0 | IE4: 0 | IF4: 0 | IG4: 0 | IH4: 0 | II4: 0 | IJ4: 0 | IK4: 0 | IL4: 0 | IM4: 0 | IN4: 0 | IO4: 0 | IP4: 0 | IQ4: 0 | IR4: 0 | IS4: 0 | IT4: 0 | IU4: 0 | IV4: 0 | IW4: 0 | IX4: 0 | IY4: 0 | IZ4: 0 | JA4: 0 | JB4: 0 | JC4: 0 | JD4: 0 | JE4: 0 | JF4: 0 | JG4: 0 | JH4: 0 | JI4: 0 | JJ4: 0 | JK4: 0 | JL4: 0 | JM4: 0 | JN4: 0 | JO4: 0 | JP4: 0 | JQ4: 0 | JR4: 0 | JS4: 0 | JT4: 0 | JU4: 0 | JV4: 0 | JW4: 0 | JX4: 0 | JY4: 0 | JZ4: 0 | KA4: 0 | KB4: 0 | KC4: 0 | KD4: 0 | KE4: 0 | KF4: 0 | KG4: 0 | KH4: 0 | KI4: 0 | KJ4: 0 | KK4: 0 | KL4: 0 | KM4: 0 | KN4: 0 | KO4: 0 | KP4: 0 | KQ4: 0 | KR4: 0 | KS4: 0 | KT4: 0 | KU4: 0 | KV4: 0 | KW4: 0 | KX4: 0 | KY4: 0 | KZ4: 0 | LA4: 0 | LB4: 0 | LC4: 0 | LD4: 0 | LE4: 0 | LF4: 0 | LG4: 0 | LH4: 0 | LI4: 0 | LJ4: 0 | LK4: 0 | LL4: 0 | LM4: 0 | LN4: 0 | LO4: 0 | LP4: 0 | LQ4: 0 | LR4: 0 | LS4: 0 | LT4: 0 | LU4: 0 | LV4: 0 | LW4: 0 | LX4: 0 | LY4: 0 | LZ4: 0 | MA4: 0 | MB4: 0 | MC4: 0 | MD4: 0 | ME4: 0 | MF4: 0 | MG4: 0 | MH4: 0 | MI4: 0 | MJ4: 0 | MK4: 0 | ML4: 0 | MM4: 0 | MN4: 0 | MO4: 0 | MP4: 0 | MQ4: 0 | MR4: 0 | MS4: 0 | MT4: 0 | MU4: 0 | MV4: 0 | MW4: 0 | MX4: 0 | MY4: 0 | MZ4: 0 | NA4: 0 | NB4: 0 | NC4: 0 | ND4: 0 | NE4: 0 | NF4: 0 | NG4: 0 | NH4: 0 | NI4: 0 | NJ4: 0 | NK4: 0 | NL4: 0 | NM4: 0 | NN4: 0 | NO4: 0 | NP4: 0 | NQ4: 0 | NR4: 0 | NS4: 0 | NT4: 0 | NU4: 0 | NV4: 0 | NW4: 0 | NX4: 0 | NY4: 0 | NZ4: 0 | OA4: 0 | OB4: 0 | OC4: 0 | OD4: 0 | OE4: 0 | OF4: 0 | OG4: 0 | OH4: 0 | OI4: 0 | OJ4: 0 | OK4: 0 | OL4: 0 | OM4: 0 | ON4: 0 | OO4: 0 | OP4: 0 | OQ4: 0 | OR4: 0 | OS4: 0 | OT4: 0 | OU4: 0 | OV4: 0 | OW4: 0 | OX4: 0 | OY4: 0 | OZ4: 0 | PA4: 0 | PB4: 0 | PC4: 0 | PD4: 0 | PE4: 0 | PF4: 0 | PG4: 0 | PH4: 0 | PI4: 0 | PJ4: 0 | PK4: 0 | PL4: 0 | PM4: 0 | PN4: 0 | PO4: 0 | PP4: 0 | PQ4: 0 | PR4: 0 | PS4: 0 | PT4: 0 | PU4: 0 | PV4: 0 | PW4: 0 | PX4: 0 | PY4: 0 | PZ4: 0 | QA4: 0 | QB4: 0 | QC4: 0 | QD4: 0 | QE4: 0 | QF4: 0 | QG4: 0 | QH4: 0 | QI4: 0 | QJ4: 0 | QK4: 0 | QL4: 0 | QM4: 0 | QN4: 0 | QO4: 0 | QP4: 0 | QQ4: 0 | QR4: 0 | QS4: 0 | QT4: 0 | QU4: 0 | QV4: 0 | QW4: 0 | QX4: 0 | QY4: 0 | QZ4: 0 | RA4: 0 | RB4: 0 | RC4: 0 | RD4: 0 | RE4: 0 | RF4: 0 | RG4: 0 | RH4: 0 | RI4: 0 | RJ4: 0 | RK4: 0 | RL4: 0 | RM4: 0 | RN4: 0 | RO4: 0 | RP4: 0 | RQ4: 0 | RR4: 0 | RS4: 0 | RT4: 0 | RU4: 0 | RV4: 0 | RW4: 0 | RX4: 0 | RY4: 0 | RZ4: 0 | SA4: 0 | SB4: 0 | SC4: 0 | SD4: 0 | SE4: 0 | SF4: 0 | SG4: 0 | SH4: 0 | SI4: 0 | SJ4: 0 | SK4: 0 | SL4: 0 | SM4: 0 | SN4: 0 | SO4: 0 | SP4: 0 | SQ4: 0 | SR4: 0 | SS4: 0 | ST4: 0 | SU4: 0 | SV4: 0 | SW4: 0 | SX4: 0 | SY4: 0 | SZ4: 0 | TA4: 0 | TB4: 0 | TC4: 0 | TD4: 0 | TE4: 0 | TF4: 0 | TG4: 0 | TH4: 0 | TI4: 0 | TJ4: 0 | TK4: 0 | TL4: 0 | TM4: 0 | TN4: 0 | TO4: 0 | TP4: 0 | TQ4: 0 | TR4: 0 | TS4: 0 | TT4: 0 | TU4: 0 | TV4: 0 | TW4: 0 | TX4: 0 | TY4: 0 | TZ4: 0 | UA4: 0 | UB4: 0 | UC4: 0 | UD4: 0 | UE4: 0 | UF4: 0 | UG4: 0 | UH4: 0 | UI4: 0 | UJ4: 0 | UK4: 0 | UL4: 0 | UM4: 0 | UN4: 0 | UO4: 0 | UP4: 0 | UQ4: 0 | UR4: 0 | US4: 0 | UT4: 0 | UU4: 0 | UV4: 0 | UW4: 0 | UX4: 0 | UY4: 0 | UZ4: 0 | VA4: 0 | VB4: 0 | VC4: 0 | VD4: 0 | VE4: 0 | VF4: 0 | VG4: 0 | VH4: 0 | VI4: 0 | VJ4: 0 | VK4: 0 | VL4: 0 | VM4: 0 | VN4: 0 | VO4: 0 | VP4: 0 | VQ4: 0 | VR4: 0 | VS4: 0 | VT4: 0 | VU4: 0 | VV4: 0 | VW4: 0 | VX4: 0 | VY4: 0 | VZ4: 0 | WA4: 0 | WB4: 0 | WC4: 0 | WD4: 0 | WE4: 0 | WF4: 0 | WG4: 0 | WH4: 0 | WI4: 0 | WJ4: 0 | WK4: 0 | WL4: 0 | WM4: 0 | WN4: 0 | WO4: 0 | WP4: 0 | WQ4: 0 | WR4: 0 | WS4: 0 | WT4: 0 | WU4: 0 | WV4: 0 | WW4: 0 | WX4: 0 | WY4: 0 | WZ4: 0 | XA4: 0 | XB4: 0 | XC4: 0 | XD4: 0 | XE4: 0 | XF4: 0 | XG4: 0 | XH4: 0 | XI4: 0 | XJ4: 0 | XK4: 0 | XL4: 0 | XM4: 0 | XN4: 0 | XO4: 0 | XP4: 0 | XQ4: 0 | XR4: 0 | XS4: 0 | XT4: 0 | XU4: 0 | XV4: 0 | XW4: 0 | XX4: 0 | XY4: 0 | XZ4: 0 | YA4: 0 | YB4: 0 | YC4: 0 | YD4: 0 | YE4: 0 | YF4: 0 | YG4: 0 | YH4: 0 | YI4: 0 | YJ4: 0 | YK4: 0 | YL4: 0 | YM4: 0 | YN4: 0 | YO4: 0 | YP4: 0 | YQ4: 0 | YR4: 0 | YS4: 0 | YT4: 0 | YU4: 0 | YV4: 0 | YW4: 0 | YX4: 0 | YY4: 0 | YZ4: 0 | ZA4: 0 | ZB4: 0 | ZC4: 0 | ZD4: 0 | ZE4: 0 | ZF4: 0 | ZG4: 0 | ZH4: 0 | ZI4: 0 | ZJ4: 0 | ZK4: 0 | ZL4: 0 | ZM4: 0 | ZN4: 0 | ZO4: 0 | ZP4: 0 | ZQ4: 0 | ZR4: 0 | ZS4: 0 | ZT4: 0 | ZU4: 0 | ZV4: 0 | ZW4: 0 | ZX4: 0 | ZY4: 0 | ZZ4: 0

Sheet Universe Floating
A1: BBG | B1: BERNAMA | C1: BURSA | D1: SHARE FLOAT (Million Units) | E1: 1000000
A2: AEON MK EQUITY | B2: AEON | C2: 6599 | D2: 0
A3: AHB MK EQUITY | B3: AFFIN | C3: 5185 | D3: 0
A4: AZR MK EQUITY | B4: AZRB | C4: 7078 | D4: 0
A5: AIRA MK EQUITY | B5: AIRASIA | C5: 5099 | D5: 0
A6: AAX MK EQUITY | B6: AAX | C6: 5238 | D6: 0
A7: AMRB MK EQUITY | B7: ALAM | C7: 5115 | D7: 0
A8: AQAR MK EQUITY | B8: ALAQAR | C8: 5116 | D8: 0
A9: AFG MK EQUITY | B9: AFG | C9: 2488 | D9: 0
A10: AARET MK EQUITY | B10: ARREIT | C10: 5127 | D10: 0
A11: ARET MK EQUITY | B11: AMFIRST | C11: 5120 | D11: 0
A12: AMM MK EQUITY | B12: AMBANK | C12: 1015 | D12: 0
A13: AMW MK EQUITY | B13: AMWAY | C13: 6351 | D13: 0
A14: APM MK EQUITY | B14: APM | C14: 5015 | D14: 0
A15: AF MK EQUITY | B15: ASIAFLE | C15: 7129 | D15: 0
A16: ASTRO MK EQUITY | B16: ASTRO | C16: 6399 | D16: 0
A17: AXIATA MK EQUITY | B17: AXIATA | C17: 6888 | D17: 0
A18: AXRB MK EQUITY | B18: AXREIT | C18: 5106 | D18: 0
A19: BARAKAH MK EQUITY | B19: BARAKAH | C19: 7251 | D19: 0
A20: BAK MK EQUITY | B20: BKAWAN | C20: 1899 | D20: 0
A21: BIMB MK EQUITY | B21: BIMB | C21: 5258 | D21: 0
A22: BPH MK EQUITY | B22: BIPORT | C22: 5032 | D22: 0
A23: ROTH MK EQUITY | B23: BAT | C23: 4162 | D23: 0
A24: BAB MK EQUITY | B24: ARMADA | C24: 5210 | D24: 0
A25: BURSA MK EQUITY | B25: BURSA | C25: 1818 | D25: 0
A26: CMS MK EQUITY | B26: CMSB | C26: 2852 | D26: 0
A27: CMMT MK EQUITY | B27: CMMT | C27: 5180 | D27: 0
A28: CTP MK EQUITY | B28: CHINTEK | C28: 1929 | D28: 0
A29: CIMB MK EQUITY | B29: CIMB | C29: 1023 | D29: 0
A30: DLG MK EQUITY | B30: DIALOG | C30: 7277 | D30: 0
A31: DIGI MK EQUITY | B31: DIGI | C31: 6947 | D31: 0
A32: DRB MK EQUITY | B32: DRBHCOM | C32: 1619 | D32: 0
A33: DLM MK EQUITY | B33: DLADY | C33: 3026 | D33: 0
A34: EAST MK EQUITY | B34: E&O | C34: 3417 | D34: 0
A35: ECW MK EQUITY | B35: ECOWLD | C35: 8206 | D35: 0
A36: ENGT MK EQUITY | B36: ENGTEX | C36: 5056 | D36: 0
A37: EVSD MK EQUITY | B37: SENDAI | C37: 5205 | D37: 0
A38: FFB MK EQUITY | B38: FAVCO | C38: 7229 | D38: 0
A39: FGV MK EQUITY | B39: FGV | C39: 5222 | D39: 0
A40: FNH MK EQUITY | B40: F&N | C40: 3689 | D40: 0
A41: GAM MK EQUITY | B41: GAMUDA | C41: 5398 | D41: 0
A42: GMB MK EQUITY | B42: GASMSIA | C42: 5209 | D42: 0
A43: GENP MK EQUITY | B43: GENP | C43: 2291 | D43: 0
A44: GTB MK EQUITY | B44: GTRONIC | C44: 7022 | D44: 0
A45: GLMC MK EQUITY | B45: GLOMAC | C45: 5020 | D45: 0
A46: HAP MK EQUITY | B46: HAPSENG | C46: 3034 | D46: 0
A47: HAPL MK EQUITY | B47: HSPLANT | C47: 5138 | D47: 0
A48: HART MK EQUITY | B48: HARTA | C48: 5168 | D48: 0
A49: HEKT MK EQUITY | B49: HEKTAR | C49: 5121 | D49: 0
A50: HLBK MK EQUITY | B50: HLBANK | C50: 5819 | D50: 0
A51: HLFG MK EQUITY | B51: HLFG | C51: 1082 | D51: 0
A52: HLI MK EQUITY | B52: HLIND | C52: 3301 | D52: 0
A53: HYB MK EQUITY | B53: HUAYANG | C53: 5062 | D53: 0
A54: IGB MK EQUITY | B54: IGB | C54: 1597 | D54: 0
A55: IGBREIT MK EQUITY | B55: IGBREIT | C55: 5227 | D55: 0
A56: IHH MK EQUITY | B56: IHH | C56: 5225 | D56: 0
A57: IJM MK EQUITY | B57: IJM | C57: 3336 | D57: 0
A58: IJMP MK EQUITY | B58: IJMPLNT | C58: 2216 | D58: 0
A59: IOI MK EQUITY | B59: IOICORP | C59: 1961 | D59: 0
A60: KJC MK EQUITY | B60: KIANJOO | C60: 3522 | D60: 0
A61: KLCCSS MK EQUITY | B61: KLCC | C61: 5235SS | D61: 0
A62: KRI MK EQUITY | B62: KOSSAN | C62: 7153 | D62: 0
A63: KPJ MK EQUITY | B63: KPJ | C63: 5878 | D63: 0
A64: KLK MK EQUITY | B64: KLK | C64: 2445 | D64: 0
A65: KUL MK EQUITY | B65: KULIM | C65: 2003 | D65: 0
A66: LMC MK EQUITY | B66: LAFMSIA | C66: 3794 | D66: 0
A67: LTK MK EQUITY | B67: LITRAK | C67: 6645 | D67: 0
A68: LPI MK EQUITY | B68: LPI | C68: 8621 | D68: 0
A69: MSGB MK EQUITY | B69: MAHSING | C69: 8583 | D69: 0
A70: MLK MK Equity | B70: MALAKOF | C70: 5264 | D70: 0
A71: MAY MK EQUITY | B71: MAYBANK | C71: 1155 | D71: 0
A72: MBS MK EQUITY | B72: MBSB | C72: 1171 | D72: 0
A73: MMHE MK EQUITY | B73: MHB | C73: 5186 | D73: 0
A74: MBC MK EQUITY | B74: MAYBULK | C74: 5077 | D74: 0
A75: MPI MK EQUITY | B75: MPI | C75: 3867 | D75: 0
A76: MRC MK EQUITY | B76: MRCB | C76: 1651 | D76: 0
A77: MAXIS MK EQUITY | B77: MAXIS | C77: 6012 | D77: 0
A78: MBM MK EQUITY | B78: MBMR | C78: 5983 | D78: 0
A79: MCIL MK EQUITY | B79: MEDIAC | C79: 5090 | D79: 0
A80: MPR MK EQUITY | B80: MEDIA | C80: 4502 | D80: 0
A81: MISC MK EQUITY | B81: MISC | C81: 3816 | D81: 0
A82: MHB MK EQUITY | B82: MITRA | C82: 9571 | D82: 0
A83: MMC MK EQUITY | B83: MMCCORP | C83: 2194 | D83: 0
A84: MSM MK EQUITY | B84: MSM | C84: 5202 | D84: 0
A85: DJIM25 MK EQUITY | B85: MYETFDJ | C85: 0821EA | D85: 0
A86: NHB MK EQUITY | B86: NAIM | C86: 5073 | D86: 0
A87: NCB MK EQUITY | B87: NCB | C87: 5509 | D87: 0
A88: NESZ MK EQUITY | B88: NESTLE | C88: 4707 | D88: 0
A89: ORH MK EQUITY | B89: ORIENT | C89: 4006 | D89: 0
A90: PAD MK EQUITY | B90: PADINI | C90: 7052 | D90: 0
A91: PMM MK EQUITY | B91: PANAMY | C91: 3719 | D91: 0
A92: PGHB MK EQUITY | B92: PANTECH | C92: 5125 | D92: 0
A93: PKS MK EQUITY | B93: PARKSON | C93: 5657 | D93: 0
A94: PREIT MK EQUITY | B94: PAVREIT | C94: 5212 | D94: 0
A95: PCHEM MK EQUITY | B95: PCHEM | C95: 5183 | D95: 0
A96: PETD MK EQUITY | B96: PETDAG | C96: 5681 | D96: 0
A97: PTG MK EQUITY | B97: PETGAS | C97: 6033 | D97: 0
A98: PHRM MK EQUITY | B98: PHARMA | C98: 7081 | D98: 0
A99: POSM MK EQUITY | B99: POS | C99: 4634 | D99: 0
A100: PEP MK EQUITY | B100: PPB | C100: 4065 | D100: 0
A101: PRTA MK EQUITY | B101: PRTASCO | C101: 5070 | D101: 0
A102: PBK MK EQUITY | B102: PBBANK | C102: 1295 | D102: 0
A103: QLG MK EQUITY | B103: QL | C103: 7084 | D103: 0
A104: MQREIT MK EQUITY | B104: MQREIT | C104: 5123 | D104: 0
A105: RHBC MK EQUITY | B105: RHBCAP | C105: 1066 | D105: 0
A106: SAKP MK EQUITY | B106: SKPETRO | C106: 5218 | D106: 0
A107: SOP MK EQUITY | B107: SOP | C107: 5126 | D107: 0
A108: SPR MK EQUITY | B108: SPB | C108: 1783 | D108: 0
A109: SHELL MK EQUITY | B109: SHELL | C109: 4324 | D109: 0
A110: SIME MK EQUITY | B110: SIME | C110: 4197 | D110: 0
A111: SPSB MK EQUITY | B111: SPSETIA | C111: 8664 | D111: 0
A112: STAR MK EQUITY | B112: STAR | C112: 6084 | D112: 0
A113: SREIT MK EQUITY | B113: SUNREIT | C113: 5176 | D113: 0
A114: STMB MK EQUITY | B114: TAKAFUL | C114: 6139 | D114: 0
A115: TAH MK EQUITY | B115: TAANN | C115: 5012 | D115: 0
A116: T MK EQUITY | B116: TM | C116: 4863 | D116: 0
A117: TNB MK EQUITY | B117: TENAGA | C117: 5347 | D117: 0
A118: TDC MK EQUITY | B118: TIMECOM | C118: 5031 | D118: 0
A119: TOPG MK EQUITY | B119: TOPGLOV | C119: 7113 | D119: 0
A120: TRCB MK EQUITY | B120: TROP | C120: 5401 | D120: 0
A121: UCHI MK EQUITY | B121: UCHITEC | C121: 7100 | D121: 0
A122: UMWH MK EQUITY | B122: UMW | C122: 4588 | D122: 0
A123: UMWOG MK EQUITY | B123: UMWOG | C123: 5243 | D123: 0
A124: UNI MK EQUITY | B124: UNISEM | C124: 5005 | D124: 0
A125: UMR MK EQUITY | B125: UMCCA | C125: 2593 | D125: 0
A126: UPL MK EQUITY | B126: UTDPLT | C126: 2089 | D126: 0
A127: UOAR MK EQUITY | B127: UOAREIT | C127: 5110 | D127: 0
A128: UZMA MK EQUITY | B128: UZMA | C128: 7250 | D128: 0
A129: WSC MK EQUITY | B129: WASEONG | C129: 5142 | D129: 0
A130: WCTHG MK EQUITY | B130: WCT | C130: 9679 | D130: 0
A131: WPRTS MK EQUITY | B131: WPRTS | C131: 5246 | D131: 0
A132: YNS MK EQUITY | B132: YINSON | C132: 7293 | D132: 0
A133: YTL MK EQUITY | B133: YTL | C133: 4677 | D133: 0
A134: YTLREIT MK EQUITY | B134: YTLREIT | C134: 5109 | D134: 0
A135: YTLP MK EQUITY | B135: YTLPOWR | C135: 6742 | D135: 0
A136: MEMSID MK Equity | B136: MYETFSID | C136: 0825EA | D136: 0
A137: METAGR MK Equity | B137: MYETFAGRI | C137: 0826EA | D137: 0

Sheet Reference
A1: PortfolioManager (Order shown in 2a.TradeByPortManager and 2b.SummaryByPortManager) | B1: All Dealer Name (Do not edit) | D1: qCPCode | E1: Counter Party Name | F1: Region | G1: qCPCode (Do not edit) | H1: Counter Party Name (Do not edit) | AA1: Yes
A2: Nor Aishah Saad | B2: Ahmad Firdaus Abdol Malek | D2: BR:AFFINV | E2: AFFIN HWANG INVESTMENT BANK BERHAD | F2: Domestic | G2: BR:AFFINV | H2: AFFIN HWANG INVESTMENT BANK BERHAD | AA2: No
A3: Razimah Abdul Razak | B3: Anuar Hisham Zulkafli | D3: BR:ALLIANCEINV | E3: ALLIANCE INVESTMENT BANK BERHAD | F3: Domestic | G3: BR:ALLIANCEINV | H3: ALLIANCE INVESTMENT BANK BERHAD
A4: Ahmad Firdaus Abdol Malek | B4: Khor Wei Rhong | D4: BR:AMINVBANK | E4: AMINVESTMENT BANK BHD | F4: Domestic | G4: BR:AMINVBANK | H4: AMINVESTMENT BANK BHD | AA4: FBM100
A5: Anuar Hisham Zulkafli | B5: Mohd Dzul Aqmal Amin Zainun | D5: BR:CIMBINV | E5: CIMB INVESTMENT BANK BHD | F5: Domestic | G5: BR:CIMBINV | H5: CIMB INVESTMENT BANK BHD | AA5: KLCI
A6: Muhammad Faris Harith | B6: Muhammad Faris Harith | D6: BR:HLGINV | E6: HONG LEONG INVESTMENT BANK BHD | F6: Domestic | G6: BR:HLGINV | H6: HONG LEONG INVESTMENT BANK BHD
A7: Khor Wei Rhong | B7: Nor Aishah Saad | D7: BR:KENANGAINV | E7: KENANGA INVESTMENT BANK BHD | F7: Domestic | G7: BR:KENANGAINV | H7: KENANGA INVESTMENT BANK BHD | AA7: [=1]"A";;
B8: Nur Affidatul Akmar Kamarolzaman | D8: BR:MAYBANKINV | E8: MAYBANK INVESTMENT BANK | F8: Domestic | G8: BR:MAYBANKINV | H8: MAYBANK INVESTMENT BANK | AA8: [=2]"B";;
B9: Nurul Jannah Azri | D9: BR:MIDFINV | E9: MIDF AMANAH INVESTMENT BANK BHD | F9: Domestic | G9: BR:MIDFINV | H9: MIDF AMANAH INVESTMENT BANK BHD | AA9: [=3]"C";;
B10: Razimah Abdul Razak | D10: BR:PBBINV | E10: PUBLIC INVESTMENT BANK BERHAD | F10: Domestic | G10: BR:PBBINV | H10: PUBLIC INVESTMENT BANK BERHAD | AA10: [=4]"D";;
D11: BR:RHBINV | E11: RHB INVESTMENT BANK BERHAD | F11: Domestic | G11: BR:RHBINV | H11: RHB INVESTMENT BANK BERHAD | AA11: [=5]"F";;
D12: BR:TASEC | E12: TA SECURITIES HOLDINGS BHD | F12: Domestic | G12: BR:TASEC | H12: TA SECURITIES HOLDINGS BHD
D13: BR:KAFSEC | E13: KAF-SEAGROATT & CAMPBELL SECURITIES SDN BHD | F13: Domestic | G13: BR:UBSSECMY | H13: UBS SECURITIES MALAYSIA SDN BHD
D14: BR:BIMBSEC | E14: BIMB SECURITIES SDN BHD | F14: Domestic | G14: BR:UOBKHSECMY | H14: UOB KAY HIAN SECURITIES (M) SDN BHD
D15: BR:UOBKHSECMY | E15: UOB KAY HIAN SECURITIES (M) SDN BHD | F15: Domestic | G15: BR:NOMURASECMY | H15: NOMURA SECURITIES MALAYSIA SDN BHD
D16: BR:CLSASECMY | E16: CLSA SECURITIES MALAYSIA SDN BHD | F16: Domestic | G16: BR:MACQUARIE | H16: MACQUARIE CAPITAL SECURITIES (MALAYSIA) SDN BHD
D17: BR:UBSSECMY | E17: UBS SECURITIES MALAYSIA SDN BHD | F17: Foreign | G17: BR:JPMORGANSECMY | H17: JPMORGAN SECURITIES (M) SDN BHD
D18: BR:NOMURASECMY | E18: NOMURA SECURITIES MALAYSIA SDN BHD | F18: Foreign | G18: BR:KAFSEC | H18: KAF-SEAGROATT & CAMPBELL SECURITIES SDN BHD
D19: BR:MACQUARIE | E19: MACQUARIE CAPITAL SECURITIES (MALAYSIA) SDN BHD | F19: Foreign | G19: BR:CLSASECMY | H19: CLSA SECURITIES MALAYSIA SDN BHD
D20: BR:JPMORGANSECMY | E20: JPMORGAN SECURITIES (M) SDN BHD | F20: Foreign | G20: BR:CREDITSUISSEMY | H20: CREDIT SUISSE SECURITIES (M) SDN BHD
D21: BR:CREDITSUISSEMY | E21: CREDIT SUISSE SECURITIES (M) SDN BHD | F21: Foreign | G21: BR:BIMBSEC | H21: BIMB SECURITIES SDN BHD

Sheet Main
B2: ValueCap | C2: Daily Report
B5: * Step 1: Connect to the server | E5: * Select sheet(s) to print
E6: Sheet | F6: YES/NO
E7: 1a.AA and Income Summary | F7: YES
E8: 1aa.IncomeStatusByStock | F8: NO
E9: 1b.Allocation Status | F9: NO
E10: 1c.Holdings | F10: YES
B11: * Step 2: Change only if necessary | E11: 1d.Consolidate Holdings (Cost) | F11: NO
E12: 1d.Consolidate Holdings (PD) | F12: NO
B13: Company: | C13: Valuecap Sdn. Bhd. | E13: 1d.Consolidate Holdings (DY) | F13: NO
B14: Value Date: | C14: 43019 | E14: 1d.Consolidate Holdings (Gains) | F14: NO
E15: 1d.Consolidate Holdings (MV) | F15: NO
B16: * Step 3: Refresh Data | E16: 1e.Broker Allocation | F16: YES
E17: 1ee.Broker Allocation | F17: NO
E18: 1f.Universe FY | F18: NO
E19: 2a.TradeByPortManager | F19: NO
E20: 2b.SummaryByPortManager | F20: NO
E21: 4.Sectoral Report | F21: NO
B22: * Step 4: Print Report
B29: * Step 4: Print Report
B35: * Click for help

Sheet 1a.AA and Income Summary
B3: Valuecap Sdn. Bhd. | O3: Private & Confidential | AB3: Valuecap Sdn. Bhd. | AI3: Private & Confidential
B4: ="Asset Allocation and Income Summary as at " & IF(ValueDate="","",DAY(ValueDate)&LOOKUP(DAY(ValueDate),{1,2,3,4,21,22,23,24,31;"st","nd","rd","th","st","nd","rd","th","st"})&TEXT(ValueDate," mmmm yyyy")) -> Asset Allocation and Income Summary as at 11th October 2017 | AB4: ="Asset Allocation and Income Summary as at " & IF(ValueDate="","",DAY(ValueDate)&LOOKUP(DAY(ValueDate),{1,2,3,4,21,22,23,24,31;"st","nd","rd","th","st","nd","rd","th","st"})&TEXT(ValueDate," mmmm yyyy")) -> Asset Allocation and Income Summary as at 11th October 2017
B5: Portfolio Status | G5: Cost | H5: Market Value | I5: Unrealized Gain / (Loss) | J5: Gain / (Loss) | K5: Allocation | M5: Total Cash Breakdown | P5: (RM'000)
G7: (RM'000) | H7: (RM'000) | I7: (RM'000) | J7: (%) | K7: (%) | M7: Cash balance | P7: =SUMIFS(InTBYTD!F:F,InTBYTD!A:A,ValueDate,InTBYTD!E:E,500000) -> 35676.31 | S7: ="Transaction as at " & TEXT(ValueDate,"dd mmmm yyyy") -> Transaction as at 11 October 2017 | AB7: MARKET INFO | AD7: FBM100 | AE7: % of MOVEMENT | AG7: MARKET INFO | AI7: FBMKLCI | AJ7: % of MOVEMENT
B8: EQUITY | M8: Amount due (to) / from brokers | P8: =S52 -> 11821202.94 | T8: Purchase | U8: Sales | V8: Total | AB8: =SUMIFS(InIndex!$A:$A,InIndex!$B:$B,"FBMT100",InIndex!$D:$D,$AC8) -> 2016-12-31 | AC8: End Prior Year | AD8: =SUMIFS(InIndex!$C:$C,InIndex!$B:$B,"FBMT100",InIndex!$D:$D,$AC8) -> 11189.09 | AE8: =IF($AD$17=0,0,$AD$17/AD8-1) -> 0.09263398543 | AG8: =SUMIFS(InIndex!$A:$A,InIndex!$B:$B,$AI$7,InIndex!$D:$D,$AH8) -> 2016-12-31 | AH8: End Prior Year | AI8: =SUMIFS(InIndex!$C:$C,InIndex!$B:$B,$AI$7,InIndex!$D:$D,$AH8) -> 1641.73 | AJ8: =IF($AI$17=0,0,$AI$17/AI8-1) -> 0.07034043357
B9: Core | G9: =SUMIFS(InPosTemp!K:K,InPosTemp!E:E,"CORE") -> 760165140.6 | H9: =SUMIFS(InPosTemp!L:L,InPosTemp!E:E,"CORE") -> 703407234 | I9: =SUMIFS(InPosTemp!O:O,InPosTemp!E:E,"CORE") -> -56757906.65 | J9: =IF(G9=0,0,I9/G9) -> -0.07466523209 | K9: =H9/$H$38 -> 0.114443485 | M9: Deposits with Fis | P9: =SUMIFS(InTBYTD!F:F,InTBYTD!A:A,ValueDate,InTBYTD!E:E,100210,InTBYTD!C:C,"CASH")+SUMIFS(InTBYTD!F:F,InTBYTD!A:A,ValueDate,InTBYTD!E:E,100215,InTBYTD!C:C,"CASH") -> 1098308000 | S9: Amount | T9: =-SUMIFS(InTran!W:W,InTran!AC:AC,MONTH(ValueDate),InTran!B:B,"SP",InTran!AD:AD,YEAR(ValueDate),InTran!E:E, ValueDate) -> 1311648.14 | U9: =SUMIFS(InTran!W:W,InTran!AC:AC,MONTH(ValueDate),InTran!B:B,"SS",InTran!AD:AD,YEAR(ValueDate),InTran!E:E, ValueDate) -> 3650541.73 | V9: =T9+U9 -> 4962189.87 | W9: =T9-U9 -> -2338893.59 | AB9: =SUMIFS(InIndex!$A:$A,InIndex!$B:$B,"FBMT100",InIndex!$D:$D,$AC9) -> 2017-01-03 | AC9: Beginning Year | AD9: =SUMIFS(InIndex!$C:$C,InIndex!$B:$B,"FBMT100",InIndex!$D:$D,$AC9) -> 11170.92 | AE9: 0.09441120337 | AG9: =SUMIFS(InIndex!$A:$A,InIndex!$B:$B,$AI$7,InIndex!$D:$D,$AH9) -> 2017-01-03 | AH9: Beginning Year | AI9: =SUMIFS(InIndex!$C:$C,InIndex!$B:$B,$AI$7,InIndex!$D:$D,$AH9) -> 1635.53 | AJ9: 0.0743979016
B10: Dividend | G10: =SUMIFS(InPosTemp!K:K,InPosTemp!E:E,"DIVIDEND") -> 762313672.4 | H10: =SUMIFS(InPosTemp!L:L,InPosTemp!E:E,"DIVIDEND") -> 714378832 | I10: =SUMIFS(InPosTemp!O:O,InPosTemp!E:E,"DIVIDEND") -> -47934840.44 | J10: -0.0628807303 | K10: =H10/$H$38 -> 0.1162285504 | M10: DSRA | P10: =SUMIFS(InTBYTD!F:F,InTBYTD!A:A,ValueDate,InTBYTD!E:E,100210,InTBYTD!C:C,"DSRA")+SUMIFS(InTBYTD!F:F,InTBYTD!A:A,ValueDate,InTBYTD!E:E,100215,InTBYTD!C:C,"DSRA") -> 129804000 | S10: Quantity | T10: =SUMIFS(InTran!Q:Q,InTran!AC:AC,MONTH(ValueDate),InTran!B:B,"SP",InTran!AD:AD,YEAR(ValueDate),InTran!E:E, ValueDate) -> 612900 | U10: =-SUMIFS(InTran!Q:Q,InTran!AC:AC,MONTH(ValueDate),InTran!B:B,"SS",InTran!AD:AD,YEAR(ValueDate),InTran!E:E, ValueDate) -> 383200 | V10: =T10+U10 -> 996100 | AB10: =AG10 -> 2003-01-09 | AC10: Day before Operation | AD10: 4169.84 | AE10: 1.93190626 | AG10: 2003-01-09 | AH10: Day before Operation | AI10: 626.58 | AJ10: 1.80444636
B11: REITs | G11: =SUMIFS(InPosTemp!K:K,InPosTemp!E:E,"REITS") -> 970260632.8 | H11: =SUMIFS(InPosTemp!L:L,InPosTemp!E:E,"REITS") -> 940105626 | I11: =SUMIFS(InPosTemp!O:O,InPosTemp!E:E,"REITS") -> -30155006.79 | J11: -0.03107928506 | K11: =H11/$H$38 -> 0.1529540199 | M11: CP/MTN Placements | P11: =SUMIFS(InTBYTD!F:F,InTBYTD!A:A,ValueDate,InTBYTD!B:B,"=*100120") -> 0 | AB11: =AG11 -> 2003-01-10 | AC11: Commencement Date | AD11: 4238.28 | AE11: 1.884561662 | AG11: 2003-01-10 | AH11: Commencement Date | AI11: 635.82 | AJ11: 1.763690982
B12: Index | G12: =SUMIFS(InPosTemp!K:K,InPosTemp!E:E,"INDEX") -> 115645372.8 | H12: =SUMIFS(InPosTemp!L:L,InPosTemp!E:E,"INDEX") -> 117536515 | I12: =SUMIFS(InPosTemp!O:O,InPosTemp!E:E,"INDEX") -> 1891142.25 | J12: =IF(G12=0,0,I12/G12) -> 0.01635294353 | K12: =H12/$H$38 -> 0.01912304529 | M12: Dividend Receivable | P12: =SUMIFS(InTBYTD!F:F,InTBYTD!A:A,ValueDate,InTBYTD!E:E,">=299000",InTBYTD!E:E,"<=299998") -> 38610824.39 | AB12: =SUMIFS(InIndex!$A:$A,InIndex!$B:$B,"FBMT100",InIndex!$D:$D,$AC12) -> 2017-06-14 | AC12: Current Year High | AD12: =SUMIFS(InIndex!$C:$C,InIndex!$B:$B,"FBMT100",InIndex!$D:$D,$AC12) -> 12422.93 | AE12: -0.01588594639 | AG12: =SUMIFS(InIndex!$A:$A,InIndex!$B:$B,$AI$7,InIndex!$D:$D,$AH12) -> 2017-06-14 | AH12: Current Year High | AI12: =SUMIFS(InIndex!$C:$C,InIndex!$B:$B,$AI$7,InIndex!$D:$D,$AH12) -> 1792.35 | AJ12: -0.01960554579
B13: Growth | G13: =SUMIFS(InPosTemp!K:K,InPosTemp!E:E,"GROWTH") -> 1500647402 | H13: =SUMIFS(InPosTemp!L:L,InPosTemp!E:E,"GROWTH") -> 1449163938 | I13: =SUMIFS(InPosTemp!O:O,InPosTemp!E:E,"GROWTH") -> -51483464.45 | J13: =IF(G13=0,0,I13/G13) -> -0.03430750246 | K13: =H13/$H$38 -> 0.2357771762 | M13: Cash Accrued Interest | P13: =SUMIFS(InTBYTD!F:F,InTBYTD!A:A,ValueDate,InTBYTD!H:H,"BOAIND") -> 11967091.71 | AB13: =SUMIFS(InIndex!$A:$A,InIndex!$B:$B,"FBMT100",InIndex!$D:$D,$AC13) -> 2017-01-03 | AC13: Current Year Low | AD13: =SUMIFS(InIndex!$C:$C,InIndex!$B:$B,"FBMT100",InIndex!$D:$D,$AC13) -> 11170.92 | AE13: 0.09441120337 | AG13: =SUMIFS(InIndex!$A:$A,InIndex!$B:$B,$AI$7,InIndex!$D:$D,$AH13) -> 2017-01-03 | AH13: Current Year Low | AI13: =SUMIFS(InIndex!$C:$C,InIndex!$B:$B,$AI$7,InIndex!$D:$D,$AH13) -> 1635.53 | AJ13: 0.0743979016
M14: SBL Accrued Interest | P14: =InSBLTran!$J$3+SUM(InSBLTran!C:D) -> 4639.626 | AB14: =SUMIFS(InIndex!$A:$A,InIndex!$B:$B,"FBMT100",InIndex!$D:$D,$AC14) -> 2017-06-14 | AC14: 52 Week High | AD14: =SUMIFS(InIndex!$C:$C,InIndex!$B:$B,"FBMT100",InIndex!$D:$D,$AC14) -> 12422.93 | AE14: -0.01588594639 | AG14: =SUMIFS(InIndex!$A:$A,InIndex!$B:$B,$AI$7,InIndex!$D:$D,$AH14) -> 2017-06-14 | AH14: 52 Week High | AI14: =SUMIFS(InIndex!$C:$C,InIndex!$B:$B,$AI$7,InIndex!$D:$D,$AH14) -> 1792.35 | AJ14: -0.01960554579
B15: Value | G15: =SUMIFS(InPosTemp!K:K,InPosTemp!E:E,"VALUE") -> 809311848.6 | H15: =SUMIFS(InPosTemp!L:L,InPosTemp!E:E,"VALUE") -> 792358035 | I15: =SUMIFS(InPosTemp!O:O,InPosTemp!E:E,"VALUE") -> -16953813.64 | J15: =IF(G15=0,0,I15/G15) -> -0.02094843127 | K15: =H15/$H$38 -> 0.12891567 | M15: CP Accrued Interest | P15: =SUMIFS(InTBYTD!F:F,InTBYTD!A:A,ValueDate,InTBYTD!G:G,"BIUSEC",InTBYTD!H:H,"BIADCP") -> 0 | U15: fair value through profit and loss | AB15: =SUMIFS(InIndex!$A:$A,InIndex!$B:$B,"FBMT100",InIndex!$D:$D,$AC15) -> 2017-01-31 | AC15: 52 Week Low | AD15: =SUMIFS(InIndex!$C:$C,InIndex!$B:$B,"FBMT100",InIndex!$D:$D,$AC15) -> 11440.67 | AE15: 0.06860699592 | AG15: =SUMIFS(InIndex!$A:$A,InIndex!$B:$B,$AI$7,InIndex!$D:$D,$AH15) -> 2017-01-31 | AH15: 52 Week Low | AI15: =SUMIFS(InIndex!$C:$C,InIndex!$B:$B,$AI$7,InIndex!$D:$D,$AH15) -> 1671.54 | AJ15: 0.05125213875
B16: Small Midcap | G16: =SUMIFS(InPosTemp!K:K,InPosTemp!E:E,"SMALLMIDCAP") -> 139412252.2 | H16: =SUMIFS(InPosTemp!L:L,InPosTemp!E:E,"SMALLMIDCAP") -> 110109339 | I16: =SUMIFS(InPosTemp!O:O,InPosTemp!E:E,"SMALLMIDCAP") -> -29302913.19 | J16: =IF(G16=0,0,I16/G16) -> -0.2101889377 | K16: =H16/$H$38 -> 0.01791465296 | M16: Receivable from corporate exercise | P16: 0 | AB16: =SUMIFS(InIndex!$A:$A,InIndex!$B:$B,"FBMT100",InIndex!$D:$D,$AC16) -> 2017-10-04 | AC16: Previous Week | AD16: =SUMIFS(InIndex!$C:$C,InIndex!$B:$B,"FBMT100",InIndex!$D:$D,$AC16) -> 12214 | AE16: 0.000948092353 | AG16: =SUMIFS(InIndex!$A:$A,InIndex!$B:$B,$AI$7,InIndex!$D:$D,$AH16) -> 2017-10-04 | AH16: Previous Week | AI16: =SUMIFS(InIndex!$C:$C,InIndex!$B:$B,$AI$7,InIndex!$D:$D,$AH16) -> 1761.84 | AJ16: -0.002627934432
B17: Balancing | G17: 0 | H17: 0 | I17: 0 | J17: 0 | K17: 0 | M17: Sub total | P17: =SUM(P7:P16) -> 1290551435 | AB17: =SUMIFS(InIndex!$A:$A,InIndex!$B:$B,"FBMT100",InIndex!$D:$D,$AC17) -> 2017-10-11 | AC17: Current Date | AD17: =SUMIFS(InIndex!$C:$C,InIndex!$B:$B,"FBMT100",InIndex!$D:$D,$AC17) -> 12225.58 | AG17: =SUMIFS(InIndex!$A:$A,InIndex!$B:$B,$AI$7,InIndex!$D:$D,$AH17) -> 2017-10-11 | AH17: Current Date | AI17: =SUMIFS(InIndex!$C:$C,InIndex!$B:$B,$AI$7,InIndex!$D:$D,$AH17) -> 1757.21
B18: Equity Total | G18: =SUM(G9:G16) -> 5057756322 | H18: =SUM(H9:H16) -> 4827059519 | I18: =SUM(I9:I16) -> -230696802.9 | J18: =IF(G18=0,0,I18/G18) -> -0.04561247878 | K18: =SUM(K9:K16) -> 0.7853565998 | M18: Corporate Actions - In-transit cash | P18: 0
M19: Total | P19: =P17-P18 -> 1290551435 | AB19: Sector | AC19: Exposure | AD19: FBMKLCI | AE19: FBM100
B20: FUND | AB20: Basic Materials | AC20: =IFERROR(T24/$H$38,0) -> 0.04270990645 | AD20: =FBMKLCIInfo!K7/100 -> 0.05228551994 | AE20: =FBM100Info!K7/100 -> 0.02022522001
B21: Equity | M21: Purchase & Sales Summary Breakdown RM '000 | AB21: Construction | AC21: =IFERROR(T25/$H$38,0) -> 0 | AD21: =FBMKLCIInfo!K8/100 -> 0 | AE21: =FBM100Info!K8/100 -> 0.007277136917
B22: (i) Domestic | O22: Purchase | P22: Sales | AB22: Consumer Goods | AC22: =IFERROR(T26/$H$38,0) -> 0.04480859941 | AD22: =FBMKLCIInfo!K9/100 -> 0.01182949186 | AE22: =FBM100Info!K9/100 -> 0.0372962624
B23: VCAM Malaysian ESG Opportunity Fund | G23: =SUMIFS(InPosTemp!K:K,InPosTemp!E:E,"FUND",InPosTemp!H:H,"MEQESG") -> 15000000 | H23: =SUMIFS(InPosTemp!L:L,InPosTemp!E:E,"FUND",InPosTemp!H:H,"MEQESG") -> 18393000 | I23: =SUMIFS(InPosTemp!O:O,InPosTemp!E:E,"FUND",InPosTemp!H:H,"MEQESG") -> 3393000 | J23: =IF(G23=0,0,I23/G23) -> 0.2262 | K23: =IF($H$38=0,0,H23/$H$38) -> 0.002992518299 | M23: January | O23: =-SUMIFS(InTran!W:W,InTran!AC:AC,1,InTran!B:B,"SP",InTran!AD:AD,YEAR(ValueDate)) -> 296449247 | P23: =SUMIFS(InTran!W:W,InTran!AC:AC,1,InTran!B:B,"SS",InTran!AD:AD,YEAR(ValueDate)) -> 226425838.5 | AB23: Consumer Services | AC23: =IFERROR(T27/$H$38,0) -> 0.004360494031 | AD23: =FBMKLCIInfo!K10/100 -> 0.07903933286 | AE23: =FBM100Info!K10/100 -> 0.07551822791
B24: Domestic Total | G24: =G23 -> 15000000 | H24: =H23 -> 18393000 | I24: =I23 -> 3393000 | J24: =J23 -> 0.2262 | K24: =K23 -> 0.002992518299 | M24: February | O24: =-SUMIFS(InTran!W:W,InTran!AC:AC,2,InTran!B:B,"SP",InTran!AD:AD,YEAR(ValueDate)) -> 287603771 | P24: =SUMIFS(InTran!W:W,InTran!AC:AC,2,InTran!B:B,"SS",InTran!AD:AD,YEAR(ValueDate)) -> 321990908.8 | T24: =SUMIFS(InPosTemp!L:L,InPosTemp!Z:Z,AB20) -> 262509108 | AB24: ETF | AC24: 0.01912304529 | AD24: =FBMKLCIInfo!K11/100 -> 0 | AE24: =FBM100Info!K11/100 -> 0
M25: March | O25: =-SUMIFS(InTran!W:W,InTran!AC:AC,3,InTran!B:B,"SP",InTran!AD:AD,YEAR(ValueDate)) -> 583908099.1 | P25: =SUMIFS(InTran!W:W,InTran!AC:AC,3,InTran!B:B,"SS",InTran!AD:AD,YEAR(ValueDate)) -> 783792562.4 | T25: =SUMIFS(InPosTemp!L:L,InPosTemp!Z:Z,AB21) -> 0 | AB25: Financials | AC25: 0.1631943484 | AD25: =FBMKLCIInfo!K12/100 -> 0.3074220465 | AE25: =FBM100Info!K12/100 -> 0.2456759589
B26: (ii) Foreign | M26: April | O26: =-SUMIFS(InTran!W:W,InTran!AC:AC,4,InTran!B:B,"SP",InTran!AD:AD,YEAR(ValueDate)) -> 926977677.2 | P26: =SUMIFS(InTran!W:W,InTran!AC:AC,4,InTran!B:B,"SS",InTran!AD:AD,YEAR(ValueDate)) -> 283446725.5 | T26: =SUMIFS(InPosTemp!L:L,InPosTemp!Z:Z,AB22) -> 275408364 | AB26: Health care | AC26: 0.009682219498 | AD26: =FBMKLCIInfo!K13/100 -> 0.04571707681 | AE26: =FBM100Info!K13/100 -> 0.06226304289
B27: ASEAN - 5 ESG Opportunity Fund | G27: =SUMIFS(InPosTemp!K:K,InPosTemp!E:E,"FUND",InPosTemp!H:H,"A5ESGOF") -> 10000000 | H27: =SUMIFS(InPosTemp!L:L,InPosTemp!E:E,"FUND",InPosTemp!H:H,"A5ESGOF") -> 10324376.4 | I27: =SUMIFS(InPosTemp!O:O,InPosTemp!E:E,"FUND",InPosTemp!H:H,"A5ESGOF") -> 324376.4 | J27: =IF(G27=0,0,I27/G27) -> 0.03243764 | K27: =IF($H$38=0,0,H27/$H$38) -> 0.001679763242 | M27: May | O27: =-SUMIFS(InTran!W:W,InTran!AC:AC,5,InTran!B:B,"SP",InTran!AD:AD,YEAR(ValueDate)) -> 742225786.7 | P27: =SUMIFS(InTran!W:W,InTran!AC:AC,5,InTran!B:B,"SS",InTran!AD:AD,YEAR(ValueDate)) -> 561778053.9 | T27: =SUMIFS(InPosTemp!L:L,InPosTemp!Z:Z,AB23) -> 26801028 | AB27: Industrials | AC27: 0.1089671449 | AD27: =FBMKLCIInfo!K14/100 -> 0.1139548693 | AE27: =FBM100Info!K14/100 -> 0.116313923
B28: Foreign Total | G28: =G27 -> 10000000 | H28: =H27 -> 10324376.4 | I28: 324376.4 | J28: 0.03243764 | K28: 0.001679763242 | M28: June | O28: =-SUMIFS(InTran!W:W,InTran!AC:AC,6,InTran!B:B,"SP",InTran!AD:AD,YEAR(ValueDate)) -> 532331229.7 | P28: =SUMIFS(InTran!W:W,InTran!AC:AC,6,InTran!B:B,"SS",InTran!AD:AD,YEAR(ValueDate)) -> 408733888.8 | T28: =SUMIFS(InPosTemp!L:L,InPosTemp!Z:Z,AB24) -> 117536515 | AB28: Infrastructure | AC28: 0 | AD28: =FBMKLCIInfo!K15/100 -> 0 | AE28: =FBM100Info!K15/100 -> 0.006366279954
M29: July | O29: =-SUMIFS(InTran!W:W,InTran!AC:AC,7,InTran!B:B,"SP",InTran!AD:AD,YEAR(ValueDate)) -> 549379282.9 | P29: =SUMIFS(InTran!W:W,InTran!AC:AC,7,InTran!B:B,"SS",InTran!AD:AD,YEAR(ValueDate)) -> 313044768 | T29: =SUMIFS(InPosTemp!L:L,InPosTemp!Z:Z,AB25) -> 1003046047 | AB29: Oil & Gas | AC29: 0.009438417032 | AD29: =FBMKLCIInfo!K16/100 -> 0.05681228213 | AE29: =FBM100Info!K16/100 -> 0.09984424493
B30: Fund Total | G30: =SUM(G24,G28) -> 25000000 | H30: =SUM(H24,H28) -> 28717376.4 | I30: =SUM(I24,I28) -> 3717376.4 | K30: =SUM(K24,K28) -> 0.004672281541 | M30: August | O30: =-SUMIFS(InTran!W:W,InTran!AC:AC,8,InTran!B:B,"SP",InTran!AD:AD,YEAR(ValueDate)) -> 692879167.7 | P30: =SUMIFS(InTran!W:W,InTran!AC:AC,8,InTran!B:B,"SS",InTran!AD:AD,YEAR(ValueDate)) -> 382803011.7 | T30: =SUMIFS(InPosTemp!L:L,InPosTemp!Z:Z,AB26) -> 59510100 | AB30: Plantation | AC30: 0.04278796167 | AD30: =FBMKLCIInfo!K17/100 -> 0.09079705772 | AE30: =FBM100Info!K17/100 -> 0.07984994664
M31: September | O31: =-SUMIFS(InTran!W:W,InTran!AC:AC,9,InTran!B:B,"SP",InTran!AD:AD,YEAR(ValueDate)) -> 199329300.5 | P31: =SUMIFS(InTran!W:W,InTran!AC:AC,9,InTran!B:B,"SS",InTran!AD:AD,YEAR(ValueDate)) -> 328976096.8 | T31: =SUMIFS(InPosTemp!L:L,InPosTemp!Z:Z,AB27) -> 669747850 | AB31: Property | AC31: 0.06098903554 | AD31: =FBMKLCIInfo!K18/100 -> 0 | AE31: =FBM100Info!K18/100 -> 0.03660081937
B32: CASH | M32: October | O32: =-SUMIFS(InTran!W:W,InTran!AC:AC,10,InTran!B:B,"SP",InTran!AD:AD,YEAR(ValueDate)) -> 94959766.85 | P32: =SUMIFS(InTran!W:W,InTran!AC:AC,10,InTran!B:B,"SS",InTran!AD:AD,YEAR(ValueDate)) -> 219839928.4 | T32: =SUMIFS(InPosTemp!L:L,InPosTemp!Z:Z,AB28) -> 0 | AB32: REIT | AC32: 0.1529540199 | AD32: =FBMKLCIInfo!K19/100 -> 0.01311010856 | AE32: =FBM100Info!K19/100 -> 0.02237376683
B33: Deposit | G33: =SUMIFS(InPosTemp!K:K,InPosTemp!E:E,"DEPOSIT")+InSBLTran!$J$3+SUM(InSBLTran!C:D) -> 1290551435 | H33: =SUMIFS(InPosTemp!K:K,InPosTemp!E:E,"DEPOSIT")+InSBLTran!$J$3+SUM(InSBLTran!C:D) -> 1290551435 | M33: November | O33: =-SUMIFS(InTran!W:W,InTran!AC:AC,11,InTran!B:B,"SP",InTran!AD:AD,YEAR(ValueDate)) -> 0 | P33: =SUMIFS(InTran!W:W,InTran!AC:AC,11,InTran!B:B,"SS",InTran!AD:AD,YEAR(ValueDate)) -> 0 | T33: =SUMIFS(InPosTemp!L:L,InPosTemp!Z:Z,AB29) -> 58011610 | AB33: Technology | AC33: 0.0002538100661 | AD33: =FBMKLCIInfo!K20/100 -> 0 | AE33: =FBM100Info!K20/100 -> 0.03345798074
B34: Commercial Paper | G34: =SUMIFS(InPosTemp!K:K,InPosTemp!E:E,"Commercial Papers") -> 0 | H34: =SUMIFS(InPosTemp!K:K,InPosTemp!E:E,"Commercial Papers") -> 0 | M34: December | O34: =-SUMIFS(InTran!W:W,InTran!AC:AC,12,InTran!B:B,"SP",InTran!AD:AD,YEAR(ValueDate)) -> 0 | P34: =SUMIFS(InTran!W:W,InTran!AC:AC,12,InTran!B:B,"SS",InTran!AD:AD,YEAR(ValueDate)) -> 0 | T34: =SUMIFS(InPosTemp!L:L,InPosTemp!Z:Z,AB30) -> 262988861 | AB34: Telecommunications | AC34: 0.09128544781 | AD34: =FBMKLCIInfo!K21/100 -> 0.1399886509 | AE34: =FBM100Info!K21/100 -> 0.05365846917
B35: Fixed Income | M35: Total | O35: =SUM(O23:O34) -> 4906043329 | P35: =SUM(P23:P34) -> 3830831783 | T35: =SUMIFS(InPosTemp!L:L,InPosTemp!Z:Z,AB31) -> 374858637 | AB35: Utilities | AC35: 0.02933898603 | AD35: =FBMKLCIInfo!K22/100 -> 0.08904356347 | AE35: =FBM100Info!K22/100 -> 0.1032787204
B36: Cash Total | G36: =SUM(G33:G35) -> 1290551435 | H36: =SUM(H33:H35) -> 1290551435 | I36: 0 | J36: 0 | K36: =IF($H$38=0,0,H36/$H$38) -> 0.2099711186 | T36: =SUMIFS(InPosTemp!L:L,InPosTemp!Z:Z,AB32) -> 940105626 | AB36: Fund | AC36: =H30/H38 -> 0.004672281541 | AD36: 0 | AE36: 0
M37: Cut Loss (YTD) | T37: =SUMIFS(InPosTemp!L:L,InPosTemp!Z:Z,AB33) -> 1560000 | AB37: ETF | AC37: =H12/H38 -> 0.01912304529 | AD37: 0 | AE37: 0
B38: TOTAL | G38: =G18+G36+G30 -> 6373307757 | H38: =H18+H36+H30 -> 6146328330 | I38: =I18+I36+I30 -> -226979426.5 | J38: =IF(G38=0,0,I38/G38) -> -0.03561406967 | K38: 1 | M38: Company | O38: Portfolio | P38: Loss (RM'000) | T38: =SUMIFS(InPosTemp!L:L,InPosTemp!Z:Z,AB34) -> 561070334 | AB38: Cash | AC38: =H36/H38 -> 0.2099711186 | AD38: 0 | AE38: 0
T39: =SUMIFS(InPosTemp!L:L,InPosTemp!Z:Z,AB35) -> 180327041 | AB39: Total | AC39: =SUM(AC20:AC38)-AC37 -> 0.9945368363 | AD39: =SUM(AD20:AD35) -> 1 | AE39: =SUM(AE20:AE35) -> 1
M40: =IF(CutLoss!A2="","",CutLoss!A2) -> BAT | O40: =IF(CutLoss!B2="","",CutLoss!B2) -> CORE | P40: =IF(CutLoss!C2="","",CutLoss!C2) -> -10222297.94 | T40: =SUM(T24:T39)+H30+H12 -> 4939735012
B41: Purchase & Sales Summary to Date | M41: =IF(CutLoss!A3="","",CutLoss!A3) -> NAIM | O41: =IF(CutLoss!B3="","",CutLoss!B3) -> SMALLMIDCAP | P41: =IF(CutLoss!C3="","",CutLoss!C3) -> -4229751.54 | S41: Check Exposure and MV | T41: =T40-H18 -> 112675493.4
H42: For the month | I42: Year to Date | M42: =IF(CutLoss!A4="","",CutLoss!A4) ->  | O42: =IF(CutLoss!B4="","",CutLoss!B4) ->  | P42: =IF(CutLoss!C4="","",CutLoss!C4) -> 
H43: (RM'000) | I43: (RM'000) | M43: =IF(CutLoss!A5="","",CutLoss!A5) ->  | O43: =IF(CutLoss!B5="","",CutLoss!B5) ->  | P43: =IF(CutLoss!C5="","",CutLoss!C5) ->  | S43: Start | T43: =3+COUNTIF(InPosTemp!B:B,"Cash") -> 4
B44: Purchase | H44: =OFFSET($O$22,MONTH(ValueDate),0) -> 94959766.85 | I44: =O35 -> 4906043329 | M44: =IF(CutLoss!A6="","",CutLoss!A6) ->  | O44: =IF(CutLoss!B6="","",CutLoss!B6) ->  | P44: =IF(CutLoss!C6="","",CutLoss!C6) ->  | S44: End | T44: =COUNTA(InPosTemp!B:B)+1 -> 68
B45: Sales | H45: =OFFSET($P$22,MONTH(ValueDate),0) -> 219839928.4 | I45: =P35 -> 3830831783
M46: Total | P46: =SUM(P40:P44) -> -14452049.48
B48: Income Status | H48: A | I48: B | J48: C | K48: D= B/C
H49: For the month | I49: Year to Date | J49: 2017 Budget | K49: Achievement
H50: (RM) | I50: (RM) | J50: (RM) | K50: (%)
B51: EQUITY
B52: Capital Gain | S52: =SUMIFS(InTBYTD!F:F,InTBYTD!A:A,ValueDate,InTBYTD!E:E,200200)+SUMIFS(InTBYTD!F:F,InTBYTD!A:A,ValueDate,InTBYTD!E:E,200400)+SUMIFS(InTBYTD!F:F,InTBYTD!A:A,ValueDate,InTBYTD!E:E,300200)+SUMIFS(InTBYTD!F:F,InTBYTD!A:A,ValueDate,InTBYTD!E:E,300400) -> 11821202.94
B53: Core | H53: =-SUMIFS(InTBYTD!F:F,InTBYTD!A:A,ValueDate,InTBYTD!K:K,"RG",InTBYTD!L:L,"EQT",InTBYTD!C:C,"CORE")+IF(MONTH(EOMONTH(ValueDate,-1))<>12,SUMIFS(InTBYTD!F:F,InTBYTD!A:A,EOMONTH(ValueDate,-1),InTBYTD!K:K,"RG",InTBYTD!L:L,"EQT",InTBYTD!C:C,"CORE"),0) -> 7198390.35 | I53: =-SUMIFS(InTBYTD!F:F,InTBYTD!A:A,ValueDate,InTBYTD!K:K,"RG",InTBYTD!L:L,"EQT",InTBYTD!C:C,"CORE") -> 38801294.34
B54: Dividend | H54: =-SUMIFS(InTBYTD!F:F,InTBYTD!A:A,ValueDate,InTBYTD!K:K,"RG",InTBYTD!L:L,"EQT",InTBYTD!C:C,"DIVIDEND")+IF(MONTH(EOMONTH(ValueDate,-1))<>12,SUMIFS(InTBYTD!F:F,InTBYTD!A:A,EOMONTH(ValueDate,-1),InTBYTD!K:K,"RG",InTBYTD!L:L,"EQT",InTBYTD!C:C,"DIVIDEND"),0) -> 0 | I54: =-SUMIFS(InTBYTD!F:F,InTBYTD!A:A,ValueDate,InTBYTD!K:K,"RG",InTBYTD!L:L,"EQT",InTBYTD!C:C,"DIVIDEND") -> 41422531.5
B55: REIT | H55: =-SUMIFS(InTBYTD!F:F,InTBYTD!A:A,ValueDate,InTBYTD!K:K,"RG",InTBYTD!L:L,"EQT",InTBYTD!C:C,"REITS")+IF(MONTH(EOMONTH(ValueDate,-1))<>12,SUMIFS(InTBYTD!F:F,InTBYTD!A:A,EOMONTH(ValueDate,-1),InTBYTD!K:K,"RG",InTBYTD!L:L,"EQT",InTBYTD!C:C,"REITS"),0) -> 0 | I55: =-SUMIFS(InTBYTD!F:F,InTBYTD!A:A,ValueDate,InTBYTD!K:K,"RG",InTBYTD!L:L,"EQT",InTBYTD!C:C,"REITS") -> 336219.84 | S55: Check Cash
B56: Value | H56: =-SUMIFS(InTBYTD!F:F,InTBYTD!A:A,ValueDate,InTBYTD!K:K,"RG",InTBYTD!L:L,"EQT",InTBYTD!C:C,"VALUE")+IF(MONTH(EOMONTH(ValueDate,-1))<>12,SUMIFS(InTBYTD!F:F,InTBYTD!A:A,EOMONTH(ValueDate,-1),InTBYTD!K:K,"RG",InTBYTD!L:L,"EQT",InTBYTD!C:C,"VALUE"),0) -> 0 | I56: =-SUMIFS(InTBYTD!F:F,InTBYTD!A:A,ValueDate,InTBYTD!K:K,"RG",InTBYTD!L:L,"EQT",InTBYTD!C:C,"VALUE") -> 37516763.43 | S56: =P19-H36 -> 0
B57: Growth | H57: =-SUMIFS(InTBYTD!F:F,InTBYTD!A:A,ValueDate,InTBYTD!K:K,"RG",InTBYTD!L:L,"EQT",InTBYTD!C:C,"GROWTH")+IF(MONTH(EOMONTH(ValueDate,-1))<>12,SUMIFS(InTBYTD!F:F,InTBYTD!A:A,EOMONTH(ValueDate,-1),InTBYTD!K:K,"RG",InTBYTD!L:L,"EQT",InTBYTD!C:C,"GROWTH"),0) -> 0 | I57: =-SUMIFS(InTBYTD!F:F,InTBYTD!A:A,ValueDate,InTBYTD!K:K,"RG",InTBYTD!L:L,"EQT",InTBYTD!C:C,"GROWTH") -> 21340164.07
B58: Small Midcap | H58: =-SUMIFS(InTBYTD!F:F,InTBYTD!A:A,ValueDate,InTBYTD!K:K,"RG",InTBYTD!L:L,"EQT",InTBYTD!C:C,"SMALLMIDCAP")+IF(MONTH(EOMONTH(ValueDate,-1))<>12,SUMIFS(InTBYTD!F:F,InTBYTD!A:A,EOMONTH(ValueDate,-1),InTBYTD!K:K,"RG",InTBYTD!L:L,"EQT",InTBYTD!C:C,"SMALLMIDCAP"),0) -> 0 | I58: =-SUMIFS(InTBYTD!F:F,InTBYTD!A:A,ValueDate,InTBYTD!K:K,"RG",InTBYTD!L:L,"EQT",InTBYTD!C:C,"SMALLMIDCAP") -> -1238734
B59: Index | H59: =-SUMIFS(InTBYTD!F:F,InTBYTD!A:A,ValueDate,InTBYTD!K:K,"RG",InTBYTD!L:L,"EQT",InTBYTD!C:C,"INDEX")+IF(MONTH(EOMONTH(ValueDate,-1))<>12,SUMIFS(InTBYTD!F:F,InTBYTD!A:A,EOMONTH(ValueDate,-1),InTBYTD!K:K,"RG",InTBYTD!L:L,"EQT",InTBYTD!C:C,"INDEX"),0) -> 0 | I59: =-SUMIFS(InTBYTD!F:F,InTBYTD!A:A,ValueDate,InTBYTD!K:K,"RG",InTBYTD!L:L,"EQT",InTBYTD!C:C,"INDEX") -> 122422.2
B60: Total Capital Gains | H60: =SUM(H53:H59) -> 7198390.35 | I60: =SUM(I53:I59) -> 138300661.4 | J60: 41676497.95 | K60: =I60/J60 -> 3.318432886
B62: Gross Dividend
B63: Core | H63: =-SUMIFS(InTBYTD!F:F,InTBYTD!A:A,ValueDate,InTBYTD!K:K,"DI",InTBYTD!L:L,"EQT",InTBYTD!C:C,"CORE")+IF(MONTH(EOMONTH(ValueDate,-1))<>12,SUMIFS(InTBYTD!F:F,InTBYTD!A:A,EOMONTH(ValueDate,-1),InTBYTD!K:K,"DI",InTBYTD!L:L,"EQT",InTBYTD!C:C,"CORE"),0) -> 0 | I63: =-SUMIFS(InTBYTD!F:F,InTBYTD!A:A,ValueDate,InTBYTD!K:K,"DI",InTBYTD!L:L,"EQT",InTBYTD!C:C,"CORE") -> 42386495
B64: Dividend | H64: =-SUMIFS(InTBYTD!F:F,InTBYTD!A:A,ValueDate,InTBYTD!K:K,"DI",InTBYTD!L:L,"EQT",InTBYTD!C:C,"DIVIDEND")+IF(MONTH(EOMONTH(ValueDate,-1))<>12,SUMIFS(InTBYTD!F:F,InTBYTD!A:A,EOMONTH(ValueDate,-1),InTBYTD!K:K,"DI",InTBYTD!L:L,"EQT",InTBYTD!C:C,"DIVIDEND"),0) -> 0 | I64: =-SUMIFS(InTBYTD!F:F,InTBYTD!A:A,ValueDate,InTBYTD!K:K,"DI",InTBYTD!L:L,"EQT",InTBYTD!C:C,"DIVIDEND") -> 27961482.6
B65: REITs | H65: =-SUMIFS(InTBYTD!F:F,InTBYTD!A:A,ValueDate,InTBYTD!K:K,"DI",InTBYTD!L:L,"EQT",InTBYTD!C:C,"REITS")+IF(MONTH(EOMONTH(ValueDate,-1))<>12,SUMIFS(InTBYTD!F:F,InTBYTD!A:A,EOMONTH(ValueDate,-1),InTBYTD!K:K,"DI",InTBYTD!L:L,"EQT",InTBYTD!C:C,"REITS"),0) -> 0 | I65: =-SUMIFS(InTBYTD!F:F,InTBYTD!A:A,ValueDate,InTBYTD!K:K,"DI",InTBYTD!L:L,"EQT",InTBYTD!C:C,"REITS") -> 37506925.57
B66: Value | H66: =-SUMIFS(InTBYTD!F:F,InTBYTD!A:A,ValueDate,InTBYTD!K:K,"DI",InTBYTD!L:L,"EQT",InTBYTD!C:C,"VALUE")+IF(MONTH(EOMONTH(ValueDate,-1))<>12,SUMIFS(InTBYTD!F:F,InTBYTD!A:A,EOMONTH(ValueDate,-1),InTBYTD!K:K,"DI",InTBYTD!L:L,"EQT",InTBYTD!C:C,"VALUE"),0) -> 0 | I66: =-SUMIFS(InTBYTD!F:F,InTBYTD!A:A,ValueDate,InTBYTD!K:K,"DI",InTBYTD!L:L,"EQT",InTBYTD!C:C,"VALUE") -> 28209611.5
B67: Growth | H67: =-SUMIFS(InTBYTD!F:F,InTBYTD!A:A,ValueDate,InTBYTD!K:K,"DI",InTBYTD!L:L,"EQT",InTBYTD!C:C,"GROWTH")+IF(MONTH(EOMONTH(ValueDate,-1))<>12,SUMIFS(InTBYTD!F:F,InTBYTD!A:A,EOMONTH(ValueDate,-1),InTBYTD!K:K,"DI",InTBYTD!L:L,"EQT",InTBYTD!C:C,"GROWTH"),0) -> 4241425 | I67: =-SUMIFS(InTBYTD!F:F,InTBYTD!A:A,ValueDate,InTBYTD!K:K,"DI",InTBYTD!L:L,"EQT",InTBYTD!C:C,"GROWTH") -> 28111318.5
B68: Small Midcap | H68: =-SUMIFS(InTBYTD!F:F,InTBYTD!A:A,ValueDate,InTBYTD!K:K,"DI",InTBYTD!L:L,"EQT",InTBYTD!C:C,"SMALLMIDCAP")+IF(MONTH(EOMONTH(ValueDate,-1))<>12,SUMIFS(InTBYTD!F:F,InTBYTD!A:A,EOMONTH(ValueDate,-1),InTBYTD!K:K,"DI",InTBYTD!L:L,"EQT",InTBYTD!C:C,"SMALLMIDCAP"),0) -> 0 | I68: =-SUMIFS(InTBYTD!F:F,InTBYTD!A:A,ValueDate,InTBYTD!K:K,"DI",InTBYTD!L:L,"EQT",InTBYTD!C:C,"SMALLMIDCAP") -> 4997814 | S68: =AND(EDATE(ValueDate,-12)<AG14, AG14 < ValueDate) -> TRUE
B69: Index | H69: =-SUMIFS(InTBYTD!F:F,InTBYTD!A:A,ValueDate,InTBYTD!K:K,"DI",InTBYTD!L:L,"EQT",InTBYTD!C:C,"INDEX")+IF(MONTH(EOMONTH(ValueDate,-1))<>12,SUMIFS(InTBYTD!F:F,InTBYTD!A:A,EOMONTH(ValueDate,-1),InTBYTD!K:K,"DI",InTBYTD!L:L,"EQT",InTBYTD!C:C,"INDEX"),0) -> 0 | I69: =-SUMIFS(InTBYTD!F:F,InTBYTD!A:A,ValueDate,InTBYTD!K:K,"DI",InTBYTD!L:L,"EQT",InTBYTD!C:C,"INDEX") -> 2117303.4 | S69: =AND(EDATE(ValueDate,-12)<AG15, AG15 < ValueDate) -> TRUE
B70: Total Dividend Income | H70: =SUM(H63:H69) -> 4241425 | I70: =SUM(I63:I69) -> 171290950.6 | J70: 216115949.6 | K70: =I70/J70 -> 0.7925881959
B71: SEEDING
B72: Dividend | H72: =-SUMIFS(InTBYTD!F:F,InTBYTD!A:A,ValueDate,InTBYTD!G:G,"PRDIVI",InTBYTD!H:H,"PRDVTA",InTBYTD!K:K,"DI",InTBYTD!L:L,0)+IF(MONTH(EOMONTH(ValueDate,-1))<>12,SUMIFS(InTBYTD!F:F,InTBYTD!A:A,EOMONTH(ValueDate,-1),InTBYTD!G:G,"PRDIVI",InTBYTD!H:H,"PRDVTA",InTBYTD!K:K,"DI",InTBYTD!L:L,0),0) -> 0 | I72: =-SUMIFS(InTBYTD!F:F,InTBYTD!A:A,ValueDate,InTBYTD!G:G,"PRDIVI",InTBYTD!H:H,"PRDVTA",InTBYTD!K:K,"DI",InTBYTD!L:L,0) -> 600000
B73: Interest | H73: =-SUMIFS(InTBYTD!F:F,InTBYTD!A:A,ValueDate,InTBYTD!E:E,630999)+IF(MONTH(EOMONTH(ValueDate,-1))<>12,SUMIFS(InTBYTD!F:F,InTBYTD!A:A,EOMONTH(ValueDate,-1),InTBYTD!E:E,630999),0) -> 0 | I73: =-SUMIFS(InTBYTD!F:F,InTBYTD!A:A,ValueDate,InTBYTD!E:E,630999) -> 0
B74: Profit from ISSMF | H74: =IF(EOMONTH(ValueDate,0)=ValueDate, -SUMIFS(InTBYTD!F:F,InTBYTD!A:A,ValueDate,InTBYTD!C:C,"FUND",InTBYTD!E:E,600430)+IF(MONTH(EOMONTH(ValueDate,-1))<>12,SUMIFS(InTBYTD!F:F,InTBYTD!A:A,EOMONTH(ValueDate,-1),InTBYTD!C:C,"FUND",InTBYTD!E:E,600430),0),0) -> 0 | I74: =-SUMIFS(InTBYTD!F:F,InTBYTD!A:A,ValueDate,InTBYTD!C:C,"FUND",InTBYTD!E:E,600430) -> 101329.1
B75: Security Borrowing & Lending Fee | H75: =InSBLTran!K3 -> 4603.73 | I75: =InSBLTran!$J$4 -> 12541.726
B76: Cash Interest | H76: =-SUMIFS(InTBYTD!F:F,InTBYTD!A:A,ValueDate,InTBYTD!E:E,639210)+SUMIFS(InTBYTD!F:F,InTBYTD!A:A,EOMONTH(ValueDate,-1),InTBYTD!E:E,639210)-SUMIFS(InTBYTD!F:F,InTBYTD!A:A,ValueDate,InTBYTD!E:E,630210)+IF(MONTH(ValueDate)=1,0,SUMIFS(InTBYTD!F:F,InTBYTD!A:A,EOMONTH(ValueDate,-1),InTBYTD!E:E,630210)) -> 1301598.36 | I76: =-SUMIFS(InTBYTD!F:F,InTBYTD!A:A,ValueDate,InTBYTD!G:G,"PRINTI",InTBYTD!H:H,"PRINMM")+SUMIFS(InTBYTD!F:F,InTBYTD!A:A,EOMONTH(ValueDate,-MONTH(ValueDate)),InTBYTD!E:E,639210) -> 43491898.43
B77: Commercial Paper Interest | H77: =-SUMIFS(InTBYTD!F:F,InTBYTD!A:A,ValueDate,InTBYTD!G:G,"BIUSEC",InTBYTD!H:H,"PRDSCP")+IF(MONTH(EOMONTH(ValueDate,-1))<>12,SUMIFS(InTBYTD!F:F,InTBYTD!A:A,EOMONTH(ValueDate,-1),InTBYTD!G:G,"BIUSEC",InTBYTD!H:H,"PRDSCP"),0) -> 0 | I77: =-SUMIFS(InTBYTD!F:F,InTBYTD!A:A,ValueDate,InTBYTD!G:G,"BIUSEC",InTBYTD!H:H,"PRDSCP") -> 0
B78: Profit from Fixed Income
B79: Total Interest Income | H79: =SUM(H74:H78) -> 1306202.09 | I79: =SUM(I74:I78) -> 43605769.26 | J79: 60711900.46 | K79: =I79/J79 -> 0.7182408873
B80: Total Income Received | H80: =SUM(H60,H70,H72,H73,H79) -> 12746017.44 | I80: =SUM(I60,I70,I72,I73,I79) -> 353797381.2 | J80: =SUM(J79,J70,J60) -> 318504348 | K80: =I80/J80 -> 1.110808639
S81: =AND(EDATE(ValueDate,-12)<AB14, AB14 < ValueDate) -> TRUE | T81: `
S82: =AND(EDATE(ValueDate,-12)<AB15, AB15 < ValueDate) -> TRUE
S85: EQUITY | T85: =H18+H23 -> 4845452519
S86: CASH | T86: =H36 -> 1290551435
S91: ="Style Allocation as at " & IF(ValueDate="","",DAY(ValueDate)&LOOKUP(DAY(ValueDate),{1,2,3,4,21,22,23,24,31;"st","nd","rd","th","st","nd","rd","th","st"})&TEXT(ValueDate," mmmm yyyy")) -> Style Allocation as at 11th October 2017
S92: ="Asset Allocation (MV) as at " & IF(ValueDate="","",DAY(ValueDate)&LOOKUP(DAY(ValueDate),{1,2,3,4,21,22,23,24,31;"st","nd","rd","th","st","nd","rd","th","st"})&TEXT(ValueDate," mmmm yyyy")) -> Asset Allocation (MV) as at 11th October 2017
S95: Check Income
S96: Capital Gain | V96: =I60-GETPIVOTDATA("Realised Gain",'1aa.IncomeStatusByStock'!$B$6) -> 190228.03
S97: Dividend | V97: =I70-GETPIVOTDATA("Dividend Income",'1aa.IncomeStatusByStock'!$B$6) -> 595140
S99: =B9 -> Core | T99: =H9 -> 703407234
S100: =B10 -> Dividend | T100: =H10 -> 714378832
S101: =B11 -> REITs | T101: =H11 -> 940105626
S102: =B12 -> Index | T102: =H12 -> 117536515
S103: =B13 -> Growth | T103: =H13 -> 1449163938
S104: =B15 -> Value | T104: =H15 -> 792358035
S105: =B16 -> Small Midcap | T105: =H16 -> 110109339
S106: =B17 -> Balancing | T106: =H17 -> 0
S107: Fund | T107: =H30 -> 28717376.4
S108: Cash | T108: =H36 -> 1290551435
T109: =SUM(T99:T108) -> 6146328330
S110: Check | T110: =T109-H38 -> 0
K130: Styling
J131: Cluster A | K131: =H9+H10+H11+H12+H13 -> 3924592145 | M131: =K131/(K131+K132) -> 0.808231562
J132: Cluster B | K132: =H15+H16+H17+H30 -> 931184750.4 | M132: =K132/(K132+K131) -> 0.191768438
J133: Cash | K133: =H36 -> 1290551435 | M133: 0
J134: Sum | K134: =SUM(K131:K133) -> 6146328330
J135: Check | K135: =K134-H38 -> 0

Sheet InTBYTD (hidden)
J1: =TEXT(A1,"mmm-yy") -> Jan-00 | K1: =VLOOKUP(E1,TBgp,2) -> BS | L1: =IF(ISNA(VLOOKUP(MOD(E1,1000),$Q$1:$T$26,4,0))=TRUE,0,VLOOKUP(MOD(E1,1000),$Q$1:$T$26,4,0)) -> CSH | N1: 0 | O1: BS | Q1: 0 | R1: CAPT | S1: Unitholder Capital | T1: CSH
A2: TBDate | B2: GLCode | C2: qFundCode | D2: qCurrencyCode | E2: ShortGL | F2: Value | G2: qRptGrpID | H2: qRptGrp1ID | I2: qRptGrp2ID | J2: MthYr | K2: Group | L2: Product Type | N2: 200000 | O2: CSH | Q2: 10 | R2: SHLI | S2: Local Listed Share | T2: EQT
A3: 2016-12-31 | B3: 0-CH-MYR-100210 | C3: CASH | D3: MYR | E3: 100210 | F3: 1544226000 | G3: BIRPFD | H3: BIACDP | I3: N/A | J3: Dec-16 | K3: BS | L3: CSH | N3: 299000 | O3: DR | Q3: 15 | R3: SHFL | S3: Foreign Listed Equities | T3: EQT
A4: 2016-12-31 | B4: 0-CH-MYR-139210 | C4: CASH | D4: MYR | E4: 139210 | F4: 3882763.86 | G4: BAINTR | H4: BOAIND | I4: N/A | J4: Dec-16 | K4: BS | L4: CSH | N4: 300000 | O4: CSH | Q4: 30 | R4: SHUL | S4: Local UnListed Share | T4: EQT
A5: 2016-12-31 | B5: 0-CH-MYR-500000 | C5: CASH | D5: MYR | E5: 500000 | F5: 821.46 | G5: BABANK | H5: BOABNK | I5: N/A | J5: Dec-16 | K5: CSH | L5: CSH | N5: 600000 | O5: RG | Q5: 100 | R5: BDCG | S5: Cagamas Bond | T5: BND
A6: 2016-12-31 | B6: 0-CH-MYR-630210 | C6: CASH | D6: MYR | E6: 630210 | F6: -59412776.15 | G6: PRINTI | H6: PRINMM | I6: T.MMInc | J6: Dec-16 | K6: INC | L6: CSH | N6: 619000 | O6: INC | Q6: 110 | R6: BDCO | S6: Commercial Bond | T6: BND
A7: 2016-12-31 | B7: 0-CH-MYR-636003 | C7: CASH | D7: MYR | E7: 636003 | F7: -6457915.8 | G7: PROTHI | H7: PRINOT | I7: N/A | J7: Dec-16 | K7: DI | L7: 0 | N7: 630000 | O7: INC | Q7: 115 | R7: BXCO | S7: Foreign Commercial Bond | T7: BND
A8: 2016-12-31 | B8: 0-CH-MYR-636010 | C8: CASH | D8: MYR | E8: 636010 | F8: -535.13 | G8: PRDIVI | H8: PRDVTE | I8: T.Agg | J8: Dec-16 | K8: DI | L8: EQT | N8: 635000 | O8: DI | Q8: 120 | R8: BDCP | S8: Commercial Paper | T8: BND
A9: 2016-12-31 | B9: 0-CH-MYR-639210 | C9: CASH | D9: MYR | E9: 639210 | F9: -3882763.86 | G9: PRINTI | H9: PRINMM | I9: T.MMInc | J9: Dec-16 | K9: INC | L9: CSH | N9: 636000 | O9: DI | Q9: 125 | R9: BXCP | S9: Foreign Commercial Paper | T9: BND
A10: 2016-12-31 | B10: 0-CH-MYR-710102 | C10: CASH | D10: MYR | E10: 710102 | F10: 4671 | G10: PEEOTF | H10: PREBKC | I10: N/A | J10: Dec-16 | K10: EX | L10: 0 | N10: 639000 | O10: INC | Q10: 130 | R10: BDGG | S10: Government Guaranteed Bond | T10: BND
A11: 2016-12-31 | B11: 0-CH-MYR-710876 | C11: CASH | D11: MYR | E11: 710876 | F11: 292.98 | G11: PEEOTF | H11: PREGST | I11: N/A | J11: Dec-16 | K11: EX | L11: 0 | N11: 689000 | O11: CG | Q11: 140 | R11: BDMG | S11: Malaysia Government Securities | T11: BND
A12: 2016-12-31 | B12: 0-CH-MYR-800000 | C12: CASH | D12: MYR | E12: 800000 | F12: -1474511309 | G12: BCUCAP | H12: BCUCAP | I12: N/A | J12: Dec-16 | K12: CAP | L12: CSH | N12: 700000 | O12: EX | Q12: 150 | R12: LNST | S12: Loan Stock | T12: EQT
A13: 2016-12-31 | B13: 0-CH-MYR-830000 | C13: CASH | D13: MYR | E13: 830000 | F13: -5208823.43 | G13: PRDSEQ | H13: BSRRPF | I13: T.Equal | J13: Dec-16 | K13: CAP | L13: CSH | N13: 800000 | O13: CAP | Q13: 190 | R13: BNID | S13: NID | T13: BND
A14: 2016-12-31 | B14: 0-CH-MYR-939210 | C14: CASH | D14: MYR | E14: 939210 | F14: 1359574.13 | G14: PUUUGL | H14: PRINMM | I14: T.MMInc | J14: Dec-16 | K14: CAP | L14: CSH | N14: 900000 | O14: CTR | Q14: 210 | R14: CSMM | S14: Local Money Market Placement | T14: CSH
A15: 2016-12-31 | B15: 0-CR-MYR-100010 | C15: CORE | D15: MYR | E15: 100010 | F15: 938084886.3 | G15: BIQEQT | H15: BIACLS | I15: N/A | J15: Dec-16 | K15: BS | L15: EQT | Q15: 215 | R15: CSMF | S15: Foreign Money Market Placement | T15: CSH
A16: 2016-12-31 | B16: 0-CR-MYR-189010 | C16: CORE | D16: MYR | E16: 189010 | F16: -61243977.29 | G16: BIQEQT | H16: BIAULS | I16: N/A | J16: Dec-16 | K16: BS | L16: EQT | Q16: 220 | R16: CSFD | S16: Local Fixed Deposit Placement | T16: CSH
A17: 2016-12-31 | B17: 0-CR-MYR-300200 | C17: CORE | D17: MYR | E17: 300200 | F17: -55921074.78 | G17: BLATBR | H17: BLBRLO | I17: N/A | J17: Dec-16 | K17: CSH | L17: 0 | Q17: 300 | R17: FUDE | S17: Futures
A18: 2016-12-31 | B18: 0-CR-MYR-600010 | C18: CORE | D18: MYR | E18: 600010 | F18: -9937249.02 | G18: PRRGNL | H18: PRGNLO | I18: N/A | J18: Dec-16 | K18: RG | L18: EQT | Q18: 310 | R18: FORD | S18: Forward Contract
A19: 2016-12-31 | B19: 0-CR-MYR-635010 | C19: CORE | D19: MYR | E19: 635010 | F19: -33543580.41 | G19: PRDIVI | H19: PRDVTA | I19: T.Inc | J19: Dec-16 | K19: DI | L19: EQT | Q19: 320 | R19: OPLO | S19: Options Local
A20: 2016-12-31 | B20: 0-CR-MYR-689010 | C20: CORE | D20: MYR | E20: 689010 | F20: 61243977.29 | G20: PUUQGL | H20: PUGINV | I20: N/A | J20: Dec-16 | K20: CG | L20: EQT | Q20: 325 | R20: OPFO | S20: Options Foreign
A21: 2016-12-31 | B21: 0-CR-MYR-800000 | C21: CORE | D21: MYR | E21: 800000 | F21: -838227768.1 | G21: BCUCAP | H21: BCUCAP | I21: N/A | J21: Dec-16 | K21: CAP | L21: CSH | Q21: 330 | R21: DEVCF | S21: Derivative
A22: 2016-12-31 | B22: 0-CR-MYR-810000 | C22: CORE | D22: MYR | E22: 810000 | F22: 908327.34 | G22: BCURPF | H22: BSURPF | I22: N/A | J22: Dec-16 | K22: CAP | L22: CSH | Q22: 410 | R22: UTEX | S22: Local Bond Unit Trust
A23: 2016-12-31 | B23: 0-CR-MYR-830000 | C23: CORE | D23: MYR | E23: 830000 | F23: -455213.97 | G23: PRDSEQ | H23: BSRRPF | I23: T.Equal | J23: Dec-16 | K23: CAP | L23: CSH | Q23: 415 | R23: UTFX | S23: Foreign Bond Unit Trust
A24: 2016-12-31 | B24: 0-CR-MYR-989010 | C24: CORE | D24: MYR | E24: 989010 | F24: -908327.34 | G24: PUUQGL | H24: PUGINV | I24: N/A | J24: Dec-16 | K24: CAP | L24: EQT | Q24: 430 | R24: UTCX | S24: Local Cash Unit Trust
A25: 2016-12-31 | B25: 0-DS-MYR-100210 | C25: DSRA | D25: MYR | E25: 100210 | F25: 107185100 | G25: BIRPFD | H25: BIACDP | I25: N/A | J25: Dec-16 | K25: BS | L25: CSH | Q25: 460 | R25: REIT | S25: Real Estate Investment Trust | T25: EQT
A26: 2016-12-31 | B26: 0-DS-MYR-139210 | C26: DSRA | D26: MYR | E26: 139210 | F26: 74816.79 | G26: BAINTR | H26: BOAIND | I26: N/A | J26: Dec-16 | K26: BS | L26: CSH | Q26: 465 | R26: REIF | S26: Foreign Real Estate Investment Trust
A27: 2016-12-31 | B27: 0-DS-MYR-500000 | C27: DSRA | D27: MYR | E27: 500000 | F27: 712.33 | G27: BABANK | H27: BOABNK | I27: N/A | J27: Dec-16 | K27: CSH | L27: CSH
A28: 2016-12-31 | B28: 0-DS-MYR-630210 | C28: DSRA | D28: MYR | E28: 630210 | F28: -3153915.59 | G28: PRINTI | H28: PRINMM | I28: T.MMInc | J28: Dec-16 | K28: INC | L28: CSH
A29: 2016-12-31 | B29: 0-DS-MYR-639210 | C29: DSRA | D29: MYR | E29: 639210 | F29: -74816.79 | G29: PRINTI | H29: PRINMM | I29: T.MMInc | J29: Dec-16 | K29: INC | L29: CSH
A30: 2016-12-31 | B30: 0-DS-MYR-710102 | C30: DSRA | D30: MYR | E30: 710102 | F30: 62 | G30: PEEOTF | H30: PREBKC | I30: N/A | J30: Dec-16 | K30: EX | L30: 0
A31: 2016-12-31 | B31: 0-DS-MYR-710104 | C31: DSRA | D31: MYR | E31: 710104 | F31: 84962136.99 | G31: PEEOTF | H31: PREGEN | I31: N/A | J31: Dec-16 | K31: EX | L31: 0
A32: 2016-12-31 | B32: 0-DS-MYR-710876 | C32: DSRA | D32: MYR | E32: 710876 | F32: 3.72 | G32: PEEOTF | H32: PREGST | I32: N/A | J32: Dec-16 | K32: EX | L32: 0
A33: 2016-12-31 | B33: 0-DS-MYR-800000 | C33: DSRA | D33: MYR | E33: 800000 | F33: -253354948.8 | G33: BCUCAP | H33: BCUCAP | I33: N/A | J33: Dec-16 | K33: CAP | L33: CSH
A34: 2016-12-31 | B34: 0-DS-MYR-830000 | C34: DSRA | D34: MYR | E34: 830000 | F34: -32797.15 | G34: PRDSEQ | H34: BSRRPF | I34: T.Equal | J34: Dec-16 | K34: CAP | L34: CSH
A35: 2016-12-31 | B35: 0-DS-MYR-850000 | C35: DSRA | D35: MYR | E35: 850000 | F35: 64360849.32 | G35: PRDSEQ | H35: PRDSEQ | I35: T.Equal | J35: Dec-16 | K35: CAP | L35: CSH
A36: 2016-12-31 | B36: 0-DS-MYR-939210 | C36: DSRA | D36: MYR | E36: 939210 | F36: 32797.15 | G36: PUUUGL | H36: PRINMM | I36: T.MMInc | J36: Dec-16 | K36: CAP | L36: CSH
A37: 2016-12-31 | B37: 0-DV-MYR-100010 | C37: DIVIDEND | D37: MYR | E37: 100010 | F37: 832479400.8 | G37: BIQEQT | H37: BIACLS | I37: N/A | J37: Dec-16 | K37: BS | L37: EQT
A38: 2016-12-31 | B38: 0-DV-MYR-189010 | C38: DIVIDEND | D38: MYR | E38: 189010 | F38: -17235794.77 | G38: BIQEQT | H38: BIAULS | I38: N/A | J38: Dec-16 | K38: BS | L38: EQT
A39: 2016-12-31 | B39: 0-DV-MYR-299010 | C39: DIVIDEND | D39: MYR | E39: 299010 | F39: 902630 | G39: BADIVR | H39: BOADVL | I39: N/A | J39: Dec-16 | K39: DR | L39: EQT
A40: 2016-12-31 | B40: 0-DV-MYR-300200 | C40: DIVIDEND | D40: MYR | E40: 300200 | F40: -167896468.5 | G40: BLATBR | H40: BLBRLO | I40: N/A | J40: Dec-16 | K40: CSH | L40: 0
A41: 2016-12-31 | B41: 0-DV-MYR-600010 | C41: DIVIDEND | D41: MYR | E41: 600010 | F41: -3806851.42 | G41: PRRGNL | H41: PRGNLO | I41: N/A | J41: Dec-16 | K41: RG | L41: EQT
A42: 2016-12-31 | B42: 0-DV-MYR-635010 | C42: DIVIDEND | D42: MYR | E42: 635010 | F42: -14327807.1 | G42: PRDIVI | H42: PRDVTA | I42: T.Inc | J42: Dec-16 | K42: DI | L42: EQT
A43: 2016-12-31 | B43: 0-DV-MYR-689010 | C43: DIVIDEND | D43: MYR | E43: 689010 | F43: 17235794.77 | G43: PUUQGL | H43: PUGINV | I43: N/A | J43: Dec-16 | K43: CG | L43: EQT
A44: 2016-12-31 | B44: 0-DV-MYR-800000 | C44: DIVIDEND | D44: MYR | E44: 800000 | F44: -647228438.8 | G44: BCUCAP | H44: BCUCAP | I44: N/A | J44: Dec-16 | K44: CAP | L44: CSH
A45: 2016-12-31 | B45: 0-DV-MYR-810000 | C45: DIVIDEND | D45: MYR | E45: 810000 | F45: 187452.6 | G45: BCURPF | H45: BSURPF | I45: N/A | J45: Dec-16 | K45: CAP | L45: CSH
A46: 2016-12-31 | B46: 0-DV-MYR-830000 | C46: DIVIDEND | D46: MYR | E46: 830000 | F46: -122465 | G46: PRDSEQ | H46: BSRRPF | I46: T.Equal | J46: Dec-16 | K46: CAP | L46: CSH
A47: 2016-12-31 | B47: 0-DV-MYR-989010 | C47: DIVIDEND | D47: MYR | E47: 989010 | F47: -187452.6 | G47: PUUQGL | H47: PUGINV | I47: N/A | J47: Dec-16 | K47: CAP | L47: EQT
A48: 2016-12-31 | B48: 0-FD-MYR-100410 | C48: FUND | D48: MYR | E48: 100410 | F48: 15000000 | G48: BIUCIV | H48: BIACUT | I48: N/A | J48: Dec-16 | K48: BS | L48: 0
A49: 2016-12-31 | B49: 0-FD-MYR-100430 | C49: FUND | D49: MYR | E49: 100430 | F49: 21847846.18 | G49: BIUCIV | H49: BIACUT | I49: N/A | J49: Dec-16 | K49: BS | L49: 0
A50: 2016-12-31 | B50: 0-FD-MYR-189410 | C50: FUND | D50: MYR | E50: 189410 | F50: 1465500 | G50: N/A | H50: BIAUUT | I50: N/A | J50: Dec-16 | K50: BS | L50: 0
A51: 2016-12-31 | B51: 0-FD-MYR-189430 | C51: FUND | D51: MYR | E51: 189430 | F51: 131898.98 | G51: N/A | H51: BIAUUT | I51: N/A | J51: Dec-16 | K51: BS | L51: 0
A52: 2016-12-31 | B52: 0-FD-MYR-299430 | C52: FUND | D52: MYR | E52: 299430 | F52: 59331.62 | G52: BADIVR | H52: BOADVL | I52: N/A | J52: Dec-16 | K52: DR | L52: 0
A53: 2016-12-31 | B53: 0-FD-MYR-635430 | C53: FUND | D53: MYR | E53: 635430 | F53: -201611.19 | G53: PRDIVI | H53: PRINMM | I53: N/A | J53: Dec-16 | K53: DI | L53: 0
A54: 2016-12-31 | B54: 0-FD-MYR-636430 | C54: FUND | D54: MYR | E54: 636430 | F54: -546293.29 | G54: PRDIVI | H54: PRINMM | I54: T.Agg | J54: Dec-16 | K54: DI | L54: 0
A55: 2016-12-31 | B55: 0-FD-MYR-689410 | C55: FUND | D55: MYR | E55: 689410 | F55: -1465500 | G55: PUUUGL | H55: PUGINV | I55: N/A | J55: Dec-16 | K55: CG | L55: 0
A56: 2016-12-31 | B56: 0-FD-MYR-689430 | C56: FUND | D56: MYR | E56: 689430 | F56: -131898.98 | G56: PUUUGL | H56: PUGINV | I56: N/A | J56: Dec-16 | K56: CG | L56: 0
A57: 2016-12-31 | B57: 0-FD-MYR-800000 | C57: FUND | D57: MYR | E57: 800000 | F57: -35238113.98 | G57: BCUCAP | H57: BCUCAP | I57: N/A | J57: Dec-16 | K57: CAP | L57: CSH
A58: 2016-12-31 | B58: 0-FD-MYR-810000 | C58: FUND | D58: MYR | E58: 810000 | F58: -984544.15 | G58: BCURPF | H58: BSURPF | I58: N/A | J58: Dec-16 | K58: CAP | L58: CSH
A59: 2016-12-31 | B59: 0-FD-MYR-830000 | C59: FUND | D59: MYR | E59: 830000 | F59: -921159.34 | G59: PRDSEQ | H59: BSRRPF | I59: T.Equal | J59: Dec-16 | K59: CAP | L59: CSH
A60: 2016-12-31 | B60: 0-FD-MYR-989410 | C60: FUND | D60: MYR | E60: 989410 | F60: 898500 | G60: PUUUGL | H60: PUGINV | I60: N/A | J60: Dec-16 | K60: CAP | L60: 0
A61: 2016-12-31 | B61: 0-FD-MYR-989430 | C61: FUND | D61: MYR | E61: 989430 | F61: 86044.15 | G61: PUUUGL | H61: PUGINV | I61: N/A | J61: Dec-16 | K61: CAP | L61: 0
A62: 2016-12-31 | B62: 0-GW-MYR-100010 | C62: GROWTH | D62: MYR | E62: 100010 | F62: 412949905.4 | G62: BIQEQT | H62: BIACLS | I62: N/A | J62: Dec-16 | K62: BS | L62: EQT
A63: 2016-12-31 | B63: 0-GW-MYR-189010 | C63: GROWTH | D63: MYR | E63: 189010 | F63: -24247435.35 | G63: BIQEQT | H63: BIAULS | I63: N/A | J63: Dec-16 | K63: BS | L63: EQT
A64: 2016-12-31 | B64: 0-GW-MYR-299010 | C64: GROWTH | D64: MYR | E64: 299010 | F64: 2733679 | G64: BADIVR | H64: BOADVL | I64: N/A | J64: Dec-16 | K64: DR | L64: EQT
A65: 2016-12-31 | B65: 0-GW-MYR-300200 | C65: GROWTH | D65: MYR | E65: 300200 | F65: -62202523.4 | G65: BLATBR | H65: BLBRLO | I65: N/A | J65: Dec-16 | K65: CSH | L65: 0
A66: 2016-12-31 | B66: 0-GW-MYR-600010 | C66: GROWTH | D66: MYR | E66: 600010 | F66: -363227.19 | G66: PRRGNL | H66: PRGNLO | I66: N/A | J66: Dec-16 | K66: RG | L66: EQT
A67: 2016-12-31 | B67: 0-GW-MYR-635010 | C67: GROWTH | D67: MYR | E67: 635010 | F67: -8403304 | G67: PRDIVI | H67: PRDVTA | I67: T.Inc | J67: Dec-16 | K67: DI | L67: EQT
A68: 2016-12-31 | B68: 0-GW-MYR-689010 | C68: GROWTH | D68: MYR | E68: 689010 | F68: 24247435.35 | G68: PUUQGL | H68: PUGINV | I68: N/A | J68: Dec-16 | K68: CG | L68: EQT
A69: 2016-12-31 | B69: 0-GW-MYR-800000 | C69: GROWTH | D69: MYR | E69: 800000 | F69: -344714529.8 | G69: BCUCAP | H69: BCUCAP | I69: N/A | J69: Dec-16 | K69: CAP | L69: CSH
A70: 2016-12-31 | B70: 0-ID-MYR-100010 | C70: INDEX | D70: MYR | E70: 100010 | F70: 118160302.6 | G70: BIQEQT | H70: BIACLS | I70: N/A | J70: Dec-16 | K70: BS | L70: EQT
A71: 2016-12-31 | B71: 0-ID-MYR-189010 | C71: INDEX | D71: MYR | E71: 189010 | F71: 188386.53 | G71: BIQEQT | H71: BIAULS | I71: N/A | J71: Dec-16 | K71: BS | L71: EQT
A72: 2016-12-31 | B72: 0-ID-MYR-600010 | C72: INDEX | D72: MYR | E72: 600010 | F72: -5633.49 | G72: PRRGNL | H72: PRGNLO | I72: N/A | J72: Dec-16 | K72: RG | L72: EQT
A73: 2016-12-31 | B73: 0-ID-MYR-635010 | C73: INDEX | D73: MYR | E73: 635010 | F73: -226078.95 | G73: PRDIVI | H73: PRDVTA | I73: T.Inc | J73: Dec-16 | K73: DI | L73: EQT
A74: 2016-12-31 | B74: 0-ID-MYR-689010 | C74: INDEX | D74: MYR | E74: 689010 | F74: -188386.53 | G74: PUUQGL | H74: PUGINV | I74: N/A | J74: Dec-16 | K74: CG | L74: EQT
A75: 2016-12-31 | B75: 0-ID-MYR-800000 | C75: INDEX | D75: MYR | E75: 800000 | F75: -117928590.1 | G75: BCUCAP | H75: BCUCAP | I75: N/A | J75: Dec-16 | K75: CAP | L75: CSH
A76: 2016-12-31 | B76: 0-ID-MYR-810000 | C76: INDEX | D76: MYR | E76: 810000 | F76: 621366.6 | G76: BCURPF | H76: BSURPF | I76: N/A | J76: Dec-16 | K76: CAP | L76: CSH
A77: 2016-12-31 | B77: 0-ID-MYR-989010 | C77: INDEX | D77: MYR | E77: 989010 | F77: -621366.6 | G77: PUUQGL | H77: PUGINV | I77: N/A | J77: Dec-16 | K77: CAP | L77: EQT
A78: 2016-12-31 | B78: 0-OP-MYR-500000 | C78: OPR | D78: MYR | E78: 500000 | F78: 4800.12 | G78: BABANK | H78: BOABNK | I78: N/A | J78: Dec-16 | K78: CSH | L78: CSH
A79: 2016-12-31 | B79: 0-OP-MYR-636003 | C79: OPR | D79: MYR | E79: 636003 | F79: -33805.82 | G79: PROTHI | H79: PRINOT | I79: N/A | J79: Dec-16 | K79: DI | L79: 0
A80: 2016-12-31 | B80: 0-OP-MYR-710102 | C80: OPR | D80: MYR | E80: 710102 | F80: 3794.5 | G80: PEEOTF | H80: PREBKC | I80: N/A | J80: Dec-16 | K80: EX | L80: 0
A81: 2016-12-31 | B81: 0-OP-MYR-710104 | C81: OPR | D81: MYR | E81: 710104 | F81: 30194508.53 | G81: PEEOTF | H81: PREGEN | I81: N/A | J81: Dec-16 | K81: EX | L81: 0
A82: 2016-12-31 | B82: 0-OP-MYR-710876 | C82: OPR | D82: MYR | E82: 710876 | F82: 112.58 | G82: PEEOTF | H82: PREGST | I82: N/A | J82: Dec-16 | K82: EX | L82: 0
A83: 2016-12-31 | B83: 0-OP-MYR-800000 | C83: OPR | D83: MYR | E83: 800000 | F83: -30168932.29 | G83: BCUCAP | H83: BCUCAP | I83: N/A | J83: Dec-16 | K83: CAP | L83: CSH
A84: 2016-12-31 | B84: 0-OP-MYR-830000 | C84: OPR | D84: MYR | E84: 830000 | F84: -477.62 | G84: PRDSEQ | H84: BSRRPF | I84: T.Equal | J84: Dec-16 | K84: CAP | L84: CSH
A85: 2016-12-31 | B85: 0-RT-MYR-100460 | C85: REITS | D85: MYR | E85: 100460 | F85: 490154582.9 | G85: BIQCIV | H85: BIACUT | I85: N/A | J85: Dec-16 | K85: BS | L85: EQT
A86: 2016-12-31 | B86: 0-RT-MYR-189460 | C86: REITS | D86: MYR | E86: 189460 | F86: 11613262.08 | G86: BIQCIV | H86: BIAUUT | I86: N/A | J86: Dec-16 | K86: BS | L86: EQT
A87: 2016-12-31 | B87: 0-RT-MYR-299460 | C87: REITS | D87: MYR | E87: 299460 | F87: 1101278.1 | G87: BADIVR | H87: BOADVL | I87: N/A | J87: Dec-16 | K87: DR | L87: EQT
A88: 2016-12-31 | B88: 0-RT-MYR-300200 | C88: REITS | D88: MYR | E88: 300200 | F88: -26239305.08 | G88: BLATBR | H88: BLBRLO | I88: N/A | J88: Dec-16 | K88: CSH | L88: 0
A89: 2016-12-31 | B89: 0-RT-MYR-600460 | C89: REITS | D89: MYR | E89: 600460 | F89: -4431659.41 | G89: PRRGNL | H89: PRGNLO | I89: N/A | J89: Dec-16 | K89: RG | L89: EQT
A90: 2016-12-31 | B90: 0-RT-MYR-635460 | C90: REITS | D90: MYR | E90: 635460 | F90: -9696652.76 | G90: PRDIVI | H90: PRDVTE | I90: T.Agg | J90: Dec-16 | K90: DI | L90: EQT
A91: 2016-12-31 | B91: 0-RT-MYR-689460 | C91: REITS | D91: MYR | E91: 689460 | F91: -11613262.08 | G91: PUUQGL | H91: PUGINV | I91: N/A | J91: Dec-16 | K91: CG | L91: EQT
A92: 2016-12-31 | B92: 0-RT-MYR-800000 | C92: REITS | D92: MYR | E92: 800000 | F92: -450835315 | G92: BCUCAP | H92: BCUCAP | I92: N/A | J92: Dec-16 | K92: CAP | L92: CSH
A93: 2016-12-31 | B93: 0-RT-MYR-810000 | C93: REITS | D93: MYR | E93: 810000 | F93: 14154.92 | G93: BCURPF | H93: BSURPF | I93: N/A | J93: Dec-16 | K93: CAP | L93: CSH
A94: 2016-12-31 | B94: 0-RT-MYR-830000 | C94: REITS | D94: MYR | E94: 830000 | F94: -52928.8 | G94: PRDSEQ | H94: BSRRPF | I94: T.Equal | J94: Dec-16 | K94: CAP | L94: CSH
A95: 2016-12-31 | B95: 0-RT-MYR-989460 | C95: REITS | D95: MYR | E95: 989460 | F95: -14154.92 | G95: PUUQGL | H95: PUGINV | I95: N/A | J95: Dec-16 | K95: CAP | L95: EQT
A96: 2016-12-31 | B96: 0-SMC-MYR-100010 | C96: SMALLMIDCAP | D96: MYR | E96: 100010 | F96: 110233988.6 | G96: BIQEQT | H96: BIACLS | I96: N/A | J96: Dec-16 | K96: BS | L96: EQT
A97: 2016-12-31 | B97: 0-SMC-MYR-189010 | C97: SMALLMIDCAP | D97: MYR | E97: 189010 | F97: -11198081.57 | G97: BIQEQT | H97: BIAULS | I97: N/A | J97: Dec-16 | K97: BS | L97: EQT
A98: 2016-12-31 | B98: 0-SMC-MYR-299010 | C98: SMALLMIDCAP | D98: MYR | E98: 299010 | F98: -27465 | G98: BADIVR | H98: BOADVL | I98: N/A | J98: Dec-16 | K98: DR | L98: EQT
A99: 2016-12-31 | B99: 0-SMC-MYR-300200 | C99: SMALLMIDCAP | D99: MYR | E99: 300200 | F99: -23371722.76 | G99: BLATBR | H99: BLBRLO | I99: N/A | J99: Dec-16 | K99: CSH | L99: 0
A100: 2016-12-31 | B100: 0-SMC-MYR-600010 | C100: SMALLMIDCAP | D100: MYR | E100: 600010 | F100: -1298742.55 | G100: PRRGNL | H100: PRGNLO | I100: N/A | J100: Dec-16 | K100: RG | L100: EQT
A101: 2016-12-31 | B101: 0-SMC-MYR-635010 | C101: SMALLMIDCAP | D101: MYR | E101: 635010 | F101: -3201814 | G101: PRDIVI | H101: PRDVTA | I101: T.Inc | J101: Dec-16 | K101: DI | L101: EQT
A102: 2016-12-31 | B102: 0-SMC-MYR-689010 | C102: SMALLMIDCAP | D102: MYR | E102: 689010 | F102: 11198081.57 | G102: PUUQGL | H102: PUGINV | I102: N/A | J102: Dec-16 | K102: CG | L102: EQT
A103: 2016-12-31 | B103: 0-SMC-MYR-800000 | C103: SMALLMIDCAP | D103: MYR | E103: 800000 | F103: -82334244.26 | G103: BCUCAP | H103: BCUCAP | I103: N/A | J103: Dec-16 | K103: CAP | L103: CSH
A104: 2016-12-31 | B104: 0-SMC-MYR-810000 | C104: SMALLMIDCAP | D104: MYR | E104: 810000 | F104: 2222.35 | G104: BCURPF | H104: BSURPF | I104: N/A | J104: Dec-16 | K104: CAP | L104: CSH
A105: 2016-12-31 | B105: 0-SMC-MYR-989010 | C105: SMALLMIDCAP | D105: MYR | E105: 989010 | F105: -2222.35 | G105: PUUQGL | H105: PUGINV | I105: N/A | J105: Dec-16 | K105: CAP | L105: EQT
A106: 2016-12-31 | B106: 0-STFI-MYR-620120 | C106: STFI | D106: MYR | E106: 620120 | F106: -90613.15 | G106: BIUSEC | H106: PRDSCP | I106: N/A | J106: Dec-16 | K106: INC | L106: BND
A107: 2016-12-31 | B107: 0-STFI-MYR-800000 | C107: STFI | D107: MYR | E107: 800000 | F107: 90613.15 | G107: BCUCAP | H107: BCUCAP | I107: N/A | J107: Dec-16 | K107: CAP | L107: CSH
A108: 2016-12-31 | B108: 0-TR-MYR-500000 | C108: TRA | D108: MYR | E108: 500000 | F108: 29970.32 | G108: BABANK | H108: BOABNK | I108: N/A | J108: Dec-16 | K108: CSH | L108: CSH
A109: 2016-12-31 | B109: 0-TR-MYR-710102 | C109: TRA | D109: MYR | E109: 710102 | F109: 28 | G109: PEEOTF | H109: PREBKC | I109: N/A | J109: Dec-16 | K109: EX | L109: 0
A110: 2016-12-31 | B110: 0-TR-MYR-710876 | C110: TRA | D110: MYR | E110: 710876 | F110: 1.68 | G110: PEEOTF | H110: PREGST | I110: N/A | J110: Dec-16 | K110: EX | L110: 0
A111: 2016-12-31 | B111: 0-TR-MYR-800000 | C111: TRA | D111: MYR | E111: 800000 | F111: -30000 | G111: BCUCAP | H111: BCUCAP | I111: N/A | J111: Dec-16 | K111: CAP | L111: CSH
A112: 2016-12-31 | B112: 0-VL-MYR-100010 | C112: VALUE | D112: MYR | E112: 100010 | F112: 909502485.7 | G112: BIQEQT | H112: BIACLS | I112: N/A | J112: Dec-16 | K112: BS | L112: EQT
A113: 2016-12-31 | B113: 0-VL-MYR-189010 | C113: VALUE | D113: MYR | E113: 189010 | F113: -48661305.69 | G113: BIQEQT | H113: BIAULS | I113: N/A | J113: Dec-16 | K113: BS | L113: EQT
A114: 2016-12-31 | B114: 0-VL-MYR-200200 | C114: VALUE | D114: MYR | E114: 200200 | F114: 10323061.68 | G114: BAAFBR | H114: BOABRL | I114: N/A | J114: Dec-16 | K114: CSH | L114: 0
A115: 2016-12-31 | B115: 0-VL-MYR-300200 | C115: VALUE | D115: MYR | E115: 300200 | F115: -9959270.8 | G115: BLATBR | H115: BLBRLO | I115: N/A | J115: Dec-16 | K115: CSH | L115: 0
A116: 2016-12-31 | B116: 0-VL-MYR-600010 | C116: VALUE | D116: MYR | E116: 600010 | F116: -21183530.91 | G116: PRRGNL | H116: PRGNLO | I116: N/A | J116: Dec-16 | K116: RG | L116: EQT
A117: 2016-12-31 | B117: 0-VL-MYR-635010 | C117: VALUE | D117: MYR | E117: 635010 | F117: -36134379.79 | G117: PRDIVI | H117: PRDVTA | I117: T.Inc | J117: Dec-16 | K117: DI | L117: EQT
A118: 2016-12-31 | B118: 0-VL-MYR-689010 | C118: VALUE | D118: MYR | E118: 689010 | F118: 48661305.69 | G118: PUUQGL | H118: PUGINV | I118: N/A | J118: Dec-16 | K118: CG | L118: EQT
A119: 2016-12-31 | B119: 0-VL-MYR-800000 | C119: VALUE | D119: MYR | E119: 800000 | F119: -852474263 | G119: BCUCAP | H119: BCUCAP | I119: N/A | J119: Dec-16 | K119: CAP | L119: CSH
A120: 2016-12-31 | B120: 0-VL-MYR-810000 | C120: VALUE | D120: MYR | E120: 810000 | F120: 35737.54 | G120: BCURPF | H120: BSURPF | I120: N/A | J120: Dec-16 | K120: CAP | L120: CSH
A121: 2016-12-31 | B121: 0-VL-MYR-830000 | C121: VALUE | D121: MYR | E121: 830000 | F121: -74102.84 | G121: PRDSEQ | H121: BSRRPF | I121: T.Equal | J121: Dec-16 | K121: CAP | L121: CSH
A122: 2016-12-31 | B122: 0-VL-MYR-989010 | C122: VALUE | D122: MYR | E122: 989010 | F122: -35737.54 | G122: PUUQGL | H122: PUGINV | I122: N/A | J122: Dec-16 | K122: CAP | L122: EQT
A123: 2017-01-31 | B123: 0-CH-MYR-100210 | C123: CASH | D123: MYR | E123: 100210 | F123: 1215234575 | G123: BIRPFD | H123: BIACDP | I123: N/A | J123: Jan-17 | K123: BS | L123: CSH
A124: 2017-01-31 | B124: 0-CH-MYR-139210 | C124: CASH | D124: MYR | E124: 139210 | F124: 5230359.38 | G124: BAINTR | H124: BOAIND | I124: N/A | J124: Jan-17 | K124: BS | L124: CSH
A125: 2017-01-31 | B125: 0-CH-MYR-500000 | C125: CASH | D125: MYR | E125: 500000 | F125: 950.32 | G125: BABANK | H125: BOABNK | I125: N/A | J125: Jan-17 | K125: CSH | L125: CSH
A126: 2017-01-31 | B126: 0-CH-MYR-630210 | C126: CASH | D126: MYR | E126: 630210 | F126: -2828239.61 | G126: PRINTI | H126: PRINMM | I126: T.MMInc | J126: Jan-17 | K126: INC | L126: CSH
A127: 2017-01-31 | B127: 0-CH-MYR-636003 | C127: CASH | D127: MYR | E127: 636003 | F127: -1544698.44 | G127: PROTHI | H127: PRINOT | I127: N/A | J127: Jan-17 | K127: DI | L127: 0
A128: 2017-01-31 | B128: 0-CH-MYR-639210 | C128: CASH | D128: MYR | E128: 639210 | F128: -5230359.38 | G128: PRINTI | H128: PRINMM | I128: T.MMInc | J128: Jan-17 | K128: INC | L128: CSH
A129: 2017-01-31 | B129: 0-CH-MYR-710102 | C129: CASH | D129: MYR | E129: 710102 | F129: 245 | G129: PEEOTF | H129: PREBKC | I129: N/A | J129: Jan-17 | K129: EX | L129: 0
A130: 2017-01-31 | B130: 0-CH-MYR-710876 | C130: CASH | D130: MYR | E130: 710876 | F130: 14.7 | G130: PEEOTF | H130: PREGST | I130: N/A | J130: Jan-17 | K130: EX | L130: 0
A131: 2017-01-31 | B131: 0-CH-MYR-800000 | C131: CASH | D131: MYR | E131: 800000 | F131: -1141147335 | G131: BCUCAP | H131: BCUCAP | I131: N/A | J131: Jan-17 | K131: CAP | L131: CSH
A132: 2017-01-31 | B132: 0-CH-MYR-830000 | C132: CASH | D132: MYR | E132: 830000 | F132: -73598276.26 | G132: PRDSEQ | H132: BSRRPF | I132: T.Equal | J132: Jan-17 | K132: CAP | L132: CSH
A133: 2017-01-31 | B133: 0-CH-MYR-939210 | C133: CASH | D133: MYR | E133: 939210 | F133: 3882763.86 | G133: PUUUGL | H133: PRINMM | I133: T.MMInc | J133: Jan-17 | K133: CAP | L133: CSH
A134: 2017-01-31 | B134: 0-CR-MYR-100010 | C134: CORE | D134: MYR | E134: 100010 | F134: 940430763.8 | G134: BIQEQT | H134: BIACLS | I134: N/A | J134: Jan-17 | K134: BS | L134: EQT
A135: 2017-01-31 | B135: 0-CR-MYR-189010 | C135: CORE | D135: MYR | E135: 189010 | F135: -61643398.8 | G135: BIQEQT | H135: BIAULS | I135: N/A | J135: Jan-17 | K135: BS | L135: EQT
A136: 2017-01-31 | B136: 0-CR-MYR-299010 | C136: CORE | D136: MYR | E136: 299010 | F136: 137250 | G136: BADIVR | H136: BOADVL | I136: N/A | J136: Jan-17 | K136: DR | L136: EQT
A137: 2017-01-31 | B137: 0-CR-MYR-635010 | C137: CORE | D137: MYR | E137: 635010 | F137: -137250 | G137: PRDIVI | H137: PRDVTA | I137: T.Inc | J137: Jan-17 | K137: DI | L137: EQT
A138: 2017-01-31 | B138: 0-CR-MYR-689010 | C138: CORE | D138: MYR | E138: 689010 | F138: 61643398.8 | G138: PUUQGL | H138: PUGINV | I138: N/A | J138: Jan-17 | K138: CG | L138: EQT
A139: 2017-01-31 | B139: 0-CR-MYR-800000 | C139: CORE | D139: MYR | E139: 800000 | F139: -896494720.4 | G139: BCUCAP | H139: BCUCAP | I139: N/A | J139: Jan-17 | K139: CAP | L139: CSH
A140: 2017-01-31 | B140: 0-CR-MYR-810000 | C140: CORE | D140: MYR | E140: 810000 | F140: 61243977.29 | G140: BCURPF | H140: BSURPF | I140: N/A | J140: Jan-17 | K140: CAP | L140: CSH
A141: 2017-01-31 | B141: 0-CR-MYR-830000 | C141: CORE | D141: MYR | E141: 830000 | F141: -43936043.4 | G141: PRDSEQ | H141: BSRRPF | I141: T.Equal | J141: Jan-17 | K141: CAP | L141: CSH
A142: 2017-01-31 | B142: 0-CR-MYR-989010 | C142: CORE | D142: MYR | E142: 989010 | F142: -61243977.29 | G142: PUUQGL | H142: PUGINV | I142: N/A | J142: Jan-17 | K142: CAP | L142: EQT
A143: 2017-01-31 | B143: 0-DS-MYR-100210 | C143: DSRA | D143: MYR | E143: 100210 | F143: 107185100 | G143: BIRPFD | H143: BIACDP | I143: N/A | J143: Jan-17 | K143: BS | L143: CSH
A144: 2017-01-31 | B144: 0-DS-MYR-139210 | C144: DSRA | D144: MYR | E144: 139210 | F144: 438952.47 | G144: BAINTR | H144: BOAIND | I144: N/A | J144: Jan-17 | K144: BS | L144: CSH
A145: 2017-01-31 | B145: 0-DS-MYR-500000 | C145: DSRA | D145: MYR | E145: 500000 | F145: 712.33 | G145: BABANK | H145: BOABNK | I145: N/A | J145: Jan-17 | K145: CSH | L145: CSH
A146: 2017-01-31 | B146: 0-DS-MYR-639210 | C146: DSRA | D146: MYR | E146: 639210 | F146: -438952.47 | G146: PRINTI | H146: PRINMM | I146: T.MMInc | J146: Jan-17 | K146: INC | L146: CSH
A147: 2017-01-31 | B147: 0-DS-MYR-800000 | C147: DSRA | D147: MYR | E147: 800000 | F147: -253354948.8 | G147: BCUCAP | H147: BCUCAP | I147: N/A | J147: Jan-17 | K147: CAP | L147: CSH
A148: 2017-01-31 | B148: 0-DS-MYR-830000 | C148: DSRA | D148: MYR | E148: 830000 | F148: 146094319.7 | G148: PRDSEQ | H148: BSRRPF | I148: T.Equal | J148: Jan-17 | K148: CAP | L148: CSH
A149: 2017-01-31 | B149: 0-DS-MYR-939210 | C149: DSRA | D149: MYR | E149: 939210 | F149: 74816.79 | G149: PUUUGL | H149: PRINMM | I149: T.MMInc | J149: Jan-17 | K149: CAP | L149: CSH
A150: 2017-01-31 | B150: 0-DV-MYR-100010 | C150: DIVIDEND | D150: MYR | E150: 100010 | F150: 835498380.3 | G150: BIQEQT | H150: BIACLS | I150: N/A | J150: Jan-17 | K150: BS | L150: EQT
A151: 2017-01-31 | B151: 0-DV-MYR-189010 | C151: DIVIDEND | D151: MYR | E151: 189010 | F151: -20804143.32 | G151: BIQEQT | H151: BIAULS | I151: N/A | J151: Jan-17 | K151: BS | L151: EQT
A152: 2017-01-31 | B152: 0-DV-MYR-200200 | C152: DIVIDEND | D152: MYR | E152: 200200 | F152: 87480.53 | G152: BAAFBR | H152: BOABRL | I152: N/A | J152: Jan-17 | K152: CSH | L152: 0
A153: 2017-01-31 | B153: 0-DV-MYR-299010 | C153: DIVIDEND | D153: MYR | E153: 299010 | F153: 27465 | G153: BADIVR | H153: BOADVL | I153: N/A | J153: Jan-17 | K153: DR | L153: EQT
A154: 2017-01-31 | B154: 0-DV-MYR-300200 | C154: DIVIDEND | D154: MYR | E154: 300200 | F154: -3655089.73 | G154: BLATBR | H154: BLBRLO | I154: N/A | J154: Jan-17 | K154: CSH | L154: 0
A155: 2017-01-31 | B155: 0-DV-MYR-600010 | C155: DIVIDEND | D155: MYR | E155: 600010 | F155: -40230.33 | G155: PRRGNL | H155: PRGNLO | I155: N/A | J155: Jan-17 | K155: RG | L155: EQT
A156: 2017-01-31 | B156: 0-DV-MYR-689010 | C156: DIVIDEND | D156: MYR | E156: 689010 | F156: 20804143.32 | G156: PUUQGL | H156: PUGINV | I156: N/A | J156: Jan-17 | K156: CG | L156: EQT
A157: 2017-01-31 | B157: 0-DV-MYR-800000 | C157: DIVIDEND | D157: MYR | E157: 800000 | F157: -813660882.3 | G157: BCUCAP | H157: BCUCAP | I157: N/A | J157: Jan-17 | K157: CAP | L157: CSH
A158: 2017-01-31 | B158: 0-DV-MYR-810000 | C158: DIVIDEND | D158: MYR | E158: 810000 | F158: 17235794.77 | G158: BCURPF | H158: BSURPF | I158: N/A | J158: Jan-17 | K158: CAP | L158: CSH
A159: 2017-01-31 | B159: 0-DV-MYR-830000 | C159: DIVIDEND | D159: MYR | E159: 830000 | F159: -18257123.52 | G159: PRDSEQ | H159: BSRRPF | I159: T.Equal | J159: Jan-17 | K159: CAP | L159: CSH
A160: 2017-01-31 | B160: 0-DV-MYR-989010 | C160: DIVIDEND | D160: MYR | E160: 989010 | F160: -17235794.77 | G160: PUUQGL | H160: PUGINV | I160: N/A | J160: Jan-17 | K160: CAP | L160: EQT
A161: 2017-01-31 | B161: 0-FD-MYR-100410 | C161: FUND | D161: MYR | E161: 100410 | F161: 15000000 | G161: BIUCIV | H161: BIACUT | I161: N/A | J161: Jan-17 | K161: BS | L161: 0
A162: 2017-01-31 | B162: 0-FD-MYR-189410 | C162: FUND | D162: MYR | E162: 189410 | F162: 1944000 | G162: N/A | H162: BIAUUT | I162: N/A | J162: Jan-17 | K162: BS | L162: 0
A163: 2017-01-31 | B163: 0-FD-MYR-600430 | C163: FUND | D163: MYR | E163: 600430 | F163: -101329.1 | G163: PRRGNL | H163: PRGNLO | I163: N/A | J163: Jan-17 | K163: RG | L163: 0
A164: 2017-01-31 | B164: 0-FD-MYR-689410 | C164: FUND | D164: MYR | E164: 689410 | F164: -1944000 | G164: PUUUGL | H164: PUGINV | I164: N/A | J164: Jan-17 | K164: CG | L164: 0
A165: 2017-01-31 | B165: 0-FD-MYR-800000 | C165: FUND | D165: MYR | E165: 800000 | F165: -13229607.08 | G165: BCUCAP | H165: BCUCAP | I165: N/A | J165: Jan-17 | K165: CAP | L165: CSH
A166: 2017-01-31 | B166: 0-FD-MYR-810000 | C166: FUND | D166: MYR | E166: 810000 | F166: -1597398.98 | G166: BCURPF | H166: BSURPF | I166: N/A | J166: Jan-17 | K166: CAP | L166: CSH
A167: 2017-01-31 | B167: 0-FD-MYR-830000 | C167: FUND | D167: MYR | E167: 830000 | F167: -1669063.82 | G167: PRDSEQ | H167: BSRRPF | I167: T.Equal | J167: Jan-17 | K167: CAP | L167: CSH
A168: 2017-01-31 | B168: 0-FD-MYR-989410 | C168: FUND | D168: MYR | E168: 989410 | F168: 1465500 | G168: PUUUGL | H168: PUGINV | I168: N/A | J168: Jan-17 | K168: CAP | L168: 0
A169: 2017-01-31 | B169: 0-FD-MYR-989430 | C169: FUND | D169: MYR | E169: 989430 | F169: 131898.98 | G169: PUUUGL | H169: PUGINV | I169: N/A | J169: Jan-17 | K169: CAP | L169: 0
A170: 2017-01-31 | B170: 0-GW-MYR-100010 | C170: GROWTH | D170: MYR | E170: 100010 | F170: 277975851.3 | G170: BIQEQT | H170: BIACLS | I170: N/A | J170: Jan-17 | K170: BS | L170: EQT
A171: 2017-01-31 | B171: 0-GW-MYR-189010 | C171: GROWTH | D171: MYR | E171: 189010 | F171: -17622529.27 | G171: BIQEQT | H171: BIAULS | I171: N/A | J171: Jan-17 | K171: BS | L171: EQT
A172: 2017-01-31 | B172: 0-GW-MYR-200200 | C172: GROWTH | D172: MYR | E172: 200200 | F172: 253795.73 | G172: BAAFBR | H172: BOABRL | I172: N/A | J172: Jan-17 | K172: CSH | L172: 0
A173: 2017-01-31 | B173: 0-GW-MYR-300200 | C173: GROWTH | D173: MYR | E173: 300200 | F173: -11567267.04 | G173: BLATBR | H173: BLBRLO | I173: N/A | J173: Jan-17 | K173: CSH | L173: 0
A174: 2017-01-31 | B174: 0-GW-MYR-600010 | C174: GROWTH | D174: MYR | E174: 600010 | F174: -3457228.29 | G174: PRRGNL | H174: PRGNLO | I174: N/A | J174: Jan-17 | K174: RG | L174: EQT
A175: 2017-01-31 | B175: 0-GW-MYR-689010 | C175: GROWTH | D175: MYR | E175: 689010 | F175: 17622529.27 | G175: PUUQGL | H175: PUGINV | I175: N/A | J175: Jan-17 | K175: CG | L175: EQT
A176: 2017-01-31 | B176: 0-GW-MYR-800000 | C176: GROWTH | D176: MYR | E176: 800000 | F176: -254438620.5 | G176: BCUCAP | H176: BCUCAP | I176: N/A | J176: Jan-17 | K176: CAP | L176: CSH
A177: 2017-01-31 | B177: 0-GW-MYR-810000 | C177: GROWTH | D177: MYR | E177: 810000 | F177: 24247435.35 | G177: BCURPF | H177: BSURPF | I177: N/A | J177: Jan-17 | K177: CAP | L177: CSH
A178: 2017-01-31 | B178: 0-GW-MYR-830000 | C178: GROWTH | D178: MYR | E178: 830000 | F178: -8766531.19 | G178: PRDSEQ | H178: BSRRPF | I178: T.Equal | J178: Jan-17 | K178: CAP | L178: CSH
A179: 2017-01-31 | B179: 0-GW-MYR-989010 | C179: GROWTH | D179: MYR | E179: 989010 | F179: -24247435.35 | G179: PUUQGL | H179: PUGINV | I179: N/A | J179: Jan-17 | K179: CAP | L179: EQT
A180: 2017-01-31 | B180: 0-ID-MYR-100010 | C180: INDEX | D180: MYR | E180: 100010 | F180: 118160302.6 | G180: BIQEQT | H180: BIACLS | I180: N/A | J180: Jan-17 | K180: BS | L180: EQT
A181: 2017-01-31 | B181: 0-ID-MYR-189010 | C181: INDEX | D181: MYR | E181: 189010 | F181: 501924.93 | G181: BIQEQT | H181: BIAULS | I181: N/A | J181: Jan-17 | K181: BS | L181: EQT
A182: 2017-01-31 | B182: 0-ID-MYR-689010 | C182: INDEX | D182: MYR | E182: 689010 | F182: -501924.93 | G182: PUUQGL | H182: PUGINV | I182: N/A | J182: Jan-17 | K182: CG | L182: EQT
A183: 2017-01-31 | B183: 0-ID-MYR-800000 | C183: INDEX | D183: MYR | E183: 800000 | F183: -117928590.1 | G183: BCUCAP | H183: BCUCAP | I183: N/A | J183: Jan-17 | K183: CAP | L183: CSH
A184: 2017-01-31 | B184: 0-ID-MYR-810000 | C184: INDEX | D184: MYR | E184: 810000 | F184: -188386.53 | G184: BCURPF | H184: BSURPF | I184: N/A | J184: Jan-17 | K184: CAP | L184: CSH
A185: 2017-01-31 | B185: 0-ID-MYR-830000 | C185: INDEX | D185: MYR | E185: 830000 | F185: -231712.44 | G185: PRDSEQ | H185: BSRRPF | I185: T.Equal | J185: Jan-17 | K185: CAP | L185: CSH
A186: 2017-01-31 | B186: 0-ID-MYR-989010 | C186: INDEX | D186: MYR | E186: 989010 | F186: 188386.53 | G186: PUUQGL | H186: PUGINV | I186: N/A | J186: Jan-17 | K186: CAP | L186: EQT
A187: 2017-01-31 | B187: 0-OP-MYR-500000 | C187: OPR | D187: MYR | E187: 500000 | F187: 4551.76 | G187: BABANK | H187: BOABNK | I187: N/A | J187: Jan-17 | K187: CSH | L187: CSH
A188: 2017-01-31 | B188: 0-OP-MYR-636003 | C188: OPR | D188: MYR | E188: 636003 | F188: -1242.78 | G188: PROTHI | H188: PRINOT | I188: N/A | J188: Jan-17 | K188: DI | L188: 0
A189: 2017-01-31 | B189: 0-OP-MYR-710102 | C189: OPR | D189: MYR | E189: 710102 | F189: 897.62 | G189: PEEOTF | H189: PREBKC | I189: N/A | J189: Jan-17 | K189: EX | L189: 0
A190: 2017-01-31 | B190: 0-OP-MYR-710104 | C190: OPR | D190: MYR | E190: 710104 | F190: 4089083.2 | G190: PEEOTF | H190: PREGEN | I190: N/A | J190: Jan-17 | K190: EX | L190: 0
A191: 2017-01-31 | B191: 0-OP-MYR-710876 | C191: OPR | D191: MYR | E191: 710876 | F191: 10.32 | G191: PEEOTF | H191: PREGST | I191: N/A | J191: Jan-17 | K191: EX | L191: 0
A192: 2017-01-31 | B192: 0-OP-MYR-800000 | C192: OPR | D192: MYR | E192: 800000 | F192: -34257432.29 | G192: BCUCAP | H192: BCUCAP | I192: N/A | J192: Jan-17 | K192: CAP | L192: CSH
A193: 2017-01-31 | B193: 0-OP-MYR-830000 | C193: OPR | D193: MYR | E193: 830000 | F193: 30164132.17 | G193: PRDSEQ | H193: BSRRPF | I193: T.Equal | J193: Jan-17 | K193: CAP | L193: CSH
A194: 2017-01-31 | B194: 0-RT-MYR-100460 | C194: REITS | D194: MYR | E194: 100460 | F194: 753222068.1 | G194: BIQCIV | H194: BIACUT | I194: N/A | J194: Jan-17 | K194: BS | L194: EQT
A195: 2017-01-31 | B195: 0-RT-MYR-189460 | C195: REITS | D195: MYR | E195: 189460 | F195: 25111433.9 | G195: BIQCIV | H195: BIAUUT | I195: N/A | J195: Jan-17 | K195: BS | L195: EQT
A196: 2017-01-31 | B196: 0-RT-MYR-200200 | C196: REITS | D196: MYR | E196: 200200 | F196: 804551.86 | G196: BAAFBR | H196: BOABRL | I196: N/A | J196: Jan-17 | K196: CSH | L196: 0
A197: 2017-01-31 | B197: 0-RT-MYR-300200 | C197: REITS | D197: MYR | E197: 300200 | F197: -87196719.45 | G197: BLATBR | H197: BLBRLO | I197: N/A | J197: Jan-17 | K197: CSH | L197: 0
A198: 2017-01-31 | B198: 0-RT-MYR-500000 | C198: REITS | D198: MYR | E198: 500000 | F198: 0 | G198: BABANK | H198: BOABNK | I198: N/A | J198: Jan-17 | K198: CSH | L198: CSH
A199: 2017-01-31 | B199: 0-RT-MYR-600460 | C199: REITS | D199: MYR | E199: 600460 | F199: -50097.79 | G199: PRRGNL | H199: PRGNLO | I199: N/A | J199: Jan-17 | K199: RG | L199: EQT
A200: 2017-01-31 | B200: 0-RT-MYR-689460 | C200: REITS | D200: MYR | E200: 689460 | F200: -25111433.9 | G200: PUUQGL | H200: PUGINV | I200: N/A | J200: Jan-17 | K200: CG | L200: EQT
... 1123 more rows

Sheet InSBLTran (hidden)
A2: PayDate | B2: qFundCode | C2: TranPreAcq | D2: TranExpenses | J2: AllSBLFee | K2: MTDSBLFee
A3: 9 | B3: DIVIDEND | C3: -3283.19 | D3: 0 | J3: 12541.726 | K3: 4603.73
A4: 10 | B4: DIVIDEND | C4: -4612.43 | D4: 0 | I4: YTDSBLFee | J4: 12541.726
A5: 8 | B5: REITS | C5: -8.1 | D5: 1.62

Sheet InPosTemp (hidden)
U1: =IF(OR( B1="Fund", D1="INDEX"),1,2) -> 2 | V1: =IFERROR(SUMIFS(Dividend!F:F,Dividend!E:E,H1)/N1*100,0) -> 0 | W1: =IFERROR(L1/K1-1,0) -> 0 | X1: =IF(OR(E1="FUND",E1="INDEX"),1,0) -> 0 | Y1: =IF(OR(C1="CSH",D1="CPR"),"Cash",IF(E1="FUND","Fund",IF(E1="INDEX","ETF","Common Stocks"))) -> Common Stocks | Z1: =IFERROR(VLOOKUP(H1,Sector!$A:$C,3,FALSE),"") ->  | AA1: =IFERROR(IF(VLOOKUP(H1,Universe!$F:$G,2,FALSE)=0,"",OFFSET(Universe!$H$1,MATCH(H1,Universe!$F:$F,0)-1,0)),"") ->  | AB1: =IF(AA1="","",IF(AA1>=96,1,IF(AA1>=76,2,IF(AA1>=26,3,IF(AA1>=6,4,5))))) ->  | AC1: =IFERROR(IF(VLOOKUP(H1,Universe!$F:$J,4,FALSE)=0,"",OFFSET(Universe!$J$1,MATCH(H1,Universe!$F:$F,0)-1,0)),"") ->  | AD1: =IF(AC1="","",IF(AC1>=96,1,IF(AC1>=76,2,IF(AC1>=26,3,IF(AC1>=6,4,5))))) ->  | AE1: =IFERROR(VLOOKUP(F1,StockClass[#All],2,FALSE),F1) -> 0
A2: HistoryDate | B2: FundTypeDesc | C2: qProductType | D2: qAssetClass | E2: qFundCode | F2: StockName | G2: Description | H2: qStockCode | I2: qMasterID | J2: UnitFaceValue | K2: CostFC | L2: MarketValueFC | M2: qKLSESector | N2: PriceCurr | O2: UnrealisedGainsStock | P2: AccruedInterest | Q2: LastMarketValue | R2: IssuedSize | S2: AssetClassDesc | T2: SecCount | U2: FloatingShare | V2: DIVIDEND_12_MONTH_YIELD | W2: DISCOUNT/PREMIUM | X2: CheckFundIndex | Y2: FundTypeDesc2 | Z2: SectorName | AA2: ESGGMI | AB2: ESGNum | AC2: ESGVC | AD2: ESGVNum | AE2: qFundCode2
A3: 2017-10-11 | B3: Cash | C3: CSH | D3: CSH | E3: Deposit | F3: Deposit | J3: 0 | K3: 1290546795 | L3: 1290546795 | M3: 0 | N3: 0 | O3: 0 | P3: 11967091.71 | Q3: 0 | R3: 0 | S3: Cash | T3: 1 | U3: 2 | V3: 0 | W3: 0 | X3: 0 | Y3: Cash | AE3: Deposit
A4: 2017-10-11 | B4: Equity | C4: EQT | D4: EQT | E4: CORE | F4: BAT | G4: British American Tobacco (M) Berhad | H4: 4162 | I4: CORE*4162 | J4: 3506800 | K4: 185075229.5 | L4: 151143080 | M4: 7 | N4: 43.1 | O4: -33932149.48 | P4: 0 | Q4: 0 | R4: 285530000 | S4: Equity | T4: 1 | U4: 2 | V4: 6.102088167 | W4: -0.1833424688 | X4: 0 | Y4: Common Stocks | Z4: Consumer Goods | AA4: 85 | AB4: 2 | AE4: Core
A5: 2017-10-11 | B5: Equity | C5: EQT | D5: EQT | E5: CORE | F5: YTL | G5: YTL Corporation Berhad | H5: 4677 | I5: CORE*4677 | J5: 65000000 | K5: 114326482.7 | L5: 89700000 | M5: 8 | N5: 1.38 | O5: -24626482.69 | P5: 0 | Q5: 0 | R5: 10910559429 | S5: Equity | T5: 1 | U5: 2 | V5: 6.884057971 | W5: -0.2154048835 | X5: 0 | Y5: Common Stocks | Z5: Utilities | AA5: 12 | AB5: 4 | AE5: Dividend
A6: 2017-10-11 | B6: Equity | C6: EQT | D6: EQT | E6: GROWTH | F6: SIME | G6: Sime Darby Berhad | H6: 4197 | I6: GROWTH*4197 | J6: 60000000 | K6: 566544935.2 | L6: 545400000 | M6: 6 | N6: 9.09 | O6: -21144935.24 | P6: 0 | Q6: 0 | R6: 6800839377 | S6: Equity | T6: 1 | U6: 2 | V6: 0 | W6: -0.03732260925 | X6: 0 | Y6: Common Stocks | Z6: Industrials | AA6: 73 | AB6: 3 | AE6: Growth
A7: 2017-10-11 | B7: Equity | C7: EQT | D7: EQT | E7: DIVIDEND | F7: TM | G7: Telekom Malaysia Berhad | H7: 4863 | I7: DIVIDEND*4863 | J7: 52248700 | K7: 338493333.2 | L7: 321329505 | M7: 59 | N7: 6.15 | O7: -17163828.16 | P7: 0 | Q7: 0 | R7: 3757934823 | S7: Equity | T7: 1 | U7: 2 | V7: 3.495934959 | W7: -0.05070654716 | X7: 0 | Y7: Common Stocks | Z7: Telecommunications | AA7: 97 | AB7: 1 | AE7: Dividend
A8: 2017-10-11 | B8: Equity | C8: EQT | D8: CIS | E8: REITS | F8: CMMT | G8: CapitaMalls Malaysia Trust | H8: 5180 | I8: REITS*5180 | J8: 81511000 | K8: 133045923.1 | L8: 116560730 | M8: 10 | N8: 1.43 | O8: -16485193.08 | P8: 0 | Q8: 0 | R8: 2037752700 | S8: Collective Investment | T8: 1 | U8: 2 | V8: 5.895104895 | W8: -0.1239060371 | X8: 0 | Y8: Common Stocks | Z8: REIT | AA8: 78 | AB8: 2 | AE8: REITs
A9: 2017-10-11 | B9: Equity | C9: EQT | D9: EQT | E9: GROWTH | F9: SPSETIA | G9: S P Setia Berhad | H9: 8664 | I9: GROWTH*8664 | J9: 85756000 | K9: 310897602.1 | L9: 295000640 | M9: 4 | N9: 3.44 | O9: -15896962.12 | P9: 0 | Q9: 0 | R9: 3022240940 | S9: Equity | T9: 1 | U9: 2 | V9: 4.651162791 | W9: -0.05113246938 | X9: 0 | Y9: Common Stocks | Z9: Property | AA9: 96 | AB9: 1 | AE9: Growth
A10: 2017-10-11 | B10: Equity | C10: EQT | D10: EQT | E10: DIVIDEND | F10: MSM | G10: MSM Malaysia Holdings Bhd | H10: 5202 | I10: DIVIDEND*5202 | J10: 16699000 | K10: 81554384.45 | L10: 67129980 | M10: 6 | N10: 4.02 | O10: -14424404.45 | P10: 0 | Q10: 0 | R10: 702980000 | S10: Equity | T10: 1 | U10: 2 | V10: 3.482587065 | W10: -0.1768685344 | X10: 0 | Y10: Common Stocks | Z10: Plantation | AA10: 92 | AB10: 2 | AE10: Dividend
A11: 2017-10-11 | B11: Equity | C11: EQT | D11: EQT | E11: SMALLMIDCAP | F11: PHARMA | G11: Pharmaniaga Berhad | H11: 7081 | I11: SMALLMIDCAP*7081 | J11: 6345100 | K11: 38478963.92 | L11: 26268714 | M11: 55 | N11: 4.14 | O11: -12210249.92 | P11: 0 | Q11: 0 | R11: 259821032 | S11: Equity | T11: 1 | U11: 2 | V11: 3.8647343 | W11: -0.3173227311 | X11: 0 | Y11: Common Stocks | Z11: Health care | AA11: 57 | AB11: 3 | AE11: S/MC
A12: 2017-10-11 | B12: Equity | C12: EQT | D12: EQT | E12: CORE | F12: YTLPOWR | G12: YTL Power International Berhad | H12: 6742 | I12: CORE*6742 | J12: 54590100 | K12: 88545270.17 | L12: 76972041 | M12: 20 | N12: 1.41 | O12: -11573229.17 | P12: 0 | Q12: 0 | R12: 8155969172 | S12: Equity | T12: 1 | U12: 2 | V12: 7.092198582 | W12: -0.1307040924 | X12: 0 | Y12: Common Stocks | Z12: Utilities | AA12: 1 | AB12: 5 | AE12: Dividend
A13: 2017-10-11 | B13: Equity | C13: EQT | D13: EQT | E13: SMALLMIDCAP | F13: MEDIA | G13: Media Prima Berhad | H13: 4502 | I13: SMALLMIDCAP*4502 | J13: 18625300 | K13: 23942020.56 | L13: 16017758 | M13: 56 | N13: 0.86 | O13: -7924262.56 | P13: 0 | Q13: 0 | R13: 1109199286 | S13: Equity | T13: 1 | U13: 2 | V13: 9.302325581 | W13: -0.3309771847 | X13: 0 | Y13: Common Stocks | Z13: Consumer Services | AA13: 86 | AB13: 2 | AE13: S/MC
A14: 2017-10-11 | B14: Equity | C14: EQT | D14: EQT | E14: VALUE | F14: IOICORP | G14: IOI Corporation Berhad | H14: 1961 | I14: VALUE*1961 | J14: 25134600 | K14: 120037457.5 | L14: 113357046 | M14: 6 | N14: 4.51 | O14: -6680411.52 | P14: 0 | Q14: 0 | R14: 6283859995 | S14: Equity | T14: 1 | U14: 2 | V14: 1.99556541 | W14: -0.05565272422 | X14: 0 | Y14: Common Stocks | Z14: Plantation | AA14: 23 | AB14: 4 | AE14: Value
A15: 2017-10-11 | B15: Equity | C15: EQT | D15: EQT | E15: DIVIDEND | F15: MALAKOF | G15: MALAKOFF CORPORATION BERHAD | H15: 5264 | I15: DIVIDEND*5264 | J15: 10500000 | K15: 16881259.14 | L15: 10815000 | M15: 20 | N15: 1.03 | O15: -6066259.14 | P15: 0 | Q15: 0 | R15: 5000000000 | S15: Equity | T15: 1 | U15: 2 | V15: 6.796116505 | W15: -0.3593487364 | X15: 0 | Y15: Common Stocks | Z15: Utilities | AE15: Dividend
A16: 2017-10-11 | B16: Equity | C16: EQT | D16: EQT | E16: VALUE | F16: MAYBANK | G16: Malayan Banking Berhad | H16: 1155 | I16: VALUE*1155 | J16: 56436300 | K16: 544817554.9 | L16: 538966665 | M16: 53 | N16: 9.55 | O16: -5850889.92 | P16: 0 | Q16: 0 | R16: 10596803526 | S16: Equity | T16: 1 | U16: 2 | V16: 5.445026178 | W16: -0.0107391729 | X16: 0 | Y16: Common Stocks | Z16: Financials | AA16: 93 | AB16: 2 | AE16: Core
A17: 2017-10-11 | B17: Equity | C17: EQT | D17: EQT | E17: GROWTH | F17: CMSB | G17: Cahya Mata Sarawak Bhd | H17: 2852 | I17: GROWTH*2852 | J17: 9064500 | K17: 40788796.49 | L17: 35170260 | M17: 8 | N17: 3.88 | O17: -5618536.49 | P17: 0 | Q17: 0 | R17: 1074375720 | S17: Equity | T17: 1 | U17: 2 | V17: 1.62371134 | W17: -0.1377470525 | X17: 0 | Y17: Common Stocks | Z17: Industrials | AA17: 45 | AB17: 3 | AE17: Growth
A18: 2017-10-11 | B18: Equity | C18: EQT | D18: EQT | E18: SMALLMIDCAP | F18: SPB | G18: Selangor Properties Berhad | H18: 1783 | I18: SMALLMIDCAP*1783 | J18: 7097900 | K18: 38944044.79 | L18: 33856983 | M18: 4 | N18: 4.77 | O18: -5087061.79 | P18: 0 | Q18: 0 | R18: 343616761 | S18: Equity | T18: 1 | U18: 2 | V18: 4.192872117 | W18: -0.1306248957 | X18: 0 | Y18: Common Stocks | Z18: Property | AA18: 28 | AB18: 3 | AE18: S/MC
A19: 2017-10-11 | B19: Equity | C19: EQT | D19: EQT | E19: DIVIDEND | F19: STAR | G19: Star Publications (Malaysia) Berhad | H19: 6084 | I19: DIVIDEND*6084 | J19: 6343100 | K19: 15538541.31 | L19: 10783270 | M19: 56 | N19: 1.7 | O19: -4755271.31 | P19: 0 | Q19: 0 | R19: 738563602 | S19: Equity | T19: 1 | U19: 2 | V19: 10.58823529 | W19: -0.3060307409 | X19: 0 | Y19: Common Stocks | Z19: Consumer Services | AA19: 76 | AB19: 2 | AE19: S/MC
A20: 2017-10-11 | B20: Equity | C20: EQT | D20: EQT | E20: SMALLMIDCAP | F20: NAIM | G20: Naim Holdings Bhd | H20: 5073 | I20: SMALLMIDCAP*5073 | J20: 5956600 | K20: 11958675.25 | L20: 7267052 | M20: 4 | N20: 1.22 | O20: -4691623.25 | P20: 0 | Q20: 0 | R20: 250000000 | S20: Equity | T20: 1 | U20: 2 | V20: 0 | W20: -0.3923196468 | X20: 0 | Y20: Common Stocks | Z20: Industrials | AA20: 78 | AB20: 2 | AE20: S/MC
A21: 2017-10-11 | B21: Equity | C21: EQT | D21: CIS | E21: REITS | F21: HEKTAR | G21: HEKTAR REITS | H21: 5121 | I21: REITS*5121 | J21: 13041300 | K21: 21326609.56 | L21: 16692864 | M21: 10 | N21: 1.28 | O21: -4633745.56 | P21: 0 | Q21: 0 | R21: 461960178 | S21: Collective Investment | T21: 1 | U21: 2 | V21: 7.96875 | W21: -0.2172753033 | X21: 0 | Y21: Common Stocks | Z21: REIT | AE21: REITs
A22: 2017-10-11 | B22: Equity | C22: EQT | D22: EQT | E22: GROWTH | F22: PCHEM | G22: PETRONAS CHEMICALS GROUP BHD | H22: 5183 | I22: GROWTH*5183 | J22: 35861900 | K22: 267121229.8 | L22: 262509108 | M22: 57 | N22: 7.32 | O22: -4612121.85 | P22: 0 | Q22: 0 | R22: 8000000000 | S22: Equity | T22: 1 | U22: 2 | V22: 2.595628415 | W22: -0.01726602507 | X22: 0 | Y22: Common Stocks | Z22: Basic Materials | AA22: 42 | AB22: 3 | AE22: Growth
A23: 2017-10-11 | B23: Equity | C23: EQT | D23: EQT | E23: VALUE | F23: IJM | G23: IJM Corporation Bhd | H23: 3336 | I23: VALUE*3336 | J23: 18233500 | K23: 63492160.16 | L23: 59805880 | M23: 8 | N23: 3.28 | O23: -3686280.16 | P23: 0 | Q23: 0 | R23: 3628124520 | S23: Equity | T23: 1 | U23: 2 | V23: 2.286585366 | W23: -0.05805882412 | X23: 0 | Y23: Common Stocks | Z23: Industrials | AA23: 33 | AB23: 3 | AE23: Value
A24: 2017-10-11 | B24: Equity | C24: EQT | D24: EQT | E24: DIVIDEND | F24: DIGI | G24: Digi.com Berhad | H24: 6947 | I24: DIVIDEND*6947 | J24: 27632800 | K24: 137984958.8 | L24: 134848064 | M24: 59 | N24: 4.88 | O24: -3136894.84 | P24: 0 | Q24: 0 | R24: 7775000000 | S24: Equity | T24: 1 | U24: 2 | V24: 4.200819672 | W24: -0.02273359985 | X24: 0 | Y24: Common Stocks | Z24: Telecommunications | AA24: 67 | AB24: 3 | AE24: Dividend
A25: 2017-10-11 | B25: Equity | C25: EQT | D25: CIS | E25: REITS | F25: PAVREIT | G25: Pavilion Real Estate Investment Trust | H25: 5212 | I25: REITS*5212 | J25: 39091700 | K25: 70336273.36 | L25: 67237724 | M25: 10 | N25: 1.72 | O25: -3098549.36 | P25: 0 | Q25: 0 | R25: 3030093605 | S25: Collective Investment | T25: 1 | U25: 2 | V25: 4.790697674 | W25: -0.04405336268 | X25: 0 | Y25: Common Stocks | Z25: REIT | AA25: 45 | AB25: 3 | AE25: REITs
A26: 2017-10-11 | B26: Equity | C26: EQT | D26: EQT | E26: GROWTH | F26: AXIATA | G26: Axiata Group Berhad | H26: 6888 | I26: GROWTH*6888 | J26: 19828500 | K26: 107816044.3 | L26: 104892765 | M26: 59 | N26: 5.29 | O26: -2923279.27 | P26: 0 | Q26: 0 | R26: 8998371664 | S26: Equity | T26: 1 | U26: 2 | V26: 1.512287335 | W26: -0.02711358305 | X26: 0 | Y26: Common Stocks | Z26: Telecommunications | AA26: 71 | AB26: 3 | AE26: Growth
A27: 2017-10-11 | B27: Equity | C27: EQT | D27: CIS | E27: REITS | F27: IGBREIT | G27: IGB Real Estate Investment Trust | H27: 5227 | I27: REITS*5227 | J27: 87911300 | K27: 151707095.7 | L27: 149449210 | M27: 10 | N27: 1.7 | O27: -2257885.73 | P27: 0 | Q27: 0 | R27: 3508220922 | S27: Collective Investment | T27: 1 | U27: 2 | V27: 5.123529412 | W27: -0.01488319132 | X27: 0 | Y27: Common Stocks | Z27: REIT | AA27: 84 | AB27: 2 | AE27: REITs
A28: 2017-10-11 | B28: Equity | C28: EQT | D28: EQT | E28: REITS | F28: AMFIRST | G28: AMFIRST Reits | H28: 5120 | I28: REITS*5120 | J28: 21801100 | K28: 17670643.74 | L28: 15478781 | M28: 10 | N28: 0.71 | O28: -2191862.74 | P28: 0 | Q28: 0 | R28: 686401600 | S28: Equity | T28: 1 | U28: 2 | V28: 5.718309859 | W28: -0.1240397788 | X28: 0 | Y28: Common Stocks | Z28: REIT | AE28: REITs
A29: 2017-10-11 | B29: Equity | C29: EQT | D29: CIS | E29: REITS | F29: ALAQAR | G29: AL-AQAR HEALTHCARE REIT | H29: 5116 | I29: REITS*5116 | J29: 13427100 | K29: 21158969.23 | L29: 19200753 | M29: 10 | N29: 1.43 | O29: -1958216.23 | P29: 0 | Q29: 0 | R29: 728226468 | S29: Collective Investment | T29: 1 | U29: 2 | V29: 5.384615385 | W29: -0.09254780839 | X29: 0 | Y29: Common Stocks | Z29: REIT | AE29: REITs
A30: 2017-10-11 | B30: Equity | C30: EQT | D30: EQT | E30: DIVIDEND | F30: MAHSING | G30: Mah Sing Group Berhad | H30: 8583 | I30: DIVIDEND*8583 | J30: 26109800 | K30: 41268928 | L30: 39425798 | M30: 4 | N30: 1.51 | O30: -1843130 | P30: 0 | Q30: 0 | R30: 2417799694 | S30: Equity | T30: 1 | U30: 2 | V30: 4.304635762 | W30: -0.04466144602 | X30: 0 | Y30: Common Stocks | Z30: Property | AA30: 61 | AB30: 3 | AE30: Dividend
A31: 2017-10-11 | B31: Equity | C31: EQT | D31: EQT | E31: REITS | F31: UOAREIT | G31: UOA Reits | H31: 5110 | I31: REITS*5110 | J31: 12501100 | K31: 22143791.56 | L31: 20376793 | M31: 10 | N31: 1.63 | O31: -1766998.56 | P31: 0 | Q31: 0 | R31: 422871776 | S31: Equity | T31: 1 | U31: 2 | V31: 6.429447853 | W31: -0.07979656759 | X31: 0 | Y31: Common Stocks | Z31: REIT | AE31: REITs
A32: 2017-10-11 | B32: Equity | C32: EQT | D32: EQT | E32: SMALLMIDCAP | F32: MITRA | G32: MITRAJAYA HOLDINGS BERHAD | H32: 9571 | I32: SMALLMIDCAP*9571 | J32: 5042600 | K32: 6707506.66 | L32: 5294730 | M32: 8 | N32: 1.05 | O32: -1412776.66 | P32: 0 | Q32: 0 | R32: 689481413 | S32: Equity | T32: 1 | U32: 2 | V32: 4.761904762 | W32: -0.2106262031 | X32: 0 | Y32: Common Stocks | Z32: Industrials | AE32: S/MC
A33: 2017-10-11 | B33: Equity | C33: EQT | D33: EQT | E33: DIVIDEND | F33: PPB | G33: PPB Group Berhad | H33: 4065 | I33: DIVIDEND*4065 | J33: 4541700 | K33: 77432105.64 | L33: 76209726 | M33: 6 | N33: 16.78 | O33: -1222379.64 | P33: 0 | Q33: 0 | R33: 1185499882 | S33: Equity | T33: 1 | U33: 2 | V33: 1.013110846 | W33: -0.01578647035 | X33: 0 | Y33: Common Stocks | Z33: Plantation | AA33: 38 | AB33: 3 | AE33: Dividend
A34: 2017-10-11 | B34: Equity | C34: EQT | D34: EQT | E34: GROWTH | F34: CIMB | G34: CIMB Group Holdings Bhd | H34: 1023 | I34: GROWTH*1023 | J34: 25000000 | K34: 158321479.2 | L34: 157250000 | M34: 53 | N34: 6.29 | O34: -1071479.22 | P34: 0 | Q34: 0 | R34: 9052110498 | S34: Equity | T34: 1 | U34: 2 | V34: 3.179650238 | W34: -0.006767743867 | X34: 0 | Y34: Common Stocks | Z34: Financials | AA34: 93 | AB34: 2 | AE34: Growth
A35: 2017-10-11 | B35: Equity | C35: EQT | D35: CIS | E35: INDEX | F35: MYETFSID | G35: MYETF MSCI SEA ISLAMIC DIVIDEND | H35: 0825EA | I35: INDEX*0825EA | J35: 44503300 | K35: 41555504.37 | L35: 40498003 | M35: 4 | N35: 0.91 | O35: -1057501.37 | P35: 0 | Q35: 0 | R35: 53000000 | S35: Collective Investment | T35: 1 | U35: 2 | V35: 2.571428571 | W35: -0.02544792528 | X35: 1 | Y35: ETF | Z35: ETF | AE35: ETF
A36: 2017-10-11 | B36: Equity | C36: EQT | D36: CIS | E36: REITS | F36: KLCC | G36: KLCC Property Holdings Berhad | H36: 5235SS | I36: REITS*5235SS | J36: 32902600 | K36: 257380975.5 | L36: 256640280 | M36: 10 | N36: 7.8 | O36: -740695.53 | P36: 0 | Q36: 0 | R36: 1805333083 | S36: Collective Investment | T36: 1 | U36: 2 | V36: 4.570512821 | W36: -0.002877817712 | X36: 0 | Y36: Common Stocks | Z36: REIT | AA36: 90 | AB36: 2 | AE36: REITs
A37: 2017-10-11 | B37: Equity | C37: EQT | D37: EQT | E37: VALUE | F37: PETGAS | G37: Petronas Gas Berhad | H37: 6033 | I37: VALUE*6033 | J37: 2052700 | K37: 38369277.81 | L37: 37974950 | M37: 57 | N37: 18.5 | O37: -394327.81 | P37: 0 | Q37: 0 | R37: 1978731915 | S37: Equity | T37: 1 | U37: 2 | V37: 1.567567568 | W37: -0.01027717571 | X37: 0 | Y37: Common Stocks | Z37: Oil & Gas | AA37: 77 | AB37: 2 | AE37: Value
A38: 2017-10-11 | B38: Equity | C38: EQT | D38: EQT | E38: SMALLMIDCAP | F38: FAVCO | G38: Favelle Favco Berhad | H38: 7229 | I38: SMALLMIDCAP*7229 | J38: 3967600 | K38: 11364256.87 | L38: 11029928 | M38: 57 | N38: 2.78 | O38: -334328.87 | P38: 0 | Q38: 0 | R38: 221402763 | S38: Equity | T38: 1 | U38: 2 | V38: 5.395683453 | W38: -0.02941933413 | X38: 0 | Y38: Common Stocks | Z38: Industrials | AA38: 75 | AB38: 3 | AE38: S/MC
A39: 2017-10-11 | B39: Equity | C39: EQT | D39: EQT | E39: DIVIDEND | F39: GASMSIA | G39: Gas Malaysia Bhd | H39: 5209 | I39: DIVIDEND*5209 | J39: 4395400 | K39: 13013812.46 | L39: 12746660 | M39: 57 | N39: 2.9 | O39: -267152.46 | P39: 0 | Q39: 0 | R39: 1284000000 | S39: Equity | T39: 1 | U39: 2 | V39: 3.055172414 | W39: -0.02052837789 | X39: 0 | Y39: Common Stocks | Z39: Oil & Gas | AA39: 68 | AB39: 3 | AE39: Dividend
A40: 2017-10-11 | B40: Equity | C40: EQT | D40: EQT | E40: VALUE | F40: TAKAFUL | G40: Syarikat Takaful Malaysia Berhad | H40: 6139 | I40: VALUE*6139 | J40: 1557900 | K40: 6275237.71 | L40: 6013494 | M40: 54 | N40: 3.86 | O40: -261743.71 | P40: 0 | Q40: 0 | R40: 823145670 | S40: Equity | T40: 1 | U40: 2 | V40: 0 | W40: -0.04171056494 | X40: 0 | Y40: Common Stocks | Z40: Financials | AA40: 75 | AB40: 3 | AE40: Value
A41: 2017-10-11 | B41: Equity | C41: EQT | D41: EQT | E41: DIVIDEND | F41: BURSA | G41: Bursa Malaysia Berhad | H41: 1818 | I41: DIVIDEND*1818 | J41: 784000 | K41: 8119247.23 | L41: 7902720 | M41: 54 | N41: 10.08 | O41: -216527.23 | P41: 0 | Q41: 0 | R41: 537500900 | S41: Equity | T41: 1 | U41: 2 | V41: 3.373015873 | W41: -0.02666838734 | X41: 0 | Y41: Common Stocks | Z41: Financials | AA41: 88 | AB41: 2 | AE41: Dividend
A42: 2017-10-11 | B42: Equity | C42: EQT | D42: EQT | E42: GROWTH | F42: IHH | G42: IHH Healthcare Bhd | H42: 5225 | I42: GROWTH*5225 | J42: 5624600 | K42: 33395470.25 | L42: 33241386 | M42: 55 | N42: 5.91 | O42: -154084.25 | P42: 0 | Q42: 0 | R42: 8239109639 | S42: Equity | T42: 1 | U42: 2 | V42: 0.5076142132 | W42: -0.004613926645 | X42: 0 | Y42: Common Stocks | Z42: Health care | AA42: 34 | AB42: 3 | AE42: Growth
A43: 2017-10-11 | B43: Equity | C43: EQT | D43: EQT | E43: DIVIDEND | F43: HSPLANT | G43: Hap Seng Plantations Holdings Berhad | H43: 5138 | I43: DIVIDEND*5138 | J43: 1610700 | K43: 4359400.24 | L43: 4236141 | M43: 6 | N43: 2.63 | O43: -123259.24 | P43: 0 | Q43: 0 | R43: 800000000 | S43: Equity | T43: 1 | U43: 2 | V43: 4.182509506 | W43: -0.0282743573 | X43: 0 | Y43: Common Stocks | Z43: Plantation | AA43: 64 | AB43: 3 | AE43: Dividend
A44: 2017-10-11 | B44: Equity | C44: EQT | D44: EQT | E44: VALUE | F44: AIRPORT | G44: Malaysia Airports Holdings Berhad | H44: 5014 | I44: VALUE*5014 | J44: 4000000 | K44: 33484490.64 | L44: 33400000 | M44: 52 | N44: 8.35 | O44: -84490.64 | P44: 0 | Q44: 0 | R44: 1659191828 | S44: Equity | T44: 1 | U44: 2 | V44: 0 | W44: -0.002523276848 | X44: 0 | Y44: Common Stocks | AA44: 82 | AB44: 2 | AE44: AIRPORT
A45: 2017-10-11 | B45: Equity | C45: EQT | D45: EQT | E45: DIVIDEND | F45: UTDPLT | G45: United Plantations Berhad | H45: 2089 | I45: DIVIDEND*2089 | J45: 75200 | K45: 2129140.45 | L45: 2055968 | M45: 6 | N45: 27.34 | O45: -73172.45 | P45: 0 | Q45: 0 | R45: 208134266 | S45: Equity | T45: 1 | U45: 2 | V45: 3.108997805 | W45: -0.03436713158 | X45: 0 | Y45: Common Stocks | Z45: Plantation | AA45: 39 | AB45: 3 | AE45: Core
A46: 2017-10-11 | B46: Equity | C46: EQT | D46: EQT | E46: GROWTH | F46: BIMB | G46: BIMB Holdings Berhad | H46: 5258 | I46: GROWTH*5258 | J46: 2136900 | K46: 9157495.26 | L46: 9124563 | M46: 53 | N46: 4.27 | O46: -32932.26 | P46: 0 | Q46: 0 | R46: 1637741014 | S46: Equity | T46: 1 | U46: 2 | V46: 3.044496487 | W46: -0.00359620825 | X46: 0 | Y46: Common Stocks | Z46: Financials | AA46: 66 | AB46: 3 | AE46: Growth
A47: 2017-10-11 | B47: Equity | C47: EQT | D47: EQT | E47: GROWTH | F47: ECOWLD | G47: Eco World Development Group Bhd | H47: 8206 | I47: GROWTH*8206 | J47: 4325800 | K47: 6604349.75 | L47: 6575216 | M47: 4 | N47: 1.52 | O47: -29133.75 | P47: 0 | Q47: 0 | R47: 2944368381 | S47: Equity | T47: 1 | U47: 2 | V47: 0 | W47: -0.004411297267 | X47: 0 | Y47: Common Stocks | Z47: Property | AA47: 81 | AB47: 2 | AE47: Growth
A48: 2017-10-11 | B48: Equity | C48: EQT | D48: EQT | E48: SMALLMIDCAP | F48: APM | G48: APM AUTOMOTIVE HOLDINGS BHD | H48: 5015 | I48: SMALLMIDCAP*5015 | J48: 1065800 | K48: 3967358.97 | L48: 3964776 | M48: 7 | N48: 3.72 | O48: -2582.97 | P48: 0 | Q48: 0 | R48: 201600000 | S48: Equity | T48: 1 | U48: 2 | V48: 4.032258065 | W48: -0.0006510552787 | X48: 0 | Y48: Common Stocks | Z48: Consumer Goods | AE48: S/MC
A49: 2017-10-11 | B49: Equity | C49: EQT | D49: EQT | E49: VALUE | F49: TENAGA | G49: Tenaga Nasional Bhd | H49: 5347 | I49: VALUE*5347 | J49: 200000 | K49: 2835669.88 | L49: 2840000 | M49: 20 | N49: 14.2 | O49: 4330.12 | P49: 0 | Q49: 0 | R49: 5659015071 | S49: Equity | T49: 1 | U49: 2 | V49: 2.746478873 | W49: 0.001527018371 | X49: 0 | Y49: Common Stocks | Z49: Utilities | AA49: 95 | AB49: 2 | AE49: Value
A50: 2017-10-11 | B50: Equity | C50: EQT | D50: EQT | E50: SMALLMIDCAP | F50: ECONBHD | G50: ECONPILE HOLDINGS BHD | H50: 5253 | I50: SMALLMIDCAP*5253 | J50: 58300 | K50: 157993.48 | L50: 178398 | M50: 8 | N50: 3.06 | O50: 20404.52 | P50: 0 | Q50: 0 | R50: 535000010 | S50: Equity | T50: 1 | U50: 2 | V50: 0 | W50: 0.129147861 | X50: 0 | Y50: Common Stocks | AE50: S/MC
A51: 2017-10-11 | B51: Equity | C51: EQT | D51: EQT | E51: DIVIDEND | F51: HLIND | G51: Hong Leong Industries Berhad | H51: 3301 | I51: DIVIDEND*3301 | J51: 162500 | K51: 1527766.87 | L51: 1560000 | M51: 2 | N51: 9.6 | O51: 32233.13 | P51: 0 | Q51: 0 | R51: 327903710 | S51: Equity | T51: 1 | U51: 2 | V51: 4.6875 | W51: 0.02109819936 | X51: 0 | Y51: Common Stocks | Z51: Technology | AA51: 53 | AB51: 3 | AE51: Dividend
A52: 2017-10-11 | B52: Equity | C52: EQT | D52: CIS | E52: REITS | F52: ARREIT | G52: AMANAH RAYA REITS | H52: 5127 | I52: REITS*5127 | J52: 7179000 | K52: 6726906.9 | L52: 6784155 | M52: 10 | N52: 0.945 | O52: 57248.1 | P52: 0 | Q52: 0 | R52: 573219858 | S52: Collective Investment | T52: 1 | U52: 2 | V52: 6.09978836 | W52: 0.008510315491 | X52: 0 | Y52: Common Stocks | Z52: REIT | AE52: REITs
A53: 2017-10-11 | B53: Equity | C53: EQT | D53: CIS | E53: REITS | F53: MQREIT | G53: MRCB-QUILL REIT | H53: 5123 | I53: REITS*5123 | J53: 33896300 | K53: 43260073.94 | L53: 43387264 | M53: 10 | N53: 1.28 | O53: 127190.06 | P53: 0 | Q53: 0 | R53: 1068000000 | S53: Collective Investment | T53: 1 | U53: 2 | V53: 6.546875 | W53: 0.002940125812 | X53: 0 | Y53: Common Stocks | Z53: REIT | AA53: 89 | AB53: 2 | AE53: REITs
A54: 43019 | B54: Equity | C54: EQT | D54: EQT | E54: SMALLMIDCAP | F54: PADINI | G54: Padini Holdings Berhad | H54: 7052 | I54: SMALLMIDCAP*7052 | J54: 100000 | K54: 291023.92 | L54: 451000 | M54: 7 | N54: 4.51 | O54: 159976.08 | P54: 0 | Q54: 0 | R54: 657909500 | S54: Equity | T54: 1 | U54: 2 | V54: 0.8869179601 | W54: 0.5497007944 | X54: 0 | Y54: Common Stocks | Z54: Consumer Goods | AA54: 59 | AB54: 3 | AE54: S/MC
A55: 43019 | B55: Equity | C55: EQT | D55: CIS | E55: INDEX | F55: MYETFAGRI | G55: MYETF THOMSON REUTERS ASIA PACIFIC EX-JAPAN ISLAMIC AGRIBUSINESS | H55: 0826EA | I55: INDEX*0826EA | J55: 16480000 | K55: 16477882.91 | L55: 16644800 | M55: 4 | N55: 1.01 | O55: 166917.09 | P55: 0 | Q55: 0 | R55: 19000000 | S55: Collective Investment | T55: 1 | U55: 2 | V55: 0 | W55: 0.01012976551 | X55: 1 | Y55: ETF | Z55: ETF | AE55: ETF
A56: 43019 | B56: Equity | C56: EQT | D56: EQT | E56: CORE | F56: F&N | G56: Fraser & Neave Holdings Berhad | H56: 3689 | I56: CORE*3689 | J56: 708300 | K56: 17354764.5 | L56: 17537508 | M56: 7 | N56: 24.76 | O56: 182743.5 | P56: 0 | Q56: 0 | R56: 366778501 | S56: Equity | T56: 1 | U56: 2 | V56: 2.322294023 | W56: 0.01052987495 | X56: 0 | Y56: Common Stocks | Z56: Consumer Goods | AA56: 59 | AB56: 3 | AE56: Core
A57: 43019 | B57: Equity | C57: EQT | D57: EQT | E57: CORE | F57: PETDAG | G57: Petronas Dagangan Berhad | H57: 5681 | I57: CORE*5681 | J57: 300000 | K57: 7072014.26 | L57: 7290000 | M57: 57 | N57: 24.3 | O57: 217985.74 | P57: 0 | Q57: 0 | R57: 993454000 | S57: Equity | T57: 1 | U57: 2 | V57: 2.962962963 | W57: 0.0308237133 | X57: 0 | Y57: Common Stocks | Z57: Oil & Gas | AA57: 80 | AB57: 2 | AE57: Core
A58: 43019 | B58: Fund | C58: EQT | D58: ESG | E58: FUND | F58: ASEAN - 5 ESG Opportunity Fund | G58: ASEAN - 5 ESG Opportunity Fund | H58: A5ESGOF | I58: FUND*A5ESGOF | J58: 9657976.05 | K58: 10000000 | L58: 10324376.4 | M58: 0 | N58: 1.069 | O58: 324376.4 | P58: 0 | Q58: 0 | R58: 1000000000 | S58: ESG Fund | T58: 1 | U58: 1 | V58: 0 | W58: 0.03243764 | X58: 1 | Y58: Fund | AE58: Funds
A59: 43019 | B59: Equity | C59: EQT | D59: EQT | E59: DIVIDEND | F59: PBBANK | G59: Public Bank Berhad | H59: 1295 | I59: DIVIDEND*1295 | J59: 1000000 | K59: 19938396.33 | L59: 20560000 | M59: 53 | N59: 20.56 | O59: 621603.67 | P59: 0 | Q59: 0 | R59: 3882138347 | S59: Equity | T59: 1 | U59: 2 | V59: 2.821011673 | W59: 0.03117621195 | X59: 0 | Y59: Common Stocks | Z59: Financials | AA59: 80 | AB59: 2 | AE59: Core
A60: 43019 | B60: Equity | C60: EQT | D60: EQT | E60: DIVIDEND | F60: HLBANK | G60: Hong Leong Bank Berhad | H60: 5819 | I60: DIVIDEND*5819 | J60: 300000 | K60: 4072398.32 | L60: 4776000 | M60: 53 | N60: 15.92 | O60: 703601.68 | P60: 0 | Q60: 0 | R60: 2167718284 | S60: Equity | T60: 1 | U60: 2 | V60: 2.575376884 | W60: 0.1727732959 | X60: 0 | Y60: Common Stocks | Z60: Financials | AA60: 95 | AB60: 2 | AE60: Dividend
A61: 43019 | B61: Equity | C61: EQT | D61: CIS | E61: INDEX | F61: MYETFDJ | G61: MYETF DOW JONES ISLAMIC MARKET MALAYSIA | H61: 0821EA | I61: INDEX*0821EA | J61: 26650900 | K61: 28426101.93 | L61: 29315990 | M61: 60 | N61: 1.1 | O61: 889888.07 | P61: 0 | Q61: 0 | R61: 277900000 | S61: Collective Investment | T61: 1 | U61: 2 | V61: 2.027272727 | W61: 0.03130531482 | X61: 1 | Y61: ETF | Z61: ETF | AE61: ETF
A62: 43019 | B62: Equity | C62: EQT | D62: CIS | E62: REITS | F62: SUNREIT | G62: SUNWAY REAL ESTATE INVESTMENT TRUST | H62: 5176 | I62: REITS*5176 | J62: 100800000 | K62: 174259717.9 | L62: 175392000 | M62: 10 | N62: 1.74 | O62: 1132282.06 | P62: 0 | Q62: 0 | R62: 2945078000 | S62: Collective Investment | T62: 1 | U62: 2 | V62: 5.195402299 | W62: 0.006497669532 | X62: 0 | Y62: Common Stocks | Z62: REIT | AA62: 84 | AB62: 2 | AE62: REITs
A63: 43019 | B63: Equity | C63: EQT | D63: CIS | E63: REITS | F63: YTLREIT | G63: YTL Hospitality REIT | H63: 5109 | I63: REITS*5109 | J63: 43723200 | K63: 51243652.22 | L63: 52905072 | M63: 10 | N63: 1.21 | O63: 1661419.78 | P63: 0 | Q63: 0 | R63: 1704388889 | S63: Collective Investment | T63: 1 | U63: 2 | V63: 6.856115702 | W63: 0.03242196268 | X63: 0 | Y63: Common Stocks | Z63: REIT | AA63: 33 | AB63: 3 | AE63: REITs
A64: 43019 | B64: Equity | C64: EQT | D64: CIS | E64: INDEX | F64: MYETFID | G64: MyETF MSCI Malaysia Islamic Dividend | H64: 0824EA | I64: INDEX*0824EA | J64: 29044600 | K64: 29185883.54 | L64: 31077722 | M64: 15 | N64: 1.07 | O64: 1891838.46 | P64: 0 | Q64: 0 | R64: 50800000 | S64: Collective Investment | T64: 1 | U64: 2 | V64: 1.420560748 | W64: 0.06482032512 | X64: 1 | Y64: ETF | Z64: ETF | AE64: ETF
A65: 43019 | B65: Equity | C65: EQT | D65: EQT | E65: SMALLMIDCAP | F65: UCHITEC | G65: Uchi Technologies Berhad | H65: 7100 | I65: SMALLMIDCAP*7100 | J65: 2000000 | K65: 3600407.77 | L65: 5780000 | M65: 2 | N65: 2.89 | O65: 2179592.23 | P65: 0 | Q65: 0 | R65: 445475259 | S65: Equity | T65: 1 | U65: 2 | V65: 3.806228374 | W65: 0.6053737158 | X65: 0 | Y65: Common Stocks | Z65: Industrials | AA65: 57 | AB65: 3 | AE65: S/MC
A66: 43019 | B66: Fund | C66: EQT | D66: ESG | E66: FUND | F66: Malaysian ESG Opportunity Fund | G66: Malaysian ESG Opportunity Fund | H66: MEQESG | I66: FUND*MEQESG | J66: 15000000 | K66: 15000000 | L66: 18393000 | M66: 0 | N66: 1.2262 | O66: 3393000 | P66: 0 | Q66: 0 | R66: 1000000000 | S66: ESG Fund | T66: 1 | U66: 1 | V66: 0 | W66: 0.2262 | X66: 1 | Y66: Fund | AE66: Funds
A67: 43019 | B67: Equity | C67: EQT | D67: EQT | E67: CORE | F67: MAYBANK | G67: Malayan Banking Berhad | H67: 1155 | I67: CORE*1155 | J67: 27063100 | K67: 253184543.2 | L67: 258452605 | M67: 53 | N67: 9.55 | O67: 5268061.78 | P67: 0 | Q67: 0 | R67: 10596803526 | S67: Equity | T67: 1 | U67: 2 | V67: 5.445026178 | W67: 0.02080720139 | X67: 0 | Y67: Common Stocks | Z67: Financials | AA67: 93 | AB67: 2 | AE67: Core
A68: 43019 | B68: Equity | C68: EQT | D68: EQT | E68: CORE | F68: NESTLE | G68: Nestle (Malaysia) Berhad | H68: 4707 | I68: CORE*4707 | J68: 1200000 | K68: 94606836.33 | L68: 102312000 | M68: 7 | N68: 85.26 | O68: 7705163.67 | P68: 0 | Q68: 0 | R68: 234500000 | S68: Equity | T68: 1 | U68: 2 | V68: 3.166783955 | W68: 0.08144404748 | X68: 0 | Y68: Common Stocks | Z68: Consumer Goods | AA68: 56 | AB68: 3 | AE68: Core

Sheet 1aa.IncomeStatusByStock
K1: Stock Code that are not included | L1: More could be added
B2: ValueCap Sdn Bhd | K2: ISMMF
K3: MEQESG
E6: Values
B7: Row Labels | C7: StockName | D7: Description | E7: Dividend Income | F7: Realised Gain
B8: 1023 | C8: CIMB | D8: CIMB Group Holdings Bhd | E8: 3250000 | F8: 3756463.03
B9: 1155 | C9: MAYBANK | D9: Malayan Banking Berhad | E9: 53278478 | F9: 94243629.91
B10: 1295 | C10: PBBANK | D10: Public Bank Berhad | E10: 5055803 | F10: 6130692.94
B11: 1818 | C11: BURSA | D11: Bursa Malaysia Berhad | E11: 308400 | F11: 1528591.09
B12: 1961 | C12: IOICORP | D12: IOI Corporation Berhad | E12: 2342787 | F12: 6390.86
B13: 3336 | C13: IJM | D13: IJM Corporation Bhd | E13: 820507.5 | F13: 0
B14: 4197 | C14: SIME | D14: Sime Darby Berhad | E14: 0 | F14: 5018792.81
B15: 5176 | C15: SUNREIT | D15: SUNWAY REAL ESTATE INVESTMENT TRUST | E15: 6938160 | F15: 0
B16: 5180 | C16: CMMT | D16: CapitaMalls Malaysia Trust | E16: 5310351.45 | F16: 0
B17: 5183 | C17: PCHEM | D17: PETRONAS CHEMICALS GROUP BHD | E17: 4663584 | F17: 1529149.23
B18: 5212 | C18: PAVREIT | D18: Pavilion Real Estate Investment Trust | E18: 2941359.48 | F18: 50097.79
B19: 5227 | C19: IGBREIT | D19: IGB Real Estate Investment Trust | E19: 6432067.14 | F19: 0
B20: 5347 | C20: TENAGA | D20: Tenaga Nasional Bhd | E20: 1379142 | F20: 1981337.21
B21: 5398 | C21: GAMUDA | D21: Gamuda Berhad | E21: 729054 | F21: 731178.68
B22: 5819 | C22: HLBANK | D22: Hong Leong Bank Berhad | E22: 1423410 | F22: 11805100.84
B23: 6888 | C23: AXIATA | D23: Axiata Group Berhad | E23: 1586280 | F23: 0
B24: 7100 | C24: UCHITEC | D24: Uchi Technologies Berhad | E24: 1062520 | F24: 1487289.7
B25: 1899 | C25: BKAWAN | D25: Batu Kawan Berhad | E25: 0 | F25: 40230.33
B26: 4162 | C26: BAT | D26: British American Tobacco (M) Berhad | E26: 9526286 | F26: -10222297.94
B27: 5109 | C27: YTLREIT | D27: YTL Hospitality REIT | E27: 1804926.74 | F27: 38219.26
B28: 5127 | C28: ARREIT | D28: AMANAH RAYA REITS | E28: 286370.45 | F28: 0
B29: 5138 | C29: HSPLANT | D29: Hap Seng Plantations Holdings Berhad | E29: 207951 | F29: 0
B30: 5681 | C30: PETDAG | D30: Petronas Dagangan Berhad | E30: 174000 | F30: 0
B31: 6947 | C31: DIGI | D31: Digi.com Berhad | E31: 3320927.4 | F31: 3296070.03
B32: 7081 | C32: PHARMA | D32: Pharmaniaga Berhad | E32: 697961 | F32: 0
B33: 1783 | C33: SPB | D33: Selangor Properties Berhad | E33: 1419580 | F33: 0
B34: 2291 | C34: GENP | D34: Genting Plantations Berhad | E34: 0 | F34: 191283.98
B35: 6084 | C35: STAR | D35: Star Publications (Malaysia) Berhad | E35: 2716047 | F35: 0
B36: 8206 | C36: ECOWLD | D36: Eco World Development Group Bhd | E36: 0 | F36: 1140891.37
B37: 8583 | C37: MAHSING | D37: Mah Sing Group Berhad | E37: 1697137 | F37: 0
B38: 5264 | C38: MALAKOF | D38: MALAKOFF CORPORATION BERHAD | E38: 630000 | F38: 0
B39: 5120 | C39: AMFIRST | D39: AMFIRST Reits | E39: 464363.43 | F39: 0
B40: 2852 | C40: CMSB | D40: Cahya Mata Sarawak Bhd | E40: 571063.5 | F40: 277424.66
B41: 9571 | C41: MITRA | D41: MITRAJAYA HOLDINGS BERHAD | E41: 252130 | F41: 42140.39
B42: 4707 | C42: NESTLE | D42: Nestle (Malaysia) Berhad | E42: 4681170 | F42: 7056201.92
B43: 3689 | C43: F&N | D43: Fraser & Neave Holdings Berhad | E43: 258750 | F43: 0
B44: 5202 | C44: MSM | D44: MSM Malaysia Holdings Bhd | E44: 661960 | F44: 0
B45: 5209 | C45: GASMSIA | D45: Gas Malaysia Bhd | E45: 306744.4 | F45: 0
B46: 4502 | C46: MEDIA | D46: Media Prima Berhad | E46: 745012 | F46: 0
B47: 3794 | C47: LAFMSIA | D47: Lafarge Malaysia Bhd | E47: 0 | F47: 625461.11
B48: 5225 | C48: IHH | D48: IHH Healthcare Bhd | E48: 185295 | F48: 1193793.51
B49: 7022 | C49: GTRONIC | D49: Globetronics Technology Berhad | E49: 0 | F49: 603324.95
B50: 2445 | C50: KLK | D50: Kuala Lumpur Kepong Berhad | E50: 0 | F50: 438387.48
B51: 4863 | C51: TM | D51: Telekom Malaysia Berhad | E51: 7493252.8 | F51: 0
B52: 5110 | C52: UOAREIT | D52: UOA Reits | E52: 1180103.84 | F52: 0
B53: 5121 | C53: HEKTAR | D53: HEKTAR REITS | E53: 1173717 | F53: 0
B54: 5123 | C54: MQREIT | D54: MRCB-QUILL REIT | E54: 1433813.49 | F54: 53260.33
B55: 5116 | C55: ALAQAR | D55: AL-AQAR HEALTHCARE REIT | E55: 840211.45 | F55: 0
B56: 3301 | C56: HLIND | D56: Hong Leong Industries Berhad | E56: 331230 | F56: 990565.78
B57: 5258 | C57: BIMB | D57: BIMB Holdings Berhad | E57: 0 | F57: 3294774.26
B58: 5073 | C58: NAIM | D58: Naim Holdings Bhd | E58: 0 | F58: -4196472.97
B59: 6033 | C59: PETGAS | D59: Petronas Gas Berhad | E59: 328432 | F59: 44773.77
B60: 5235SS | C60: KLCC | D60: KLCC Property Holdings Berhad | E60: 8701481.1 | F60: 4414.43
B61: 8664 | C61: SPSETIA | D61: S P Setia Berhad | E61: 17812596 | F61: 3599632.76
B62: 0821EA | C62: MYETFDJ | D62: MYETF DOW JONES ISLAMIC MARKET MALAYSIA | E62: 612692.5 | F62: 17735.7
B63: 0824EA | C63: MYETFID | D63: MyETF MSCI Malaysia Islamic Dividend | E63: 463233.68 | F63: 96450.42
B64: 0825EA | C64: MYETFSID | D64: MYETF MSCI SEA ISLAMIC DIVIDEND | E64: 1041377.22 | F64: 0
B65: 0826EA | C65: MYETFAGRI | D65: MYETF THOMSON REUTERS ASIA PACIFIC EX-JAPAN ISLAMIC AGRIBUSINESS | E65: 0 | F65: 8236.08
B66: 1597 | C66: IGB | D66: IGB Corporation Bhd | E66: 0 | F66: 382233.72
B67: 2089 | C67: UTDPLT | D67: United Plantations Berhad | E67: 17085 | F67: 0
B68: 5015 | C68: APM | D68: APM AUTOMOTIVE HOLDINGS BHD | E68: 202971 | F68: 439570.3
B69: 7052 | C69: PADINI | D69: Padini Holdings Berhad | E69: 22500 | F69: 385413.63
B70: 4065 | C70: PPB | D70: PPB Group Berhad | E70: 911535 | F70: 0
B71: Grand Total | E71: 170695810.6 | F71: 138110433.4

Sheet InTranByStock (hidden)
A1: qEventTrxID | B1: qTrnCode | C1: qProductType | D1: qFundCode | E1: TradeDate | F1: ValueDate | G1: PayDate | H1: MaturityDate | I1: qAccType | J1: qStockCode | K1: StockName | L1: Description | M1: TradeValue | N1: TranIncome | O1: TranGains | P1: DealerKeyInDate | Q1: DealerKeyInBy
A2: EQC*170300002 | B2: SI | C2: EQT | D2: INDEX | E2: 2017-03-01 | F2: 2017-03-01 | G2: 2017-03-30 | H2: 3000-01-01 | I2: SHLI | J2: 0821EA | K2: MYETFDJ | L2: MYETF DOW JONES ISLAMIC MARKET MALAYSIA | M2: 612692.5 | N2: 612692.5 | O2: 0 | P2: 2017-03-01T10:33:17 | Q2: dzul.aqmal
A3: EQT*170600117 | B3: SS | C3: EQT | D3: INDEX | E3: 2017-06-13 | F3: 2017-06-13 | G3: 2017-06-16 | H3: 3000-01-01 | I3: SHLI | J3: 0821EA | K3: MYETFDJ | L3: MYETF DOW JONES ISLAMIC MARKET MALAYSIA | M3: 42612.68 | N3: 0 | O3: 1014.91 | P3: 2017-06-13T09:34:56 | Q3: anuar
A4: EQT*170600131 | B4: SS | C4: EQT | D4: INDEX | E4: 42900 | F4: 42900 | G4: 42905 | H4: 401769 | I4: SHLI | J4: 0821EA | K4: MYETFDJ | L4: MYETF DOW JONES ISLAMIC MARKET MALAYSIA | M4: 21719.08 | N4: 0 | O4: 386.89 | P4: 2017-06-14T08:54:27 | Q4: anuar
A5: EQT*170700071 | B5: SS | C5: EQT | D5: INDEX | E5: 42929 | F5: 42929 | G5: 42934 | H5: 401769 | I5: SHLI | J5: 0821EA | K5: MYETFDJ | L5: MYETF DOW JONES ISLAMIC MARKET MALAYSIA | M5: 286576.7 | N5: 0 | O5: 3818.53 | P5: 2017-07-13T09:47:09 | Q5: anuar
A6: EQT*170800113 | B6: SS | C6: EQT | D6: INDEX | E6: 42965 | F6: 42965 | G6: 42970 | H6: 401769 | I6: SHLI | J6: 0821EA | K6: MYETFDJ | L6: MYETF DOW JONES ISLAMIC MARKET MALAYSIA | M6: 545820.1 | N6: 0 | O6: 12515.37 | P6: 42965.68888 | Q6: anuar
A7: EQT*170300312 | B7: SS | C7: EQT | D7: INDEX | E7: 42824 | F7: 42824 | G7: 42829 | H7: 401769 | I7: SHLI | J7: 0824EA | K7: MYETFID | L7: MyETF MSCI Malaysia Islamic Dividend | M7: 2053.93 | N7: 0 | O7: 44.2 | P7: 2017-03-30T09:52:40 | Q7: anuar
A8: EQT*170600083 | B8: SS | C8: EQT | D8: INDEX | E8: 42893 | F8: 42893 | G8: 42899 | H8: 401769 | I8: SHLI | J8: 0824EA | K8: MYETFID | L8: MyETF MSCI Malaysia Islamic Dividend | M8: 27250.15 | N8: 0 | O8: 1927.57 | P8: 2017-06-07T10:58:40 | Q8: anuar
A9: EQT*170600156 | B9: SS | C9: EQT | D9: INDEX | E9: 42902 | F9: 42902 | G9: 42907 | H9: 401769 | I9: SHLI | J9: 0824EA | K9: MYETFID | L9: MyETF MSCI Malaysia Islamic Dividend | M9: 26071.86 | N9: 0 | O9: 1955.12 | P9: 42902.38289 | Q9: anuar
A10: EQT*170700016 | B10: SS | C10: EQT | D10: INDEX | E10: 42920 | F10: 42920 | G10: 42923 | H10: 401769 | I10: SHLI | J10: 0824EA | K10: MYETFID | L10: MyETF MSCI Malaysia Islamic Dividend | M10: 74724.25 | N10: 0 | O10: 5388.61 | P10: 2017-07-04T12:08:47 | Q10: anuar
A11: EQT*170700072 | B11: SS | C11: EQT | D11: INDEX | E11: 42929 | F11: 42929 | G11: 42934 | H11: 401769 | I11: SHLI | J11: 0824EA | K11: MYETFID | L11: MyETF MSCI Malaysia Islamic Dividend | M11: 268920.59 | N11: 0 | O11: 17704.5 | P11: 42929.40882 | Q11: anuar
A12: EQT*170700080 | B12: SS | C12: EQT | D12: INDEX | E12: 42930 | F12: 42930 | G12: 42935 | H12: 401769 | I12: SHLI | J12: 0824EA | K12: MYETFID | L12: MyETF MSCI Malaysia Islamic Dividend | M12: 21419.88 | N12: 0 | O12: 1322.59 | P12: 2017-07-14T11:26:39 | Q12: anuar
A13: EQT*170800023 | B13: SS | C13: EQT | D13: INDEX | E13: 2017-08-03 | F13: 2017-08-03 | G13: 2017-08-08 | H13: 3000-01-01 | I13: SHLI | J13: 0824EA | K13: MYETFID | L13: MyETF MSCI Malaysia Islamic Dividend | M13: 21519.61 | N13: 0 | O13: 1422.32 | P13: 2017-08-03T09:17:54 | Q13: anuar
A14: EQT*170800029 | B14: SS | C14: EQT | D14: INDEX | E14: 2017-08-04 | F14: 2017-08-04 | G14: 2017-08-09 | H14: 3000-01-01 | I14: SHLI | J14: 0824EA | K14: MYETFID | L14: MyETF MSCI Malaysia Islamic Dividend | M14: 86079.46 | N14: 0 | O14: 5690.31 | P14: 2017-08-04T11:53:33 | Q14: anuar
A15: EQT*170800032 | B15: SS | C15: EQT | D15: INDEX | E15: 42951 | F15: 42951 | G15: 42956 | H15: 401769 | I15: SHLI | J15: 0824EA | K15: MYETFID | L15: MyETF MSCI Malaysia Islamic Dividend | M15: 96839.27 | N15: 0 | O15: 6401.48 | P15: 2017-08-04T17:02:06 | Q15: aishah
A16: EQT*170800037 | B16: SS | C16: EQT | D16: INDEX | E16: 42954 | F16: 42954 | G16: 42957 | H16: 401769 | I16: SHLI | J16: 0824EA | K16: MYETFID | L16: MyETF MSCI Malaysia Islamic Dividend | M16: 861764.2 | N16: 0 | O16: 51743.04 | P16: 2017-08-07T10:38:52 | Q16: anuar
A17: EQT*170800055 | B17: SS | C17: EQT | D17: INDEX | E17: 2017-08-09 | F17: 2017-08-09 | G17: 2017-08-14 | H17: 3000-01-01 | I17: SHLI | J17: 0824EA | K17: MYETFID | L17: MyETF MSCI Malaysia Islamic Dividend | M17: 48069.58 | N17: 0 | O17: 2850.68 | P17: 2017-08-09T09:09:01 | Q17: anuar
A18: EQC*170300003 | B18: SI | C18: EQT | D18: INDEX | E18: 2017-03-01 | F18: 2017-03-01 | G18: 2017-03-30 | H18: 3000-01-01 | I18: SHLI | J18: 0824EA | K18: MYETFID | L18: MyETF MSCI Malaysia Islamic Dividend | M18: 463233.68 | N18: 463233.68 | O18: 0 | P18: 2017-03-01T10:40:51 | Q18: dzul.aqmal
A19: EQC*170300004 | B19: SI | C19: EQT | D19: INDEX | E19: 2017-03-01 | F19: 2017-03-01 | G19: 2017-03-30 | H19: 3000-01-01 | I19: SHLI | J19: 0825EA | K19: MYETFSID | L19: MYETF MSCI SEA ISLAMIC DIVIDEND | M19: 1041377.22 | N19: 1041377.22 | O19: 0 | P19: 2017-03-01T10:47:39 | Q19: dzul.aqmal
A20: EQT*170300313 | B20: SS | C20: EQT | D20: INDEX | E20: 42824 | F20: 42824 | G20: 42829 | H20: 401769 | I20: SHLI | J20: 0826EA | K20: MYETFAGRI | L20: MYETF THOMSON REUTERS ASIA PACIFIC EX-JAPAN ISLAMIC AGRIBUSINESS | M20: 111474.46 | N20: 0 | O20: 4988.14 | P20: 2017-03-30T09:53:11 | Q20: anuar
A21: EQT*170300327 | B21: SS | C21: EQT | D21: INDEX | E21: 42825 | F21: 42825 | G21: 42830 | H21: 401769 | I21: SHLI | J21: 0826EA | K21: MYETFAGRI | L21: MYETF THOMSON REUTERS ASIA PACIFIC EX-JAPAN ISLAMIC AGRIBUSINESS | M21: 3983.5 | N21: 0 | O21: 183.99 | P21: 2017-03-31T14:58:11 | Q21: anuar
A22: EQT*170600132 | B22: SS | C22: EQT | D22: INDEX | E22: 42900 | F22: 42900 | G22: 42905 | H22: 401769 | I22: SHLI | J22: 0826EA | K22: MYETFAGRI | L22: MYETF THOMSON REUTERS ASIA PACIFIC EX-JAPAN ISLAMIC AGRIBUSINESS | M22: 2033.93 | N22: 0 | O22: 34.19 | P22: 2017-06-14T08:54:49 | Q22: anuar
A23: EQT*170600182 | B23: SS | C23: EQT | D23: INDEX | E23: 42905 | F23: 42905 | G23: 42908 | H23: 401769 | I23: SHLI | J23: 0826EA | K23: MYETFAGRI | L23: MYETF THOMSON REUTERS ASIA PACIFIC EX-JAPAN ISLAMIC AGRIBUSINESS | M23: 88418.79 | N23: 0 | O23: 3029.76 | P23: 42905.60505 | Q23: anuar
A24: EQC*171000002 | B24: SI | C24: EQT | D24: GROWTH | E24: 43018 | F24: 43018 | G24: 43049 | H24: 401769 | I24: SHLI | J24: 1023 | K24: CIMB | L24: CIMB Group Holdings Bhd | M24: 3250000 | N24: 3250000 | O24: 0 | P24: 43018.4087 | Q24: jannah
A25: EQT*170300022 | B25: SS | C25: EQT | D25: GROWTH | E25: 42796 | F25: 42796 | G25: 42801 | H25: 401769 | I25: SHLI | J25: 1023 | K25: CIMB | L25: CIMB Group Holdings Bhd | M25: 7926905.23 | N25: 0 | O25: 358595.89 | P25: 42796.39902 | Q25: aishah
A26: EQT*170300051 | B26: SS | C26: EQT | D26: GROWTH | E26: 42797 | F26: 42797 | G26: 42802 | H26: 401769 | I26: SHLI | J26: 1023 | K26: CIMB | L26: CIMB Group Holdings Bhd | M26: 5203217.4 | N26: 0 | O26: 227340.12 | P26: 2017-03-03T16:33:17 | Q26: aishah
A27: EQT*170300052 | B27: SS | C27: EQT | D27: GROWTH | E27: 42800 | F27: 42800 | G27: 42803 | H27: 401769 | I27: SHLI | J27: 1023 | K27: CIMB | L27: CIMB Group Holdings Bhd | M27: 8020627.78 | N27: 0 | O27: 556811.87 | P27: 2017-03-06T09:32:58 | Q27: aishah
A28: EQT*170300058 | B28: SS | C28: EQT | D28: GROWTH | E28: 42800 | F28: 42800 | G28: 42803 | H28: 401769 | I28: SHLI | J28: 1023 | K28: CIMB | L28: CIMB Group Holdings Bhd | M28: 2720400.96 | N28: 0 | O28: 232462.32 | P28: 2017-03-06T14:38:47 | Q28: aishah
A29: EQT*170500180 | B29: SS | C29: EQT | D29: GROWTH | E29: 42879 | F29: 42879 | G29: 42884 | H29: 401769 | I29: SHLI | J29: 1023 | K29: CIMB | L29: CIMB Group Holdings Bhd | M29: 3734485.55 | N29: 0 | O29: 227782.96 | P29: 42879.6405 | Q29: aishah
A30: EQT*170600001 | B30: SS | C30: EQT | D30: GROWTH | E30: 42887 | F30: 42887 | G30: 42892 | H30: 401769 | I30: SHLI | J30: 1023 | K30: CIMB | L30: CIMB Group Holdings Bhd | M30: 3200776.94 | N30: 0 | O30: 312700.36 | P30: 42887.3739 | Q30: aishah
A31: EQT*170600047 | B31: SS | C31: EQT | D31: GROWTH | E31: 42891 | F31: 42891 | G31: 42894 | H31: 401769 | I31: SHLI | J31: 1023 | K31: CIMB | L31: CIMB Group Holdings Bhd | M31: 1528987.73 | N31: 0 | O31: 217223.35 | P31: 42891.70421 | Q31: aishah
A32: EQT*170700147 | B32: SS | C32: EQT | D32: GROWTH | E32: 2017-07-27 | F32: 2017-07-27 | G32: 2017-08-01 | H32: 3000-01-01 | I32: SHLI | J32: 1023 | K32: CIMB | L32: CIMB Group Holdings Bhd | M32: 987124.03 | N32: 0 | O32: 16334.38 | P32: 2017-07-27T09:32:35 | Q32: ahmad
A33: EQT*170700150 | B33: SS | C33: EQT | D33: GROWTH | E33: 2017-07-27 | F33: 2017-07-27 | G33: 2017-08-01 | H33: 3000-01-01 | I33: SHLI | J33: 1023 | K33: CIMB | L33: CIMB Group Holdings Bhd | M33: 2991936.3 | N33: 0 | O33: 51090.85 | P33: 2017-07-27T09:40:10 | Q33: aishah
A34: EQT*170700157 | B34: SS | C34: EQT | D34: GROWTH | E34: 42944 | F34: 42944 | G34: 42949 | H34: 401769 | I34: SHLI | J34: 1023 | K34: CIMB | L34: CIMB Group Holdings Bhd | M34: 6652979.02 | N34: 0 | O34: 181048.02 | P34: 42944.40403 | Q34: faris
A35: EQT*170700160 | B35: SS | C35: EQT | D35: GROWTH | E35: 42944 | F35: 42944 | G35: 42949 | H35: 401769 | I35: SHLI | J35: 1023 | K35: CIMB | L35: CIMB Group Holdings Bhd | M35: 5650682.58 | N35: 0 | O35: 149541.23 | P35: 42944.40481 | Q35: faris
A36: EQT*170700165 | B36: SS | C36: EQT | D36: GROWTH | E36: 42944 | F36: 42944 | G36: 42949 | H36: 401769 | I36: SHLI | J36: 1023 | K36: CIMB | L36: CIMB Group Holdings Bhd | M36: 13284642 | N36: 0 | O36: 340779.99 | P36: 2017-07-28T16:08:11 | Q36: aishah
A37: EQT*170700168 | B37: SS | C37: EQT | D37: GROWTH | E37: 42944 | F37: 42944 | G37: 42949 | H37: 401769 | I37: SHLI | J37: 1023 | K37: CIMB | L37: CIMB Group Holdings Bhd | M37: 6651680.4 | N37: 0 | O37: 179749.39 | P37: 2017-07-28T16:45:49 | Q37: aishah
A38: EQT*170700175 | B38: SS | C38: EQT | D38: GROWTH | E38: 2017-07-31 | F38: 2017-07-31 | G38: 2017-08-03 | H38: 3000-01-01 | I38: SHLI | J38: 1023 | K38: CIMB | L38: CIMB Group Holdings Bhd | M38: 2860756.77 | N38: 0 | O38: 52585.91 | P38: 2017-07-31T09:37:03 | Q38: anuar
A39: EQT*170700178 | B39: SS | C39: EQT | D39: GROWTH | E39: 42947 | F39: 42947 | G39: 42950 | H39: 401769 | I39: SHLI | J39: 1023 | K39: CIMB | L39: CIMB Group Holdings Bhd | M39: 730756.96 | N39: 0 | O39: 13019.81 | P39: 2017-07-31T11:36:46 | Q39: anuar
A40: EQT*170700180 | B40: SS | C40: EQT | D40: GROWTH | E40: 2017-07-31 | F40: 2017-07-31 | G40: 2017-08-03 | H40: 3000-01-01 | I40: SHLI | J40: 1023 | K40: CIMB | L40: CIMB Group Holdings Bhd | M40: 19630308.46 | N40: 0 | O40: 214515.45 | P40: 2017-07-31T15:30:36 | Q40: aishah
A41: EQT*170700187 | B41: SS | C41: EQT | D41: GROWTH | E41: 2017-07-31 | F41: 2017-07-31 | G41: 2017-08-03 | H41: 3000-01-01 | I41: SHLI | J41: 1023 | K41: CIMB | L41: CIMB Group Holdings Bhd | M41: 17842310.74 | N41: 0 | O41: 192707.7 | P41: 2017-07-31T17:00:24 | Q41: aishah
A42: EQT*170800010 | B42: SS | C42: EQT | D42: GROWTH | E42: 2017-08-02 | F42: 2017-08-02 | G42: 2017-08-07 | H42: 3000-01-01 | I42: SHLI | J42: 1023 | K42: CIMB | L42: CIMB Group Holdings Bhd | M42: 6545093.5 | N42: 0 | O42: 73162.49 | P42: 2017-08-02T09:28:14 | Q42: ahmad
A43: EQT*170800016 | B43: SS | C43: EQT | D43: GROWTH | E43: 42949 | F43: 42949 | G43: 42954 | H43: 401769 | I43: SHLI | J43: 1023 | K43: CIMB | L43: CIMB Group Holdings Bhd | M43: 6224134.08 | N43: 0 | O43: 75799.62 | P43: 2017-08-02T11:05:13 | Q43: ahmad
A44: EQT*170800020 | B44: SS | C44: EQT | D44: GROWTH | E44: 2017-08-03 | F44: 2017-08-03 | G44: 2017-08-08 | H44: 3000-01-01 | I44: SHLI | J44: 1023 | K44: CIMB | L44: CIMB Group Holdings Bhd | M44: 6483951.08 | N44: 0 | O44: 83211.32 | P44: 2017-08-03T09:05:02 | Q44: ahmad
A45: EQT*170300024 | B45: SS | C45: EQT | D45: VALUE | E45: 2017-03-02 | F45: 2017-03-02 | G45: 2017-03-07 | H45: 3000-01-01 | I45: SHLI | J45: 1155 | K45: MAYBANK | L45: Malayan Banking Berhad | M45: 17494774.52 | N45: 0 | O45: 119699.49 | P45: 2017-03-02T10:38:57 | Q45: aishah
A46: EQT*170300040 | B46: SS | C46: EQT | D46: VALUE | E46: 2017-03-03 | F46: 2017-03-03 | G46: 2017-03-08 | H46: 3000-01-01 | I46: SHLI | J46: 1155 | K46: MAYBANK | L46: Malayan Banking Berhad | M46: 5777233.29 | N46: 0 | O46: 33902.24 | P46: 2017-03-03T09:35:25 | Q46: wei.rhong
A47: EQT*170300056 | B47: SS | C47: EQT | D47: VALUE | E47: 42800 | F47: 42800 | G47: 42803 | H47: 401769 | I47: SHLI | J47: 1155 | K47: MAYBANK | L47: Malayan Banking Berhad | M47: 21533194.25 | N47: 0 | O47: 248727.34 | P47: 42800.4939 | Q47: aishah
A48: EQT*170300068 | B48: SS | C48: EQT | D48: VALUE | E48: 2017-03-07 | F48: 2017-03-07 | G48: 2017-03-10 | H48: 3000-01-01 | I48: SHLI | J48: 1155 | K48: MAYBANK | L48: Malayan Banking Berhad | M48: 8843154.97 | N48: 0 | O48: 155617.46 | P48: 2017-03-07T09:09:49 | Q48: aishah
A49: EQT*170300070 | B49: SS | C49: EQT | D49: VALUE | E49: 2017-03-07 | F49: 2017-03-07 | G49: 2017-03-10 | H49: 3000-01-01 | I49: SHLI | J49: 1155 | K49: MAYBANK | L49: Malayan Banking Berhad | M49: 887394.33 | N49: 0 | O49: 18640.58 | P49: 2017-03-07T09:29:20 | Q49: aishah
A50: EQT*170300080 | B50: SS | C50: EQT | D50: VALUE | E50: 2017-03-07 | F50: 2017-03-07 | G50: 2017-03-10 | H50: 3000-01-01 | I50: SHLI | J50: 1155 | K50: MAYBANK | L50: Malayan Banking Berhad | M50: 17717937.72 | N50: 0 | O50: 342862.69 | P50: 2017-03-07T11:16:13 | Q50: aishah
A51: EQT*170300092 | B51: SS | C51: EQT | D51: VALUE | E51: 2017-03-07 | F51: 2017-03-07 | G51: 2017-03-10 | H51: 3000-01-01 | I51: SHLI | J51: 1155 | K51: MAYBANK | L51: Malayan Banking Berhad | M51: 5312101.86 | N51: 0 | O51: 99579.35 | P51: 2017-03-07T15:58:54 | Q51: aishah
A52: EQT*170300105 | B52: SS | C52: EQT | D52: VALUE | E52: 2017-03-08 | F52: 2017-03-08 | G52: 2017-03-13 | H52: 3000-01-01 | I52: SHLI | J52: 1155 | K52: MAYBANK | L52: Malayan Banking Berhad | M52: 7656679.85 | N52: 0 | O52: 126322.33 | P52: 2017-03-08T11:56:00 | Q52: aishah
A53: EQT*170300109 | B53: SS | C53: EQT | D53: VALUE | E53: 2017-03-09 | F53: 2017-03-09 | G53: 2017-03-14 | H53: 3000-01-01 | I53: SHLI | J53: 1155 | K53: MAYBANK | L53: Malayan Banking Berhad | M53: 8773329.07 | N53: 0 | O53: 85791.56 | P53: 2017-03-09T09:09:49 | Q53: wei.rhong
A54: EQT*170300130 | B54: SS | C54: EQT | D54: VALUE | E54: 42807 | F54: 42807 | G54: 42810 | H54: 401769 | I54: SHLI | J54: 1155 | K54: MAYBANK | L54: Malayan Banking Berhad | M54: 2000204.08 | N54: 0 | O54: 27264.31 | P54: 2017-03-13T11:40:23 | Q54: aishah
A55: EQT*170300190 | B55: SS | C55: EQT | D55: VALUE | E55: 2017-03-17 | F55: 2017-03-17 | G55: 2017-03-22 | H55: 3000-01-01 | I55: SHLI | J55: 1155 | K55: MAYBANK | L55: Malayan Banking Berhad | M55: 17891753.28 | N55: 0 | O55: 511671.9 | P55: 2017-03-17T09:16:38 | Q55: aishah
A56: EQT*170300194 | B56: SS | C56: EQT | D56: VALUE | E56: 2017-03-17 | F56: 2017-03-17 | G56: 2017-03-22 | H56: 3000-01-01 | I56: SHLI | J56: 1155 | K56: MAYBANK | L56: Malayan Banking Berhad | M56: 3587116.48 | N56: 0 | O56: 111100.2 | P56: 2017-03-17T10:25:35 | Q56: aishah
A57: EQT*170300196 | B57: SS | C57: EQT | D57: VALUE | E57: 2017-03-17 | F57: 2017-03-17 | G57: 2017-03-22 | H57: 3000-01-01 | I57: SHLI | J57: 1155 | K57: MAYBANK | L57: Malayan Banking Berhad | M57: 4479221.2 | N57: 0 | O57: 134200.86 | P57: 2017-03-17T11:04:07 | Q57: aishah
A58: EQT*170300222 | B58: SS | C58: EQT | D58: VALUE | E58: 42815 | F58: 42815 | G58: 42818 | H58: 401769 | I58: SHLI | J58: 1155 | K58: MAYBANK | L58: Malayan Banking Berhad | M58: 11721400.79 | N58: 0 | O58: 390456.73 | P58: 42815.38878 | Q58: aishah
A59: EQT*170300223 | B59: SS | C59: EQT | D59: VALUE | E59: 42815 | F59: 42815 | G59: 42818 | H59: 401769 | I59: SHLI | J59: 1155 | K59: MAYBANK | L59: Malayan Banking Berhad | M59: 17949092.44 | N59: 0 | O59: 569011.06 | P59: 42815.38919 | Q59: aishah
A60: EQT*170300260 | B60: SS | C60: EQT | D60: VALUE | E60: 42817 | F60: 42817 | G60: 42822 | H60: 401769 | I60: SHLI | J60: 1155 | K60: MAYBANK | L60: Malayan Banking Berhad | M60: 18004233.92 | N60: 0 | O60: 601297.41 | P60: 2017-03-23T17:04:20 | Q60: aishah
A61: EQT*170300261 | B61: SS | C61: EQT | D61: VALUE | E61: 2017-03-24 | F61: 2017-03-24 | G61: 2017-03-29 | H61: 3000-01-01 | I61: SHLI | J61: 1155 | K61: MAYBANK | L61: Malayan Banking Berhad | M61: 2586005.1 | N61: 0 | O61: 86943.42 | P61: 2017-03-24T09:06:30 | Q61: ahmad
A62: EQT*170300269 | B62: SS | C62: EQT | D62: VALUE | E62: 42818 | F62: 42818 | G62: 42823 | H62: 401769 | I62: SHLI | J62: 1155 | K62: MAYBANK | L62: Malayan Banking Berhad | M62: 1800898.19 | N62: 0 | O62: 60604.54 | P62: 42818.39748 | Q62: ahmad
A63: EQT*170300279 | B63: SS | C63: EQT | D63: VALUE | E63: 42818 | F63: 42818 | G63: 42823 | H63: 401769 | I63: SHLI | J63: 1155 | K63: MAYBANK | L63: Malayan Banking Berhad | M63: 21197922.64 | N63: 0 | O63: 678120.21 | P63: 2017-03-24T16:51:48 | Q63: aishah
A64: EQT*170300301 | B64: SS | C64: EQT | D64: VALUE | E64: 2017-03-28 | F64: 2017-03-28 | G64: 2017-03-31 | H64: 3000-01-01 | I64: SHLI | J64: 1155 | K64: MAYBANK | L64: Malayan Banking Berhad | M64: 2569320.2 | N64: 0 | O64: 78932.17 | P64: 2017-03-28T09:14:41 | Q64: faris
A65: EQT*170300304 | B65: SS | C65: EQT | D65: VALUE | E65: 2017-03-29 | F65: 2017-03-29 | G65: 2017-04-03 | H65: 3000-01-01 | I65: SHLI | J65: 1155 | K65: MAYBANK | L65: Malayan Banking Berhad | M65: 449082.29 | N65: 0 | O65: 14004.02 | P65: 2017-03-29T09:17:45 | Q65: ahmad
A66: EQT*170400017 | B66: SS | C66: EQT | D66: VALUE | E66: 2017-04-04 | F66: 2017-04-04 | G66: 2017-04-07 | H66: 3000-01-01 | I66: SHLI | J66: 1155 | K66: MAYBANK | L66: Malayan Banking Berhad | M66: 3591108 | N66: 0 | O66: 103389.47 | P66: 2017-04-04T09:10:04 | Q66: aishah
A67: EQT*170400051 | B67: SS | C67: EQT | D67: VALUE | E67: 42832 | F67: 42832 | G67: 42842 | H67: 401769 | I67: SHLI | J67: 1155 | K67: MAYBANK | L67: Malayan Banking Berhad | M67: 22885439.35 | N67: 0 | O67: 46355.69 | P67: 2017-04-07T09:06:29 | Q67: aishah
A68: EQT*170400065 | B68: SS | C68: EQT | D68: VALUE | E68: 42835 | F68: 42835 | G68: 42842 | H68: 401769 | I68: SHLI | J68: 1155 | K68: MAYBANK | L68: Malayan Banking Berhad | M68: 4035456.54 | N68: 0 | O68: 5030.01 | P68: 2017-04-10T10:43:40 | Q68: ahmad
A69: EQT*170400101 | B69: SS | C69: EQT | D69: VALUE | E69: 42844 | F69: 42844 | G69: 42850 | H69: 401769 | I69: SHLI | J69: 1155 | K69: MAYBANK | L69: Malayan Banking Berhad | M69: 27099882.31 | N69: 0 | O69: 916001.48 | P69: 2017-04-19T10:20:13 | Q69: aishah
A70: EQT*170400109 | B70: SS | C70: EQT | D70: VALUE | E70: 2017-04-19 | F70: 2017-04-19 | G70: 2017-04-25 | H70: 3000-01-01 | I70: SHLI | J70: 1155 | K70: MAYBANK | L70: Malayan Banking Berhad | M70: 13559350.5 | N70: 0 | O70: 467410.08 | P70: 2017-04-19T16:02:04 | Q70: aishah
A71: EQT*170400120 | B71: SS | C71: EQT | D71: VALUE | E71: 2017-04-20 | F71: 2017-04-20 | G71: 2017-04-26 | H71: 3000-01-01 | I71: SHLI | J71: 1155 | K71: MAYBANK | L71: Malayan Banking Berhad | M71: 9062821.88 | N71: 0 | O71: 334861.6 | P71: 2017-04-20T11:58:06 | Q71: wei.rhong
A72: EQT*170400124 | B72: SS | C72: EQT | D72: VALUE | E72: 2017-04-20 | F72: 2017-04-20 | G72: 2017-04-26 | H72: 3000-01-01 | I72: SHLI | J72: 1155 | K72: MAYBANK | L72: Malayan Banking Berhad | M72: 9051134.28 | N72: 0 | O72: 323174 | P72: 2017-04-20T12:51:47 | Q72: aishah
A73: EQT*170400125 | B73: SS | C73: EQT | D73: VALUE | E73: 42845 | F73: 42845 | G73: 42851 | H73: 401769 | I73: SHLI | J73: 1155 | K73: MAYBANK | L73: Malayan Banking Berhad | M73: 27189786.91 | N73: 0 | O73: 1005906.08 | P73: 2017-04-20T12:52:26 | Q73: aishah
A74: EQT*170400131 | B74: SS | C74: EQT | D74: VALUE | E74: 42846 | F74: 42846 | G74: 42852 | H74: 401769 | I74: SHLI | J74: 1155 | K74: MAYBANK | L74: Malayan Banking Berhad | M74: 22949885.97 | N74: 0 | O74: 1129985.28 | P74: 2017-04-21T09:15:48 | Q74: aishah
A75: EQT*170400137 | B75: SS | C75: EQT | D75: VALUE | E75: 42846 | F75: 42846 | G75: 42852 | H75: 401769 | I75: SHLI | J75: 1155 | K75: MAYBANK | L75: Malayan Banking Berhad | M75: 9253319.74 | N75: 0 | O75: 525359.46 | P75: 2017-04-21T11:31:03 | Q75: ahmad
A76: EQT*170400147 | B76: SS | C76: EQT | D76: VALUE | E76: 2017-04-21 | F76: 2017-04-21 | G76: 2017-04-27 | H76: 3000-01-01 | I76: SHLI | J76: 1155 | K76: MAYBANK | L76: Malayan Banking Berhad | M76: 28155961.67 | N76: 0 | O76: 1972080.84 | P76: 2017-04-21T16:31:44 | Q76: aishah
A77: EQT*170400174 | B77: SS | C77: EQT | D77: VALUE | E77: 2017-04-26 | F77: 2017-04-26 | G77: 2017-05-02 | H77: 3000-01-01 | I77: SHLI | J77: 1155 | K77: MAYBANK | L77: Malayan Banking Berhad | M77: 18715479.2 | N77: 0 | O77: 1259558.65 | P77: 2017-04-26T10:26:05 | Q77: aishah
A78: EQT*170400176 | B78: SS | C78: EQT | D78: VALUE | E78: 2017-04-26 | F78: 2017-04-26 | G78: 2017-05-02 | H78: 3000-01-01 | I78: SHLI | J78: 1155 | K78: MAYBANK | L78: Malayan Banking Berhad | M78: 9381283.95 | N78: 0 | O78: 653323.67 | P78: 2017-04-26T10:26:47 | Q78: ahmad
A79: EQT*170400181 | B79: SS | C79: EQT | D79: VALUE | E79: 42851 | F79: 42851 | G79: 42857 | H79: 401769 | I79: SHLI | J79: 1155 | K79: MAYBANK | L79: Malayan Banking Berhad | M79: 9449511.55 | N79: 0 | O79: 721551.27 | P79: 2017-04-26T15:24:57 | Q79: aishah
A80: EQT*170500029 | B80: SS | C80: EQT | D80: VALUE | E80: 42858 | F80: 42858 | G80: 42863 | H80: 401769 | I80: SHLI | J80: 1155 | K80: MAYBANK | L80: Malayan Banking Berhad | M80: 19118451.6 | N80: 0 | O80: 1658650.88 | P80: 2017-05-03T16:43:33 | Q80: aishah
A81: EQT*170500033 | B81: SS | C81: EQT | D81: VALUE | E81: 42858 | F81: 42858 | G81: 42863 | H81: 401769 | I81: SHLI | J81: 1155 | K81: MAYBANK | L81: Malayan Banking Berhad | M81: 13908922.79 | N81: 0 | O81: 1260170.16 | P81: 2017-05-03T16:50:55 | Q81: aishah
A82: EQT*170500035 | B82: SS | C82: EQT | D82: VALUE | E82: 42858 | F82: 42858 | G82: 42863 | H82: 401769 | I82: SHLI | J82: 1155 | K82: MAYBANK | L82: Malayan Banking Berhad | M82: 4332931.99 | N82: 0 | O82: 404476.83 | P82: 2017-05-03T17:09:08 | Q82: aishah
A83: EQT*170500037 | B83: SS | C83: EQT | D83: VALUE | E83: 42859 | F83: 42859 | G83: 42864 | H83: 401769 | I83: SHLI | J83: 1155 | K83: MAYBANK | L83: Malayan Banking Berhad | M83: 24587228.07 | N83: 0 | O83: 1236490.59 | P83: 2017-05-04T09:13:41 | Q83: aishah
A84: EQT*170500045 | B84: SS | C84: EQT | D84: VALUE | E84: 42859 | F84: 42859 | G84: 42864 | H84: 401769 | I84: SHLI | J84: 1155 | K84: MAYBANK | L84: Malayan Banking Berhad | M84: 27569484 | N84: 0 | O84: 1379782.93 | P84: 2017-05-04T09:25:38 | Q84: aishah
A85: EQT*170500046 | B85: SS | C85: EQT | D85: VALUE | E85: 42859 | F85: 42859 | G85: 42864 | H85: 401769 | I85: SHLI | J85: 1155 | K85: MAYBANK | L85: Malayan Banking Berhad | M85: 7429055.51 | N85: 0 | O85: 370931.07 | P85: 42859.69725 | Q85: aishah
A86: EQT*170500047 | B86: SS | C86: EQT | D86: VALUE | E86: 42859 | F86: 42859 | G86: 42864 | H86: 401769 | I86: SHLI | J86: 1155 | K86: MAYBANK | L86: Malayan Banking Berhad | M86: 18379236 | N86: 0 | O86: 919435.29 | P86: 42859.71328 | Q86: aishah
A87: EQT*170500049 | B87: SS | C87: EQT | D87: VALUE | E87: 42860 | F87: 42860 | G87: 42866 | H87: 401769 | I87: SHLI | J87: 1155 | K87: MAYBANK | L87: Malayan Banking Berhad | M87: 18502305.41 | N87: 0 | O87: 1042504.7 | P87: 2017-05-05T14:34:05 | Q87: aishah
A88: EQT*170500050 | B88: SS | C88: EQT | D88: VALUE | E88: 42860 | F88: 42860 | G88: 42866 | H88: 401769 | I88: SHLI | J88: 1155 | K88: MAYBANK | L88: Malayan Banking Berhad | M88: 27647101.64 | N88: 0 | O88: 1457400.57 | P88: 2017-05-05T14:39:31 | Q88: aishah
A89: EQT*170500056 | B89: SS | C89: EQT | D89: VALUE | E89: 42860 | F89: 42860 | G89: 42866 | H89: 401769 | I89: SHLI | J89: 1155 | K89: MAYBANK | L89: Malayan Banking Berhad | M89: 18579024 | N89: 0 | O89: 1119223.28 | P89: 2017-05-05T16:53:36 | Q89: aishah
A90: EQT*170500116 | B90: SS | C90: EQT | D90: VALUE | E90: 2017-05-17 | F90: 2017-05-17 | G90: 2017-05-22 | H90: 3000-01-01 | I90: SHLI | J90: 1155 | K90: MAYBANK | L90: Malayan Banking Berhad | M90: 5602793.4 | N90: 0 | O90: 364853.19 | P90: 2017-05-17T09:23:00 | Q90: ahmad
A91: EQT*170500121 | B91: SS | C91: EQT | D91: VALUE | E91: 42872 | F91: 42872 | G91: 42877 | H91: 401769 | I91: SHLI | J91: 1155 | K91: MAYBANK | L91: Malayan Banking Berhad | M91: 3742007.41 | N91: 0 | O91: 239571.39 | P91: 42872.40638 | Q91: ahmad
A92: EQT*170500136 | B92: SS | C92: EQT | D92: VALUE | E92: 42874 | F92: 42874 | G92: 42879 | H92: 401769 | I92: SHLI | J92: 1155 | K92: MAYBANK | L92: Malayan Banking Berhad | M92: 6922307.24 | N92: 0 | O92: 462180.98 | P92: 2017-05-19T10:34:06 | Q92: ahmad
A93: EQT*170500143 | B93: SS | C93: EQT | D93: VALUE | E93: 42874 | F93: 42874 | G93: 42879 | H93: 401769 | I93: SHLI | J93: 1155 | K93: MAYBANK | L93: Malayan Banking Berhad | M93: 12922077.09 | N93: 0 | O93: 869576.66 | P93: 2017-05-19T12:20:24 | Q93: aishah
A94: EQT*170500176 | B94: SS | C94: EQT | D94: VALUE | E94: 42879 | F94: 42879 | G94: 42884 | H94: 401769 | I94: SHLI | J94: 1155 | K94: MAYBANK | L94: Malayan Banking Berhad | M94: 15149315.99 | N94: 0 | O94: 1012115.35 | P94: 2017-05-24T10:23:30 | Q94: aishah
A95: EQT*170500182 | B95: SS | C95: EQT | D95: VALUE | E95: 42879 | F95: 42879 | G95: 42884 | H95: 401769 | I95: SHLI | J95: 1155 | K95: MAYBANK | L95: Malayan Banking Berhad | M95: 15571493.36 | N95: 0 | O95: 1078112.78 | P95: 2017-05-24T16:32:33 | Q95: aishah
A96: EQT*170500185 | B96: SS | C96: EQT | D96: VALUE | E96: 42880 | F96: 42880 | G96: 42885 | H96: 401769 | I96: SHLI | J96: 1155 | K96: MAYBANK | L96: Malayan Banking Berhad | M96: 5770108.86 | N96: 0 | O96: 444869.64 | P96: 2017-05-25T09:49:01 | Q96: faris
A97: EQT*170500188 | B97: SS | C97: EQT | D97: VALUE | E97: 42880 | F97: 42880 | G97: 42885 | H97: 401769 | I97: SHLI | J97: 1155 | K97: MAYBANK | L97: Malayan Banking Berhad | M97: 19034141.06 | N97: 0 | O97: 1574340.34 | P97: 2017-05-25T10:41:37 | Q97: aishah
A98: EQT*170600012 | B98: SS | C98: EQT | D98: VALUE | E98: 42887 | F98: 42887 | G98: 42892 | H98: 401769 | I98: SHLI | J98: 1155 | K98: MAYBANK | L98: Malayan Banking Berhad | M98: 17644774.39 | N98: 0 | O98: 1217251.66 | P98: 2017-06-01T17:14:58 | Q98: aishah
A99: EQT*170600028 | B99: SS | C99: EQT | D99: VALUE | E99: 42888 | F99: 42888 | G99: 42893 | H99: 401769 | I99: SHLI | J99: 1155 | K99: MAYBANK | L99: Malayan Banking Berhad | M99: 18995581.98 | N99: 0 | O99: 1474759.96 | P99: 2017-06-02T17:11:29 | Q99: aishah
A100: EQT*170600165 | B100: SS | C100: EQT | D100: VALUE | E100: 42902 | F100: 42902 | G100: 42907 | H100: 401769 | I100: SHLI | J100: 1155 | K100: MAYBANK | L100: Malayan Banking Berhad | M100: 1214064.39 | N100: 0 | O100: 106748.44 | P100: 2017-06-16T12:29:35 | Q100: aishah
A101: EQT*170700102 | B101: SS | C101: EQT | D101: VALUE | E101: 2017-07-19 | F101: 2017-07-19 | G101: 2017-07-24 | H101: 3000-01-01 | I101: SHLI | J101: 1155 | K101: MAYBANK | L101: Malayan Banking Berhad | M101: 9618532.2 | N101: 0 | O101: 191137.66 | P101: 2017-07-19T16:34:07 | Q101: ahmad
A102: EQT*170700139 | B102: SS | C102: EQT | D102: VALUE | E102: 42942 | F102: 42942 | G102: 42947 | H102: 401769 | I102: SHLI | J102: 1155 | K102: MAYBANK | L102: Malayan Banking Berhad | M102: 19223340.3 | N102: 0 | O102: 368551.21 | P102: 2017-07-26T14:45:32 | Q102: aishah
A103: EQT*170700167 | B103: SS | C103: EQT | D103: VALUE | E103: 42944 | F103: 42944 | G103: 42949 | H103: 401769 | I103: SHLI | J103: 1155 | K103: MAYBANK | L103: Malayan Banking Berhad | M103: 19258303.2 | N103: 0 | O103: 403514.11 | P103: 2017-07-28T16:45:16 | Q103: aishah
A104: EQT*170700179 | B104: SS | C104: EQT | D104: VALUE | E104: 42947 | F104: 42947 | G104: 42950 | H104: 401769 | I104: SHLI | J104: 1155 | K104: MAYBANK | L104: Malayan Banking Berhad | M104: 8458423.05 | N104: 0 | O104: 180227.9 | P104: 2017-07-31T15:30:14 | Q104: aishah
A105: PTR*170600003 | B105: SI | C105: EQT | D105: DIVIDEND | E105: 2017-05-04 | F105: 2017-05-04 | G105: 2017-06-06 | H105: 3000-01-01 | I105: SHLI | J105: 1155 | K105: MAYBANK | L105: Malayan Banking Berhad | M105: 1980000 | N105: 1980000 | O105: 0 | P105: 2017-05-04T11:27:21 | Q105: dzul.aqmal
A106: PTR*170600004 | B106: SI | C106: EQT | D106: DIVIDEND | E106: 42859 | F106: 42859 | G106: 42892 | H106: 401769 | I106: SHLI | J106: 1155 | K106: MAYBANK | L106: Malayan Banking Berhad | M106: 900000 | N106: 900000 | O106: 0 | P106: 2017-05-04T11:27:21 | Q106: dzul.aqmal
A107: EQT*170300031 | B107: SS | C107: EQT | D107: CORE | E107: 42796 | F107: 42796 | G107: 42801 | H107: 401769 | I107: SHLI | J107: 1155 | K107: MAYBANK | L107: Malayan Banking Berhad | M107: 8749853.98 | N107: 0 | O107: 468698.38 | P107: 2017-03-02T16:59:21 | Q107: aishah
A108: EQT*170300036 | B108: SS | C108: EQT | D108: CORE | E108: 42796 | F108: 42796 | G108: 42801 | H108: 401769 | I108: SHLI | J108: 1155 | K108: MAYBANK | L108: Malayan Banking Berhad | M108: 13139795.7 | N108: 0 | O108: 718062.3 | P108: 2017-03-02T17:09:18 | Q108: aishah
A109: EQT*170300037 | B109: SS | C109: EQT | D109: CORE | E109: 2017-03-02 | F109: 2017-03-02 | G109: 2017-03-07 | H109: 3000-01-01 | I109: SHLI | J109: 1155 | K109: MAYBANK | L109: Malayan Banking Berhad | M109: 26241593.06 | N109: 0 | O109: 1398126.26 | P109: 2017-03-02T17:30:24 | Q109: aishah
A110: EQT*170300066 | B110: SS | C110: EQT | D110: CORE | E110: 42800 | F110: 42800 | G110: 42803 | H110: 401769 | I110: SHLI | J110: 1155 | K110: MAYBANK | L110: Malayan Banking Berhad | M110: 17495573.68 | N110: 0 | O110: 933262.48 | P110: 42800.71861 | Q110: aishah
A111: EQT*170300071 | B111: SS | C111: EQT | D111: CORE | E111: 42801 | F111: 42801 | G111: 42804 | H111: 401769 | I111: SHLI | J111: 1155 | K111: MAYBANK | L111: Malayan Banking Berhad | M111: 4926759.67 | N111: 0 | O111: 308359.19 | P111: 2017-03-07T10:59:06 | Q111: aishah
A112: EQT*170300107 | B112: SS | C112: EQT | D112: CORE | E112: 42802 | F112: 42802 | G112: 42807 | H112: 401769 | I112: SHLI | J112: 1155 | K112: MAYBANK | L112: Malayan Banking Berhad | M112: 5303111.4 | N112: 0 | O112: 334418.04 | P112: 2017-03-08T16:32:40 | Q112: aishah
A113: EQT*170300118 | B113: SS | C113: EQT | D113: CORE | E113: 2017-03-10 | F113: 2017-03-10 | G113: 2017-03-15 | H113: 3000-01-01 | I113: SHLI | J113: 1155 | K113: MAYBANK | L113: Malayan Banking Berhad | M113: 6154118.14 | N113: 0 | O113: 363934.14 | P113: 2017-03-10T11:40:59 | Q113: ahmad
A114: EQT*170300125 | B114: SS | C114: EQT | D114: CORE | E114: 2017-03-13 | F114: 2017-03-13 | G114: 2017-03-16 | H114: 3000-01-01 | I114: SHLI | J114: 1155 | K114: MAYBANK | L114: Malayan Banking Berhad | M114: 13431378.57 | N114: 0 | O114: 800131.93 | P114: 2017-03-13T10:32:26 | Q114: aishah
A115: EQT*170300146 | B115: SS | C115: EQT | D115: CORE | E115: 2017-03-14 | F115: 2017-03-14 | G115: 2017-03-17 | H115: 3000-01-01 | I115: SHLI | J115: 1155 | K115: MAYBANK | L115: Malayan Banking Berhad | M115: 1549188.35 | N115: 0 | O115: 95845.54 | P115: 2017-03-14T09:26:10 | Q115: ahmad
A116: EQT*170300151 | B116: SS | C116: EQT | D116: CORE | E116: 2017-03-14 | F116: 2017-03-14 | G116: 2017-03-17 | H116: 3000-01-01 | I116: SHLI | J116: 1155 | K116: MAYBANK | L116: Malayan Banking Berhad | M116: 17660998.14 | N116: 0 | O116: 1098686.94 | P116: 2017-03-14T14:59:47 | Q116: aishah
A117: EQT*170300153 | B117: SS | C117: EQT | D117: CORE | E117: 2017-03-14 | F117: 2017-03-14 | G117: 2017-03-17 | H117: 3000-01-01 | I117: SHLI | J117: 1155 | K117: MAYBANK | L117: Malayan Banking Berhad | M117: 4414359 | N117: 0 | O117: 273781.2 | P117: 2017-03-14T15:50:03 | Q117: ahmad
A118: EQT*170300172 | B118: SS | C118: EQT | D118: CORE | E118: 42810 | F118: 42810 | G118: 42815 | H118: 401769 | I118: SHLI | J118: 1155 | K118: MAYBANK | L118: Malayan Banking Berhad | M118: 17652607.04 | N118: 0 | O118: 1090295.84 | P118: 42810.38855 | Q118: aishah
A119: EQT*170300173 | B119: SS | C119: EQT | D119: CORE | E119: 42810 | F119: 42810 | G119: 42815 | H119: 401769 | I119: SHLI | J119: 1155 | K119: MAYBANK | L119: Malayan Banking Berhad | M119: 17679978 | N119: 0 | O119: 1117666.8 | P119: 2017-03-16T09:19:52 | Q119: aishah
A120: EQT*170300184 | B120: SS | C120: EQT | D120: CORE | E120: 42810 | F120: 42810 | G120: 42815 | H120: 401769 | I120: SHLI | J120: 1155 | K120: MAYBANK | L120: Malayan Banking Berhad | M120: 17643416.8 | N120: 0 | O120: 1081105.6 | P120: 2017-03-16T14:53:24 | Q120: aishah
A121: EQT*170300188 | B121: SS | C121: EQT | D121: CORE | E121: 42810 | F121: 42810 | G121: 42815 | H121: 401769 | I121: SHLI | J121: 1155 | K121: MAYBANK | L121: Malayan Banking Berhad | M121: 3948069.63 | N121: 0 | O121: 244736.85 | P121: 2017-03-16T16:55:46 | Q121: aishah
A122: EQT*170300199 | B122: SS | C122: EQT | D122: CORE | E122: 42811 | F122: 42811 | G122: 42816 | H122: 401769 | I122: SHLI | J122: 1155 | K122: MAYBANK | L122: Malayan Banking Berhad | M122: 8536296.58 | N122: 0 | O122: 646011.53 | P122: 2017-03-17T11:45:14 | Q122: aishah
A123: EQT*170300207 | B123: SS | C123: EQT | D123: CORE | E123: 2017-03-17 | F123: 2017-03-17 | G123: 2017-03-22 | H123: 3000-01-01 | I123: SHLI | J123: 1155 | K123: MAYBANK | L123: Malayan Banking Berhad | M123: 6190697.56 | N123: 0 | O123: 461794.12 | P123: 2017-03-17T16:40:13 | Q123: aishah
A124: EQT*170300208 | B124: SS | C124: EQT | D124: CORE | E124: 2017-03-17 | F124: 2017-03-17 | G124: 2017-03-22 | H124: 3000-01-01 | I124: SHLI | J124: 1155 | K124: MAYBANK | L124: Malayan Banking Berhad | M124: 16115398.21 | N124: 0 | O124: 1209318.13 | P124: 2017-03-17T16:57:43 | Q124: aishah
A125: EQT*170300218 | B125: SS | C125: EQT | D125: CORE | E125: 2017-03-20 | F125: 2017-03-20 | G125: 2017-03-23 | H125: 3000-01-01 | I125: SHLI | J125: 1155 | K125: MAYBANK | L125: Malayan Banking Berhad | M125: 4459015.13 | N125: 0 | O125: 288309.98 | P125: 2017-03-20T17:14:39 | Q125: aishah
A126: EQT*170500060 | B126: SS | C126: EQT | D126: CORE | E126: 2017-05-08 | F126: 2017-05-08 | G126: 2017-05-12 | H126: 3000-01-01 | I126: SHLI | J126: 1155 | K126: MAYBANK | L126: Malayan Banking Berhad | M126: 3750768.8 | N126: 0 | O126: 178444.36 | P126: 2017-05-08T08:34:13 | Q126: aishah
A127: EQT*170500061 | B127: SS | C127: EQT | D127: CORE | E127: 2017-05-08 | F127: 2017-05-08 | G127: 2017-05-12 | H127: 3000-01-01 | I127: SHLI | J127: 1155 | K127: MAYBANK | L127: Malayan Banking Berhad | M127: 3750768.8 | N127: 0 | O127: 178444.36 | P127: 2017-05-08T08:40:18 | Q127: aishah
A128: EQT*170500071 | B128: SS | C128: EQT | D128: CORE | E128: 42864 | F128: 42864 | G128: 42870 | H128: 401769 | I128: SHLI | J128: 1155 | K128: MAYBANK | L128: Malayan Banking Berhad | M128: 8431791.48 | N128: 0 | O128: 394061.5 | P128: 2017-05-09T10:11:26 | Q128: ahmad
A129: EQT*170500077 | B129: SS | C129: EQT | D129: CORE | E129: 42864 | F129: 42864 | G129: 42870 | H129: 401769 | I129: SHLI | J129: 1155 | K129: MAYBANK | L129: Malayan Banking Berhad | M129: 15958461.16 | N129: 0 | O129: 763579.18 | P129: 2017-05-09T11:23:11 | Q129: aishah
A130: EQT*170500078 | B130: SS | C130: EQT | D130: CORE | E130: 2017-05-09 | F130: 2017-05-09 | G130: 2017-05-15 | H130: 3000-01-01 | I130: SHLI | J130: 1155 | K130: MAYBANK | L130: Malayan Banking Berhad | M130: 28115804.29 | N130: 0 | O130: 1323371.03 | P130: 2017-05-09T11:26:36 | Q130: aishah
A131: EQT*170500079 | B131: SS | C131: EQT | D131: CORE | E131: 42864 | F131: 42864 | G131: 42870 | H131: 401769 | I131: SHLI | J131: 1155 | K131: MAYBANK | L131: Malayan Banking Berhad | M131: 11437705.83 | N131: 0 | O131: 534971.65 | P131: 2017-05-09T16:52:10 | Q131: aishah
A132: EQT*170500080 | B132: SS | C132: EQT | D132: CORE | E132: 2017-05-11 | F132: 2017-05-11 | G132: 2017-05-16 | H132: 3000-01-01 | I132: SHLI | J132: 1155 | K132: MAYBANK | L132: Malayan Banking Berhad | M132: 28121198.56 | N132: 0 | O132: 1328765.3 | P132: 2017-05-11T09:46:51 | Q132: aishah
A133: EQT*170500088 | B133: SS | C133: EQT | D133: CORE | E133: 2017-05-11 | F133: 2017-05-11 | G133: 2017-05-16 | H133: 3000-01-01 | I133: SHLI | J133: 1155 | K133: MAYBANK | L133: Malayan Banking Berhad | M133: 15266305.9 | N133: 0 | O133: 718014.64 | P133: 2017-05-11T16:58:19 | Q133: aishah
A134: EQT*170500095 | B134: SS | C134: EQT | D134: CORE | E134: 2017-05-12 | F134: 2017-05-12 | G134: 2017-05-17 | H134: 3000-01-01 | I134: SHLI | J134: 1155 | K134: MAYBANK | L134: Malayan Banking Berhad | M134: 12181632.43 | N134: 0 | O134: 571578.02 | P134: 2017-05-12T17:05:34 | Q134: aishah
A135: EQT*170500098 | B135: SS | C135: EQT | D135: CORE | E135: 2017-05-15 | F135: 2017-05-15 | G135: 2017-05-18 | H135: 3000-01-01 | I135: SHLI | J135: 1155 | K135: MAYBANK | L135: Malayan Banking Berhad | M135: 28121498.24 | N135: 0 | O135: 1329064.98 | P135: 2017-05-15T10:02:50 | Q135: aishah
A136: EQT*170500103 | B136: SS | C136: EQT | D136: CORE | E136: 2017-05-15 | F136: 2017-05-15 | G136: 2017-05-18 | H136: 3000-01-01 | I136: SHLI | J136: 1155 | K136: MAYBANK | L136: Malayan Banking Berhad | M136: 22948539.24 | N136: 0 | O136: 1078769.05 | P136: 2017-05-15T11:42:29 | Q136: aishah
A137: EQT*170500206 | B137: SS | C137: EQT | D137: CORE | E137: 2017-05-30 | F137: 2017-05-30 | G137: 2017-06-02 | H137: 3000-01-01 | I137: SHLI | J137: 1155 | K137: MAYBANK | L137: Malayan Banking Berhad | M137: 11245797.47 | N137: 0 | O137: 514534.87 | P137: 2017-05-30T08:55:52 | Q137: aishah
A138: EQT*170600029 | B138: SS | C138: EQT | D138: CORE | E138: 42888 | F138: 42888 | G138: 42893 | H138: 401769 | I138: SHLI | J138: 1155 | K138: MAYBANK | L138: Malayan Banking Berhad | M138: 18994782.83 | N138: 0 | O138: 1133160.65 | P138: 2017-06-02T17:15:02 | Q138: aishah
A139: EQT*170600031 | B139: SS | C139: EQT | D139: CORE | E139: 2017-06-05 | F139: 2017-06-05 | G139: 2017-06-08 | H139: 3000-01-01 | I139: SHLI | J139: 1155 | K139: MAYBANK | L139: Malayan Banking Berhad | M139: 28713370.19 | N139: 0 | O139: 1920936.93 | P139: 2017-06-05T09:05:15 | Q139: aishah
A140: EQT*170600039 | B140: SS | C140: EQT | D140: CORE | E140: 2017-06-05 | F140: 2017-06-05 | G140: 2017-06-08 | H140: 3000-01-01 | I140: SHLI | J140: 1155 | K140: MAYBANK | L140: Malayan Banking Berhad | M140: 12763166.25 | N140: 0 | O140: 877149.77 | P140: 2017-06-05T10:54:54 | Q140: aishah
A141: EQT*170600042 | B141: SS | C141: EQT | D141: CORE | E141: 2017-06-05 | F141: 2017-06-05 | G141: 2017-06-08 | H141: 3000-01-01 | I141: SHLI | J141: 1155 | K141: MAYBANK | L141: Malayan Banking Berhad | M141: 19143225.31 | N141: 0 | O141: 1281603.13 | P141: 2017-06-05T14:45:34 | Q141: aishah
A142: EQT*170600043 | B142: SS | C142: EQT | D142: CORE | E142: 2017-06-05 | F142: 2017-06-05 | G142: 2017-06-08 | H142: 3000-01-01 | I142: SHLI | J142: 1155 | K142: MAYBANK | L142: Malayan Banking Berhad | M142: 19166400.72 | N142: 0 | O142: 1304778.54 | P142: 2017-06-05T14:47:28 | Q142: aishah
A143: EQT*170600066 | B143: SS | C143: EQT | D143: CORE | E143: 2017-06-06 | F143: 2017-06-06 | G143: 2017-06-09 | H143: 3000-01-01 | I143: SHLI | J143: 1155 | K143: MAYBANK | L143: Malayan Banking Berhad | M143: 3629510.41 | N143: 0 | O143: 261669.09 | P143: 2017-06-06T16:40:01 | Q143: aishah
A144: EQT*170600119 | B144: SS | C144: EQT | D144: CORE | E144: 2017-06-13 | F144: 2017-06-13 | G144: 2017-06-16 | H144: 3000-01-01 | I144: SHLI | J144: 1155 | K144: MAYBANK | L144: Malayan Banking Berhad | M144: 1273117.06 | N144: 0 | O144: 76656.73 | P144: 2017-06-13T09:44:21 | Q144: aishah
A145: EQT*170600139 | B145: SS | C145: EQT | D145: CORE | E145: 2017-06-14 | F145: 2017-06-14 | G145: 2017-06-19 | H145: 3000-01-01 | I145: SHLI | J145: 1155 | K145: MAYBANK | L145: Malayan Banking Berhad | M145: 19179386.94 | N145: 0 | O145: 1201019.81 | P145: 2017-06-14T13:13:38 | Q145: aishah
A146: EQT*170600142 | B146: SS | C146: EQT | D146: CORE | E146: 2017-06-15 | F146: 2017-06-15 | G146: 2017-06-20 | H146: 3000-01-01 | I146: SHLI | J146: 1155 | K146: MAYBANK | L146: Malayan Banking Berhad | M146: 5507938.06 | N146: 0 | O146: 365226.14 | P146: 2017-06-15T09:32:53 | Q146: aishah
A147: EQT*170600152 | B147: SS | C147: EQT | D147: CORE | E147: 2017-06-15 | F147: 2017-06-15 | G147: 2017-06-20 | H147: 3000-01-01 | I147: SHLI | J147: 1155 | K147: MAYBANK | L147: Malayan Banking Berhad | M147: 11544528.48 | N147: 0 | O147: 757508.2 | P147: 2017-06-15T11:43:47 | Q147: aishah
A148: EQT*170800052 | B148: SS | C148: EQT | D148: CORE | E148: 2017-08-08 | F148: 2017-08-08 | G148: 2017-08-11 | H148: 3000-01-01 | I148: SHLI | J148: 1155 | K148: MAYBANK | L148: Malayan Banking Berhad | M148: 1001976.72 | N148: 0 | O148: 52102.47 | P148: 2017-08-08T16:45:09 | Q148: aishah
A149: EQT*170900073 | B149: SS | C149: EQT | D149: CORE | E149: 42996 | F149: 42996 | G149: 42999 | H149: 401769 | I149: SHLI | J149: 1155 | K149: MAYBANK | L149: Malayan Banking Berhad | M149: 9792147.97 | N149: 0 | O149: 436806.44 | P149: 2017-09-18T12:07:38 | Q149: aishah
A150: EQT*170900078 | B150: SS | C150: EQT | D150: CORE | E150: 42997 | F150: 42997 | G150: 43003 | H150: 401769 | I150: SHLI | J150: 1155 | K150: MAYBANK | L150: Malayan Banking Berhad | M150: 19597942.8 | N150: 0 | O150: 887259.75 | P150: 2017-09-19T12:53:14 | Q150: aishah
A151: EQT*170900083 | B151: SS | C151: EQT | D151: CORE | E151: 2017-09-20 | F151: 2017-09-20 | G151: 2017-09-26 | H151: 3000-01-01 | I151: SHLI | J151: 1155 | K151: MAYBANK | L151: Malayan Banking Berhad | M151: 4913299 | N151: 0 | O151: 235628.24 | P151: 2017-09-20T10:30:57 | Q151: ahmad
A152: EQT*170900084 | B152: SS | C152: EQT | D152: CORE | E152: 42998 | F152: 42998 | G152: 43004 | H152: 401769 | I152: SHLI | J152: 1155 | K152: MAYBANK | L152: Malayan Banking Berhad | M152: 4913299 | N152: 0 | O152: 235628.24 | P152: 2017-09-20T11:49:55 | Q152: aishah
A153: EQT*170900085 | B153: SS | C153: EQT | D153: CORE | E153: 2017-09-20 | F153: 2017-09-20 | G153: 2017-09-26 | H153: 3000-01-01 | I153: SHLI | J153: 1155 | K153: MAYBANK | L153: Malayan Banking Berhad | M153: 9838299 | N153: 0 | O153: 482957.47 | P153: 2017-09-20T11:50:51 | Q153: aishah
A154: EQT*170900093 | B154: SS | C154: EQT | D154: CORE | E154: 2017-09-21 | F154: 2017-09-21 | G154: 2017-09-27 | H154: 3000-01-01 | I154: SHLI | J154: 1155 | K154: MAYBANK | L154: Malayan Banking Berhad | M154: 590184.85 | N154: 0 | O154: 27928.82 | P154: 2017-09-21T16:52:09 | Q154: aishah
A155: EQT*170900095 | B155: SS | C155: EQT | D155: CORE | E155: 2017-09-21 | F155: 2017-09-21 | G155: 2017-09-27 | H155: 3000-01-01 | I155: SHLI | J155: 1155 | K155: MAYBANK | L155: Malayan Banking Berhad | M155: 9839797.41 | N155: 0 | O155: 484455.88 | P155: 2017-09-21T16:55:48 | Q155: aishah
A156: EQT*170900102 | B156: SS | C156: EQT | D156: CORE | E156: 43004 | F156: 43004 | G156: 43007 | H156: 401769 | I156: SHLI | J156: 1155 | K156: MAYBANK | L156: Malayan Banking Berhad | M156: 305667 | N156: 0 | O156: 13780.34 | P156: 43004.69759 | Q156: aishah
A157: EQT*170900106 | B157: SS | C157: EQT | D157: CORE | E157: 2017-09-27 | F157: 2017-09-27 | G157: 2017-10-02 | H157: 3000-01-01 | I157: SHLI | J157: 1155 | K157: MAYBANK | L157: Malayan Banking Berhad | M157: 19622716.51 | N157: 0 | O157: 912033.46 | P157: 2017-09-27T16:31:03 | Q157: aishah
A158: EQT*170900108 | B158: SS | C158: EQT | D158: CORE | E158: 2017-09-27 | F158: 2017-09-27 | G158: 2017-10-02 | H158: 3000-01-01 | I158: SHLI | J158: 1155 | K158: MAYBANK | L158: Malayan Banking Berhad | M158: 9829808.01 | N158: 0 | O158: 474466.48 | P158: 2017-09-27T16:39:58 | Q158: aishah
A159: EQT*170900110 | B159: SS | C159: EQT | D159: CORE | E159: 2017-09-27 | F159: 2017-09-27 | G159: 2017-10-02 | H159: 3000-01-01 | I159: SHLI | J159: 1155 | K159: MAYBANK | L159: Malayan Banking Berhad | M159: 8854343.1 | N159: 0 | O159: 434535.73 | P159: 2017-09-27T17:14:33 | Q159: aishah
A160: EQT*170900115 | B160: SS | C160: EQT | D160: CORE | E160: 43006 | F160: 43006 | G160: 43011 | H160: 401769 | I160: SHLI | J160: 1155 | K160: MAYBANK | L160: Malayan Banking Berhad | M160: 29434405.09 | N160: 0 | O160: 1368380.51 | P160: 2017-09-28T15:51:26 | Q160: aishah
A161: EQT*170900116 | B161: SS | C161: EQT | D161: CORE | E161: 2017-09-28 | F161: 2017-09-28 | G161: 2017-10-03 | H161: 3000-01-01 | I161: SHLI | J161: 1155 | K161: MAYBANK | L161: Malayan Banking Berhad | M161: 29434405.09 | N161: 0 | O161: 1368380.52 | P161: 2017-09-28T15:53:51 | Q161: aishah
A162: EQT*170900118 | B162: SS | C162: EQT | D162: CORE | E162: 2017-09-28 | F162: 2017-09-28 | G162: 2017-10-03 | H162: 3000-01-01 | I162: SHLI | J162: 1155 | K162: MAYBANK | L162: Malayan Banking Berhad | M162: 8754568.97 | N162: 0 | O162: 387151.51 | P162: 2017-09-28T16:44:44 | Q162: aishah
A163: EQT*171000001 | B163: SS | C163: EQT | D163: CORE | E163: 43010 | F163: 43010 | G163: 43013 | H163: 401769 | I163: SHLI | J163: 1155 | K163: MAYBANK | L163: Malayan Banking Berhad | M163: 7630641.6 | N163: 0 | O163: 146368.38 | P163: 2017-10-02T09:13:00 | Q163: faris
A164: EQT*171000004 | B164: SS | C164: EQT | D164: CORE | E164: 2017-10-02 | F164: 2017-10-02 | G164: 2017-10-05 | H164: 3000-01-01 | I164: SHLI | J164: 1155 | K164: MAYBANK | L164: Malayan Banking Berhad | M164: 28619869.41 | N164: 0 | O164: 553844.83 | P164: 2017-10-02T10:47:40 | Q164: aishah
A165: EQT*171000006 | B165: SS | C165: EQT | D165: CORE | E165: 2017-10-02 | F165: 2017-10-02 | G165: 2017-10-05 | H165: 3000-01-01 | I165: SHLI | J165: 1155 | K165: MAYBANK | L165: Malayan Banking Berhad | M165: 28618371 | N165: 0 | O165: 552346.43 | P165: 2017-10-02T10:58:33 | Q165: aishah
A166: EQT*171000010 | B166: SS | C166: EQT | D166: CORE | E166: 43011 | F166: 43011 | G166: 43014 | H166: 401769 | I166: SHLI | J166: 1155 | K166: MAYBANK | L166: Malayan Banking Berhad | M166: 19098472.8 | N166: 0 | O166: 387789.75 | P166: 43011.66302 | Q166: aishah
A167: EQT*171000014 | B167: SS | C167: EQT | D167: CORE | E167: 43011 | F167: 43011 | G167: 43014 | H167: 401769 | I167: SHLI | J167: 1155 | K167: MAYBANK | L167: Malayan Banking Berhad | M167: 28624664.32 | N167: 0 | O167: 558639.74 | P167: 43011.71034 | Q167: aishah
A168: EQT*171000018 | B168: SS | C168: EQT | D168: CORE | E168: 43012 | F168: 43012 | G168: 43017 | H168: 401769 | I168: SHLI | J168: 1155 | K168: MAYBANK | L168: Malayan Banking Berhad | M168: 9541114.35 | N168: 0 | O168: 185772.83 | P168: 43012.51807 | Q168: aishah
A169: EQT*171000020 | B169: SS | C169: EQT | D169: CORE | E169: 2017-10-05 | F169: 2017-10-05 | G169: 2017-10-10 | H169: 3000-01-01 | I169: SHLI | J169: 1155 | K169: MAYBANK | L169: Malayan Banking Berhad | M169: 375406.58 | N169: 0 | O169: 6806.12 | P169: 2017-10-05T09:20:32 | Q169: ahmad
A170: EQT*171000024 | B170: SS | C170: EQT | D170: CORE | E170: 43013 | F170: 43013 | G170: 43018 | H170: 401769 | I170: SHLI | J170: 1155 | K170: MAYBANK | L170: Malayan Banking Berhad | M170: 179062.19 | N170: 0 | O170: 3181.77 | P170: 43013.45888 | Q170: ahmad
A171: EQT*171000029 | B171: SS | C171: EQT | D171: CORE | E171: 2017-10-06 | F171: 2017-10-06 | G171: 2017-10-11 | H171: 3000-01-01 | I171: SHLI | J171: 1155 | K171: MAYBANK | L171: Malayan Banking Berhad | M171: 9529726.43 | N171: 0 | O171: 174384.9 | P171: 2017-10-06T09:08:31 | Q171: ahmad
A172: EQT*171000033 | B172: SS | C172: EQT | D172: CORE | E172: 2017-10-06 | F172: 2017-10-06 | G172: 2017-10-11 | H172: 3000-01-01 | I172: SHLI | J172: 1155 | K172: MAYBANK | L172: Malayan Banking Berhad | M172: 9145717.88 | N172: 0 | O172: 166461.08 | P172: 2017-10-06T09:19:35 | Q172: ahmad
A173: EQT*171000039 | B173: SS | C173: EQT | D173: CORE | E173: 43017 | F173: 43017 | G173: 43020 | H173: 401769 | I173: SHLI | J173: 1155 | K173: MAYBANK | L173: Malayan Banking Berhad | M173: 8107635.45 | N173: 0 | O173: 155595.15 | P173: 2017-10-09T10:52:12 | Q173: faris
A174: EQT*171000045 | B174: SS | C174: EQT | D174: CORE | E174: 43018 | F174: 43018 | G174: 43021 | H174: 401769 | I174: SHLI | J174: 1155 | K174: MAYBANK | L174: Malayan Banking Berhad | M174: 9538617 | N174: 0 | O174: 183275.48 | P174: 43018.40921 | Q174: faris
A175: EQT*171000050 | B175: SS | C175: EQT | D175: CORE | E175: 2017-10-11 | F175: 2017-10-11 | G175: 2017-10-16 | H175: 3000-01-01 | I175: SHLI | J175: 1155 | K175: MAYBANK | L175: Malayan Banking Berhad | M175: 3650541.73 | N175: 0 | O175: 65574.86 | P175: 2017-10-11T16:04:19 | Q175: aishah
A176: EQT*170200070 | B176: SS | C176: EQT | D176: DIVIDEND | E176: 42782 | F176: 42782 | G176: 42787 | H176: 401769 | I176: SHLI | J176: 1155 | K176: MAYBANK | L176: Malayan Banking Berhad | M176: 6826574.82 | N176: 0 | O176: 211214.97 | P176: 2017-02-16T15:30:36 | Q176: aishah
A177: EQT*170200077 | B177: SS | C177: EQT | D177: DIVIDEND | E177: 42783 | F177: 42783 | G177: 42788 | H177: 401769 | I177: SHLI | J177: 1155 | K177: MAYBANK | L177: Malayan Banking Berhad | M177: 8438084.8 | N177: 0 | O177: 308110.79 | P177: 2017-02-17T08:57:31 | Q177: ahmad
A178: EQT*170200086 | B178: SS | C178: EQT | D178: DIVIDEND | E178: 2017-02-17 | F178: 2017-02-17 | G178: 2017-02-22 | H178: 3000-01-01 | I178: SHLI | J178: 1155 | K178: MAYBANK | L178: Malayan Banking Berhad | M178: 24034619.67 | N178: 0 | O178: 913786.59 | P178: 2017-02-17T11:51:11 | Q178: aishah
A179: EQT*170200093 | B179: SS | C179: EQT | D179: DIVIDEND | E179: 42786 | F179: 42786 | G179: 42789 | H179: 401769 | I179: SHLI | J179: 1155 | K179: MAYBANK | L179: Malayan Banking Berhad | M179: 18112505.43 | N179: 0 | O179: 649321.26 | P179: 42786.40639 | Q179: aishah
A180: EQT*170200110 | B180: SS | C180: EQT | D180: DIVIDEND | E180: 42788 | F180: 42788 | G180: 42793 | H180: 401769 | I180: SHLI | J180: 1155 | K180: MAYBANK | L180: Malayan Banking Berhad | M180: 25232863.45 | N180: 0 | O180: 842941.43 | P180: 42788.39615 | Q180: aishah
A181: EQT*170200124 | B181: SS | C181: EQT | D181: DIVIDEND | E181: 42790 | F181: 42790 | G181: 42795 | H181: 401769 | I181: SHLI | J181: 1155 | K181: MAYBANK | L181: Malayan Banking Berhad | M181: 8529787.49 | N181: 0 | O181: 399813.48 | P181: 2017-02-24T09:13:58 | Q181: ahmad
A182: EQT*170200134 | B182: SS | C182: EQT | D182: DIVIDEND | E182: 42790 | F182: 42790 | G182: 42795 | H182: 401769 | I182: SHLI | J182: 1155 | K182: MAYBANK | L182: Malayan Banking Berhad | M182: 17169519.66 | N182: 0 | O182: 909571.65 | P182: 2017-02-24T14:48:00 | Q182: aishah
A183: EQT*170200144 | B183: SS | C183: EQT | D183: DIVIDEND | E183: 42793 | F183: 42793 | G183: 42796 | H183: 401769 | I183: SHLI | J183: 1155 | K183: MAYBANK | L183: Malayan Banking Berhad | M183: 1121558.47 | N183: 0 | O183: 64661.85 | P183: 2017-02-27T10:24:02 | Q183: ahmad
A184: EQT*170200146 | B184: SS | C184: EQT | D184: DIVIDEND | E184: 42793 | F184: 42793 | G184: 42796 | H184: 401769 | I184: SHLI | J184: 1155 | K184: MAYBANK | L184: Malayan Banking Berhad | M184: 25887368.93 | N184: 0 | O184: 1497446.91 | P184: 42793.6515 | Q184: aishah
A185: EQT*170200152 | B185: SS | C185: EQT | D185: DIVIDEND | E185: 2017-02-28 | F185: 2017-02-28 | G185: 2017-03-03 | H185: 3000-01-01 | I185: SHLI | J185: 1155 | K185: MAYBANK | L185: Malayan Banking Berhad | M185: 1704316.43 | N185: 0 | O185: 92955.58 | P185: 2017-02-28T09:11:31 | Q185: ahmad
A186: EQT*170300001 | B186: SS | C186: EQT | D186: DIVIDEND | E186: 2017-03-01 | F186: 2017-03-01 | G186: 2017-03-06 | H186: 3000-01-01 | I186: SHLI | J186: 1155 | K186: MAYBANK | L186: Malayan Banking Berhad | M186: 4294663.29 | N186: 0 | O186: 229676.29 | P186: 2017-03-01T09:03:26 | Q186: ahmad
A187: EQT*170300011 | B187: SS | C187: EQT | D187: DIVIDEND | E187: 2017-03-01 | F187: 2017-03-01 | G187: 2017-03-06 | H187: 3000-01-01 | I187: SHLI | J187: 1155 | K187: MAYBANK | L187: Malayan Banking Berhad | M187: 13805049.78 | N187: 0 | O187: 797091.37 | P187: 2017-03-01T16:26:57 | Q187: aishah
A188: EQT*170300038 | B188: SS | C188: EQT | D188: DIVIDEND | E188: 2017-03-02 | F188: 2017-03-02 | G188: 2017-03-07 | H188: 3000-01-01 | I188: SHLI | J188: 1155 | K188: MAYBANK | L188: Malayan Banking Berhad | M188: 6358491.51 | N188: 0 | O188: 443122.42 | P188: 2017-03-02T17:35:04 | Q188: aishah
A189: EQT*170300072 | B189: SS | C189: EQT | D189: DIVIDEND | E189: 2017-03-07 | F189: 2017-03-07 | G189: 2017-03-10 | H189: 3000-01-01 | I189: SHLI | J189: 1155 | K189: MAYBANK | L189: Malayan Banking Berhad | M189: 5951971.32 | N189: 0 | O189: 485376.8 | P189: 2017-03-07T10:59:54 | Q189: aishah
A190: EQT*170300134 | B190: SS | C190: EQT | D190: DIVIDEND | E190: 2017-03-13 | F190: 2017-03-13 | G190: 2017-03-16 | H190: 3000-01-01 | I190: SHLI | J190: 1155 | K190: MAYBANK | L190: Malayan Banking Berhad | M190: 8793407.76 | N190: 0 | O190: 663433.75 | P190: 2017-03-13T16:03:49 | Q190: aishah
A191: EQT*170400129 | B191: SS | C191: EQT | D191: DIVIDEND | E191: 42845 | F191: 42845 | G191: 42851 | H191: 401769 | I191: SHLI | J191: 1155 | K191: MAYBANK | L191: Malayan Banking Berhad | M191: 1809796.44 | N191: 0 | O191: 153600.21 | P191: 2017-04-20T17:22:02 | Q191: aishah
A192: EQT*170500160 | B192: SS | C192: EQT | D192: DIVIDEND | E192: 42877 | F192: 42877 | G192: 42880 | H192: 401769 | I192: SHLI | J192: 1155 | K192: MAYBANK | L192: Malayan Banking Berhad | M192: 2250060.46 | N192: 0 | O192: 183660.62 | P192: 2017-05-22T16:56:43 | Q192: aishah
A193: EQT*170500181 | B193: SS | C193: EQT | D193: DIVIDEND | E193: 42879 | F193: 42879 | G193: 42884 | H193: 401769 | I193: SHLI | J193: 1155 | K193: MAYBANK | L193: Malayan Banking Berhad | M193: 6649193.04 | N193: 0 | O193: 570033.33 | P193: 42879.66142 | Q193: aishah
A194: EQT*170500201 | B194: SS | C194: EQT | D194: DIVIDEND | E194: 2017-05-29 | F194: 2017-05-29 | G194: 2017-06-01 | H194: 3000-01-01 | I194: SHLI | J194: 1155 | K194: MAYBANK | L194: Malayan Banking Berhad | M194: 7965246.54 | N194: 0 | O194: 690833.15 | P194: 2017-05-29T11:44:08 | Q194: aishah
A195: EQT*170600107 | B195: SS | C195: EQT | D195: DIVIDEND | E195: 2017-06-09 | F195: 2017-06-09 | G195: 2017-06-15 | H195: 3000-01-01 | I195: SHLI | J195: 1155 | K195: MAYBANK | L195: Malayan Banking Berhad | M195: 5752634.4 | N195: 0 | O195: 608070.47 | P195: 2017-06-09T10:48:47 | Q195: aishah
A196: EQT*170600169 | B196: SS | C196: EQT | D196: DIVIDEND | E196: 2017-06-16 | F196: 2017-06-16 | G196: 2017-06-21 | H196: 3000-01-01 | I196: SHLI | J196: 1155 | K196: MAYBANK | L196: Malayan Banking Berhad | M196: 3226630.75 | N196: 0 | O196: 346532.38 | P196: 2017-06-16T16:55:23 | Q196: aishah
A197: EQT*170600244 | B197: SS | C197: EQT | D197: DIVIDEND | E197: 2017-06-30 | F197: 2017-06-30 | G197: 2017-07-05 | H197: 3000-01-01 | I197: SHLI | J197: 1155 | K197: MAYBANK | L197: Malayan Banking Berhad | M197: 13288482.92 | N197: 0 | O197: 1443124.48 | P197: 2017-06-30T17:18:35 | Q197: aishah
A198: EQT*170700024 | B198: SS | C198: EQT | D198: DIVIDEND | E198: 2017-07-05 | F198: 2017-07-05 | G198: 2017-07-10 | H198: 3000-01-01 | I198: SHLI | J198: 1155 | K198: MAYBANK | L198: Malayan Banking Berhad | M198: 19281278.82 | N198: 0 | O198: 1579170.43 | P198: 2017-07-05T11:46:25 | Q198: aishah
A199: EQT*170700026 | B199: SS | C199: EQT | D199: DIVIDEND | E199: 2017-07-05 | F199: 2017-07-05 | G199: 2017-07-10 | H199: 3000-01-01 | I199: SHLI | J199: 1155 | K199: MAYBANK | L199: Malayan Banking Berhad | M199: 4807896.92 | N199: 0 | O199: 392105.98 | P199: 2017-07-05T16:47:15 | Q199: ahmad
A200: EQT*170700047 | B200: SS | C200: EQT | D200: DIVIDEND | E200: 42926 | F200: 42926 | G200: 42929 | H200: 401769 | I200: SHLI | J200: 1155 | K200: MAYBANK | L200: Malayan Banking Berhad | M200: 23815573.37 | N200: 0 | O200: 1379446.82 | P200: 2017-07-10T14:54:37 | Q200: aishah
... 571 more rows

Sheet 1b.Allocation Status
V2: PRIVATE & CONFIDENTIAL
C3: ="ValueCap Allocation Status and Strategy as at " & TEXT(ValueDate,"dd MMMM yyyy") -> ValueCap Allocation Status and Strategy as at 11 October 2017
O7: CORE, DIVIDEND, REITS, INDEX
Q8: % | R8: RM mil
O9: Market | Q9: =IF(L14=0,0,R9/L14) -> 0.5128232203 | R9: =SUMIFS(InPosTemp!L:L,InPosTemp!E:E,"CORE")+SUMIFS(InPosTemp!L:L,InPosTemp!E:E,"DIVIDEND")+SUMIFS(InPosTemp!L:L,InPosTemp!E:E,"REITS")+SUMIFS(InPosTemp!L:L,InPosTemp!E:E,"INDEX") -> 2475428207
O10: Cost | Q10: =IF(L15=0,0,R10/L15) -> 0.5157197486 | R10: =SUMIFS(InPosTemp!K:K,InPosTemp!E:E,"CORE")+SUMIFS(InPosTemp!K:K,InPosTemp!E:E,"DIVIDEND")+SUMIFS(InPosTemp!K:K,InPosTemp!E:E,"REITS")+SUMIFS(InPosTemp!K:K,InPosTemp!E:E,"INDEX") -> 2608384819
I12: EQUITY
K13: % | L13: RM mil
I14: Market | K14: =IF(E30=0,0,L14/E30) -> 0.7853571927 | L14: =R9+R17 -> 4827059519
I15: Cost | K15: =IF(E33=0,0,L15/E33) -> 0.7935847752 | L15: =R10+R18 -> 5057756322 | O15: VALUE, GROWTH, SMALL MID-CAP
Q16: % | R16: RM mil
O17: Market | Q17: =IF(L14=0,0,R17/L14) -> 0.4871767797 | R17: =SUMIFS(InPosTemp!L:L,InPosTemp!E:E,"VALUE")+SUMIFS(InPosTemp!L:L,InPosTemp!E:E,"GROWTH")+SUMIFS(InPosTemp!L:L,InPosTemp!E:E,"SMALLMIDCAP") -> 2351631312
O18: Cost | Q18: =IF(L15=0,0,R18/L15) -> 0.4842802514 | R18: =SUMIFS(InPosTemp!K:K,InPosTemp!E:E,"VALUE")+SUMIFS(InPosTemp!K:K,InPosTemp!E:E,"GROWTH")+SUMIFS(InPosTemp!K:K,InPosTemp!E:E,"SMALLMIDCAP") -> 2449371503
O22: DEPOSIT
Q23: % | R23: RM mil
O24: Market | Q24: =IF(L32=0,0,R24/L32) -> 1 | R24: =SUMIFS(InPosTemp!L:L,InPosTemp!E:E,"DEPOSIT") -> 1290546795
O25: Cost | Q25: =IF(L33=0,0,R25/L33) -> 1 | R25: =SUMIFS(InPosTemp!K:K,InPosTemp!E:E,"DEPOSIT") -> 1290546795
E29: RM mil
C30: CURRENT MARKET VALUE | E30: =L14+L32+L65 -> 6146323691 | I30: CASH | O30: COMMERCIAL PAPER
K31: % | L31: RM mil | Q31: % | R31: RM mil
I32: Market | K32: =IF(E30=0,0,L32/E30) -> 0.2099705223 | L32: =R24+R32+R40 -> 1290546795 | O32: Market | Q32: =IF(L32=0,0,R32/L32) -> 0 | R32: =SUMIFS(InPosTemp!K:K,InPosTemp!E:E,"Commercial Papers") -> 0
C33: CURRENT FUND SIZE | E33: =L15+L33+L66 -> 6373303117 | I33: Cost | K33: =IF(E33=0,0,L33/E33) -> 0.202492612 | L33: =R25+R33+R41 -> 1290546795 | O33: Cost | Q33: =IF(L33=0,0,R33/L33) -> 0 | R33: =SUMIFS(InPosTemp!K:K,InPosTemp!E:E,"Commercial Papers") -> 0
O38: FIXED INCOME
Q39: % | R39: RM mil
O40: Market | Q40: =IF(L32=0,0,R40/L32) -> 0 | R40: 0
O41: Cost | Q41: =IF(L33=0,0,R41/L33) -> 0 | R41: 0
U45: DOMESTIC
W46: % | X46: RM mil
U47: Market | W47: =IF(R50=0,0,X47/R50) -> 0 | X47: =SUMIFS(InPosTemp!L:L,InPosTemp!D:D,"FEQ") -> 0
O48: EQUITY | U48: Cost | W48: =IF(R51=0,0,X48/R51) -> 0 | X48: =SUMIFS(InPosTemp!K:K,InPosTemp!D:D,"FEQ") -> 0
Q49: % | R49: RM mil
O50: Market | Q50: =IF(L65=0,0,R50/L65) -> 0 | R50: =X47+X54 -> 0
O51: Cost | Q51: =IF(L66=0,0,R51/L66) -> 0 | R51: =X48+X55 -> 0
U52: FOREIGN
W53: % | X53: RM mil
U54: Market | W54: =IF(R50=0,0,X54/R50) -> 0 | X54: =SUMIFS(InPosTemp!L:L,InPosTemp!D:D,"O-FEQ") -> 0
U55: Cost | W55: =IF(R51=0,0,X55/R51) -> 0 | X55: =SUMIFS(InPosTemp!K:K,InPosTemp!D:D,"O-FEQ") -> 0
U60: DOMESTIC
W61: % | X61: RM mil
O62: MONEY MARKET / FIXED INCOME | U62: Market | W62: =IF(R64=0,0,X62/R64) -> 0 | X62: =SUMIFS(InPosTemp!L:L,InPosTemp!D:D,"FMM") -> 0
I63: FUND | Q63: % | R63: RM mil | U63: Cost | W63: =IF(R65=0,0,X63/R65) -> 0 | X63: =SUMIFS(InPosTemp!K:K,InPosTemp!D:D,"FMM") -> 0
K64: % | L64: RM mil | O64: Market | Q64: =IF(L65=0,0,R64/L65) -> 0 | R64: =X62+X69 -> 0
I65: Market | K65: =IF(E30=0,0,L65/E30) -> 0.004672285067 | L65: =R50+R64+R80 -> 28717376.4 | O65: Cost | Q65: =IF(L66=0,0,R65/L66) -> 0 | R65: =X63+X70 -> 0
I66: Cost | K66: =IF(E33=0,0,L66/E33) -> 0.003922612739 | L66: =R51+R65+R81 -> 25000000
U67: FOREIGN
W68: % | X68: RM mil
U69: Market | W69: =IF(R64=0,0,X69/R64) -> 0 | X69: =SUMIFS(InPosTemp!L:L,InPosTemp!D:D,"O-FMM") -> 0
U70: Cost | W70: =IF(R65=0,0,X70/R65) -> 0 | X70: =SUMIFS(InPosTemp!K:K,InPosTemp!D:D,"O-FMM") -> 0
U75: DOMESTIC
W76: % | X76: RM mil
U77: Market | W77: =IF(R80=0,0,X77/R80) -> 1 | X77: =SUMIFS(InPosTemp!L:L,InPosTemp!D:D,"ESG") -> 28717376.4
O78: ESG | U78: Cost | W78: =IF(R81=0,0,X78/R81) -> 1 | X78: =SUMIFS(InPosTemp!K:K,InPosTemp!D:D,"ESG") -> 25000000
Q79: % | R79: RM mil
O80: Market | Q80: =IF(L65=0,0,R80/L65) -> 1 | R80: =X77+X84 -> 28717376.4
O81: Cost | Q81: =IF(L66=0,0,R81/L66) -> 1 | R81: =X78+X85 -> 25000000
U82: FOREIGN
W83: % | X83: RM mil
U84: Market | W84: =IF(R80=0,0,X84/R80) -> 0 | X84: =SUMIFS(InPosTemp!L:L,InPosTemp!D:D,"O-ESG") -> 0
U85: Cost | W85: =IF(R81=0,0,X85/R81) -> 0 | X85: =SUMIFS(InPosTemp!K:K,InPosTemp!D:D,"O-ESG") -> 0

Sheet 1c.Holdings
A1: VALUECAP SDN BHD | N1: =MATCH("Total Equity",A:A,0) -> 84 | O1: =MATCH("Total Fund",A:A,0) -> 619
A2: ="HOLDINGS REPORT AS AT " & TEXT(ValueDate,"dd MMMM yyyy") -> HOLDINGS REPORT AS AT 11 October 2017 | L2: PRIVATE & CONFIDENTIAL
A3: A | B3: B | C3: C | D3: D | E3: E | F3: F | G3: G | H3: H | I3: I | J3: J | K3: K | L3: L | M3: M
E4: Values
A5: Fund ID | B5: Value Date | C5: Security | D5: StockName | E5: Units | F5: Cost Price | G5: Total Cost | H5: Market Price | I5: Market Value | J5: Unrealised | K5: % Gain / (Loss) | L5: % Paid-up Capital | M5: % Unit in Circulation
A6: Equity
A7: CORE | B7: 43019 | C7: 1155 | D7: MAYBANK | E7: 27063100 | F7: 9.355341525 | G7: 253184543.2 | H7: 9.55 | I7: 258452605 | J7: 5268061.78 | K7: 0.02080720139 | L7: 0.002553892778 | M7: 0
C8: 4162 | D8: BAT | E8: 3506800 | F8: 52.77610057 | G8: 185075229.5 | H8: 43.1 | I8: 151143080 | J8: -33932149.48 | K8: -0.1833424688 | L8: 0.01228172171 | M8: 0
C9: 4707 | D9: NESTLE | E9: 1200000 | F9: 78.83903027 | G9: 94606836.33 | H9: 85.26 | I9: 102312000 | J9: 7705163.67 | K9: 0.08144404748 | L9: 0.005117270789 | M9: 0
C10: 4677 | D10: YTL | E10: 65000000 | F10: 1.758868964 | G10: 114326482.7 | H10: 1.38 | I10: 89700000 | J10: -24626482.69 | K10: -0.2154048835 | L10: 0.005957531364 | M10: 0
C11: 6742 | D11: YTLPOWR | E11: 54590100 | F11: 1.622002344 | G11: 88545270.17 | H11: 1.41 | I11: 76972041 | J11: -11573229.17 | K11: -0.1307040924 | L11: 0.006693269537 | M11: 0
C12: 3689 | D12: F&N | E12: 708300 | F12: 24.50199704 | G12: 17354764.5 | H12: 24.76 | I12: 17537508 | J12: 182743.5 | K12: 0.01052987495 | L12: 0.00193113827 | M12: 0
C13: 5681 | D13: PETDAG | E13: 300000 | F13: 23.57338087 | G13: 7072014.26 | H13: 24.3 | I13: 7290000 | J13: 217985.74 | K13: 0.0308237133 | L13: 0.0003019767397 | M13: 0
A14: CORE Total | E14: 152368300 | F14: 4.988997978 | G14: 760165140.7 | H14: 189.76 | I14: 703407234 | J14: -56757906.65 | K14: -0.07466523209 | L14: 0.00483040382 | M14: 0
A16: DIVIDEND | B16: 43019 | C16: 4863 | D16: TM | E16: 52248700 | F16: 6.478502492 | G16: 338493333.2 | H16: 6.15 | I16: 321329505 | J16: -17163828.16 | K16: -0.05070654716 | L16: 0.01390356737 | M16: 0
C17: 6947 | D17: DIGI | E17: 27632800 | F17: 4.993520701 | G17: 137984958.8 | H17: 4.88 | I17: 134848064 | J17: -3136894.84 | K17: -0.02273359985 | L17: 0.003554057878 | M17: 0
C18: 4065 | D18: PPB | E18: 4541700 | F18: 17.04914584 | G18: 77432105.64 | H18: 16.78 | I18: 76209726 | J18: -1222379.64 | K18: -0.01578647035 | L18: 0.003831042136 | M18: 0
C19: 5202 | D19: MSM | E19: 16699000 | F19: 4.883788517 | G19: 81554384.45 | H19: 4.02 | I19: 67129980 | J19: -14424404.45 | K19: -0.1768685344 | L19: 0.02375458761 | M19: 0
C20: 8583 | D20: MAHSING | E20: 26109800 | F20: 1.580591502 | G20: 41268928 | H20: 1.51 | I20: 39425798 | J20: -1843130 | K20: -0.04466144602 | L20: 0.01079899218 | M20: 0
C21: 1295 | D21: PBBANK | E21: 1000000 | F21: 19.93839633 | G21: 19938396.33 | H21: 20.56 | I21: 20560000 | J21: 621603.67 | K21: 0.03117621195 | L21: 0.0002575899957 | M21: 0
C22: 5209 | D22: GASMSIA | E22: 4395400 | F22: 2.960780011 | G22: 13013812.46 | H22: 2.9 | I22: 12746660 | J22: -267152.46 | K22: -0.02052837789 | L22: 0.003423208723 | M22: 0
C23: 5264 | D23: MALAKOF | E23: 10500000 | F23: 1.607738966 | G23: 16881259.14 | H23: 1.03 | I23: 10815000 | J23: -6066259.14 | K23: -0.3593487364 | L23: 0.0021 | M23: 0
C24: 6084 | D24: STAR | E24: 6343100 | F24: 2.449676232 | G24: 15538541.31 | H24: 1.7 | I24: 10783270 | J24: -4755271.31 | K24: -0.3060307409 | L24: 0.008588427568 | M24: 0
C25: 1818 | D25: BURSA | E25: 784000 | F25: 10.35618269 | G25: 8119247.23 | H25: 10.08 | I25: 7902720 | J25: -216527.23 | K25: -0.02666838734 | L25: 0.001458602209 | M25: 0
C26: 5819 | D26: HLBANK | E26: 300000 | F26: 13.57466107 | G26: 4072398.32 | H26: 15.92 | I26: 4776000 | J26: 703601.68 | K26: 0.1727732959 | L26: 0.0001383943671 | M26: 0
C27: 5138 | D27: HSPLANT | E27: 1610700 | F27: 2.706525262 | G27: 4359400.24 | H27: 2.63 | I27: 4236141 | J27: -123259.24 | K27: -0.0282743573 | L27: 0.002013375 | M27: 0
C28: 2089 | D28: UTDPLT | E28: 75200 | F28: 28.3130379 | G28: 2129140.45 | H28: 27.34 | I28: 2055968 | J28: -73172.45 | K28: -0.03436713158 | L28: 0.0003613052355 | M28: 0
C29: 3301 | D29: HLIND | E29: 162500 | F29: 9.401642277 | G29: 1527766.87 | H29: 9.6 | I29: 1560000 | J29: 32233.13 | K29: 0.02109819936 | L29: 0.000495572313 | M29: 0
A30: DIVIDEND Total | E30: 152402900 | F30: 5.001963036 | G30: 762313672.4 | H30: 125.1 | I30: 714378832 | J30: -47934840.44 | K30: -0.0628807303 | L30: 0.004950529188 | M30: 0
A32: REITS | B32: 43019 | C32: 5235SS | D32: KLCC | E32: 32902600 | F32: 7.822511763 | G32: 257380975.5 | H32: 7.8 | I32: 256640280 | J32: -740695.53 | K32: -0.002877817712 | L32: 0.01822522409 | M32: 0
C33: 5176 | D33: SUNREIT | E33: 100800000 | F33: 1.728767043 | G33: 174259717.9 | H33: 1.74 | I33: 175392000 | J33: 1132282.06 | K33: 0.006497669532 | L33: 0.03422659773 | M33: 0
C34: 5227 | D34: IGBREIT | E34: 87911300 | F34: 1.72568368 | G34: 151707095.7 | H34: 1.7 | I34: 149449210 | J34: -2257885.73 | K34: -0.01488319132 | L34: 0.02505865564 | M34: 0
C35: 5180 | D35: CMMT | E35: 81511000 | F35: 1.632245011 | G35: 133045923.1 | H35: 1.43 | I35: 116560730 | J35: -16485193.08 | K35: -0.1239060371 | L35: 0.04000043774 | M35: 0
C36: 5212 | D36: PAVREIT | E36: 39091700 | F36: 1.799263612 | G36: 70336273.36 | H36: 1.72 | I36: 67237724 | J36: -3098549.36 | K36: -0.04405336268 | L36: 0.0129011526 | M36: 0
C37: 5109 | D37: YTLREIT | E37: 43723200 | F37: 1.172001414 | G37: 51243652.22 | H37: 1.21 | I37: 52905072 | J37: 1661419.78 | K37: 0.03242196268 | L37: 0.0256533003 | M37: 0
C38: 5123 | D38: MQREIT | E38: 33896300 | F38: 1.276247671 | G38: 43260073.94 | H38: 1.28 | I38: 43387264 | J38: 127190.06 | K38: 0.002940125812 | L38: 0.03173810861 | M38: 0
C39: 5110 | D39: UOAREIT | E39: 12501100 | F39: 1.771347446 | G39: 22143791.56 | H39: 1.63 | I39: 20376793 | J39: -1766998.56 | K39: -0.07979656759 | L39: 0.02956238914 | M39: 0
C40: 5116 | D40: ALAQAR | E40: 13427100 | F40: 1.575840593 | G40: 21158969.23 | H40: 1.43 | I40: 19200753 | J40: -1958216.23 | K40: -0.09254780839 | L40: 0.01843808292 | M40: 0
C41: 5121 | D41: HEKTAR | E41: 13041300 | F41: 1.635313164 | G41: 21326609.56 | H41: 1.28 | I41: 16692864 | J41: -4633745.56 | K41: -0.2172753033 | L41: 0.02823035539 | M41: 0
C42: 5120 | D42: AMFIRST | E42: 21801100 | F42: 0.8105390893 | G42: 17670643.74 | H42: 0.71 | I42: 15478781 | J42: -2191862.74 | K42: -0.1240397788 | L42: 0.03176143529 | M42: 0
C43: 5127 | D43: ARREIT | E43: 7179000 | F43: 0.9370256164 | G43: 6726906.9 | H43: 0.945 | I43: 6784155 | J43: 57248.1 | K43: 0.008510315491 | L43: 0.0125239904 | M43: 0
A44: REITS Total | E44: 487785700 | F44: 1.989112499 | G44: 970260632.8 | H44: 22.875 | I44: 940105626 | J44: -30155006.79 | K44: -0.03107928506 | L44: 0.02571143502 | M44: 0
A46: VALUE | B46: 43019 | C46: 1155 | D46: MAYBANK | E46: 56436300 | F46: 9.653672458 | G46: 544817554.9 | H46: 9.55 | I46: 538966665 | J46: -5850889.92 | K46: -0.0107391729 | L46: 0.005325785258 | M46: 0
C47: 1961 | D47: IOICORP | E47: 25134600 | F47: 4.775785472 | G47: 120037457.5 | H47: 4.51 | I47: 113357046 | J47: -6680411.52 | K47: -0.05565272422 | L47: 0.003999866327 | M47: 0
C48: 3336 | D48: IJM | E48: 18233500 | F48: 3.482170738 | G48: 63492160.16 | H48: 3.28 | I48: 59805880 | J48: -3686280.16 | K48: -0.05805882412 | L48: 0.005025599287 | M48: 0
C49: 6033 | D49: PETGAS | E49: 2052700 | F49: 18.69210202 | G49: 38369277.81 | H49: 18.5 | I49: 37974950 | J49: -394327.81 | K49: -0.01027717571 | L49: 0.00103738156 | M49: 0
C50: 5014 | D50: AIRPORT | E50: 4000000 | F50: 8.37112266 | G50: 33484490.64 | H50: 8.35 | I50: 33400000 | J50: -84490.64 | K50: -0.002523276848 | L50: 0.00241081226 | M50: 0
C51: 6139 | D51: TAKAFUL | E51: 1557900 | F51: 4.028010598 | G51: 6275237.71 | H51: 3.86 | I51: 6013494 | J51: -261743.71 | K51: -0.04171056494 | L51: 0.001892617621 | M51: 0
C52: 5347 | D52: TENAGA | E52: 200000 | F52: 14.1783494 | G52: 2835669.88 | H52: 14.2 | I52: 2840000 | J52: 4330.12 | K52: 0.001527018371 | L52: 3.534183908e-05 | M52: 0
A53: VALUE Total | E53: 107615000 | F53: 7.520437194 | G53: 809311848.6 | H53: 62.25 | I53: 792358035 | J53: -16953813.64 | K53: -0.02094843127 | L53: 0.0035135149 | M53: 0
A55: GROWTH | B55: 43019 | C55: 4197 | D55: SIME | E55: 60000000 | F55: 9.442415587 | G55: 566544935.2 | H55: 9.09 | I55: 545400000 | J55: -21144935.24 | K55: -0.03732260925 | L55: 0.008822440389 | M55: 0
C56: 8664 | D56: SPSETIA | E56: 85756000 | F56: 3.625374343 | G56: 310897602.1 | H56: 3.44 | I56: 295000640 | J56: -15896962.12 | K56: -0.05113246938 | L56: 0.02837497132 | M56: 0
C57: 5183 | D57: PCHEM | E57: 35861900 | F57: 7.44860785 | G57: 267121229.8 | H57: 7.32 | I57: 262509108 | J57: -4612121.85 | K57: -0.01726602507 | L57: 0.0044827375 | M57: 0
C58: 1023 | D58: CIMB | E58: 25000000 | F58: 6.332859169 | G58: 158321479.2 | H58: 6.29 | I58: 157250000 | J58: -1071479.22 | K58: -0.006767743867 | L58: 0.002761786879 | M58: 0
C59: 6888 | D59: AXIATA | E59: 19828500 | F59: 5.43742816 | G59: 107816044.3 | H59: 5.29 | I59: 104892765 | J59: -2923279.27 | K59: -0.02711358305 | L59: 0.002203565349 | M59: 0
C60: 2852 | D60: CMSB | E60: 9064500 | F60: 4.499839648 | G60: 40788796.49 | H60: 3.88 | I60: 35170260 | J60: -5618536.49 | K60: -0.1377470525 | L60: 0.008436992601 | M60: 0
C61: 5225 | D61: IHH | E61: 5624600 | F61: 5.937394704 | G61: 33395470.25 | H61: 5.91 | I61: 33241386 | J61: -154084.25 | K61: -0.004613926645 | L61: 0.0006826708524 | M61: 0
C62: 5258 | D62: BIMB | E62: 2136900 | F62: 4.285411231 | G62: 9157495.26 | H62: 4.27 | I62: 9124563 | J62: -32932.26 | K62: -0.00359620825 | L62: 0.001304785056 | M62: 0
C63: 8206 | D63: ECOWLD | E63: 4325800 | F63: 1.526734881 | G63: 6604349.75 | H63: 1.52 | I63: 6575216 | J63: -29133.75 | K63: -0.004411297267 | L63: 0.001469177576 | M63: 0
A64: GROWTH Total | E64: 247598200 | F64: 6.060817092 | G64: 1500647402 | H64: 47.01 | I64: 1449163938 | J64: -51483464.45 | K64: -0.03430750246 | L64: 0.004974932544 | M64: 0
A66: SMALLMIDCAP | B66: 43019 | C66: 1783 | D66: SPB | E66: 7097900 | F66: 5.486699558 | G66: 38944044.79 | H66: 4.77 | I66: 33856983 | J66: -5087061.79 | K66: -0.1306248957 | L66: 0.02065644289 | M66: 0
C67: 7081 | D67: PHARMA | E67: 6345100 | F67: 6.064358942 | G67: 38478963.92 | H67: 4.14 | I67: 26268714 | J67: -12210249.92 | K67: -0.3173227311 | L67: 0.02442104071 | M67: 0
C68: 4502 | D68: MEDIA | E68: 18625300 | F68: 1.285456909 | G68: 23942020.56 | H68: 0.86 | I68: 16017758 | J68: -7924262.56 | K68: -0.3309771847 | L68: 0.01679166245 | M68: 0
C69: 7229 | D69: FAVCO | E69: 3967600 | F69: 2.864264762 | G69: 11364256.87 | H69: 2.78 | I69: 11029928 | J69: -334328.87 | K69: -0.02941933413 | L69: 0.01792028223 | M69: 0
C70: 5073 | D70: NAIM | E70: 5956600 | F70: 2.007634431 | G70: 11958675.25 | H70: 1.22 | I70: 7267052 | J70: -4691623.25 | K70: -0.3923196468 | L70: 0.0238264 | M70: 0
C71: 7100 | D71: UCHITEC | E71: 2000000 | F71: 1.800203885 | G71: 3600407.77 | H71: 2.89 | I71: 5780000 | J71: 2179592.23 | K71: 0.6053737158 | L71: 0.004489587153 | M71: 0
C72: 9571 | D72: MITRA | E72: 5042600 | F72: 1.330168298 | G72: 6707506.66 | H72: 1.05 | I72: 5294730 | J72: -1412776.66 | K72: -0.2106262031 | L72: 0.007313612673 | M72: 0
C73: 5015 | D73: APM | E73: 1065800 | F73: 3.722423503 | G73: 3967358.97 | H73: 3.72 | I73: 3964776 | J73: -2582.97 | K73: -0.0006510552787 | L73: 0.005286706349 | M73: 0
C74: 7052 | D74: PADINI | E74: 100000 | F74: 2.9102392 | G74: 291023.92 | H74: 4.51 | I74: 451000 | J74: 159976.08 | K74: 0.5497007944 | L74: 0.0001519965892 | M74: 0
C75: 5253 | D75: ECONBHD | E75: 58300 | F75: 2.710008233 | G75: 157993.48 | H75: 3.06 | I75: 178398 | J75: 20404.52 | K75: 0.129147861 | L75: 0.0001089719606 | M75: 0
A76: SMALLMIDCAP Total | E76: 50259200 | F76: 2.773865326 | G76: 139412252.2 | H76: 29 | I76: 110109339 | J76: -29302913.19 | K76: -0.2101889377 | L76: 0.01066280593 | M76: 0
A78: INDEX | B78: 43019 | C78: 0825EA | D78: MYETFSID | E78: 44503300 | F78: 0.9337623136 | G78: 41555504.37 | H78: 0.91 | I78: 40498003 | J78: -1057501.37 | K78: -0.02544792528 | L78: 0 | M78: 0.8396849057
C79: 0824EA | D79: MYETFID | E79: 29044600 | F79: 1.004864365 | G79: 29185883.54 | H79: 1.07 | I79: 31077722 | J79: 1891838.46 | K79: 0.06482032512 | L79: 0 | M79: 0.5717440945
C80: 0821EA | D80: MYETFDJ | E80: 26650900 | F80: 1.066609455 | G80: 28426101.93 | H80: 1.1 | I80: 29315990 | J80: 889888.07 | K80: 0.03130531482 | L80: 0 | M80: 0.09590104354
C81: 0826EA | D81: MYETFAGRI | E81: 16480000 | F81: 0.9998715358 | G81: 16477882.91 | H81: 1.01 | I81: 16644800 | J81: 166917.09 | K81: 0.01012976551 | L81: 0 | M81: 0.8673684211
A82: INDEX Total | E82: 116678800 | F82: 0.9911429733 | G82: 115645372.8 | H82: 4.09 | I82: 117536515 | J82: 1891142.25 | K82: 0.01635294353 | L82: 0 | M82: 0
A84: Total Equity | E84: 1314708100 | F84: 3.847056485 | G84: 5057756322 | H84: 480.085 | I84: 4827059519 | J84: -230696802.9 | K84: -0.04561247878 | L84: 0 | M84: 0
E612: Values
A613: Fund ID | B613: Value Date | C613: Security | D613: StockName | E613: Units | F613: Cost Price | G613: Total Cost | H613: Market Price | I613: Market Value | J613: Unrealised | K613: % Gain / (Loss) | L613: Sum of PaidUpPercent | M613: Sum of UiCirculationPercent
A614: Fund
A615: ESG Fund | B615: 43019 | C615: MEQESG | D615: Malaysian ESG Opportunity Fund | E615: 15000000 | F615: 1 | G615: 15000000 | H615: 1.2262 | I615: 18393000 | J615: 3393000 | K615: 0.2262 | L615: 0 | M615: 0.015
C616: A5ESGOF | D616: ASEAN - 5 ESG Opportunity Fund | E616: 9657976.05 | F616: 1.035413626 | G616: 10000000 | H616: 1.069 | I616: 10324376.4 | J616: 324376.4 | K616: 0.03243764 | L616: 0 | M616: 0.00965797605
A617: ESG Fund Total | E617: 24657976.05 | F617: 1.013870723 | G617: 25000000 | H617: 2.2952 | I617: 28717376.4 | J617: 3717376.4 | K617: 0.148695056 | L617: 0 | M617: 0
A619: Total Fund | E619: 24657976.05 | F619: 1.013870723 | G619: 25000000 | H619: 2.2952 | I619: 28717376.4 | J619: 3717376.4 | K619: 0.148695056 | L619: 0 | M619: 0
A658: CASH
B659: =ValueDate -> 43019 | D659: Deposit | G659: =SUMIFS(InPosTemp!K:K,InPosTemp!D:D,"CSH")+InSBLTran!$J$3+SUM(InSBLTran!C:D) -> 1290551435 | I659: =SUMIFS(InPosTemp!L:L,InPosTemp!D:D,"CSH")+InSBLTran!$J$3+SUM(InSBLTran!C:D) -> 1290551435
B660: =ValueDate -> 43019 | D660: Commercial Papers | G660: =SUMIFS(InPosTemp!K:K,InPosTemp!E:E,"Commercial Papers") -> 0 | I660: =SUMIFS(InPosTemp!K:K,InPosTemp!E:E,"Commercial Papers") -> 0
B661: =ValueDate -> 43019 | D661: Fixed Income
A663: Total Cash | G663: =SUM(G659:G661) -> 1290551435 | I663: =SUM(I659:I661) -> 1290551435
A665: Total Portfolio | E665: =SUMIFS(E:E,$A:$A,"Total Equity")+SUMIFS(E:E,$A:$A,"Total Cash")+SUMIFS(E:E,$A:$A,"Total Fund") -> 1339366076 | G665: =SUMIFS(G:G,$A:$A,"Total Equity")+SUMIFS(G:G,$A:$A,"Total Cash")+SUMIFS(G:G,$A:$A,"Total Fund") -> 6373307757 | I665: =SUMIFS(I:I,$A:$A,"Total Equity")+SUMIFS(I:I,$A:$A,"Total Cash")+SUMIFS(I:I,$A:$A,"Total Fund") -> 6146328330 | J665: =SUMIFS(J:J,$A:$A,"Total Equity")+SUMIFS(J:J,$A:$A,"Total Cash")+SUMIFS(J:J,$A:$A,"Total Fund") -> -226979426.5 | K665: =IFERROR(J665/G665,0) -> -0.03561406967

Sheet CutLoss (hidden)
A1: StockName | B1: qFundCode | C1: TranGains
A2: BAT | B2: CORE | C2: -10222297.94
A3: NAIM | B3: SMALLMIDCAP | C3: -4229751.54

Sheet InTran
A1: qEventTrxID | B1: qTrnCode | C1: qProductType | D1: qFundCode | E1: TradeDate | F1: ValueDate | G1: PayDate | H1: MaturityDate | I1: qAccType | J1: qCPCode | K1: CPName | L1: SettCurrency | M1: qBankAccNo | N1: PaymentEntity | O1: qStockCode | P1: StockName | Q1: UnitFaceValue | R1: CostSC | S1: CostFC | T1: CummCost | U1: Tranprice | V1: SCGrossProceed | W1: SCNetProceed | X1: BrokerageFee | Y1: TradeValue | Z1: TranIncome | AA1: TranGains | AB1: Total | AC1: Month | AD1: Year | AE1: DealerKeyInDate | AF1: DealerKeyInBy | AG1: DealerName
A2: EQC*170300002 | B2: SI | C2: EQT | D2: INDEX | E2: 2017-03-01 | F2: 2017-03-01 | G2: 2017-03-30 | H2: 3000-01-01 | I2: SHLI | J2: N/A | K2: Not Applicable | L2: MYR | M2: DF | N2: VCAP-INVESTMENT | O2: 0821EA | P2: MYETFDJ | Q2: 0 | R2: 0 | S2: 0 | T2: 29305094.79 | U2: 0.0223 | V2: 612692.5 | W2: 612692.5 | X2: 612692.5 | Y2: 612692.5 | Z2: 612692.5 | AA2: 0 | AB2: 612692.5 | AC2: 3 | AD2: 2017 | AE2: 2017-03-01T10:33:17 | AF2: dzul.aqmal | AG2: Mohd Dzul Aqmal Amin Zainun
A3: EQT*170600117 | B3: SS | C3: EQT | D3: INDEX | E3: 2017-06-13 | F3: 2017-06-13 | G3: 2017-06-16 | H3: 3000-01-01 | I3: SHLI | J3: BR:CIMBINV | K3: CIMB INVESTMENT BANK BHD | L3: MYR | M3: DF | N3: VCAP-INVESTMENT | O3: 0821EA | P3: MYETFDJ | Q3: -39000 | R3: -41597.77 | S3: -41597.77 | T3: 29263497.02 | U3: 1.0967 | V3: 42771.3 | W3: 42612.68 | X3: 96.24 | Y3: 42612.68 | Z3: 0 | AA3: 1014.91 | AB3: 1014.91 | AC3: 6 | AD3: 2017 | AE3: 2017-06-13T09:34:56 | AF3: anuar | AG3: Anuar Hisham Zulkafli
A4: EQT*170600131 | B4: SS | C4: EQT | D4: INDEX | E4: 2017-06-14 | F4: 2017-06-14 | G4: 2017-06-19 | H4: 3000-01-01 | I4: SHLI | J4: BR:RHBINV | K4: RHB INVESTMENT BANK BERHAD | L4: MYR | M4: DF | N4: VCAP-INVESTMENT | O4: 0821EA | P4: MYETFDJ | Q4: -20000 | R4: -21332.19 | S4: -21332.19 | T4: 29242164.83 | U4: 1.09 | V4: 21800 | W4: 21719.08 | X4: 49.05 | Y4: 21719.08 | Z4: 0 | AA4: 386.89 | AB4: 386.89 | AC4: 6 | AD4: 2017 | AE4: 2017-06-14T08:54:27 | AF4: anuar | AG4: Anuar Hisham Zulkafli
A5: EQT*170700071 | B5: SS | C5: EQT | D5: INDEX | E5: 2017-07-13 | F5: 2017-07-13 | G5: 2017-07-18 | H5: 3000-01-01 | I5: SHLI | J5: BR:RHBINV | K5: RHB INVESTMENT BANK BERHAD | L5: MYR | M5: DF | N5: VCAP-INVESTMENT | O5: 0821EA | P5: MYETFDJ | Q5: -265100 | R5: -282758.17 | S5: -282758.17 | T5: 28959406.66 | U5: 1.0847 | V5: 287553.97 | W5: 286576.7 | X5: 647 | Y5: 286576.7 | Z5: 0 | AA5: 3818.53 | AB5: 3818.53 | AC5: 7 | AD5: 2017 | AE5: 2017-07-13T09:47:09 | AF5: anuar | AG5: Anuar Hisham Zulkafli
A6: EQT*170800113 | B6: SS | C6: EQT | D6: INDEX | E6: 2017-08-18 | F6: 2017-08-18 | G6: 2017-08-23 | H6: 3000-01-01 | I6: SHLI | J6: BR:HLGINV | K6: HONG LEONG INVESTMENT BANK BHD | L6: MYR | M6: DF | N6: VCAP-INVESTMENT | O6: 0821EA | P6: MYETFDJ | Q6: -500000 | R6: -533304.73 | S6: -533304.73 | T6: 28426101.93 | U6: 1.095 | V6: 547500 | W6: 545820.1 | X6: 1231.88 | Y6: 545820.1 | Z6: 0 | AA6: 12515.37 | AB6: 12515.37 | AC6: 8 | AD6: 2017 | AE6: 2017-08-18T16:31:59 | AF6: anuar | AG6: Anuar Hisham Zulkafli
A7: EQT*170300312 | B7: SS | C7: EQT | D7: INDEX | E7: 2017-03-30 | F7: 2017-03-30 | G7: 2017-04-04 | H7: 3000-01-01 | I7: SHLI | J7: BR:CIMBINV | K7: CIMB INVESTMENT BANK BHD | L7: MYR | M7: DF | N7: VCAP-INVESTMENT | O7: 0824EA | P7: MYETFID | Q7: -2000 | R7: -2009.73 | S7: -2009.73 | T7: 30622136.17 | U7: 1.05 | V7: 2100 | W7: 2053.93 | X7: 40 | Y7: 2053.93 | Z7: 0 | AA7: 44.2 | AB7: 44.2 | AC7: 3 | AD7: 2017 | AE7: 2017-03-30T09:52:40 | AF7: anuar | AG7: Anuar Hisham Zulkafli
A8: EQT*170600083 | B8: SS | C8: EQT | D8: INDEX | E8: 2017-06-07 | F8: 2017-06-07 | G8: 2017-06-13 | H8: 3000-01-01 | I8: SHLI | J8: BR:CIMBINV | K8: CIMB INVESTMENT BANK BHD | L8: MYR | M8: DF | N8: VCAP-INVESTMENT | O8: 0824EA | P8: MYETFID | Q8: -25200 | R8: -25322.58 | S8: -25322.58 | T8: 30596813.59 | U8: 1.0854 | V8: 27352.08 | W8: 27250.15 | X8: 61.54 | Y8: 27250.15 | Z8: 0 | AA8: 1927.57 | AB8: 1927.57 | AC8: 6 | AD8: 2017 | AE8: 2017-06-07T10:58:40 | AF8: anuar | AG8: Anuar Hisham Zulkafli
A9: EQT*170600156 | B9: SS | C9: EQT | D9: INDEX | E9: 2017-06-16 | F9: 2017-06-16 | G9: 2017-06-21 | H9: 3000-01-01 | I9: SHLI | J9: BR:CIMBINV | K9: CIMB INVESTMENT BANK BHD | L9: MYR | M9: DF | N9: VCAP-INVESTMENT | O9: 0824EA | P9: MYETFID | Q9: -24000 | R9: -24116.74 | S9: -24116.74 | T9: 30572696.85 | U9: 1.0904 | V9: 26169.6 | W9: 26071.86 | X9: 58.88 | Y9: 26071.86 | Z9: 0 | AA9: 1955.12 | AB9: 1955.12 | AC9: 6 | AD9: 2017 | AE9: 2017-06-16T09:11:22 | AF9: anuar | AG9: Anuar Hisham Zulkafli
A10: EQT*170700016 | B10: SS | C10: EQT | D10: INDEX | E10: 2017-07-04 | F10: 2017-07-04 | G10: 2017-07-07 | H10: 3000-01-01 | I10: SHLI | J10: BR:RHBINV | K10: RHB INVESTMENT BANK BERHAD | L10: MYR | M10: DF | N10: VCAP-INVESTMENT | O10: 0824EA | P10: MYETFID | Q10: -69000 | R10: -69335.64 | S10: -69335.64 | T10: 30503361.21 | U10: 1.087 | V10: 75003 | W10: 74724.25 | X10: 168.76 | Y10: 74724.25 | Z10: 0 | AA10: 5388.61 | AB10: 5388.61 | AC10: 7 | AD10: 2017 | AE10: 2017-07-04T12:08:47 | AF10: anuar | AG10: Anuar Hisham Zulkafli
A11: EQT*170700072 | B11: SS | C11: EQT | D11: INDEX | E11: 2017-07-13 | F11: 2017-07-13 | G11: 2017-07-18 | H11: 3000-01-01 | I11: SHLI | J11: BR:RHBINV | K11: RHB INVESTMENT BANK BERHAD | L11: MYR | M11: DF | N11: VCAP-INVESTMENT | O11: 0824EA | P11: MYETFID | Q11: -250000 | R11: -251216.09 | S11: -251216.09 | T11: 30252145.12 | U11: 1.0794 | V11: 269850 | W11: 268920.59 | X11: 607.16 | Y11: 268920.59 | Z11: 0 | AA11: 17704.5 | AB11: 17704.5 | AC11: 7 | AD11: 2017 | AE11: 2017-07-13T09:48:42 | AF11: anuar | AG11: Anuar Hisham Zulkafli
A12: EQT*170700080 | B12: SS | C12: EQT | D12: INDEX | E12: 2017-07-14 | F12: 2017-07-14 | G12: 2017-07-19 | H12: 3000-01-01 | I12: SHLI | J12: BR:RHBINV | K12: RHB INVESTMENT BANK BERHAD | L12: MYR | M12: DF | N12: VCAP-INVESTMENT | O12: 0824EA | P12: MYETFID | Q12: -20000 | R12: -20097.29 | S12: -20097.29 | T12: 30232047.83 | U12: 1.075 | V12: 21500 | W12: 21419.88 | X12: 48.38 | Y12: 21419.88 | Z12: 0 | AA12: 1322.59 | AB12: 1322.59 | AC12: 7 | AD12: 2017 | AE12: 2017-07-14T11:26:39 | AF12: anuar | AG12: Anuar Hisham Zulkafli
A13: EQT*170800023 | B13: SS | C13: EQT | D13: INDEX | E13: 2017-08-03 | F13: 2017-08-03 | G13: 2017-08-08 | H13: 3000-01-01 | I13: SHLI | J13: BR:RHBINV | K13: RHB INVESTMENT BANK BERHAD | L13: MYR | M13: DF | N13: VCAP-INVESTMENT | O13: 0824EA | P13: MYETFID | Q13: -20000 | R13: -20097.29 | S13: -20097.29 | T13: 30211950.54 | U13: 1.08 | V13: 21600 | W13: 21519.61 | X13: 48.6 | Y13: 21519.61 | Z13: 0 | AA13: 1422.32 | AB13: 1422.32 | AC13: 8 | AD13: 2017 | AE13: 2017-08-03T09:17:54 | AF13: anuar | AG13: Anuar Hisham Zulkafli
A14: EQT*170800029 | B14: SS | C14: EQT | D14: INDEX | E14: 2017-08-04 | F14: 2017-08-04 | G14: 2017-08-09 | H14: 3000-01-01 | I14: SHLI | J14: BR:CIMBINV | K14: CIMB INVESTMENT BANK BHD | L14: MYR | M14: DF | N14: VCAP-INVESTMENT | O14: 0824EA | P14: MYETFID | Q14: -80000 | R14: -80389.15 | S14: -80389.15 | T14: 30131561.39 | U14: 1.08 | V14: 86400 | W14: 86079.46 | X14: 194.4 | Y14: 86079.46 | Z14: 0 | AA14: 5690.31 | AB14: 5690.31 | AC14: 8 | AD14: 2017 | AE14: 2017-08-04T11:53:33 | AF14: anuar | AG14: Anuar Hisham Zulkafli
A15: EQT*170800032 | B15: SS | C15: EQT | D15: INDEX | E15: 2017-08-04 | F15: 2017-08-04 | G15: 2017-08-09 | H15: 3000-01-01 | I15: SHLI | J15: BR:KAFSEC | K15: KAF-SEAGROATT & CAMPBELL SECURITIES SDN BHD | L15: MYR | M15: DF | N15: VCAP-INVESTMENT | O15: 0824EA | P15: MYETFID | Q15: -90000 | R15: -90437.79 | S15: -90437.79 | T15: 30041123.6 | U15: 1.08 | V15: 97200 | W15: 96839.27 | X15: 218.7 | Y15: 96839.27 | Z15: 0 | AA15: 6401.48 | AB15: 6401.48 | AC15: 8 | AD15: 2017 | AE15: 2017-08-04T17:02:06 | AF15: aishah | AG15: Nor Aishah Saad
A16: EQT*170800037 | B16: SS | C16: EQT | D16: INDEX | E16: 2017-08-07 | F16: 2017-08-07 | G16: 2017-08-10 | H16: 3000-01-01 | I16: SHLI | J16: BR:RHBINV | K16: RHB INVESTMENT BANK BERHAD | L16: MYR | M16: DF | N16: VCAP-INVESTMENT | O16: 0824EA | P16: MYETFID | Q16: -806100 | R16: -810021.16 | S16: -810021.16 | T16: 29231102.44 | U16: 1.0722 | V16: 864300.42 | W16: 861764.2 | X16: 1944.68 | Y16: 861764.2 | Z16: 0 | AA16: 51743.04 | AB16: 51743.04 | AC16: 8 | AD16: 2017 | AE16: 2017-08-07T10:38:52 | AF16: anuar | AG16: Anuar Hisham Zulkafli
A17: EQT*170800055 | B17: SS | C17: EQT | D17: INDEX | E17: 2017-08-09 | F17: 2017-08-09 | G17: 2017-08-14 | H17: 3000-01-01 | I17: SHLI | J17: BR:RHBINV | K17: RHB INVESTMENT BANK BERHAD | L17: MYR | M17: DF | N17: VCAP-INVESTMENT | O17: 0824EA | P17: MYETFID | Q17: -45000 | R17: -45218.9 | S17: -45218.9 | T17: 29185883.54 | U17: 1.0722 | V17: 48249 | W17: 48069.58 | X17: 108.56 | Y17: 48069.58 | Z17: 0 | AA17: 2850.68 | AB17: 2850.68 | AC17: 8 | AD17: 2017 | AE17: 2017-08-09T09:09:01 | AF17: anuar | AG17: Anuar Hisham Zulkafli
A18: EQC*170300003 | B18: SI | C18: EQT | D18: INDEX | E18: 2017-03-01 | F18: 2017-03-01 | G18: 2017-03-30 | H18: 3000-01-01 | I18: SHLI | J18: N/A | K18: Not Applicable | L18: MYR | M18: DF | N18: VCAP-INVESTMENT | O18: 0824EA | P18: MYETFID | Q18: 0 | R18: 0 | S18: 0 | T18: 30624145.9 | U18: 0.0152 | V18: 463233.68 | W18: 463233.68 | X18: 463233.68 | Y18: 463233.68 | Z18: 463233.68 | AA18: 0 | AB18: 463233.68 | AC18: 3 | AD18: 2017 | AE18: 2017-03-01T10:40:51 | AF18: dzul.aqmal | AG18: Mohd Dzul Aqmal Amin Zainun
A19: EQC*170300004 | B19: SI | C19: EQT | D19: INDEX | E19: 2017-03-01 | F19: 2017-03-01 | G19: 2017-03-30 | H19: 3000-01-01 | I19: SHLI | J19: N/A | K19: Not Applicable | L19: MYR | M19: DF | N19: VCAP-INVESTMENT | O19: 0825EA | P19: MYETFSID | Q19: 0 | R19: 0 | S19: 0 | T19: 41555504.37 | U19: 0.0234 | V19: 1041377.22 | W19: 1041377.22 | X19: 1041377.22 | Y19: 1041377.22 | Z19: 1041377.22 | AA19: 0 | AB19: 1041377.22 | AC19: 3 | AD19: 2017 | AE19: 2017-03-01T10:47:39 | AF19: dzul.aqmal | AG19: Mohd Dzul Aqmal Amin Zainun
A20: EQT*170300313 | B20: SS | C20: EQT | D20: INDEX | E20: 2017-03-30 | F20: 2017-03-30 | G20: 2017-04-04 | H20: 3000-01-01 | I20: SHLI | J20: BR:CIMBINV | K20: CIMB INVESTMENT BANK BHD | L20: MYR | M20: DF | N20: VCAP-INVESTMENT | O20: 0826EA | P20: MYETFAGRI | Q20: -106500 | R20: -106486.32 | S20: -106486.32 | T20: 16569071.19 | U20: 1.0506 | V20: 111888.9 | W20: 111474.46 | X20: 251.75 | Y20: 111474.46 | Z20: 0 | AA20: 4988.14 | AB20: 4988.14 | AC20: 3 | AD20: 2017 | AE20: 2017-03-30T09:53:11 | AF20: anuar | AG20: Anuar Hisham Zulkafli
A21: EQT*170300327 | B21: SS | C21: EQT | D21: INDEX | E21: 2017-03-31 | F21: 2017-03-31 | G21: 2017-04-05 | H21: 3000-01-01 | I21: SHLI | J21: BR:CIMBINV | K21: CIMB INVESTMENT BANK BHD | L21: MYR | M21: DF | N21: VCAP-INVESTMENT | O21: 0826EA | P21: MYETFAGRI | Q21: -3800 | R21: -3799.51 | S21: -3799.51 | T21: 16565271.68 | U21: 1.0611 | V21: 4032.18 | W21: 3983.5 | X21: 40 | Y21: 3983.5 | Z21: 0 | AA21: 183.99 | AB21: 183.99 | AC21: 3 | AD21: 2017 | AE21: 2017-03-31T14:58:11 | AF21: anuar | AG21: Anuar Hisham Zulkafli
A22: EQT*170600132 | B22: SS | C22: EQT | D22: INDEX | E22: 2017-06-14 | F22: 2017-06-14 | G22: 2017-06-19 | H22: 3000-01-01 | I22: SHLI | J22: BR:RHBINV | K22: RHB INVESTMENT BANK BERHAD | L22: MYR | M22: DF | N22: VCAP-INVESTMENT | O22: 0826EA | P22: MYETFAGRI | Q22: -2000 | R22: -1999.74 | S22: -1999.74 | T22: 16563271.94 | U22: 1.04 | V22: 2080 | W22: 2033.93 | X22: 40 | Y22: 2033.93 | Z22: 0 | AA22: 34.19 | AB22: 34.19 | AC22: 6 | AD22: 2017 | AE22: 2017-06-14T08:54:49 | AF22: anuar | AG22: Anuar Hisham Zulkafli
A23: EQT*170600182 | B23: SS | C23: EQT | D23: INDEX | E23: 2017-06-19 | F23: 2017-06-19 | G23: 2017-06-22 | H23: 3000-01-01 | I23: SHLI | J23: BR:RHBINV | K23: RHB INVESTMENT BANK BERHAD | L23: MYR | M23: DF | N23: VCAP-INVESTMENT | O23: 0826EA | P23: MYETFAGRI | Q23: -85400 | R23: -85389.03 | S23: -85389.03 | T23: 16477882.91 | U23: 1.0392 | V23: 88747.68 | W23: 88418.79 | X23: 199.68 | Y23: 88418.79 | Z23: 0 | AA23: 3029.76 | AB23: 3029.76 | AC23: 6 | AD23: 2017 | AE23: 2017-06-19T14:31:16 | AF23: anuar | AG23: Anuar Hisham Zulkafli
A24: EQC*171000002 | B24: SI | C24: EQT | D24: GROWTH | E24: 2017-10-10 | F24: 2017-10-10 | G24: 2017-11-10 | H24: 3000-01-01 | I24: SHLI | J24: N/A | K24: Not Applicable | L24: MYR | M24: DF | N24: VCAP-INVESTMENT | O24: 1023 | P24: CIMB | Q24: 0 | R24: 0 | S24: 0 | T24: 158321479.2 | U24: 0.13 | V24: 3250000 | W24: 3250000 | X24: 3250000 | Y24: 3250000 | Z24: 3250000 | AA24: 0 | AB24: 3250000 | AC24: 10 | AD24: 2017 | AE24: 2017-10-10T09:48:32 | AF24: jannah | AG24: Nurul Jannah Azri
A25: EQT*170300022 | B25: SS | C25: EQT | D25: GROWTH | E25: 2017-03-02 | F25: 2017-03-02 | G25: 2017-03-07 | H25: 3000-01-01 | I25: SHLI | J25: BR:MAYBANKINV | K25: MAYBANK INVESTMENT BANK | L25: MYR | M25: DF | N25: VCAP-INVESTMENT | O25: 1023 | P25: CIMB | Q25: -1521000 | R25: -7568309.34 | S25: -7568309.34 | T25: 14927631.83 | U25: 5.218 | V25: 7936578 | W25: 7926905.23 | X25: 7936.58 | Y25: 7926905.23 | Z25: 0 | AA25: 358595.89 | AB25: 358595.89 | AC25: 3 | AD25: 2017 | AE25: 2017-03-02T09:34:35 | AF25: aishah | AG25: Nor Aishah Saad
A26: EQT*170300051 | B26: SS | C26: EQT | D26: GROWTH | E26: 2017-03-03 | F26: 2017-03-03 | G26: 2017-03-08 | H26: 3000-01-01 | I26: SHLI | J26: BR:CREDITSUISSEMY | K26: CREDIT SUISSE SECURITIES (M) SDN BHD | L26: MYR | M26: DF | N26: VCAP-INVESTMENT | O26: 1023 | P26: CIMB | Q26: -1000000 | R26: -4975877.28 | S26: -4975877.28 | T26: 9951754.55 | U26: 5.21 | V26: 5210000 | W26: 5203217.4 | X26: 5210 | Y26: 5203217.4 | Z26: 0 | AA26: 227340.12 | AB26: 227340.12 | AC26: 3 | AD26: 2017 | AE26: 2017-03-03T16:33:17 | AF26: aishah | AG26: Nor Aishah Saad
A27: EQT*170300052 | B27: SS | C27: EQT | D27: GROWTH | E27: 2017-03-06 | F27: 2017-03-06 | G27: 2017-03-09 | H27: 3000-01-01 | I27: SHLI | J27: BR:CREDITSUISSEMY | K27: CREDIT SUISSE SECURITIES (M) SDN BHD | L27: MYR | M27: DF | N27: VCAP-INVESTMENT | O27: 1023 | P27: CIMB | Q27: -1500000 | R27: -7463815.91 | S27: -7463815.91 | T27: 2487938.64 | U27: 5.3536 | V27: 8030400 | W27: 8020627.78 | X27: 8030.4 | Y27: 8020627.78 | Z27: 0 | AA27: 556811.87 | AB27: 556811.87 | AC27: 3 | AD27: 2017 | AE27: 2017-03-06T09:32:58 | AF27: aishah | AG27: Nor Aishah Saad
A28: EQT*170300058 | B28: SS | C28: EQT | D28: GROWTH | E28: 2017-03-06 | F28: 2017-03-06 | G28: 2017-03-09 | H28: 3000-01-01 | I28: SHLI | J28: BR:RHBINV | K28: RHB INVESTMENT BANK BERHAD | L28: MYR | M28: DF | N28: VCAP-INVESTMENT | O28: 1023 | P28: CIMB | Q28: -500000 | R28: -2487938.64 | S28: -2487938.64 | T28: 0 | U28: 5.4545 | V28: 2727250 | W28: 2720400.96 | X28: 5454.5 | Y28: 2720400.96 | Z28: 0 | AA28: 232462.32 | AB28: 232462.32 | AC28: 3 | AD28: 2017 | AE28: 2017-03-06T14:38:47 | AF28: aishah | AG28: Nor Aishah Saad
A29: EQT*170500180 | B29: SS | C29: EQT | D29: GROWTH | E29: 2017-05-24 | F29: 2017-05-24 | G29: 2017-05-29 | H29: 3000-01-01 | I29: SHLI | J29: BR:MAYBANKINV | K29: MAYBANK INVESTMENT BANK | L29: MYR | M29: DF | N29: VCAP-INVESTMENT | O29: 1023 | P29: CIMB | Q29: -607100 | R29: -3506702.59 | S29: -3506702.59 | T29: 11552306.33 | U29: 6.1665 | V29: 3743682.15 | W29: 3734485.55 | X29: 7487.36 | Y29: 3734485.55 | Z29: 0 | AA29: 227782.96 | AB29: 227782.96 | AC29: 5 | AD29: 2017 | AE29: 2017-05-24T15:22:19 | AF29: aishah | AG29: Nor Aishah Saad
A30: EQT*170600001 | B30: SS | C30: EQT | D30: GROWTH | E30: 2017-06-01 | F30: 2017-06-01 | G30: 2017-06-06 | H30: 3000-01-01 | I30: SHLI | J30: BR:MAYBANKINV | K30: MAYBANK INVESTMENT BANK | L30: MYR | M30: DF | N30: VCAP-INVESTMENT | O30: 1023 | P30: CIMB | Q30: -500000 | R30: -2888076.58 | S30: -2888076.58 | T30: 8664229.75 | U30: 6.4176 | V30: 3208800 | W30: 3200776.94 | X30: 6417.6 | Y30: 3200776.94 | Z30: 0 | AA30: 312700.36 | AB30: 312700.36 | AC30: 6 | AD30: 2017 | AE30: 2017-06-01T08:58:25 | AF30: aishah | AG30: Nor Aishah Saad
A31: EQT*170600047 | B31: SS | C31: EQT | D31: GROWTH | E31: 2017-06-05 | F31: 2017-06-05 | G31: 2017-06-08 | H31: 3000-01-01 | I31: SHLI | J31: BR:MAYBANKINV | K31: MAYBANK INVESTMENT BANK | L31: MYR | M31: DF | N31: VCAP-INVESTMENT | O31: 1023 | P31: CIMB | Q31: -227100 | R31: -1311764.38 | S31: -1311764.38 | T31: 7352465.37 | U31: 6.75 | V31: 1532925 | W31: 1528987.73 | X31: 3065.85 | Y31: 1528987.73 | Z31: 0 | AA31: 217223.35 | AB31: 217223.35 | AC31: 6 | AD31: 2017 | AE31: 2017-06-05T16:54:04 | AF31: aishah | AG31: Nor Aishah Saad
A32: EQT*170700147 | B32: SS | C32: EQT | D32: GROWTH | E32: 2017-07-27 | F32: 2017-07-27 | G32: 2017-08-01 | H32: 3000-01-01 | I32: SHLI | J32: BR:KENANGAINV | K32: KENANGA INVESTMENT BANK BHD | L32: MYR | M32: DF | N32: VCAP-INVESTMENT | O32: 1023 | P32: CIMB | Q32: -150000 | R32: -970789.65 | S32: -970789.65 | T32: 94589213.21 | U32: 6.6 | V32: 990000 | W32: 987124.03 | X32: 2227.5 | Y32: 987124.03 | Z32: 0 | AA32: 16334.38 | AB32: 16334.38 | AC32: 7 | AD32: 2017 | AE32: 2017-07-27T09:32:35 | AF32: ahmad | AG32: Ahmad Firdaus Abdol Malek
A33: EQT*170700150 | B33: SS | C33: EQT | D33: GROWTH | E33: 2017-07-27 | F33: 2017-07-27 | G33: 2017-08-01 | H33: 3000-01-01 | I33: SHLI | J33: BR:KAFSEC | K33: KAF-SEAGROATT & CAMPBELL SECURITIES SDN BHD | L33: MYR | M33: DF | N33: VCAP-INVESTMENT | O33: 1023 | P33: CIMB | Q33: -454400 | R33: -2940845.45 | S33: -2940845.45 | T33: 91648367.76 | U33: 6.6009 | V33: 2999448.96 | W33: 2991936.3 | X33: 5998.9 | Y33: 2991936.3 | Z33: 0 | AA33: 51090.85 | AB33: 51090.85 | AC33: 7 | AD33: 2017 | AE33: 2017-07-27T09:40:10 | AF33: aishah | AG33: Nor Aishah Saad
A34: EQT*170700157 | B34: SS | C34: EQT | D34: GROWTH | E34: 2017-07-28 | F34: 2017-07-28 | G34: 2017-08-02 | H34: 3000-01-01 | I34: SHLI | J34: BR:CIMBINV | K34: CIMB INVESTMENT BANK BHD | L34: MYR | M34: DF | N34: VCAP-INVESTMENT | O34: 1023 | P34: CIMB | Q34: -1000000 | R34: -6471931 | S34: -6471931 | T34: 85176436.76 | U34: 6.6613 | V34: 6661300 | W34: 6652979.02 | X34: 6661.3 | Y34: 6652979.02 | Z34: 0 | AA34: 181048.02 | AB34: 181048.02 | AC34: 7 | AD34: 2017 | AE34: 2017-07-28T09:41:48 | AF34: faris | AG34: Muhammad Faris Harith
A35: EQT*170700160 | B35: SS | C35: EQT | D35: GROWTH | E35: 2017-07-28 | F35: 2017-07-28 | G35: 2017-08-02 | H35: 3000-01-01 | I35: SHLI | J35: BR:HLGINV | K35: HONG LEONG INVESTMENT BANK BHD | L35: MYR | M35: DF | N35: VCAP-INVESTMENT | O35: 1023 | P35: CIMB | Q35: -850000 | R35: -5501141.35 | S35: -5501141.35 | T35: 79675295.41 | U35: 6.6564 | V35: 5657940 | W35: 5650682.58 | X35: 5657.94 | Y35: 5650682.58 | Z35: 0 | AA35: 149541.23 | AB35: 149541.23 | AC35: 7 | AD35: 2017 | AE35: 2017-07-28T09:42:56 | AF35: faris | AG35: Muhammad Faris Harith
A36: EQT*170700165 | B36: SS | C36: EQT | D36: GROWTH | E36: 2017-07-28 | F36: 2017-07-28 | G36: 2017-08-02 | H36: 3000-01-01 | I36: SHLI | J36: BR:ALLIANCEINV | K36: ALLIANCE INVESTMENT BANK BERHAD | L36: MYR | M36: DF | N36: VCAP-INVESTMENT | O36: 1023 | P36: CIMB | Q36: -2000000 | R36: -12943862.01 | S36: -12943862.01 | T36: 66731433.4 | U36: 6.65 | V36: 13300000 | W36: 13284642 | X36: 13300 | Y36: 13284642 | Z36: 0 | AA36: 340779.99 | AB36: 340779.99 | AC36: 7 | AD36: 2017 | AE36: 2017-07-28T16:08:11 | AF36: aishah | AG36: Nor Aishah Saad
A37: EQT*170700168 | B37: SS | C37: EQT | D37: GROWTH | E37: 2017-07-28 | F37: 2017-07-28 | G37: 2017-08-02 | H37: 3000-01-01 | I37: SHLI | J37: BR:KAFSEC | K37: KAF-SEAGROATT & CAMPBELL SECURITIES SDN BHD | L37: MYR | M37: DF | N37: VCAP-INVESTMENT | O37: 1023 | P37: CIMB | Q37: -1000000 | R37: -6471931.01 | S37: -6471931.01 | T37: 60259502.39 | U37: 6.66 | V37: 6660000 | W37: 6651680.4 | X37: 6660 | Y37: 6651680.4 | Z37: 0 | AA37: 179749.39 | AB37: 179749.39 | AC37: 7 | AD37: 2017 | AE37: 2017-07-28T16:45:49 | AF37: aishah | AG37: Nor Aishah Saad
A38: EQT*170700175 | B38: SS | C38: EQT | D38: GROWTH | E38: 2017-07-31 | F38: 2017-07-31 | G38: 2017-08-03 | H38: 3000-01-01 | I38: SHLI | J38: BR:CIMBINV | K38: CIMB INVESTMENT BANK BHD | L38: MYR | M38: DF | N38: VCAP-INVESTMENT | O38: 1023 | P38: CIMB | Q38: -433900 | R38: -2808170.86 | S38: -2808170.86 | T38: 57451331.53 | U38: 6.6097 | V38: 2867948.83 | W38: 2860756.77 | X38: 5735.9 | Y38: 2860756.77 | Z38: 0 | AA38: 52585.91 | AB38: 52585.91 | AC38: 7 | AD38: 2017 | AE38: 2017-07-31T09:37:03 | AF38: anuar | AG38: Anuar Hisham Zulkafli
A39: EQT*170700178 | B39: SS | C39: EQT | D39: GROWTH | E39: 2017-07-31 | F39: 2017-07-31 | G39: 2017-08-03 | H39: 3000-01-01 | I39: SHLI | J39: BR:MACQUARIE | K39: MACQUARIE CAPITAL SECURITIES (MALAYSIA) SDN BHD | L39: MYR | M39: DF | N39: VCAP-INVESTMENT | O39: 1023 | P39: CIMB | Q39: -110900 | R39: -717737.15 | S39: -717737.15 | T39: 56733594.38 | U39: 6.609 | V39: 732938.1 | W39: 730756.96 | X39: 1649.11 | Y39: 730756.96 | Z39: 0 | AA39: 13019.81 | AB39: 13019.81 | AC39: 7 | AD39: 2017 | AE39: 2017-07-31T11:36:46 | AF39: anuar | AG39: Anuar Hisham Zulkafli
A40: EQT*170700180 | B40: SS | C40: EQT | D40: GROWTH | E40: 2017-07-31 | F40: 2017-07-31 | G40: 2017-08-03 | H40: 3000-01-01 | I40: SHLI | J40: BR:MAYBANKINV | K40: MAYBANK INVESTMENT BANK | L40: MYR | M40: DF | N40: VCAP-INVESTMENT | O40: 1023 | P40: CIMB | Q40: -3000000 | R40: -19415793.01 | S40: -19415793.01 | T40: 37317801.37 | U40: 6.5508 | V40: 19652400 | W40: 19630308.46 | X40: 19652.4 | Y40: 19630308.46 | Z40: 0 | AA40: 214515.45 | AB40: 214515.45 | AC40: 7 | AD40: 2017 | AE40: 2017-07-31T15:30:36 | AF40: aishah | AG40: Nor Aishah Saad
A41: EQT*170700187 | B41: SS | C41: EQT | D41: GROWTH | E41: 2017-07-31 | F41: 2017-07-31 | G41: 2017-08-03 | H41: 3000-01-01 | I41: SHLI | J41: BR:RHBINV | K41: RHB INVESTMENT BANK BERHAD | L41: MYR | M41: DF | N41: VCAP-INVESTMENT | O41: 1023 | P41: CIMB | Q41: -2727100 | R41: -17649603.04 | S41: -17649603.04 | T41: 19668198.33 | U41: 6.55 | V41: 17862505 | W41: 17842310.74 | X41: 17862.51 | Y41: 17842310.74 | Z41: 0 | AA41: 192707.7 | AB41: 192707.7 | AC41: 7 | AD41: 2017 | AE41: 2017-07-31T17:00:24 | AF41: aishah | AG41: Nor Aishah Saad
A42: EQT*170800010 | B42: SS | C42: EQT | D42: GROWTH | E42: 2017-08-02 | F42: 2017-08-02 | G42: 2017-08-07 | H42: 3000-01-01 | I42: SHLI | J42: BR:CREDITSUISSEMY | K42: CREDIT SUISSE SECURITIES (M) SDN BHD | L42: MYR | M42: DF | N42: VCAP-INVESTMENT | O42: 1023 | P42: CIMB | Q42: -1000000 | R42: -6471931.01 | S42: -6471931.01 | T42: 13196267.32 | U42: 6.5533 | V42: 6553300 | W42: 6545093.5 | X42: 6553.3 | Y42: 6545093.5 | Z42: 0 | AA42: 73162.49 | AB42: 73162.49 | AC42: 8 | AD42: 2017 | AE42: 2017-08-02T09:28:14 | AF42: ahmad | AG42: Ahmad Firdaus Abdol Malek
A43: EQT*170800016 | B43: SS | C43: EQT | D43: GROWTH | E43: 2017-08-02 | F43: 2017-08-02 | G43: 2017-08-07 | H43: 3000-01-01 | I43: SHLI | J43: BR:MIDFINV | K43: MIDF AMANAH INVESTMENT BANK BHD | L43: MYR | M43: DF | N43: VCAP-INVESTMENT | O43: 1023 | P43: CIMB | Q43: -950000 | R43: -6148334.46 | S43: -6148334.46 | T43: 7047932.86 | U43: 6.56 | V43: 6232000 | W43: 6224134.08 | X43: 6232 | Y43: 6224134.08 | Z43: 0 | AA43: 75799.62 | AB43: 75799.62 | AC43: 8 | AD43: 2017 | AE43: 2017-08-02T11:05:13 | AF43: ahmad | AG43: Ahmad Firdaus Abdol Malek
A44: EQT*170800020 | B44: SS | C44: EQT | D44: GROWTH | E44: 2017-08-03 | F44: 2017-08-03 | G44: 2017-08-08 | H44: 3000-01-01 | I44: SHLI | J44: BR:AFFINV | K44: AFFIN HWANG INVESTMENT BANK BERHAD | L44: MYR | M44: DF | N44: VCAP-INVESTMENT | O44: 1023 | P44: CIMB | Q44: -989000 | R44: -6400739.76 | S44: -6400739.76 | T44: 647193.1 | U44: 6.5643 | V44: 6492092.7 | W44: 6483951.08 | X44: 6492.09 | Y44: 6483951.08 | Z44: 0 | AA44: 83211.32 | AB44: 83211.32 | AC44: 8 | AD44: 2017 | AE44: 2017-08-03T09:05:02 | AF44: ahmad | AG44: Ahmad Firdaus Abdol Malek
A45: EQT*170100103 | B45: SP | C45: EQT | D45: GROWTH | E45: 2017-01-17 | F45: 2017-01-17 | G45: 2017-01-20 | H45: 3000-01-01 | I45: SHLI | J45: BR:KENANGAINV | K45: KENANGA INVESTMENT BANK BHD | L45: MYR | M45: DF | N45: VCAP-INVESTMENT | O45: 1023 | P45: CIMB | Q45: 20000 | R45: 94549.63 | S45: 94549.63 | T45: 94549.63 | U45: 4.71 | V45: -94200 | W45: -94549.63 | X45: 211.95 | Y45: 94549.63 | Z45: 0 | AA45: 0 | AB45: 0 | AC45: 1 | AD45: 2017 | AE45: 2017-01-17T17:11:45 | AF45: aishah | AG45: Nor Aishah Saad
A46: EQT*170100104 | B46: SP | C46: EQT | D46: GROWTH | E46: 2017-01-17 | F46: 2017-01-17 | G46: 2017-01-20 | H46: 3000-01-01 | I46: SHLI | J46: BR:HLGINV | K46: HONG LEONG INVESTMENT BANK BHD | L46: MYR | M46: DF | N46: VCAP-INVESTMENT | O46: 1023 | P46: CIMB | Q46: 1000 | R46: 4758.91 | S46: 4758.91 | T46: 99308.54 | U46: 4.71 | V46: -4710 | W46: -4758.91 | X46: 40 | Y46: 4758.91 | Z46: 0 | AA46: 0 | AB46: 0 | AC46: 1 | AD46: 2017 | AE46: 2017-01-17T17:13:16 | AF46: aishah | AG46: Nor Aishah Saad
A47: EQT*170200149 | B47: SP | C47: EQT | D47: GROWTH | E47: 2017-02-27 | F47: 2017-02-27 | G47: 2017-03-02 | H47: 3000-01-01 | I47: SHLI | J47: BR:HLGINV | K47: HONG LEONG INVESTMENT BANK BHD | L47: MYR | M47: DF | N47: VCAP-INVESTMENT | O47: 1023 | P47: CIMB | Q47: 1500000 | R47: 7480980.11 | S47: 7480980.11 | T47: 7580288.65 | U47: 4.9812 | V47: -7471800 | W47: -7480980.11 | X47: 7471.8 | Y47: 7480980.11 | Z47: 0 | AA47: 0 | AB47: 0 | AC47: 2 | AD47: 2017 | AE47: 2017-02-27T16:32:56 | AF47: aishah | AG47: Nor Aishah Saad
A48: EQT*170200159 | B48: SP | C48: EQT | D48: GROWTH | E48: 2017-02-28 | F48: 2017-02-28 | G48: 2017-03-03 | H48: 3000-01-01 | I48: SHLI | J48: BR:ALLIANCEINV | K48: ALLIANCE INVESTMENT BANK BERHAD | L48: MYR | M48: DF | N48: VCAP-INVESTMENT | O48: 1023 | P48: CIMB | Q48: 3000000 | R48: 14915652.52 | S48: 14915652.52 | T48: 22495941.17 | U48: 4.9662 | V48: -14898600 | W48: -14915652.52 | X48: 14898.6 | Y48: 14915652.52 | Z48: 0 | AA48: 0 | AB48: 0 | AC48: 2 | AD48: 2017 | AE48: 2017-02-28T11:36:06 | AF48: aishah | AG48: Nor Aishah Saad
A49: EQT*170500048 | B49: SP | C49: EQT | D49: GROWTH | E49: 2017-05-05 | F49: 2017-05-05 | G49: 2017-05-11 | H49: 3000-01-01 | I49: SHLI | J49: BR:UBSSECMY | K49: UBS SECURITIES MALAYSIA SDN BHD | L49: MYR | M49: DF | N49: VCAP-INVESTMENT | O49: 1023 | P49: CIMB | Q49: 656300 | R49: 3815869.86 | S49: 3815869.86 | T49: 15059008.92 | U49: 5.8 | V49: -3806540 | W49: -3815869.86 | X49: 7613.08 | Y49: 3815869.86 | Z49: 0 | AA49: 0 | AB49: 0 | AC49: 5 | AD49: 2017 | AE49: 2017-05-05T09:16:41 | AF49: ahmad | AG49: Ahmad Firdaus Abdol Malek
A50: EQT*170500055 | B50: SP | C50: EQT | D50: GROWTH | E50: 2017-05-04 | F50: 2017-05-04 | G50: 2017-05-09 | H50: 3000-01-01 | I50: SHLI | J50: BR:RHBINV | K50: RHB INVESTMENT BANK BERHAD | L50: MYR | M50: DF | N50: VCAP-INVESTMENT | O50: 1023 | P50: CIMB | Q50: 1950800 | R50: 11243139.06 | S50: 11243139.06 | T50: 11243139.06 | U50: 5.7566 | V50: -11229975.28 | W50: -11243139.06 | X50: 11229.98 | Y50: 11243139.06 | Z50: 0 | AA50: 0 | AB50: 0 | AC50: 5 | AD50: 2017 | AE50: 2017-05-05 | AF50: faris | AG50: Muhammad Faris Harith
A51: EQT*170600115 | B51: SP | C51: EQT | D51: GROWTH | E51: 2017-06-09 | F51: 2017-06-09 | G51: 2017-06-15 | H51: 3000-01-01 | I51: SHLI | J51: BR:AFFINV | K51: AFFIN HWANG INVESTMENT BANK BERHAD | L51: MYR | M51: DF | N51: VCAP-INVESTMENT | O51: 1023 | P51: CIMB | Q51: 1388200 | R51: 9199912.5 | S51: 9199912.5 | T51: 16552377.87 | U51: 6.6193 | V51: -9188912.26 | W51: -9199912.5 | X51: 9188.91 | Y51: 9199912.5 | Z51: 0 | AA51: 0 | AB51: 0 | AC51: 6 | AD51: 2017 | AE51: 2017-06-09T17:00:39 | AF51: aishah | AG51: Nor Aishah Saad
A52: EQT*170600125 | B52: SP | C52: EQT | D52: GROWTH | E52: 2017-06-13 | F52: 2017-06-13 | G52: 2017-06-16 | H52: 3000-01-01 | I52: SHLI | J52: BR:AMINVBANK | K52: AMINVESTMENT BANK BHD | L52: MYR | M52: DF | N52: VCAP-INVESTMENT | O52: 1023 | P52: CIMB | Q52: 3000000 | R52: 20117160.28 | S52: 20117160.28 | T52: 36669538.15 | U52: 6.6982 | V52: -20094600 | W52: -20117160.28 | X52: 20094.6 | Y52: 20117160.28 | Z52: 0 | AA52: 0 | AB52: 0 | AC52: 6 | AD52: 2017 | AE52: 2017-06-13T09:51:13 | AF52: aishah | AG52: Nor Aishah Saad
A53: EQT*170600201 | B53: SP | C53: EQT | D53: GROWTH | E53: 2017-06-20 | F53: 2017-06-20 | G53: 2017-06-23 | H53: 3000-01-01 | I53: SHLI | J53: BR:RHBINV | K53: RHB INVESTMENT BANK BERHAD | L53: MYR | M53: DF | N53: VCAP-INVESTMENT | O53: 1023 | P53: CIMB | Q53: 1000000 | R53: 6659810.59 | S53: 6659810.59 | T53: 43329348.74 | U53: 6.6515 | V53: -6651500 | W53: -6659810.59 | X53: 6651.5 | Y53: 6659810.59 | Z53: 0 | AA53: 0 | AB53: 0 | AC53: 6 | AD53: 2017 | AE53: 2017-06-20T14:50:18 | AF53: wei.rhong | AG53: Khor Wei Rhong
A54: EQT*170600206 | B54: SP | C54: EQT | D54: GROWTH | E54: 2017-06-21 | F54: 2017-06-21 | G54: 2017-06-28 | H54: 3000-01-01 | I54: SHLI | J54: BR:ALLIANCEINV | K54: ALLIANCE INVESTMENT BANK BERHAD | L54: MYR | M54: DF | N54: VCAP-INVESTMENT | O54: 1023 | P54: CIMB | Q54: 1000000 | R54: 6653604.02 | S54: 6653604.02 | T54: 49982952.76 | U54: 6.6453 | V54: -6645300 | W54: -6653604.02 | X54: 6645.3 | Y54: 6653604.02 | Z54: 0 | AA54: 0 | AB54: 0 | AC54: 6 | AD54: 2017 | AE54: 2017-06-21T09:23:16 | AF54: wei.rhong | AG54: Khor Wei Rhong
A55: EQT*170700035 | B55: SP | C55: EQT | D55: GROWTH | E55: 2017-07-06 | F55: 2017-07-06 | G55: 2017-07-11 | H55: 3000-01-01 | I55: SHLI | J55: BR:ALLIANCEINV | K55: ALLIANCE INVESTMENT BANK BERHAD | L55: MYR | M55: DF | N55: VCAP-INVESTMENT | O55: 1023 | P55: CIMB | Q55: 1000000 | R55: 6595242.22 | S55: 6595242.22 | T55: 56578194.98 | U55: 6.587 | V55: -6587000 | W55: -6595242.22 | X55: 6587 | Y55: 6595242.22 | Z55: 0 | AA55: 0 | AB55: 0 | AC55: 7 | AD55: 2017 | AE55: 2017-07-06T12:16:45 | AF55: ahmad | AG55: Ahmad Firdaus Abdol Malek
A56: EQT*170700045 | B56: SP | C56: EQT | D56: GROWTH | E56: 2017-07-10 | F56: 2017-07-10 | G56: 2017-07-13 | H56: 3000-01-01 | I56: SHLI | J56: BR:KENANGAINV | K56: KENANGA INVESTMENT BANK BHD | L56: MYR | M56: DF | N56: VCAP-INVESTMENT | O56: 1023 | P56: CIMB | Q56: 1000000 | R56: 6535478.94 | S56: 6535478.94 | T56: 63113673.92 | U56: 6.5273 | V56: -6527300 | W56: -6535478.94 | X56: 6527.3 | Y56: 6535478.94 | Z56: 0 | AA56: 0 | AB56: 0 | AC56: 7 | AD56: 2017 | AE56: 2017-07-10T09:25:09 | AF56: ahmad | AG56: Ahmad Firdaus Abdol Malek
A57: EQT*170700053 | B57: SP | C57: EQT | D57: GROWTH | E57: 2017-07-11 | F57: 2017-07-11 | G57: 2017-07-14 | H57: 3000-01-01 | I57: SHLI | J57: BR:KENANGAINV | K57: KENANGA INVESTMENT BANK BHD | L57: MYR | M57: DF | N57: VCAP-INVESTMENT | O57: 1023 | P57: CIMB | Q57: 2000000 | R57: 12786197.68 | S57: 12786197.68 | T57: 75899871.6 | U57: 6.3857 | V57: -12771400 | W57: -12786197.68 | X57: 12771.4 | Y57: 12786197.68 | Z57: 0 | AA57: 0 | AB57: 0 | AC57: 7 | AD57: 2017 | AE57: 2017-07-11T16:26:02 | AF57: aishah | AG57: Nor Aishah Saad
A58: EQT*170700067 | B58: SP | C58: EQT | D58: GROWTH | E58: 2017-07-13 | F58: 2017-07-13 | G58: 2017-07-18 | H58: 3000-01-01 | I58: SHLI | J58: BR:RHBINV | K58: RHB INVESTMENT BANK BERHAD | L58: MYR | M58: DF | N58: VCAP-INVESTMENT | O58: 1023 | P58: CIMB | Q58: 338900 | R58: 2150497.24 | S58: 2150497.24 | T58: 78050368.84 | U58: 6.3295 | V58: -2145067.55 | W58: -2150497.24 | X58: 4290.14 | Y58: 2150497.24 | Z58: 0 | AA58: 0 | AB58: 0 | AC58: 7 | AD58: 2017 | AE58: 2017-07-13T09:35:40 | AF58: ahmad | AG58: Ahmad Firdaus Abdol Malek
A59: EQT*170700069 | B59: SP | C59: EQT | D59: GROWTH | E59: 2017-07-13 | F59: 2017-07-13 | G59: 2017-07-18 | H59: 3000-01-01 | I59: SHLI | J59: BR:PBBINV | K59: PUBLIC INVESTMENT BANK BERHAD | L59: MYR | M59: DF | N59: VCAP-INVESTMENT | O59: 1023 | P59: CIMB | Q59: 765300 | R59: 4848209.79 | S59: 4848209.79 | T59: 82898578.63 | U59: 6.32 | V59: -4836696 | W59: -4848209.79 | X59: 9673.39 | Y59: 4848209.79 | Z59: 0 | AA59: 0 | AB59: 0 | AC59: 7 | AD59: 2017 | AE59: 2017-07-13T09:46:36 | AF59: aishah | AG59: Nor Aishah Saad
A60: EQT*170700090 | B60: SP | C60: EQT | D60: GROWTH | E60: 2017-07-18 | F60: 2017-07-18 | G60: 2017-07-21 | H60: 3000-01-01 | I60: SHLI | J60: BR:RHBINV | K60: RHB INVESTMENT BANK BERHAD | L60: MYR | M60: DF | N60: VCAP-INVESTMENT | O60: 1023 | P60: CIMB | Q60: 1000000 | R60: 6336968.74 | S60: 6336968.74 | T60: 89235547.37 | U60: 6.329 | V60: -6329000 | W60: -6336968.74 | X60: 6329 | Y60: 6336968.74 | Z60: 0 | AA60: 0 | AB60: 0 | AC60: 7 | AD60: 2017 | AE60: 2017-07-18T11:11:41 | AF60: ahmad | AG60: Ahmad Firdaus Abdol Malek
A61: EQT*170700108 | B61: SP | C61: EQT | D61: GROWTH | E61: 2017-07-20 | F61: 2017-07-20 | G61: 2017-07-25 | H61: 3000-01-01 | I61: SHLI | J61: BR:MACQUARIE | K61: MACQUARIE CAPITAL SECURITIES (MALAYSIA) SDN BHD | L61: MYR | M61: DF | N61: VCAP-INVESTMENT | O61: 1023 | P61: CIMB | Q61: 1000000 | R61: 6324455.49 | S61: 6324455.49 | T61: 95560002.86 | U61: 6.3165 | V61: -6316500 | W61: -6324455.49 | X61: 6316.5 | Y61: 6324455.49 | Z61: 0 | AA61: 0 | AB61: 0 | AC61: 7 | AD61: 2017 | AE61: 2017-07-20T10:01:54 | AF61: ahmad | AG61: Ahmad Firdaus Abdol Malek
A62: EQT*170900087 | B62: SP | C62: EQT | D62: GROWTH | E62: 2017-09-20 | F62: 2017-09-20 | G62: 2017-09-26 | H62: 3000-01-01 | I62: SHLI | J62: BR:HLGINV | K62: HONG LEONG INVESTMENT BANK BHD | L62: MYR | M62: DF | N62: VCAP-INVESTMENT | O62: 1023 | P62: CIMB | Q62: 999500 | R62: 6313789.7 | S62: 6313789.7 | T62: 6960982.8 | U62: 6.309 | V62: -6305845.5 | W62: -6313789.7 | X62: 6305.85 | Y62: 6313789.7 | Z62: 0 | AA62: 0 | AB62: 0 | AC62: 9 | AD62: 2017 | AE62: 2017-09-20T15:56:57 | AF62: faris | AG62: Muhammad Faris Harith
A63: EQT*170900088 | B63: SP | C63: EQT | D63: GROWTH | E63: 2017-09-20 | F63: 2017-09-20 | G63: 2017-09-26 | H63: 3000-01-01 | I63: SHLI | J63: BR:RHBINV | K63: RHB INVESTMENT BANK BERHAD | L63: MYR | M63: DF | N63: VCAP-INVESTMENT | O63: 1023 | P63: CIMB | Q63: 1000000 | R63: 6315445.95 | S63: 6315445.95 | T63: 13276428.75 | U63: 6.3075 | V63: -6307500 | W63: -6315445.95 | X63: 6307.5 | Y63: 6315445.95 | Z63: 0 | AA63: 0 | AB63: 0 | AC63: 9 | AD63: 2017 | AE63: 2017-09-20T15:57:45 | AF63: aishah | AG63: Nor Aishah Saad
A64: EQT*170900089 | B64: SP | C64: EQT | D64: GROWTH | E64: 2017-09-21 | F64: 2017-09-21 | G64: 2017-09-27 | H64: 3000-01-01 | I64: SHLI | J64: BR:CIMBINV | K64: CIMB INVESTMENT BANK BHD | L64: MYR | M64: DF | N64: VCAP-INVESTMENT | O64: 1023 | P64: CIMB | Q64: 674100 | R64: 4271923.45 | S64: 4271923.45 | T64: 17548352.2 | U64: 6.332 | V64: -4268401.2 | W64: -4271923.45 | X64: 2134.2 | Y64: 4271923.45 | Z64: 0 | AA64: 0 | AB64: 0 | AC64: 9 | AD64: 2017 | AE64: 2017-09-21T09:02:28 | AF64: faris | AG64: Muhammad Faris Harith
A65: EQT*170900090 | B65: SP | C65: EQT | D65: GROWTH | E65: 2017-09-21 | F65: 2017-09-21 | G65: 2017-09-27 | H65: 3000-01-01 | I65: SHLI | J65: BR:MAYBANKINV | K65: MAYBANK INVESTMENT BANK | L65: MYR | M65: DF | N65: VCAP-INVESTMENT | O65: 1023 | P65: CIMB | Q65: 120000 | R65: 759446.71 | S65: 759446.71 | T65: 18307798.91 | U65: 6.31 | V65: -757200 | W65: -759446.71 | X65: 1703.7 | Y65: 759446.71 | Z65: 0 | AA65: 0 | AB65: 0 | AC65: 9 | AD65: 2017 | AE65: 2017-09-21T09:19:00 | AF65: aishah | AG65: Nor Aishah Saad
A66: EQT*170900091 | B66: SP | C66: EQT | D66: GROWTH | E66: 2017-09-21 | F66: 2017-09-21 | G66: 2017-09-27 | H66: 3000-01-01 | I66: SHLI | J66: BR:PBBINV | K66: PUBLIC INVESTMENT BANK BERHAD | L66: MYR | M66: DF | N66: VCAP-INVESTMENT | O66: 1023 | P66: CIMB | Q66: 2000000 | R66: 12693699.74 | S66: 12693699.74 | T66: 31001498.65 | U66: 6.3395 | V66: -12679000 | W66: -12693699.74 | X66: 12679 | Y66: 12693699.74 | Z66: 0 | AA66: 0 | AB66: 0 | AC66: 9 | AD66: 2017 | AE66: 2017-09-21T09:19:31 | AF66: aishah | AG66: Nor Aishah Saad
A67: EQT*170900096 | B67: SP | C67: EQT | D67: GROWTH | E67: 2017-09-25 | F67: 2017-09-25 | G67: 2017-09-28 | H67: 3000-01-01 | I67: SHLI | J67: BR:MIDFINV | K67: MIDF AMANAH INVESTMENT BANK BHD | L67: MYR | M67: DF | N67: VCAP-INVESTMENT | O67: 1023 | P67: CIMB | Q67: 1000000 | R67: 6319049.77 | S67: 6319049.77 | T67: 37320548.42 | U67: 6.3111 | V67: -6311100 | W67: -6319049.77 | X67: 6311.1 | Y67: 6319049.77 | Z67: 0 | AA67: 0 | AB67: 0 | AC67: 9 | AD67: 2017 | AE67: 2017-09-25T09:58:24 | AF67: faris | AG67: Muhammad Faris Harith
A68: EQT*170900097 | B68: SP | C68: EQT | D68: GROWTH | E68: 2017-09-25 | F68: 2017-09-25 | G68: 2017-09-28 | H68: 3000-01-01 | I68: SHLI | J68: BR:UBSSECMY | K68: UBS SECURITIES MALAYSIA SDN BHD | L68: MYR | M68: DF | N68: VCAP-INVESTMENT | O68: 1023 | P68: CIMB | Q68: 1000000 | R68: 6320451.25 | S68: 6320451.25 | T68: 43640999.67 | U68: 6.3125 | V68: -6312500 | W68: -6320451.25 | X68: 6312.5 | Y68: 6320451.25 | Z68: 0 | AA68: 0 | AB68: 0 | AC68: 9 | AD68: 2017 | AE68: 2017-09-25T10:18:51 | AF68: faris | AG68: Muhammad Faris Harith
A69: EQT*170900099 | B69: SP | C69: EQT | D69: GROWTH | E69: 2017-09-25 | F69: 2017-09-25 | G69: 2017-09-28 | H69: 3000-01-01 | I69: SHLI | J69: BR:TASEC | K69: TA SECURITIES HOLDINGS BHD | L69: MYR | M69: DF | N69: VCAP-INVESTMENT | O69: 1023 | P69: CIMB | Q69: 2000000 | R69: 12626428.51 | S69: 12626428.51 | T69: 56267428.18 | U69: 6.3059 | V69: -12611800 | W69: -12626428.51 | X69: 12611.8 | Y69: 12626428.51 | Z69: 0 | AA69: 0 | AB69: 0 | AC69: 9 | AD69: 2017 | AE69: 2017-09-25T15:41:08 | AF69: aishah | AG69: Nor Aishah Saad
A70: EQT*170900100 | B70: SP | C70: EQT | D70: GROWTH | E70: 2017-09-26 | F70: 2017-09-26 | G70: 2017-09-29 | H70: 3000-01-01 | I70: SHLI | J70: BR:KAFSEC | K70: KAF-SEAGROATT & CAMPBELL SECURITIES SDN BHD | L70: MYR | M70: DF | N70: VCAP-INVESTMENT | O70: 1023 | P70: CIMB | Q70: 1726500 | R70: 10856209.97 | S70: 10856209.97 | T70: 67123638.15 | U70: 6.2806 | V70: -10843455.9 | W70: -10856209.97 | X70: 10843.46 | Y70: 10856209.97 | Z70: 0 | AA70: 0 | AB70: 0 | AC70: 9 | AD70: 2017 | AE70: 2017-09-26T11:41:53 | AF70: aishah | AG70: Nor Aishah Saad
A71: EQT*170900103 | B71: SP | C71: EQT | D71: GROWTH | E71: 2017-09-26 | F71: 2017-09-26 | G71: 2017-09-29 | H71: 3000-01-01 | I71: SHLI | J71: BR:AFFINV | K71: AFFIN HWANG INVESTMENT BANK BERHAD | L71: MYR | M71: DF | N71: VCAP-INVESTMENT | O71: 1023 | P71: CIMB | Q71: 1000000 | R71: 6291520.62 | S71: 6291520.62 | T71: 73415158.77 | U71: 6.2836 | V71: -6283600 | W71: -6291520.62 | X71: 6283.6 | Y71: 6291520.62 | Z71: 0 | AA71: 0 | AB71: 0 | AC71: 9 | AD71: 2017 | AE71: 2017-09-26T16:58:32 | AF71: aishah | AG71: Nor Aishah Saad
A72: EQT*170900105 | B72: SP | C72: EQT | D72: GROWTH | E72: 2017-09-27 | F72: 2017-09-27 | G72: 2017-10-02 | H72: 3000-01-01 | I72: SHLI | J72: BR:TASEC | K72: TA SECURITIES HOLDINGS BHD | L72: MYR | M72: DF | N72: VCAP-INVESTMENT | O72: 1023 | P72: CIMB | Q72: 379900 | R72: 2399405.04 | S72: 2399405.04 | T72: 75814563.81 | U72: 6.3 | V72: -2393370 | W72: -2399405.04 | X72: 4786.74 | Y72: 2399405.04 | Z72: 0 | AA72: 0 | AB72: 0 | AC72: 9 | AD72: 2017 | AE72: 2017-09-27T16:15:50 | AF72: ahmad | AG72: Ahmad Firdaus Abdol Malek
A73: EQT*170900114 | B73: SP | C73: EQT | D73: GROWTH | E73: 2017-09-28 | F73: 2017-09-28 | G73: 2017-10-03 | H73: 3000-01-01 | I73: SHLI | J73: BR:NOMURASECMY | K73: NOMURA SECURITIES MALAYSIA SDN BHD | L73: MYR | M73: DF | N73: VCAP-INVESTMENT | O73: 1023 | P73: CIMB | Q73: 3000000 | R73: 18875045.03 | S73: 18875045.03 | T73: 94689608.84 | U73: 6.2846 | V73: -18853800 | W73: -18875045.03 | X73: 18853.8 | Y73: 18875045.03 | Z73: 0 | AA73: 0 | AB73: 0 | AC73: 9 | AD73: 2017 | AE73: 2017-09-28T15:01:28 | AF73: aishah | AG73: Nor Aishah Saad
A74: EQT*170900120 | B74: SP | C74: EQT | D74: GROWTH | E74: 2017-09-29 | F74: 2017-09-29 | G74: 2017-10-04 | H74: 3000-01-01 | I74: SHLI | J74: BR:RHBINV | K74: RHB INVESTMENT BANK BERHAD | L74: MYR | M74: DF | N74: VCAP-INVESTMENT | O74: 1023 | P74: CIMB | Q74: 1000000 | R74: 6294724.01 | S74: 6294724.01 | T74: 100984332.8 | U74: 6.2868 | V74: -6286800 | W74: -6294724.01 | X74: 6286.8 | Y74: 6294724.01 | Z74: 0 | AA74: 0 | AB74: 0 | AC74: 9 | AD74: 2017 | AE74: 2017-09-29T11:11:34 | AF74: faris | AG74: Muhammad Faris Harith
A75: EQT*171000002 | B75: SP | C75: EQT | D75: GROWTH | E75: 2017-10-02 | F75: 2017-10-02 | G75: 2017-10-05 | H75: 3000-01-01 | I75: SHLI | J75: BR:RHBINV | K75: RHB INVESTMENT BANK BERHAD | L75: MYR | M75: DF | N75: VCAP-INVESTMENT | O75: 1023 | P75: CIMB | Q75: 800000 | R75: 5062138.85 | S75: 5062138.85 | T75: 106046471.7 | U75: 6.3194 | V75: -5055520 | W75: -5062138.85 | X75: 5055.52 | Y75: 5062138.85 | Z75: 0 | AA75: 0 | AB75: 0 | AC75: 10 | AD75: 2017 | AE75: 2017-10-02T09:34:18 | AF75: faris | AG75: Muhammad Faris Harith
A76: EQT*171000003 | B76: SP | C76: EQT | D76: GROWTH | E76: 2017-10-02 | F76: 2017-10-02 | G76: 2017-10-05 | H76: 3000-01-01 | I76: SHLI | J76: BR:AFFINV | K76: AFFIN HWANG INVESTMENT BANK BERHAD | L76: MYR | M76: DF | N76: VCAP-INVESTMENT | O76: 1023 | P76: CIMB | Q76: 1911400 | R76: 12097174.34 | S76: 12097174.34 | T76: 118143646 | U76: 6.3216 | V76: -12083106.24 | W76: -12097174.34 | X76: 12083.11 | Y76: 12097174.34 | Z76: 0 | AA76: 0 | AB76: 0 | AC76: 10 | AD76: 2017 | AE76: 2017-10-02T10:46:59 | AF76: aishah | AG76: Nor Aishah Saad
A77: EQT*171000009 | B77: SP | C77: EQT | D77: GROWTH | E77: 2017-10-03 | F77: 2017-10-03 | G77: 2017-10-06 | H77: 3000-01-01 | I77: SHLI | J77: BR:ALLIANCEINV | K77: ALLIANCE INVESTMENT BANK BERHAD | L77: MYR | M77: DF | N77: VCAP-INVESTMENT | O77: 1023 | P77: CIMB | Q77: 1288600 | R77: 8192543.57 | S77: 8192543.57 | T77: 126336189.6 | U77: 6.35 | V77: -8182610 | W77: -8192543.57 | X77: 8182.61 | Y77: 8192543.57 | Z77: 0 | AA77: 0 | AB77: 0 | AC77: 10 | AD77: 2017 | AE77: 2017-10-03T12:16:46 | AF77: aishah | AG77: Nor Aishah Saad
A78: EQT*171000013 | B78: SP | C78: EQT | D78: GROWTH | E78: 2017-10-03 | F78: 2017-10-03 | G78: 2017-10-06 | H78: 3000-01-01 | I78: SHLI | J78: BR:CREDITSUISSEMY | K78: CREDIT SUISSE SECURITIES (M) SDN BHD | L78: MYR | M78: DF | N78: VCAP-INVESTMENT | O78: 1023 | P78: CIMB | Q78: 1500000 | R78: 9521340.6 | S78: 9521340.6 | T78: 135857530.2 | U78: 6.34 | V78: -9510000 | W78: -9521340.6 | X78: 9510 | Y78: 9521340.6 | Z78: 0 | AA78: 0 | AB78: 0 | AC78: 10 | AD78: 2017 | AE78: 2017-10-03T15:58:07 | AF78: aishah | AG78: Nor Aishah Saad
A79: EQT*171000019 | B79: SP | C79: EQT | D79: GROWTH | E79: 2017-10-04 | F79: 2017-10-04 | G79: 2017-10-09 | H79: 3000-01-01 | I79: SHLI | J79: BR:CREDITSUISSEMY | K79: CREDIT SUISSE SECURITIES (M) SDN BHD | L79: MYR | M79: DF | N79: VCAP-INVESTMENT | O79: 1023 | P79: CIMB | Q79: 600000 | R79: 3824688.52 | S79: 3824688.52 | T79: 139682218.7 | U79: 6.3589 | V79: -3815340 | W79: -3824688.52 | X79: 7630.68 | Y79: 3824688.52 | Z79: 0 | AA79: 0 | AB79: 0 | AC79: 10 | AD79: 2017 | AE79: 2017-10-04T17:10:07 | AF79: aishah | AG79: Nor Aishah Saad
A80: EQT*171000023 | B80: SP | C80: EQT | D80: GROWTH | E80: 2017-10-05 | F80: 2017-10-05 | G80: 2017-10-10 | H80: 3000-01-01 | I80: SHLI | J80: BR:KENANGAINV | K80: KENANGA INVESTMENT BANK BHD | L80: MYR | M80: DF | N80: VCAP-INVESTMENT | O80: 1023 | P80: CIMB | Q80: 700600 | R80: 4494605.74 | S80: 4494605.74 | T80: 145780925.3 | U80: 6.4 | V80: -4483840 | W80: -4494605.74 | X80: 8967.68 | Y80: 4494605.74 | Z80: 0 | AA80: 0 | AB80: 0 | AC80: 10 | AD80: 2017 | AE80: 2017-10-05T09:30:31 | AF80: ahmad | AG80: Ahmad Firdaus Abdol Malek
A81: EQT*171000026 | B81: SP | C81: EQT | D81: GROWTH | E81: 2017-10-05 | F81: 2017-10-05 | G81: 2017-10-10 | H81: 3000-01-01 | I81: SHLI | J81: BR:UOBKHSECMY | K81: UOB KAY HIAN SECURITIES (M) SDN BHD | L81: MYR | M81: DF | N81: VCAP-INVESTMENT | O81: 1023 | P81: CIMB | Q81: 250000 | R81: 1604100.8 | S81: 1604100.8 | T81: 141286319.5 | U81: 6.4 | V81: -1600000 | W81: -1604100.8 | X81: 3200 | Y81: 1604100.8 | Z81: 0 | AA81: 0 | AB81: 0 | AC81: 10 | AD81: 2017 | AE81: 2017-10-05T11:39:30 | AF81: ahmad | AG81: Ahmad Firdaus Abdol Malek
A82: EQT*171000032 | B82: SP | C82: EQT | D82: GROWTH | E82: 2017-10-06 | F82: 2017-10-06 | G82: 2017-10-11 | H82: 3000-01-01 | I82: SHLI | J82: BR:AFFINV | K82: AFFIN HWANG INVESTMENT BANK BERHAD | L82: MYR | M82: DF | N82: VCAP-INVESTMENT | O82: 1023 | P82: CIMB | Q82: 700000 | R82: 4490757.6 | S82: 4490757.6 | T82: 150271682.9 | U82: 6.4 | V82: -4480000 | W82: -4490757.6 | X82: 8960 | Y82: 4490757.6 | Z82: 0 | AA82: 0 | AB82: 0 | AC82: 10 | AD82: 2017 | AE82: 2017-10-06T09:19:19 | AF82: ahmad | AG82: Ahmad Firdaus Abdol Malek
A83: EQT*171000043 | B83: SP | C83: EQT | D83: GROWTH | E83: 2017-10-09 | F83: 2017-10-09 | G83: 2017-10-12 | H83: 3000-01-01 | I83: SHLI | J83: BR:MAYBANKINV | K83: MAYBANK INVESTMENT BANK | L83: MYR | M83: DF | N83: VCAP-INVESTMENT | O83: 1023 | P83: CIMB | Q83: 1249400 | R83: 8049796.35 | S83: 8049796.35 | T83: 158321479.2 | U83: 6.4351 | V83: -8040013.94 | W83: -8049796.35 | X83: 8040.01 | Y83: 8049796.35 | Z83: 0 | AA83: 0 | AB83: 0 | AC83: 10 | AD83: 2017 | AE83: 2017-10-09T15:21:13 | AF83: aishah | AG83: Nor Aishah Saad
A84: EQT*170300171 | B84: SP | C84: EQT | D84: VALUE | E84: 2017-03-15 | F84: 2017-03-15 | G84: 2017-03-20 | H84: 3000-01-01 | I84: SHLI | J84: BR:MAYBANKINV | K84: MAYBANK INVESTMENT BANK | L84: MYR | M84: DF | N84: VCAP-INVESTMENT | O84: 1155 | P84: MAYBANK | Q84: 2000000 | R84: 17519810 | S84: 17519810 | T84: 502462497.7 | U84: 8.75 | V84: -17500000 | W84: -17519810 | X84: 17500 | Y84: 17519810 | Z84: 0 | AA84: 0 | AB84: 0 | AC84: 3 | AD84: 2017 | AE84: 2017-03-15T17:13:14 | AF84: aishah | AG84: Nor Aishah Saad
A85: EQT*170300239 | B85: SP | C85: EQT | D85: VALUE | E85: 2017-03-22 | F85: 2017-03-22 | G85: 2017-03-27 | H85: 3000-01-01 | I85: SHLI | J85: BR:AMINVBANK | K85: AMINVESTMENT BANK BHD | L85: MYR | M85: DF | N85: VCAP-INVESTMENT | O85: 1155 | P85: MAYBANK | Q85: 497900 | R85: 4445057.9 | S85: 4445057.9 | T85: 452995412.2 | U85: 8.9062 | V85: -4434396.98 | W85: -4445057.9 | X85: 8868.79 | Y85: 4445057.9 | Z85: 0 | AA85: 0 | AB85: 0 | AC85: 3 | AD85: 2017 | AE85: 2017-03-22T16:49:05 | AF85: aishah | AG85: Nor Aishah Saad
A86: EQT*170300241 | B86: SP | C86: EQT | D86: VALUE | E86: 2017-03-22 | F86: 2017-03-22 | G86: 2017-03-27 | H86: 3000-01-01 | I86: SHLI | J86: BR:ALLIANCEINV | K86: ALLIANCE INVESTMENT BANK BERHAD | L86: MYR | M86: DF | N86: VCAP-INVESTMENT | O86: 1155 | P86: MAYBANK | Q86: 2000000 | R86: 17880191.6 | S86: 17880191.6 | T86: 470875603.8 | U86: 8.93 | V86: -17860000 | W86: -17880191.6 | X86: 17860 | Y86: 17880191.6 | Z86: 0 | AA86: 0 | AB86: 0 | AC86: 3 | AD86: 2017 | AE86: 2017-03-22T16:56:36 | AF86: aishah | AG86: Nor Aishah Saad
A87: EQT*170300289 | B87: SP | C87: EQT | D87: VALUE | E87: 2017-03-27 | F87: 2017-03-27 | G87: 2017-03-30 | H87: 3000-01-01 | I87: SHLI | J87: BR:MAYBANKINV | K87: MAYBANK INVESTMENT BANK | L87: MYR | M87: DF | N87: VCAP-INVESTMENT | O87: 1155 | P87: MAYBANK | Q87: 17000 | R87: 152714.27 | S87: 152714.27 | T87: 428866223.8 | U87: 8.95 | V87: -152150 | W87: -152714.27 | X87: 342.34 | Y87: 152714.27 | Z87: 0 | AA87: 0 | AB87: 0 | AC87: 3 | AD87: 2017 | AE87: 2017-03-27T17:05:57 | AF87: ahmad | AG87: Ahmad Firdaus Abdol Malek
A88: EQT*170300318 | B88: SP | C88: EQT | D88: VALUE | E88: 2017-03-30 | F88: 2017-03-30 | G88: 2017-04-04 | H88: 3000-01-01 | I88: SHLI | J88: BR:MIDFINV | K88: MIDF AMANAH INVESTMENT BANK BHD | L88: MYR | M88: DF | N88: VCAP-INVESTMENT | O88: 1155 | P88: MAYBANK | Q88: 500000 | R88: 4460694 | S88: 4460694 | T88: 430401451.5 | U88: 8.9 | V88: -4450000 | W88: -4460694 | X88: 8900 | Y88: 4460694 | Z88: 0 | AA88: 0 | AB88: 0 | AC88: 3 | AD88: 2017 | AE88: 2017-03-30T11:40:21 | AF88: ahmad | AG88: Ahmad Firdaus Abdol Malek
A89: EQT*170400012 | B89: SP | C89: EQT | D89: VALUE | E89: 2017-04-03 | F89: 2017-04-03 | G89: 2017-04-06 | H89: 3000-01-01 | I89: SHLI | J89: BR:KAFSEC | K89: KAF-SEAGROATT & CAMPBELL SECURITIES SDN BHD | L89: MYR | M89: DF | N89: VCAP-INVESTMENT | O89: 1155 | P89: MAYBANK | Q89: 3000000 | R89: 26924768.7 | S89: 26924768.7 | T89: 457326220.2 | U89: 8.965 | V89: -26895000 | W89: -26924768.7 | X89: 26895 | Y89: 26924768.7 | Z89: 0 | AA89: 0 | AB89: 0 | AC89: 4 | AD89: 2017 | AE89: 2017-04-03T16:11:11 | AF89: aishah | AG89: Nor Aishah Saad
A90: EQT*170400042 | B90: SP | C90: EQT | D90: VALUE | E90: 2017-04-06 | F90: 2017-04-06 | G90: 2017-04-11 | H90: 3000-01-01 | I90: SHLI | J90: BR:MACQUARIE | K90: MACQUARIE CAPITAL SECURITIES (MALAYSIA) SDN BHD | L90: MYR | M90: DF | N90: VCAP-INVESTMENT | O90: 1155 | P90: MAYBANK | Q90: 1000000 | R90: 8956142.12 | S90: 8956142.12 | T90: 462794643.8 | U90: 8.9454 | V90: -8945400 | W90: -8956142.12 | X90: 8945.4 | Y90: 8956142.12 | Z90: 0 | AA90: 0 | AB90: 0 | AC90: 4 | AD90: 2017 | AE90: 2017-04-06T09:11:27 | AF90: ahmad | AG90: Ahmad Firdaus Abdol Malek
A91: EQT*170400044 | B91: SP | C91: EQT | D91: VALUE | E91: 2017-04-06 | F91: 2017-04-06 | G91: 2017-04-17 | H91: 3000-01-01 | I91: SHLI | J91: BR:MIDFINV | K91: MIDF AMANAH INVESTMENT BANK BHD | L91: MYR | M91: DF | N91: VCAP-INVESTMENT | O91: 1155 | P91: MAYBANK | Q91: 2550000 | R91: 22839083.66 | S91: 22839083.66 | T91: 485633727.4 | U91: 8.9466 | V91: -22813830 | W91: -22839083.66 | X91: 22813.83 | Y91: 22839083.66 | Z91: 0 | AA91: 0 | AB91: 0 | AC91: 4 | AD91: 2017 | AE91: 2017-04-06T09:19:48 | AF91: aishah | AG91: Nor Aishah Saad
A92: EQT*170400044C | B92: SP | C92: EQT | D92: VALUE | E92: 2017-04-06 | F92: 2017-04-06 | G92: 2017-04-17 | H92: 3000-01-01 | I92: SHLI | J92: BR:MIDFINV | K92: MIDF AMANAH INVESTMENT BANK BHD | L92: MYR | M92: DF | N92: VCAP-INVESTMENT | O92: 1155 | P92: MAYBANK | Q92: 450000 | R92: 4030426.53 | S92: 4030426.53 | T92: 489664154 | U92: 8.9466 | V92: -4025970 | W92: -4030426.53 | X92: 4025.97 | Y92: 4030426.53 | Z92: 0 | AA92: 0 | AB92: 0 | AC92: 4 | AD92: 2017 | AE92: 2017-04-06T09:19:48 | AF92: aishah | AG92: Nor Aishah Saad
A93: EQT*170400047 | B93: SP | C93: EQT | D93: VALUE | E93: 2017-04-06 | F93: 2017-04-06 | G93: 2017-04-11 | H93: 3000-01-01 | I93: SHLI | J93: BR:PBBINV | K93: PUBLIC INVESTMENT BANK BERHAD | L93: MYR | M93: DF | N93: VCAP-INVESTMENT | O93: 1155 | P93: MAYBANK | Q93: 1000000 | R93: 8950736.4 | S93: 8950736.4 | T93: 498614890.4 | U93: 8.94 | V93: -8940000 | W93: -8950736.4 | X93: 8940 | Y93: 8950736.4 | Z93: 0 | AA93: 0 | AB93: 0 | AC93: 4 | AD93: 2017 | AE93: 2017-04-06T14:29:13 | AF93: ahmad | AG93: Ahmad Firdaus Abdol Malek
A94: EQT*170500017 | B94: SP | C94: EQT | D94: VALUE | E94: 2017-05-02 | F94: 2017-05-02 | G94: 2017-05-05 | H94: 3000-01-01 | I94: SHLI | J94: BR:MACQUARIE | K94: MACQUARIE CAPITAL SECURITIES (MALAYSIA) SDN BHD | L94: MYR | M94: DF | N94: VCAP-INVESTMENT | O94: 1155 | P94: MAYBANK | Q94: 73500 | R94: 707707.24 | S94: 707707.24 | T94: 297893881.9 | U94: 9.6 | V94: -705600 | W94: -707707.24 | X94: 1587.6 | Y94: 707707.24 | Z94: 0 | AA94: 0 | AB94: 0 | AC94: 5 | AD94: 2017 | AE94: 2017-05-02T17:01:28 | AF94: aishah | AG94: Nor Aishah Saad
A95: EQT*170500222 | B95: SP | C95: EQT | D95: VALUE | E95: 2017-05-31 | F95: 2017-05-31 | G95: 2017-06-05 | H95: 3000-01-01 | I95: SHLI | J95: BR:RHBINV | K95: RHB INVESTMENT BANK BERHAD | L95: MYR | M95: DF | N95: VCAP-INVESTMENT | O95: 1155 | P95: MAYBANK | Q95: 271800 | R95: 2555899.65 | S95: 2555899.65 | T95: 52576482.72 | U95: 9.38 | V95: -2549484 | W95: -2555899.65 | X95: 5098.97 | Y95: 2555899.65 | Z95: 0 | AA95: 0 | AB95: 0 | AC95: 5 | AD95: 2017 | AE95: 2017-05-31T11:10:07 | AF95: faris | AG95: Muhammad Faris Harith
A96: EQT*170600185 | B96: SP | C96: EQT | D96: VALUE | E96: 2017-06-19 | F96: 2017-06-19 | G96: 2017-06-22 | H96: 3000-01-01 | I96: SHLI | J96: BR:ALLIANCEINV | K96: ALLIANCE INVESTMENT BANK BERHAD | L96: MYR | M96: DF | N96: VCAP-INVESTMENT | O96: 1155 | P96: MAYBANK | Q96: 46000 | R96: 442873.73 | S96: 442873.73 | T96: 17963695.75 | U96: 9.5974 | V96: -441480.4 | W96: -442873.73 | X96: 993.33 | Y96: 442873.73 | Z96: 0 | AA96: 0 | AB96: 0 | AC96: 6 | AD96: 2017 | AE96: 2017-06-19T16:58:06 | AF96: wei.rhong | AG96: Khor Wei Rhong
A97: EQT*170600199 | B97: SP | C97: EQT | D97: VALUE | E97: 2017-06-20 | F97: 2017-06-20 | G97: 2017-06-23 | H97: 3000-01-01 | I97: SHLI | J97: BR:NOMURASECMY | K97: NOMURA SECURITIES MALAYSIA SDN BHD | L97: MYR | M97: DF | N97: VCAP-INVESTMENT | O97: 1155 | P97: MAYBANK | Q97: 1000000 | R97: 9651478.4 | S97: 9651478.4 | T97: 27615174.15 | U97: 9.64 | V97: -9640000 | W97: -9651478.4 | X97: 9640 | Y97: 9651478.4 | Z97: 0 | AA97: 0 | AB97: 0 | AC97: 6 | AD97: 2017 | AE97: 2017-06-20T14:15:54 | AF97: wei.rhong | AG97: Khor Wei Rhong
A98: EQT*170600205 | B98: SP | C98: EQT | D98: VALUE | E98: 2017-06-21 | F98: 2017-06-21 | G98: 2017-06-28 | H98: 3000-01-01 | I98: SHLI | J98: BR:ALLIANCEINV | K98: ALLIANCE INVESTMENT BANK BERHAD | L98: MYR | M98: DF | N98: VCAP-INVESTMENT | O98: 1155 | P98: MAYBANK | Q98: 1000000 | R98: 9621246.39 | S98: 9621246.39 | T98: 37236420.54 | U98: 9.6098 | V98: -9609800 | W98: -9621246.39 | X98: 9609.8 | Y98: 9621246.39 | Z98: 0 | AA98: 0 | AB98: 0 | AC98: 6 | AD98: 2017 | AE98: 2017-06-21T09:23:03 | AF98: wei.rhong | AG98: Khor Wei Rhong
A99: EQT*170600210 | B99: SP | C99: EQT | D99: VALUE | E99: 2017-06-21 | F99: 2017-06-21 | G99: 2017-06-28 | H99: 3000-01-01 | I99: SHLI | J99: BR:HLGINV | K99: HONG LEONG INVESTMENT BANK BHD | L99: MYR | M99: DF | N99: VCAP-INVESTMENT | O99: 1155 | P99: MAYBANK | Q99: 2000000 | R99: 19201791.01 | S99: 19201791.01 | T99: 56438211.55 | U99: 9.5901 | V99: -19180200 | W99: -19201791.01 | X99: 19180.2 | Y99: 19201791.01 | Z99: 0 | AA99: 0 | AB99: 0 | AC99: 6 | AD99: 2017 | AE99: 2017-06-21T16:41:02 | AF99: aishah | AG99: Nor Aishah Saad
A100: EQT*170600212 | B100: SP | C100: EQT | D100: VALUE | E100: 2017-06-22 | F100: 2017-06-22 | G100: 2017-06-29 | H100: 3000-01-01 | I100: SHLI | J100: BR:CIMBINV | K100: CIMB INVESTMENT BANK BHD | L100: MYR | M100: DF | N100: VCAP-INVESTMENT | O100: 1155 | P100: MAYBANK | Q100: 500000 | R100: 4806425.4 | S100: 4806425.4 | T100: 61244636.95 | U100: 9.59 | V100: -4795000 | W100: -4806425.4 | X100: 9590 | Y100: 4806425.4 | Z100: 0 | AA100: 0 | AB100: 0 | AC100: 6 | AD100: 2017 | AE100: 2017-06-22T16:10:55 | AF100: ahmad | AG100: Ahmad Firdaus Abdol Malek
A101: EQT*170700033 | B101: SP | C101: EQT | D101: VALUE | E101: 2017-07-06 | F101: 2017-07-06 | G101: 2017-07-11 | H101: 3000-01-01 | I101: SHLI | J101: BR:MAYBANKINV | K101: MAYBANK INVESTMENT BANK | L101: MYR | M101: DF | N101: VCAP-INVESTMENT | O101: 1155 | P101: MAYBANK | Q101: 1000000 | R101: 9660487.94 | S101: 9660487.94 | T101: 70905124.89 | U101: 9.649 | V101: -9649000 | W101: -9660487.94 | X101: 9649 | Y101: 9660487.94 | Z101: 0 | AA101: 0 | AB101: 0 | AC101: 7 | AD101: 2017 | AE101: 2017-07-06T10:38:36 | AF101: wei.rhong | AG101: Khor Wei Rhong
A102: EQT*170700034 | B102: SP | C102: EQT | D102: VALUE | E102: 2017-07-06 | F102: 2017-07-06 | G102: 2017-07-11 | H102: 3000-01-01 | I102: SHLI | J102: BR:MACQUARIE | K102: MACQUARIE CAPITAL SECURITIES (MALAYSIA) SDN BHD | L102: MYR | M102: DF | N102: VCAP-INVESTMENT | O102: 1155 | P102: MAYBANK | Q102: 1000000 | R102: 9661388.89 | S102: 9661388.89 | T102: 80566513.78 | U102: 9.6499 | V102: -9649900 | W102: -9661388.89 | X102: 9649.9 | Y102: 9661388.89 | Z102: 0 | AA102: 0 | AB102: 0 | AC102: 7 | AD102: 2017 | AE102: 2017-07-06T11:05:44 | AF102: ahmad | AG102: Ahmad Firdaus Abdol Malek
A103: EQT*170800004 | B103: SP | C103: EQT | D103: VALUE | E103: 2017-08-01 | F103: 2017-08-01 | G103: 2017-08-04 | H103: 3000-01-01 | I103: SHLI | J103: BR:AFFINV | K103: AFFIN HWANG INVESTMENT BANK BERHAD | L103: MYR | M103: DF | N103: VCAP-INVESTMENT | O103: 1155 | P103: MAYBANK | Q103: 200000 | R103: 1923878.52 | S103: 1923878.52 | T103: 27075224.43 | U103: 9.595 | V103: -1919000 | W103: -1923878.52 | X103: 3838 | Y103: 1923878.52 | Z103: 0 | AA103: 0 | AB103: 0 | AC103: 8 | AD103: 2017 | AE103: 2017-08-01T09:40:29 | AF103: ahmad | AG103: Ahmad Firdaus Abdol Malek
A104: EQT*170800028 | B104: SP | C104: EQT | D104: VALUE | E104: 2017-08-04 | F104: 2017-08-04 | G104: 2017-08-09 | H104: 3000-01-01 | I104: SHLI | J104: BR:CIMBINV | K104: CIMB INVESTMENT BANK BHD | L104: MYR | M104: DF | N104: VCAP-INVESTMENT | O104: 1155 | P104: MAYBANK | Q104: 351300 | R104: 3396978.1 | S104: 3396978.1 | T104: 30472202.53 | U104: 9.6457 | V104: -3388534.41 | W104: -3396978.1 | X104: 6777.07 | Y104: 3396978.1 | Z104: 0 | AA104: 0 | AB104: 0 | AC104: 8 | AD104: 2017 | AE104: 2017-08-04T09:13:26 | AF104: ahmad | AG104: Ahmad Firdaus Abdol Malek
A105: EQT*170800033 | B105: SP | C105: EQT | D105: VALUE | E105: 2017-08-04 | F105: 2017-08-04 | G105: 2017-08-09 | H105: 3000-01-01 | I105: SHLI | J105: BR:TASEC | K105: TA SECURITIES HOLDINGS BHD | L105: MYR | M105: DF | N105: VCAP-INVESTMENT | O105: 1155 | P105: MAYBANK | Q105: 2000000 | R105: 19321718 | S105: 19321718 | T105: 49793920.53 | U105: 9.65 | V105: -19300000 | W105: -19321718 | X105: 19300 | Y105: 19321718 | Z105: 0 | AA105: 0 | AB105: 0 | AC105: 8 | AD105: 2017 | AE105: 2017-08-04T17:03:06 | AF105: aishah | AG105: Nor Aishah Saad
A106: EQT*170800042 | B106: SP | C106: EQT | D106: VALUE | E106: 2017-08-07 | F106: 2017-08-07 | G106: 2017-08-10 | H106: 3000-01-01 | I106: SHLI | J106: BR:TASEC | K106: TA SECURITIES HOLDINGS BHD | L106: MYR | M106: DF | N106: VCAP-INVESTMENT | O106: 1155 | P106: MAYBANK | Q106: 3000000 | R106: 29118291.37 | S106: 29118291.37 | T106: 78912211.9 | U106: 9.6954 | V106: -29086200 | W106: -29118291.37 | X106: 29086.2 | Y106: 29118291.37 | Z106: 0 | AA106: 0 | AB106: 0 | AC106: 8 | AD106: 2017 | AE106: 2017-08-07T17:00:40 | AF106: aishah | AG106: Nor Aishah Saad
A107: EQT*170800054 | B107: SP | C107: EQT | D107: VALUE | E107: 2017-08-08 | F107: 2017-08-08 | G107: 2017-08-11 | H107: 3000-01-01 | I107: SHLI | J107: BR:KAFSEC | K107: KAF-SEAGROATT & CAMPBELL SECURITIES SDN BHD | L107: MYR | M107: DF | N107: VCAP-INVESTMENT | O107: 1155 | P107: MAYBANK | Q107: 1527800 | R107: 14888782.05 | S107: 14888782.05 | T107: 93800993.95 | U107: 9.7341 | V107: -14871757.98 | W107: -14888782.05 | X107: 14871.76 | Y107: 14888782.05 | Z107: 0 | AA107: 0 | AB107: 0 | AC107: 8 | AD107: 2017 | AE107: 2017-08-08T17:00:47 | AF107: aishah | AG107: Nor Aishah Saad
A108: EQT*170800062 | B108: SP | C108: EQT | D108: VALUE | E108: 2017-08-09 | F108: 2017-08-09 | G108: 2017-08-14 | H108: 3000-01-01 | I108: SHLI | J108: BR:TASEC | K108: TA SECURITIES HOLDINGS BHD | L108: MYR | M108: DF | N108: VCAP-INVESTMENT | O108: 1155 | P108: MAYBANK | Q108: 1301200 | R108: 12749082.3 | S108: 12749082.3 | T108: 106550076.2 | U108: 9.7866 | V108: -12734323.92 | W108: -12749082.3 | X108: 12734.32 | Y108: 12749082.3 | Z108: 0 | AA108: 0 | AB108: 0 | AC108: 8 | AD108: 2017 | AE108: 2017-08-09T17:04:40 | AF108: aishah | AG108: Nor Aishah Saad
A109: EQT*170800066 | B109: SP | C109: EQT | D109: VALUE | E109: 2017-08-10 | F109: 2017-08-10 | G109: 2017-08-15 | H109: 3000-01-01 | I109: SHLI | J109: BR:MACQUARIE | K109: MACQUARIE CAPITAL SECURITIES (MALAYSIA) SDN BHD | L109: MYR | M109: DF | N109: VCAP-INVESTMENT | O109: 1155 | P109: MAYBANK | Q109: 3000000 | R109: 29415906.51 | S109: 29415906.51 | T109: 135965982.8 | U109: 9.7945 | V109: -29383500 | W109: -29415906.51 | X109: 29383.5 | Y109: 29415906.51 | Z109: 0 | AA109: 0 | AB109: 0 | AC109: 8 | AD109: 2017 | AE109: 2017-08-10T15:37:52 | AF109: aishah | AG109: Nor Aishah Saad
A110: EQT*170800068 | B110: SP | C110: EQT | D110: VALUE | E110: 2017-08-11 | F110: 2017-08-11 | G110: 2017-08-16 | H110: 3000-01-01 | I110: SHLI | J110: BR:MACQUARIE | K110: MACQUARIE CAPITAL SECURITIES (MALAYSIA) SDN BHD | L110: MYR | M110: DF | N110: VCAP-INVESTMENT | O110: 1155 | P110: MAYBANK | Q110: 1000000 | R110: 9717948.78 | S110: 9717948.78 | T110: 145683931.5 | U110: 9.7064 | V110: -9706400 | W110: -9717948.78 | X110: 9706.4 | Y110: 9717948.78 | Z110: 0 | AA110: 0 | AB110: 0 | AC110: 8 | AD110: 2017 | AE110: 2017-08-11T09:09:28 | AF110: ahmad | AG110: Ahmad Firdaus Abdol Malek
A111: EQT*170800074 | B111: SP | C111: EQT | D111: VALUE | E111: 2017-08-11 | F111: 2017-08-11 | G111: 2017-08-16 | H111: 3000-01-01 | I111: SHLI | J111: BR:UBSSECMY | K111: UBS SECURITIES MALAYSIA SDN BHD | L111: MYR | M111: DF | N111: VCAP-INVESTMENT | O111: 1155 | P111: MAYBANK | Q111: 1000000 | R111: 9709539.88 | S111: 9709539.88 | T111: 155393471.4 | U111: 9.698 | V111: -9698000 | W111: -9709539.88 | X111: 9698 | Y111: 9709539.88 | Z111: 0 | AA111: 0 | AB111: 0 | AC111: 8 | AD111: 2017 | AE111: 2017-08-11T15:33:33 | AF111: faris | AG111: Muhammad Faris Harith
A112: EQT*170800075 | B112: SP | C112: EQT | D112: VALUE | E112: 2017-08-11 | F112: 2017-08-11 | G112: 2017-08-16 | H112: 3000-01-01 | I112: SHLI | J112: BR:TASEC | K112: TA SECURITIES HOLDINGS BHD | L112: MYR | M112: DF | N112: VCAP-INVESTMENT | O112: 1155 | P112: MAYBANK | Q112: 3000000 | R112: 29116489.46 | S112: 29116489.46 | T112: 184509960.9 | U112: 9.6948 | V112: -29084400 | W112: -29116489.46 | X112: 29084.4 | Y112: 29116489.46 | Z112: 0 | AA112: 0 | AB112: 0 | AC112: 8 | AD112: 2017 | AE112: 2017-08-11T17:05:56 | AF112: aishah | AG112: Nor Aishah Saad
A113: EQT*170800078 | B113: SP | C113: EQT | D113: VALUE | E113: 2017-08-14 | F113: 2017-08-14 | G113: 2017-08-17 | H113: 3000-01-01 | I113: SHLI | J113: BR:AFFINV | K113: AFFIN HWANG INVESTMENT BANK BERHAD | L113: MYR | M113: DF | N113: VCAP-INVESTMENT | O113: 1155 | P113: MAYBANK | Q113: 1000000 | R113: 9707237.44 | S113: 9707237.44 | T113: 194217198.3 | U113: 9.6957 | V113: -9695700 | W113: -9707237.44 | X113: 9695.7 | Y113: 9707237.44 | Z113: 0 | AA113: 0 | AB113: 0 | AC113: 8 | AD113: 2017 | AE113: 2017-08-14T09:17:21 | AF113: ahmad | AG113: Ahmad Firdaus Abdol Malek
A114: EQT*170800098 | B114: SP | C114: EQT | D114: VALUE | E114: 2017-08-15 | F114: 2017-08-15 | G114: 2017-08-18 | H114: 3000-01-01 | I114: SHLI | J114: BR:CREDITSUISSEMY | K114: CREDIT SUISSE SECURITIES (M) SDN BHD | L114: MYR | M114: DF | N114: VCAP-INVESTMENT | O114: 1155 | P114: MAYBANK | Q114: 1000000 | R114: 9702232.14 | S114: 9702232.14 | T114: 203919430.5 | U114: 9.6907 | V114: -9690700 | W114: -9702232.14 | X114: 9690.7 | Y114: 9702232.14 | Z114: 0 | AA114: 0 | AB114: 0 | AC114: 8 | AD114: 2017 | AE114: 2017-08-15T09:17:49 | AF114: ahmad | AG114: Ahmad Firdaus Abdol Malek
A115: EQT*170800099 | B115: SP | C115: EQT | D115: VALUE | E115: 2017-08-15 | F115: 2017-08-15 | G115: 2017-08-18 | H115: 3000-01-01 | I115: SHLI | J115: BR:MAYBANKINV | K115: MAYBANK INVESTMENT BANK | L115: MYR | M115: DF | N115: VCAP-INVESTMENT | O115: 1155 | P115: MAYBANK | Q115: 467500 | R115: 4539439.59 | S115: 4539439.59 | T115: 208458870.1 | U115: 9.6868 | V115: -4528579 | W115: -4539439.59 | X115: 9057.16 | Y115: 4539439.59 | Z115: 0 | AA115: 0 | AB115: 0 | AC115: 8 | AD115: 2017 | AE115: 2017-08-15T16:51:27 | AF115: aishah | AG115: Nor Aishah Saad
A116: EQT*170800103 | B116: SP | C116: EQT | D116: VALUE | E116: 2017-08-16 | F116: 2017-08-16 | G116: 2017-08-21 | H116: 3000-01-01 | I116: SHLI | J116: BR:UBSSECMY | K116: UBS SECURITIES MALAYSIA SDN BHD | L116: MYR | M116: DF | N116: VCAP-INVESTMENT | O116: 1155 | P116: MAYBANK | Q116: 750000 | R116: 7275487.52 | S116: 7275487.52 | T116: 215734357.6 | U116: 9.6887 | V116: -7266525 | W116: -7275487.52 | X116: 7266.53 | Y116: 7275487.52 | Z116: 0 | AA116: 0 | AB116: 0 | AC116: 8 | AD116: 2017 | AE116: 2017-08-16T09:32:06 | AF116: ahmad | AG116: Ahmad Firdaus Abdol Malek
A117: EQT*170800108 | B117: SP | C117: EQT | D117: VALUE | E117: 2017-08-16 | F117: 2017-08-16 | G117: 2017-08-21 | H117: 3000-01-01 | I117: SHLI | J117: BR:RHBINV | K117: RHB INVESTMENT BANK BERHAD | L117: MYR | M117: DF | N117: VCAP-INVESTMENT | O117: 1155 | P117: MAYBANK | Q117: 1600000 | R117: 15521694.24 | S117: 15521694.24 | T117: 231256051.8 | U117: 9.69 | V117: -15504000 | W117: -15521694.24 | X117: 15504 | Y117: 15521694.24 | Z117: 0 | AA117: 0 | AB117: 0 | AC117: 8 | AD117: 2017 | AE117: 2017-08-16T15:45:52 | AF117: aishah | AG117: Nor Aishah Saad
A118: EQT*170800112 | B118: SP | C118: EQT | D118: VALUE | E118: 2017-08-18 | F118: 2017-08-18 | G118: 2017-08-23 | H118: 3000-01-01 | I118: SHLI | J118: BR:TASEC | K118: TA SECURITIES HOLDINGS BHD | L118: MYR | M118: DF | N118: VCAP-INVESTMENT | O118: 1155 | P118: MAYBANK | Q118: 1000000 | R118: 9674002.25 | S118: 9674002.25 | T118: 240930054.1 | U118: 9.6625 | V118: -9662500 | W118: -9674002.25 | X118: 9662.5 | Y118: 9674002.25 | Z118: 0 | AA118: 0 | AB118: 0 | AC118: 8 | AD118: 2017 | AE118: 2017-08-18T09:14:51 | AF118: ahmad | AG118: Ahmad Firdaus Abdol Malek
A119: EQT*170800115 | B119: SP | C119: EQT | D119: VALUE | E119: 2017-08-18 | F119: 2017-08-18 | G119: 2017-08-23 | H119: 3000-01-01 | I119: SHLI | J119: BR:HLGINV | K119: HONG LEONG INVESTMENT BANK BHD | L119: MYR | M119: DF | N119: VCAP-INVESTMENT | O119: 1155 | P119: MAYBANK | Q119: 3000000 | R119: 29030298.2 | S119: 29030298.2 | T119: 269960352.3 | U119: 9.6661 | V119: -28998300 | W119: -29030298.2 | X119: 28998.3 | Y119: 29030298.2 | Z119: 0 | AA119: 0 | AB119: 0 | AC119: 8 | AD119: 2017 | AE119: 2017-08-18T16:50:29 | AF119: aishah | AG119: Nor Aishah Saad
A120: EQT*170800117 | B120: SP | C120: EQT | D120: VALUE | E120: 2017-08-21 | F120: 2017-08-21 | G120: 2017-08-24 | H120: 3000-01-01 | I120: SHLI | J120: BR:TASEC | K120: TA SECURITIES HOLDINGS BHD | L120: MYR | M120: DF | N120: VCAP-INVESTMENT | O120: 1155 | P120: MAYBANK | Q120: 1000000 | R120: 9613438.12 | S120: 9613438.12 | T120: 279573790.4 | U120: 9.602 | V120: -9602000 | W120: -9613438.12 | X120: 9602 | Y120: 9613438.12 | Z120: 0 | AA120: 0 | AB120: 0 | AC120: 8 | AD120: 2017 | AE120: 2017-08-21T09:30:13 | AF120: ahmad | AG120: Ahmad Firdaus Abdol Malek
A121: EQT*170800120 | B121: SP | C121: EQT | D121: VALUE | E121: 2017-08-21 | F121: 2017-08-21 | G121: 2017-08-24 | H121: 3000-01-01 | I121: SHLI | J121: BR:MIDFINV | K121: MIDF AMANAH INVESTMENT BANK BHD | L121: MYR | M121: DF | N121: VCAP-INVESTMENT | O121: 1155 | P121: MAYBANK | Q121: 3000000 | R121: 28840797.54 | S121: 28840797.54 | T121: 308414587.9 | U121: 9.603 | V121: -28809000 | W121: -28840797.54 | X121: 28809 | Y121: 28840797.54 | Z121: 0 | AA121: 0 | AB121: 0 | AC121: 8 | AD121: 2017 | AE121: 2017-08-21T10:51:53 | AF121: aishah | AG121: Nor Aishah Saad
A122: EQT*170800124 | B122: SP | C122: EQT | D122: VALUE | E122: 2017-08-21 | F122: 2017-08-21 | G122: 2017-08-24 | H122: 3000-01-01 | I122: SHLI | J122: BR:AFFINV | K122: AFFIN HWANG INVESTMENT BANK BERHAD | L122: MYR | M122: DF | N122: VCAP-INVESTMENT | O122: 1155 | P122: MAYBANK | Q122: 1979000 | R122: 19015637.99 | S122: 19015637.99 | T122: 327430225.9 | U122: 9.5979 | V122: -18994244.1 | W122: -19015637.99 | X122: 18994.24 | Y122: 19015637.99 | Z122: 0 | AA122: 0 | AB122: 0 | AC122: 8 | AD122: 2017 | AE122: 2017-08-21T15:09:15 | AF122: aishah | AG122: Nor Aishah Saad
A123: EQT*170800127 | B123: SP | C123: EQT | D123: VALUE | E123: 2017-08-22 | F123: 2017-08-22 | G123: 2017-08-25 | H123: 3000-01-01 | I123: SHLI | J123: BR:CIMBINV | K123: CIMB INVESTMENT BANK BHD | L123: MYR | M123: DF | N123: VCAP-INVESTMENT | O123: 1155 | P123: MAYBANK | Q123: 1000000 | R123: 9620845.96 | S123: 9620845.96 | T123: 337051071.9 | U123: 9.6094 | V123: -9609400 | W123: -9620845.96 | X123: 9609.4 | Y123: 9620845.96 | Z123: 0 | AA123: 0 | AB123: 0 | AC123: 8 | AD123: 2017 | AE123: 2017-08-22T09:14:04 | AF123: ahmad | AG123: Ahmad Firdaus Abdol Malek
A124: EQT*170800130 | B124: SP | C124: EQT | D124: VALUE | E124: 2017-08-22 | F124: 2017-08-22 | G124: 2017-08-25 | H124: 3000-01-01 | I124: SHLI | J124: BR:MAYBANKINV | K124: MAYBANK INVESTMENT BANK | L124: MYR | M124: DF | N124: VCAP-INVESTMENT | O124: 1155 | P124: MAYBANK | Q124: 3000000 | R124: 28864222.34 | S124: 28864222.34 | T124: 365915294.2 | U124: 9.6108 | V124: -28832400 | W124: -28864222.34 | X124: 28832.4 | Y124: 28864222.34 | Z124: 0 | AA124: 0 | AB124: 0 | AC124: 8 | AD124: 2017 | AE124: 2017-08-22T09:42:04 | AF124: aishah | AG124: Nor Aishah Saad
A125: EQT*170800136 | B125: SP | C125: EQT | D125: VALUE | E125: 2017-08-22 | F125: 2017-08-22 | G125: 2017-08-25 | H125: 3000-01-01 | I125: SHLI | J125: BR:KENANGAINV | K125: KENANGA INVESTMENT BANK BHD | L125: MYR | M125: DF | N125: VCAP-INVESTMENT | O125: 1155 | P125: MAYBANK | Q125: 2091600 | R125: 20122842.3 | S125: 20122842.3 | T125: 386038136.5 | U125: 9.61 | V125: -20100276 | W125: -20122842.3 | X125: 20100.28 | Y125: 20122842.3 | Z125: 0 | AA125: 0 | AB125: 0 | AC125: 8 | AD125: 2017 | AE125: 2017-08-22T11:00:42 | AF125: aishah | AG125: Nor Aishah Saad
A126: EQT*170800145 | B126: SP | C126: EQT | D126: VALUE | E126: 2017-08-23 | F126: 2017-08-23 | G126: 2017-08-28 | H126: 3000-01-01 | I126: SHLI | J126: BR:MIDFINV | K126: MIDF AMANAH INVESTMENT BANK BHD | L126: MYR | M126: DF | N126: VCAP-INVESTMENT | O126: 1155 | P126: MAYBANK | Q126: 1000000 | R126: 9605129.32 | S126: 9605129.32 | T126: 395643265.8 | U126: 9.5937 | V126: -9593700 | W126: -9605129.32 | X126: 9593.7 | Y126: 9605129.32 | Z126: 0 | AA126: 0 | AB126: 0 | AC126: 8 | AD126: 2017 | AE126: 2017-08-23T09:58:06 | AF126: ahmad | AG126: Ahmad Firdaus Abdol Malek
A127: EQT*170800151 | B127: SP | C127: EQT | D127: VALUE | E127: 2017-08-24 | F127: 2017-08-24 | G127: 2017-08-29 | H127: 3000-01-01 | I127: SHLI | J127: BR:NOMURASECMY | K127: NOMURA SECURITIES MALAYSIA SDN BHD | L127: MYR | M127: DF | N127: VCAP-INVESTMENT | O127: 1155 | P127: MAYBANK | Q127: 352200 | R127: 3378959.58 | S127: 3378959.58 | T127: 399022225.4 | U127: 9.57 | V127: -3370554 | W127: -3378959.58 | X127: 6741.11 | Y127: 3378959.58 | Z127: 0 | AA127: 0 | AB127: 0 | AC127: 8 | AD127: 2017 | AE127: 2017-08-24T15:42:05 | AF127: ahmad | AG127: Ahmad Firdaus Abdol Malek
A128: EQT*170800153 | B128: SP | C128: EQT | D128: VALUE | E128: 2017-08-24 | F128: 2017-08-24 | G128: 2017-08-29 | H128: 3000-01-01 | I128: SHLI | J128: BR:CIMBINV | K128: CIMB INVESTMENT BANK BHD | L128: MYR | M128: DF | N128: VCAP-INVESTMENT | O128: 1155 | P128: MAYBANK | Q128: 1611700 | R128: 15440126.34 | S128: 15440126.34 | T128: 414462351.8 | U128: 9.5691 | V128: -15422518.47 | W128: -15440126.34 | X128: 15422.52 | Y128: 15440126.34 | Z128: 0 | AA128: 0 | AB128: 0 | AC128: 8 | AD128: 2017 | AE128: 2017-08-24T15:43:19 | AF128: aishah | AG128: Nor Aishah Saad
A129: EQT*170800159 | B129: SP | C129: EQT | D129: VALUE | E129: 2017-08-25 | F129: 2017-08-25 | G129: 2017-08-30 | H129: 3000-01-01 | I129: SHLI | J129: BR:KENANGAINV | K129: KENANGA INVESTMENT BANK BHD | L129: MYR | M129: DF | N129: VCAP-INVESTMENT | O129: 1155 | P129: MAYBANK | Q129: 201900 | R129: 1926447.84 | S129: 1926447.84 | T129: 416388799.6 | U129: 9.5174 | V129: -1921563.06 | W129: -1926447.84 | X129: 3843.13 | Y129: 1926447.84 | Z129: 0 | AA129: 0 | AB129: 0 | AC129: 8 | AD129: 2017 | AE129: 2017-08-25T14:47:24 | AF129: ahmad | AG129: Ahmad Firdaus Abdol Malek
A130: EQT*170800161 | B130: SP | C130: EQT | D130: VALUE | E130: 2017-08-25 | F130: 2017-08-25 | G130: 2017-08-30 | H130: 3000-01-01 | I130: SHLI | J130: BR:MAYBANKINV | K130: MAYBANK INVESTMENT BANK | L130: MYR | M130: DF | N130: VCAP-INVESTMENT | O130: 1155 | P130: MAYBANK | Q130: 1000000 | R130: 9552773.88 | S130: 9552773.88 | T130: 425941573.5 | U130: 9.5414 | V130: -9541400 | W130: -9552773.88 | X130: 9541.4 | Y130: 9552773.88 | Z130: 0 | AA130: 0 | AB130: 0 | AC130: 8 | AD130: 2017 | AE130: 2017-08-25T16:27:45 | AF130: aishah | AG130: Nor Aishah Saad
A131: EQT*170800168 | B131: SP | C131: EQT | D131: VALUE | E131: 2017-08-29 | F131: 2017-08-29 | G131: 2017-09-06 | H131: 3000-01-01 | I131: SHLI | J131: BR:KAFSEC | K131: KAF-SEAGROATT & CAMPBELL SECURITIES SDN BHD | L131: MYR | M131: DF | N131: VCAP-INVESTMENT | O131: 1155 | P131: MAYBANK | Q131: 1000000 | R131: 9490808.27 | S131: 9490808.27 | T131: 435432381.7 | U131: 9.4795 | V131: -9479500 | W131: -9490808.27 | X131: 9479.5 | Y131: 9490808.27 | Z131: 0 | AA131: 0 | AB131: 0 | AC131: 8 | AD131: 2017 | AE131: 2017-08-29T17:06:10 | AF131: aishah | AG131: Nor Aishah Saad
A132: EQT*170800171 | B132: SP | C132: EQT | D132: VALUE | E132: 2017-08-30 | F132: 2017-08-30 | G132: 2017-09-07 | H132: 3000-01-01 | I132: SHLI | J132: BR:ALLIANCEINV | K132: ALLIANCE INVESTMENT BANK BERHAD | L132: MYR | M132: DF | N132: VCAP-INVESTMENT | O132: 1155 | P132: MAYBANK | Q132: 2000000 | R132: 18979755.9 | S132: 18979755.9 | T132: 454412137.6 | U132: 9.4792 | V132: -18958400 | W132: -18979755.9 | X132: 18958.4 | Y132: 18979755.9 | Z132: 0 | AA132: 0 | AB132: 0 | AC132: 8 | AD132: 2017 | AE132: 2017-08-30T16:20:49 | AF132: aishah | AG132: Nor Aishah Saad
A133: EQT*170800172 | B133: SP | C133: EQT | D133: VALUE | E133: 2017-08-30 | F133: 2017-08-30 | G133: 2017-09-07 | H133: 3000-01-01 | I133: SHLI | J133: BR:PBBINV | K133: PUBLIC INVESTMENT BANK BERHAD | L133: MYR | M133: DF | N133: VCAP-INVESTMENT | O133: 1155 | P133: MAYBANK | Q133: 1000000 | R133: 9471287.6 | S133: 9471287.6 | T133: 463883425.2 | U133: 9.46 | V133: -9460000 | W133: -9471287.6 | X133: 9460 | Y133: 9471287.6 | Z133: 0 | AA133: 0 | AB133: 0 | AC133: 8 | AD133: 2017 | AE133: 2017-08-30T16:24:23 | AF133: aishah | AG133: Nor Aishah Saad
A134: EQT*170900002 | B134: SP | C134: EQT | D134: VALUE | E134: 2017-09-05 | F134: 2017-09-05 | G134: 2017-09-08 | H134: 3000-01-01 | I134: SHLI | J134: BR:MAYBANKINV | K134: MAYBANK INVESTMENT BANK | L134: MYR | M134: DF | N134: VCAP-INVESTMENT | O134: 1155 | P134: MAYBANK | Q134: 1850000 | R134: 17442658.31 | S134: 17442658.31 | T134: 481326083.6 | U134: 9.4178 | V134: -17422930 | W134: -17442658.31 | X134: 17422.93 | Y134: 17442658.31 | Z134: 0 | AA134: 0 | AB134: 0 | AC134: 9 | AD134: 2017 | AE134: 2017-09-05T14:43:45 | AF134: aishah | AG134: Nor Aishah Saad
A135: EQT*170900051 | B135: SP | C135: EQT | D135: VALUE | E135: 2017-09-13 | F135: 2017-09-13 | G135: 2017-09-18 | H135: 3000-01-01 | I135: SHLI | J135: BR:TASEC | K135: TA SECURITIES HOLDINGS BHD | L135: MYR | M135: DF | N135: VCAP-INVESTMENT | O135: 1155 | P135: MAYBANK | Q135: 47900 | R135: 465874.57 | S135: 465874.57 | T135: 481791958.1 | U135: 9.6956 | V135: -464419.24 | W135: -465874.57 | X135: 1044.94 | Y135: 465874.57 | Z135: 0 | AA135: 0 | AB135: 0 | AC135: 9 | AD135: 2017 | AE135: 2017-09-13T10:41:28 | AF135: aishah | AG135: Nor Aishah Saad
A136: EQT*170900071 | B136: SP | C136: EQT | D136: VALUE | E136: 2017-09-18 | F136: 2017-09-18 | G136: 2017-09-21 | H136: 3000-01-01 | I136: SHLI | J136: BR:AMINVBANK | K136: AMINVESTMENT BANK BHD | L136: MYR | M136: DF | N136: VCAP-INVESTMENT | O136: 1155 | P136: MAYBANK | Q136: 1486300 | R136: 14534530.09 | S136: 14534530.09 | T136: 496326488.2 | U136: 9.7678 | V136: -14517881.14 | W136: -14534530.09 | X136: 14517.88 | Y136: 14534530.09 | Z136: 0 | AA136: 0 | AB136: 0 | AC136: 9 | AD136: 2017 | AE136: 2017-09-18T11:43:48 | AF136: aishah | AG136: Nor Aishah Saad
A137: EQT*170900072 | B137: SP | C137: EQT | D137: VALUE | E137: 2017-09-18 | F137: 2017-09-18 | G137: 2017-09-21 | H137: 3000-01-01 | I137: SHLI | J137: BR:MAYBANKINV | K137: MAYBANK INVESTMENT BANK | L137: MYR | M137: DF | N137: VCAP-INVESTMENT | O137: 1155 | P137: MAYBANK | Q137: 530000 | R137: 5189040.23 | S137: 5189040.23 | T137: 501515528.4 | U137: 9.7779 | V137: -5182287 | W137: -5189040.23 | X137: 5182.29 | Y137: 5189040.23 | Z137: 0 | AA137: 0 | AB137: 0 | AC137: 9 | AD137: 2017 | AE137: 2017-09-18T11:45:38 | AF137: aishah | AG137: Nor Aishah Saad
A138: EQT*170900081 | B138: SP | C138: EQT | D138: VALUE | E138: 2017-09-19 | F138: 2017-09-19 | G138: 2017-09-25 | H138: 3000-01-01 | I138: SHLI | J138: BR:TASEC | K138: TA SECURITIES HOLDINGS BHD | L138: MYR | M138: DF | N138: VCAP-INVESTMENT | O138: 1155 | P138: MAYBANK | Q138: 220000 | R138: 2152215.85 | S138: 2152215.85 | T138: 503667744.3 | U138: 9.7581 | V138: -2146782 | W138: -2152215.85 | X138: 4293.56 | Y138: 2152215.85 | Z138: 0 | AA138: 0 | AB138: 0 | AC138: 9 | AD138: 2017 | AE138: 2017-09-19T17:04:43 | AF138: faris | AG138: Muhammad Faris Harith
A139: EQT*170900098 | B139: SP | C139: EQT | D139: VALUE | E139: 2017-09-25 | F139: 2017-09-25 | G139: 2017-09-28 | H139: 3000-01-01 | I139: SHLI | J139: BR:MAYBANKINV | K139: MAYBANK INVESTMENT BANK | L139: MYR | M139: DF | N139: VCAP-INVESTMENT | O139: 1155 | P139: MAYBANK | Q139: 500000 | R139: 4886595 | S139: 4886595 | T139: 508554339.3 | U139: 9.75 | V139: -4875000 | W139: -4886595 | X139: 9750 | Y139: 4886595 | Z139: 0 | AA139: 0 | AB139: 0 | AC139: 9 | AD139: 2017 | AE139: 2017-09-25T15:11:20 | AF139: aishah | AG139: Nor Aishah Saad
A140: EQT*170900101 | B140: SP | C140: EQT | D140: VALUE | E140: 2017-09-26 | F140: 2017-09-26 | G140: 2017-09-29 | H140: 3000-01-01 | I140: SHLI | J140: BR:AFFINV | K140: AFFIN HWANG INVESTMENT BANK BERHAD | L140: MYR | M140: DF | N140: VCAP-INVESTMENT | O140: 1155 | P140: MAYBANK | Q140: 700000 | R140: 6831392.27 | S140: 6831392.27 | T140: 515385731.6 | U140: 9.747 | V140: -6822900 | W140: -6831392.27 | X140: 6822.9 | Y140: 6831392.27 | Z140: 0 | AA140: 0 | AB140: 0 | AC140: 9 | AD140: 2017 | AE140: 2017-09-26T11:42:37 | AF140: aishah | AG140: Nor Aishah Saad
A141: EQT*170900117 | B141: SP | C141: EQT | D141: VALUE | E141: 2017-09-28 | F141: 2017-09-28 | G141: 2017-10-03 | H141: 3000-01-01 | I141: SHLI | J141: BR:KAFSEC | K141: KAF-SEAGROATT & CAMPBELL SECURITIES SDN BHD | L141: MYR | M141: DF | N141: VCAP-INVESTMENT | O141: 1155 | P141: MAYBANK | Q141: 3000000 | R141: 29431823.36 | S141: 29431823.36 | T141: 544817554.9 | U141: 9.7998 | V141: -29399400 | W141: -29431823.36 | X141: 29399.4 | Y141: 29431823.36 | Z141: 0 | AA141: 0 | AB141: 0 | AC141: 9 | AD141: 2017 | AE141: 2017-09-28T16:01:34 | AF141: aishah | AG141: Nor Aishah Saad
A142: EQT*170300031 | B142: SS | C142: EQT | D142: CORE | E142: 2017-03-02 | F142: 2017-03-02 | G142: 2017-03-07 | H142: 3000-01-01 | I142: SHLI | J142: BR:HLGINV | K142: HONG LEONG INVESTMENT BANK BHD | L142: MYR | M142: DF | N142: VCAP-INVESTMENT | O142: 1155 | P142: MAYBANK | Q142: -1000000 | R142: -8281155.6 | S142: -8281155.6 | T142: 331724046.7 | U142: 8.7604 | V142: 8760400 | W142: 8749853.98 | X142: 8760.4 | Y142: 8749853.98 | Z142: 0 | AA142: 468698.38 | AB142: 468698.38 | AC142: 3 | AD142: 2017 | AE142: 2017-03-02T16:59:21 | AF142: aishah | AG142: Nor Aishah Saad
A143: EQT*170300036 | B143: SS | C143: EQT | D143: CORE | E143: 2017-03-02 | F143: 2017-03-02 | G143: 2017-03-07 | H143: 3000-01-01 | I143: SHLI | J143: BR:ALLIANCEINV | K143: ALLIANCE INVESTMENT BANK BERHAD | L143: MYR | M143: DF | N143: VCAP-INVESTMENT | O143: 1155 | P143: MAYBANK | Q143: -1500000 | R143: -12421733.4 | S143: -12421733.4 | T143: 319302313.3 | U143: 8.77 | V143: 13155000 | W143: 13139795.7 | X143: 13155 | Y143: 13139795.7 | Z143: 0 | AA143: 718062.3 | AB143: 718062.3 | AC143: 3 | AD143: 2017 | AE143: 2017-03-02T17:09:18 | AF143: aishah | AG143: Nor Aishah Saad
A144: EQT*170300037 | B144: SS | C144: EQT | D144: CORE | E144: 2017-03-02 | F144: 2017-03-02 | G144: 2017-03-07 | H144: 3000-01-01 | I144: SHLI | J144: BR:KAFSEC | K144: KAF-SEAGROATT & CAMPBELL SECURITIES SDN BHD | L144: MYR | M144: DF | N144: VCAP-INVESTMENT | O144: 1155 | P144: MAYBANK | Q144: -3000000 | R144: -24843466.8 | S144: -24843466.8 | T144: 294458846.5 | U144: 8.7569 | V144: 26270700 | W144: 26241593.06 | X144: 26270.7 | Y144: 26241593.06 | Z144: 0 | AA144: 1398126.26 | AB144: 1398126.26 | AC144: 3 | AD144: 2017 | AE144: 2017-03-02T17:30:24 | AF144: aishah | AG144: Nor Aishah Saad
A145: EQT*170300066 | B145: SS | C145: EQT | D145: CORE | E145: 2017-03-06 | F145: 2017-03-06 | G145: 2017-03-09 | H145: 3000-01-01 | I145: SHLI | J145: BR:CREDITSUISSEMY | K145: CREDIT SUISSE SECURITIES (M) SDN BHD | L145: MYR | M145: DF | N145: VCAP-INVESTMENT | O145: 1155 | P145: MAYBANK | Q145: -2000000 | R145: -16562311.2 | S145: -16562311.2 | T145: 277896535.3 | U145: 8.7577 | V145: 17515400 | W145: 17495573.68 | X145: 17515.4 | Y145: 17495573.68 | Z145: 0 | AA145: 933262.48 | AB145: 933262.48 | AC145: 3 | AD145: 2017 | AE145: 2017-03-06T17:14:48 | AF145: aishah | AG145: Nor Aishah Saad
A146: EQT*170300071 | B146: SS | C146: EQT | D146: CORE | E146: 2017-03-07 | F146: 2017-03-07 | G146: 2017-03-10 | H146: 3000-01-01 | I146: SHLI | J146: BR:HLGINV | K146: HONG LEONG INVESTMENT BANK BHD | L146: MYR | M146: DF | N146: VCAP-INVESTMENT | O146: 1155 | P146: MAYBANK | Q146: -557700 | R146: -4618400.48 | S146: -4618400.48 | T146: 273278134.8 | U146: 8.8551 | V146: 4938489.27 | W146: 4926759.67 | X146: 9876.98 | Y146: 4926759.67 | Z146: 0 | AA146: 308359.19 | AB146: 308359.19 | AC146: 3 | AD146: 2017 | AE146: 2017-03-07T10:59:06 | AF146: aishah | AG146: Nor Aishah Saad
A147: EQT*170300107 | B147: SS | C147: EQT | D147: CORE | E147: 2017-03-08 | F147: 2017-03-08 | G147: 2017-03-13 | H147: 3000-01-01 | I147: SHLI | J147: BR:ALLIANCEINV | K147: ALLIANCE INVESTMENT BANK BERHAD | L147: MYR | M147: DF | N147: VCAP-INVESTMENT | O147: 1155 | P147: MAYBANK | Q147: -600000 | R147: -4968693.36 | S147: -4968693.36 | T147: 268309441.4 | U147: 8.85 | V147: 5310000 | W147: 5303111.4 | X147: 5310 | Y147: 5303111.4 | Z147: 0 | AA147: 334418.04 | AB147: 334418.04 | AC147: 3 | AD147: 2017 | AE147: 2017-03-08T16:32:40 | AF147: aishah | AG147: Nor Aishah Saad
A148: EQT*170300118 | B148: SS | C148: EQT | D148: CORE | E148: 2017-03-10 | F148: 2017-03-10 | G148: 2017-03-15 | H148: 3000-01-01 | I148: SHLI | J148: BR:CIMBINV | K148: CIMB INVESTMENT BANK BHD | L148: MYR | M148: DF | N148: VCAP-INVESTMENT | O148: 1155 | P148: MAYBANK | Q148: -699200 | R148: -5790184 | S148: -5790184 | T148: 262519257.4 | U148: 8.8128 | V148: 6161909.76 | W148: 6154118.14 | X148: 6161.91 | Y148: 6154118.14 | Z148: 0 | AA148: 363934.14 | AB148: 363934.14 | AC148: 3 | AD148: 2017 | AE148: 2017-03-10T11:40:59 | AF148: ahmad | AG148: Ahmad Firdaus Abdol Malek
A149: EQT*170300125 | B149: SS | C149: EQT | D149: CORE | E149: 2017-03-13 | F149: 2017-03-13 | G149: 2017-03-16 | H149: 3000-01-01 | I149: SHLI | J149: BR:AFFINV | K149: AFFIN HWANG INVESTMENT BANK BERHAD | L149: MYR | M149: DF | N149: VCAP-INVESTMENT | O149: 1155 | P149: MAYBANK | Q149: -1525300 | R149: -12631246.64 | S149: -12631246.64 | T149: 249888010.8 | U149: 8.8159 | V149: 13446892.27 | W149: 13431378.57 | X149: 13446.89 | Y149: 13431378.57 | Z149: 0 | AA149: 800131.93 | AB149: 800131.93 | AC149: 3 | AD149: 2017 | AE149: 2017-03-13T10:32:26 | AF149: aishah | AG149: Nor Aishah Saad
A150: EQT*170300146 | B150: SS | C150: EQT | D150: CORE | E150: 2017-03-14 | F150: 2017-03-14 | G150: 2017-03-17 | H150: 3000-01-01 | I150: SHLI | J150: BR:AMINVBANK | K150: AMINVESTMENT BANK BHD | L150: MYR | M150: DF | N150: VCAP-INVESTMENT | O150: 1155 | P150: MAYBANK | Q150: -175500 | R150: -1453342.81 | S150: -1453342.81 | T150: 248434668 | U150: 8.85 | V150: 1553175 | W150: 1549188.35 | X150: 3106.35 | Y150: 1549188.35 | Z150: 0 | AA150: 95845.54 | AB150: 95845.54 | AC150: 3 | AD150: 2017 | AE150: 2017-03-14T09:26:10 | AF150: ahmad | AG150: Ahmad Firdaus Abdol Malek
A151: EQT*170300151 | B151: SS | C151: EQT | D151: CORE | E151: 2017-03-14 | F151: 2017-03-14 | G151: 2017-03-17 | H151: 3000-01-01 | I151: SHLI | J151: BR:MAYBANKINV | K151: MAYBANK INVESTMENT BANK | L151: MYR | M151: DF | N151: VCAP-INVESTMENT | O151: 1155 | P151: MAYBANK | Q151: -2000000 | R151: -16562311.2 | S151: -16562311.2 | T151: 231872356.8 | U151: 8.8405 | V151: 17681000 | W151: 17660998.14 | X151: 17681 | Y151: 17660998.14 | Z151: 0 | AA151: 1098686.94 | AB151: 1098686.94 | AC151: 3 | AD151: 2017 | AE151: 2017-03-14T14:59:47 | AF151: aishah | AG151: Nor Aishah Saad
A152: EQT*170300153 | B152: SS | C152: EQT | D152: CORE | E152: 2017-03-14 | F152: 2017-03-14 | G152: 2017-03-17 | H152: 3000-01-01 | I152: SHLI | J152: BR:AFFINV | K152: AFFIN HWANG INVESTMENT BANK BERHAD | L152: MYR | M152: DF | N152: VCAP-INVESTMENT | O152: 1155 | P152: MAYBANK | Q152: -500000 | R152: -4140577.8 | S152: -4140577.8 | T152: 227731779 | U152: 8.85 | V152: 4425000 | W152: 4414359 | X152: 8850 | Y152: 4414359 | Z152: 0 | AA152: 273781.2 | AB152: 273781.2 | AC152: 3 | AD152: 2017 | AE152: 2017-03-14T15:50:03 | AF152: ahmad | AG152: Ahmad Firdaus Abdol Malek
A153: EQT*170300172 | B153: SS | C153: EQT | D153: CORE | E153: 2017-03-16 | F153: 2017-03-16 | G153: 2017-03-21 | H153: 3000-01-01 | I153: SHLI | J153: BR:CIMBINV | K153: CIMB INVESTMENT BANK BHD | L153: MYR | M153: DF | N153: VCAP-INVESTMENT | O153: 1155 | P153: MAYBANK | Q153: -2000000 | R153: -16562311.2 | S153: -16562311.2 | T153: 211169467.8 | U153: 8.8363 | V153: 17672600 | W153: 17652607.04 | X153: 17672.6 | Y153: 17652607.04 | Z153: 0 | AA153: 1090295.84 | AB153: 1090295.84 | AC153: 3 | AD153: 2017 | AE153: 2017-03-16T09:19:31 | AF153: aishah | AG153: Nor Aishah Saad
A154: EQT*170300173 | B154: SS | C154: EQT | D154: CORE | E154: 2017-03-16 | F154: 2017-03-16 | G154: 2017-03-21 | H154: 3000-01-01 | I154: SHLI | J154: BR:CREDITSUISSEMY | K154: CREDIT SUISSE SECURITIES (M) SDN BHD | L154: MYR | M154: DF | N154: VCAP-INVESTMENT | O154: 1155 | P154: MAYBANK | Q154: -2000000 | R154: -16562311.2 | S154: -16562311.2 | T154: 194607156.6 | U154: 8.85 | V154: 17700000 | W154: 17679978 | X154: 17700 | Y154: 17679978 | Z154: 0 | AA154: 1117666.8 | AB154: 1117666.8 | AC154: 3 | AD154: 2017 | AE154: 2017-03-16T09:19:52 | AF154: aishah | AG154: Nor Aishah Saad
A155: EQT*170300184 | B155: SS | C155: EQT | D155: CORE | E155: 2017-03-16 | F155: 2017-03-16 | G155: 2017-03-21 | H155: 3000-01-01 | I155: SHLI | J155: BR:KAFSEC | K155: KAF-SEAGROATT & CAMPBELL SECURITIES SDN BHD | L155: MYR | M155: DF | N155: VCAP-INVESTMENT | O155: 1155 | P155: MAYBANK | Q155: -2000000 | R155: -16562311.2 | S155: -16562311.2 | T155: 178044845.4 | U155: 8.8317 | V155: 17663400 | W155: 17643416.8 | X155: 17663.4 | Y155: 17643416.8 | Z155: 0 | AA155: 1081105.6 | AB155: 1081105.6 | AC155: 3 | AD155: 2017 | AE155: 2017-03-16T14:53:24 | AF155: aishah | AG155: Nor Aishah Saad
A156: EQT*170300188 | B156: SS | C156: EQT | D156: CORE | E156: 2017-03-16 | F156: 2017-03-16 | G156: 2017-03-21 | H156: 3000-01-01 | I156: SHLI | J156: BR:RHBINV | K156: RHB INVESTMENT BANK BERHAD | L156: MYR | M156: DF | N156: VCAP-INVESTMENT | O156: 1155 | P156: MAYBANK | Q156: -447200 | R156: -3703332.78 | S156: -3703332.78 | T156: 174341512.6 | U156: 8.85 | V156: 3957720 | W156: 3948069.63 | X156: 7915.44 | Y156: 3948069.63 | Z156: 0 | AA156: 244736.85 | AB156: 244736.85 | AC156: 3 | AD156: 2017 | AE156: 2017-03-16T16:55:46 | AF156: aishah | AG156: Nor Aishah Saad
A157: EQT*170300199 | B157: SS | C157: EQT | D157: CORE | E157: 2017-03-17 | F157: 2017-03-17 | G157: 2017-03-22 | H157: 3000-01-01 | I157: SHLI | J157: BR:ALLIANCEINV | K157: ALLIANCE INVESTMENT BANK BERHAD | L157: MYR | M157: DF | N157: VCAP-INVESTMENT | O157: 1155 | P157: MAYBANK | Q157: -952800 | R157: -7890285.05 | S157: -7890285.05 | T157: 166451227.5 | U157: 8.97 | V157: 8546616 | W157: 8536296.58 | X157: 8546.62 | Y157: 8536296.58 | Z157: 0 | AA157: 646011.53 | AB157: 646011.53 | AC157: 3 | AD157: 2017 | AE157: 2017-03-17T11:45:14 | AF157: aishah | AG157: Nor Aishah Saad
A158: EQT*170300207 | B158: SS | C158: EQT | D158: CORE | E158: 2017-03-17 | F158: 2017-03-17 | G158: 2017-03-22 | H158: 3000-01-01 | I158: SHLI | J158: BR:AFFINV | K158: AFFIN HWANG INVESTMENT BANK BERHAD | L158: MYR | M158: DF | N158: VCAP-INVESTMENT | O158: 1155 | P158: MAYBANK | Q158: -691800 | R158: -5728903.44 | S158: -5728903.44 | T158: 160722324.1 | U158: 8.96 | V158: 6198528 | W158: 6190697.56 | X158: 6198.53 | Y158: 6190697.56 | Z158: 0 | AA158: 461794.12 | AB158: 461794.12 | AC158: 3 | AD158: 2017 | AE158: 2017-03-17T16:40:13 | AF158: aishah | AG158: Nor Aishah Saad
A159: EQT*170300208 | B159: SS | C159: EQT | D159: CORE | E159: 2017-03-17 | F159: 2017-03-17 | G159: 2017-03-22 | H159: 3000-01-01 | I159: SHLI | J159: BR:HLGINV | K159: HONG LEONG INVESTMENT BANK BHD | L159: MYR | M159: DF | N159: VCAP-INVESTMENT | O159: 1155 | P159: MAYBANK | Q159: -1800000 | R159: -14906080.08 | S159: -14906080.08 | T159: 145816244 | U159: 8.9632 | V159: 16133760 | W159: 16115398.21 | X159: 16133.76 | Y159: 16115398.21 | Z159: 0 | AA159: 1209318.13 | AB159: 1209318.13 | AC159: 3 | AD159: 2017 | AE159: 2017-03-17T16:57:43 | AF159: aishah | AG159: Nor Aishah Saad
A160: EQT*170300218 | B160: SS | C160: EQT | D160: CORE | E160: 2017-03-20 | F160: 2017-03-20 | G160: 2017-03-23 | H160: 3000-01-01 | I160: SHLI | J160: BR:CIMBINV | K160: CIMB INVESTMENT BANK BHD | L160: MYR | M160: DF | N160: VCAP-INVESTMENT | O160: 1155 | P160: MAYBANK | Q160: -498300 | R160: -4170705.15 | S160: -4170705.15 | T160: 167419118.6 | U160: 8.97 | V160: 4469751 | W160: 4459015.13 | X160: 8939.5 | Y160: 4459015.13 | Z160: 0 | AA160: 288309.98 | AB160: 288309.98 | AC160: 3 | AD160: 2017 | AE160: 2017-03-20T17:14:39 | AF160: aishah | AG160: Nor Aishah Saad
A161: EQT*170500060 | B161: SS | C161: EQT | D161: CORE | E161: 2017-05-08 | F161: 2017-05-08 | G161: 2017-05-12 | H161: 3000-01-01 | I161: SHLI | J161: BR:KAFSEC | K161: KAF-SEAGROATT & CAMPBELL SECURITIES SDN BHD | L161: MYR | M161: DF | N161: VCAP-INVESTMENT | O161: 1155 | P161: MAYBANK | Q161: -400000 | R161: -3572324.44 | S161: -3572324.44 | T161: 487622285.4 | U161: 9.4 | V161: 3760000 | W161: 3750768.8 | X161: 7520 | Y161: 3750768.8 | Z161: 0 | AA161: 178444.36 | AB161: 178444.36 | AC161: 5 | AD161: 2017 | AE161: 2017-05-08T08:34:13 | AF161: aishah | AG161: Nor Aishah Saad
A162: EQT*170500061 | B162: SS | C162: EQT | D162: CORE | E162: 2017-05-08 | F162: 2017-05-08 | G162: 2017-05-12 | H162: 3000-01-01 | I162: SHLI | J162: BR:PBBINV | K162: PUBLIC INVESTMENT BANK BERHAD | L162: MYR | M162: DF | N162: VCAP-INVESTMENT | O162: 1155 | P162: MAYBANK | Q162: -400000 | R162: -3572324.44 | S162: -3572324.44 | T162: 484049960.9 | U162: 9.4 | V162: 3760000 | W162: 3750768.8 | X162: 7520 | Y162: 3750768.8 | Z162: 0 | AA162: 178444.36 | AB162: 178444.36 | AC162: 5 | AD162: 2017 | AE162: 2017-05-08T08:40:18 | AF162: aishah | AG162: Nor Aishah Saad
A163: EQT*170500071 | B163: SS | C163: EQT | D163: CORE | E163: 2017-05-09 | F163: 2017-05-09 | G163: 2017-05-15 | H163: 3000-01-01 | I163: SHLI | J163: BR:KAFSEC | K163: KAF-SEAGROATT & CAMPBELL SECURITIES SDN BHD | L163: MYR | M163: DF | N163: VCAP-INVESTMENT | O163: 1155 | P163: MAYBANK | Q163: -900000 | R163: -8037729.98 | S163: -8037729.98 | T163: 476012231 | U163: 9.38 | V163: 8442000 | W163: 8431791.48 | X163: 8442 | Y163: 8431791.48 | Z163: 0 | AA163: 394061.5 | AB163: 394061.5 | AC163: 5 | AD163: 2017 | AE163: 2017-05-09T10:11:26 | AF163: ahmad | AG163: Ahmad Firdaus Abdol Malek
